Workbook

Sheet Sheet Names (hidden)
A1: ASSESSMENTS (Tname) | B1: SHEET NAME (Sname) | D1: This macro to split file by test name
A2: 03 Mathematics Mid-Year 2014 - Grade 3 Mathematics | B2: M-G03
A3: 04 Mathematics Mid-Year 2014-Grade 4 Mathematics | B3: M-G04
A4: 05 Mathematics Mid-Year 2014 - Grade 5 Mathematics | B4: M-G05
A5: 06 Mathematics Mid-Year 2014 - Grade 6 Mathematics | B5: M-G06
A6: 07 Mathematics Mid-Year 2014 - Grade 7 Mathematics | B6: M-G07
A7: 08 Mathematics Mid-Year 2014 - Grade 8 Mathematics | B7: M-G08
A8: 9_12 Geometry Mid-Year 2014 -Geometry | B8: M-GEO
A9: 9_12 Algebra I Mid-Year 2014 - Algebra I | B9: M-ALG1
A10: 9_12 Algebra II Mid-Year 2014 - Algebra II | B10: M-ALG2
A11: 03 Reading Mid-Year 2014 - Grade 3 ELA | B11: R-G03
A12: 04 Reading Mid-Year 2014 - Grade 4 ELA | B12: R-G04
A13: 05 Reading Mid-Year 2014 - Grade 5 ELA | B13: R-G05
A14: 06 Reading Mid-Year 2014 - Grade 6 ELA | B14: R-G06
A15: 07 Reading Mid-Year 2014 - Grade 7 ELA | B15: R-G07
A16: 08 Reading Mid-Year 2014 - Grade 8 ELA | B16: R-G08
A17: 9_12 Grade 9 Reading Mid-Year 2014 - Grade 9 ELA | B17: R-G09
A18: 9_12 Grade 10 Reading Mid-Year 2014 - Grade 10 ELA | B18: R-G10
A19: 9_12 Grade 11 Reading Mid-Year 2014 - Grade 11 ELA | B19: R-G11
A22: 9_12 Algebra II Mid-Year 2014 - Algebra II | B22: M-ALG2

Sheet Select School
B3: =VLOOKUP(C3,SchList!$I$1:$J$475,2,FALSE) -> 9999 | C3: 1
L5: =B3 -> 9999

Sheet Note

Sheet Grades 3-5
A2: Click here to return to the school and sheet selection interface
A3: ='Select School'!B3 -> 9999
A4: =TEXT(A3,"0000")&"-"&VLOOKUP(A3,SchList!$A$2:$B$474,2,FALSE) -> 9999-DISTRICT | O4: ELA | S4: Mathematics
N5: Grade | O5: Grade 3 | P5: Grade 4 | Q5: Grade 5 | R5: Grade | S5: Grade 3 | T5: Grade 4 | U5: Grade 5
N6: District | O6: =IFERROR(VLOOKUP(9999,'R-G03'!$B$3:$AC$300,5,FALSE),#N/A) -> 62.22 | P6: =IFERROR(VLOOKUP(9999,'R-G04'!$B$3:$AC$300,5,FALSE),#N/A) -> 57.32 | Q6: =IFERROR(VLOOKUP(9999,'R-G05'!$B$3:$AC$300,5,FALSE),#N/A) -> 60.41 | R6: District | S6: =IFERROR(VLOOKUP(9999,'M-G03'!$B$3:$AC$300,5,FALSE),#N/A) -> 63.09 | T6: =IFERROR(VLOOKUP(9999,'M-G04'!$B$3:$AC$300,5,FALSE),#N/A) -> 61.47 | U6: =IFERROR(VLOOKUP(9999,'M-G05'!$B$3:$AC$300,5,FALSE),#N/A) -> 60.44
N7: School | O7: =IFERROR(IF(OR($M$18<10,$M$18="NT"),#N/A,$D$18),#N/A) -> 62.22 | P7: =IFERROR(IF(OR($M$19<10,$M$19="NT"),#N/A,$D$19),#N/A) -> 57.32 | Q7: =IFERROR(IF(OR($M$20<10,$M$20="NT"),#N/A,$D$20),#N/A) -> 60.41 | R7: School | S7: =IFERROR(IF(OR($M$24<10,$M$24="NT"),#N/A,$D$24),#N/A) -> 63.09 | T7: =IFERROR(IF(OR($M$27<10,$M$27="NT"),#N/A,$D$27),#N/A) -> 61.47 | U7: =IFERROR(IF(OR($M$30<10,$M$30="NT"),#N/A,$D$30),#N/A) -> 60.44
A16: Grade | B16: Enrollment | C16: % Tested | D16: All | F16: =IFERROR(VLOOKUP(9999,'R-G03'!$B$265:$AH$300,13,FALSE),"NT") -> Key Ideas and Details | H16: =IFERROR(VLOOKUP(9999,'R-G03'!$B$265:$AH$300,18,FALSE),"NT") -> Craft and Structure | J16: =IFERROR(VLOOKUP(9999,'R-G03'!$B$265:$AH$300,23,FALSE),"NT") -> Integration of Knowledge and Ideas | M16: ELA Number Tested
D17: Avg. % Correct | E17: Pts. Max | F17: Avg.% Correct | G17: Pts. Max | H17: Avg.% Correct | I17: Pts. Max | J17: Avg.% Correct | K17: Pts. Max
A18: 3 | B18: =IFERROR(VLOOKUP(TEXT($A$3,"0000"),'Mem12-11-2014'!$A$3:$AC$500,7,FALSE),"NA") -> 27863 | C18: =IF(OR(M18<10,M18="NT",M18<10),"NA",IF(M18>B18,1,M18/B18)) -> 0.9593726447 | D18: =IFERROR(IF($C18="NA","NA",VLOOKUP($A$3,'R-G03'!$B$3:$AH$300,5,FALSE)),"NT") -> 62.22 | E18: =IFERROR(IF($C18="NA","NA",VLOOKUP($A$3,'R-G03'!$B$3:$AH$300,4,FALSE)),"NT") -> 52 | F18: =IFERROR(IF($C18="NA","NA",VLOOKUP($A$3,'R-G03'!$B$3:$AH$300,15,FALSE)),"NT") -> 0.66 | G18: =IFERROR(IF($C18="NA","NA",VLOOKUP($A$3,'R-G03'!$B$3:$AH$300,14,FALSE)),"NT") -> 16 | H18: =IFERROR(IF($C18="NA","NA",VLOOKUP($A$3,'R-G03'!$B$3:$AH$300,20,FALSE)),"NT") -> 0.64 | I18: =IFERROR(IF($C18="NA","NA",VLOOKUP($A$3,'R-G03'!$B$3:$AH$300,19,FALSE)),"NT") -> 26 | J18: =IFERROR(IF($C18="NA","NA",VLOOKUP($A$3,'R-G03'!$B$3:$AH$300,25,FALSE)),"NT") -> 0.53 | K18: =IFERROR(IF($C18="NA","NA",VLOOKUP($A$3,'R-G03'!$B$3:$AH$300,24,FALSE)),"NT") -> 10 | M18: =IFERROR(VLOOKUP($A$3,'R-G03'!$B$3:$AH$300,3,FALSE),"NT") -> 26731
A19: 4 | B19: =IFERROR(VLOOKUP(TEXT($A$3,"0000"),'Mem12-11-2014'!$A$3:$AC$500,8,FALSE),"NA") -> 24920 | C19: =IF(OR(M19="NA",M19="NT",M19<10),"NA",IF(M19>B19,1,M19/B19)) -> 0.9566211878 | D19: =IFERROR(IF($C19="NA","NA",VLOOKUP($A$3,'R-G04'!$B$3:$AH$300,5,FALSE)),"NT") -> 57.32 | E19: =IFERROR(IF($C19="NA","NA",VLOOKUP($A$3,'R-G04'!$B$3:$AH$300,4,FALSE)),"NT") -> 56 | F19: =IFERROR(IF($C19="NA","NA",VLOOKUP($A$3,'R-G04'!$B$3:$AH$300,15,FALSE)),"NT") -> 0.59 | G19: =IFERROR(IF($C19="NA","NA",VLOOKUP($A$3,'R-G04'!$B$3:$AH$300,14,FALSE)),"NT") -> 18 | H19: =IFERROR(IF($C19="NA","NA",VLOOKUP($A$3,'R-G04'!$B$3:$AH$300,20,FALSE)),"NT") -> 0.55 | I19: =IFERROR(IF($C19="NA","NA",VLOOKUP($A$3,'R-G04'!$B$3:$AH$300,19,FALSE)),"NT") -> 24 | J19: =IFERROR(IF($C19="NA","NA",VLOOKUP($A$3,'R-G04'!$B$3:$AH$300,25,FALSE)),"NT") -> 0.59 | K19: =IFERROR(IF($C19="NA","NA",VLOOKUP($A$3,'R-G04'!$B$3:$AH$300,24,FALSE)),"NT") -> 14 | M19: =IFERROR(VLOOKUP($A$3,'R-G04'!$B$3:$AH$300,3,FALSE),"NT") -> 23839
A20: 5 | B20: =IFERROR(VLOOKUP(TEXT($A$3,"0000"),'Mem12-11-2014'!$A$3:$AC$500,9,FALSE),"NA") -> 25290 | C20: 0.9627916172 | D20: =IFERROR(IF($C20="NA","NA",VLOOKUP($A$3,'R-G05'!$B$3:$AH$300,5,FALSE)),"NT") -> 60.41 | E20: =IFERROR(IF($C20="NA","NA",VLOOKUP($A$3,'R-G05'!$B$3:$AH$300,4,FALSE)),"NT") -> 49 | F20: =IFERROR(IF($C20="NA","NA",VLOOKUP($A$3,'R-G05'!$B$3:$AH$300,15,FALSE)),"NT") -> 0.59 | G20: =IFERROR(IF($C20="NA","NA",VLOOKUP($A$3,'R-G05'!$B$3:$AH$300,14,FALSE)),"NT") -> 15 | H20: =IFERROR(IF($C20="NA","NA",VLOOKUP($A$3,'R-G05'!$B$3:$AH$300,20,FALSE)),"NT") -> 0.6 | I20: =IFERROR(IF($C20="NA","NA",VLOOKUP($A$3,'R-G05'!$B$3:$AH$300,19,FALSE)),"NT") -> 26 | J20: =IFERROR(IF($C20="NA","NA",VLOOKUP($A$3,'R-G05'!$B$3:$AH$300,25,FALSE)),"NT") -> 0.65 | K20: =IFERROR(IF($C20="NA","NA",VLOOKUP($A$3,'R-G05'!$B$3:$AH$300,24,FALSE)),"NT") -> 8 | M20: =IFERROR(VLOOKUP($A$3,'R-G05'!$B$3:$AH$300,3,FALSE),"NT") -> 24349
A22: Grade | B22: Enrollment | C22: % Tested | D22: All | F22: =IFERROR(VLOOKUP(9999,'M-G03'!$B$3:$AH$300,13,FALSE),"NT") -> Operations; Algebraic Thinking; and Numbers in Base Ten | J22: =IFERROR(VLOOKUP(9999,'M-G03'!$B$3:$AH$300,23,FALSE),"NT") -> Measurement; Data; and Geometry | M22: Math Number Tested
D23: Avg. % Correct | E23: Pts. Max | F23: Avg.% Correct | H23: Pts. Max | J23: Avg.% Correct | K23: Pts. Max
A24: 3 | B24: =IFERROR(VLOOKUP(TEXT($A$3,"0000"),'Mem12-11-2014'!$A$3:$AC$500,7,FALSE),"NA") -> 27863 | C24: =IF(OR(M24="NA",M24="NT",M24<10),"NA",IF(M24>B24,1,M24/B24)) -> 0.9506155116 | D24: =IFERROR(IF($C24="NA","NA",VLOOKUP($A$3,'M-G03'!$B$3:$AH$300,5,FALSE)),"NT") -> 63.09 | E24: =IFERROR(IF($C24="NA","NA",VLOOKUP($A$3,'M-G03'!$B$3:$AH$300,4,FALSE)),"NT") -> 54 | F24: =IFERROR(IF($C24="NA","NA",VLOOKUP($A$3,'M-G03'!$B$3:$AH$300,15,FALSE)),"NT") -> 0.62 | H24: =IFERROR(IF($C24="NA","NA",VLOOKUP($A$3,'M-G03'!$B$3:$AH$300,14,FALSE)),"NT") -> 48 | J24: =IFERROR(IF($C24="NA","NA",VLOOKUP($A$3,'M-G03'!$B$3:$AH$300,25,FALSE)),"NT") -> 0.69 | K24: =IFERROR(IF($C24="NA","NA",VLOOKUP($A$3,'M-G03'!$B$3:$AH$300,24,FALSE)),"NT") -> 6 | M24: =IFERROR(VLOOKUP($A$3,'M-G03'!$B$3:$AH$300,3,FALSE),"NT") -> 26487
A25: Grade | B25: Enrollment | C25: % Tested | D25: All | F25: =IFERROR(VLOOKUP(9999,'M-G04'!$B$3:$AH$300,13,FALSE),"NT") -> Operations and Algebraic Thinking | J25: =IFERROR(VLOOKUP(9999,'M-G04'!$B$3:$AH$300,18,FALSE),"NT") -> Numbers and Operations in Base Ten
D26: Avg. % Correct | E26: Pts. Max | F26: Avg.% Correct | H26: Pts. Max | J26: Avg.% Correct | K26: Pts. Max
A27: 4 | B27: =IFERROR(VLOOKUP(TEXT($A$3,"0000"),'Mem12-11-2014'!$A$3:$AC$500,8,FALSE),"NA") -> 24920 | C27: =IF(OR(M27="NA",M27="NT",M27<10),"NA",IF(M27>B27,1,M27/B27)) -> 0.9520064205 | D27: =IFERROR(IF($C27="NA","NA",VLOOKUP($A$3,'M-G04'!$B$3:$AH$300,5,FALSE)),"NT") -> 61.47 | E27: =IFERROR(IF($C27="NA","NA",VLOOKUP($A$3,'M-G04'!$B$3:$AH$300,4,FALSE)),"NT") -> 53 | F27: =IFERROR(IF($C27="NA","NA",VLOOKUP($A$3,'M-G04'!$B$3:$AH$300,15,FALSE)),"NT") -> 0.55 | H27: =IFERROR(IF($C27="NA","NA",VLOOKUP($A$3,'M-G04'!$B$3:$AH$300,14,FALSE)),"NT") -> 23 | J27: =IFERROR(IF($C27="NA","NA",VLOOKUP($A$3,'M-G04'!$B$3:$AH$300,20,FALSE)),"NT") -> 0.66 | K27: =IFERROR(IF($C27="NA","NA",VLOOKUP($A$3,'M-G04'!$B$3:$AH$300,19,FALSE)),"NT") -> 30 | M27: =IFERROR(VLOOKUP($A$3,'M-G04'!$B$3:$AH$300,3,FALSE),"NT") -> 23724
A28: Grade | B28: Enrollment | C28: % Tested | D28: All | F28: =IFERROR(VLOOKUP(9999,'M-G05'!$B$3:$AH$300,13,FALSE),"NT") -> Operations; Algebraic Thinking; and Fractions | J28: =IFERROR(VLOOKUP(9999,'M-G05'!$B$3:$AH$300,18,FALSE),"NT") -> Numbers and Operations in Base Ten
D29: Avg. % Correct | E29: Pts. Max | F29: Avg.% Correct | H29: Pts. Max | J29: Avg.% Correct | K29: Pts. Max
A30: 5 | B30: =IFERROR(VLOOKUP(TEXT($A$3,"0000"),'Mem12-11-2014'!$A$3:$AC$500,9,FALSE),"NA") -> 25290 | C30: =IF(OR(M30="NA",M30="NT",M30<10),"NA",IF(M30>B30,1,M30/B30)) -> 0.9645709767 | D30: =IFERROR(IF($C30="NA","NA",VLOOKUP($A$3,'M-G05'!$B$3:$AH$300,5,FALSE)),"NT") -> 60.44 | E30: =IFERROR(IF($C30="NA","NA",VLOOKUP($A$3,'M-G05'!$B$3:$AH$300,4,FALSE)),"NT") -> 50 | F30: =IFERROR(IF($C30="NA","NA",VLOOKUP($A$3,'M-G05'!$B$3:$AH$300,15,FALSE)),"NT") -> 0.46 | H30: =IFERROR(IF($C30="NA","NA",VLOOKUP($A$3,'M-G05'!$B$3:$AH$300,14,FALSE)),"NT") -> 12 | J30: =IFERROR(IF($C30="NA","NA",VLOOKUP($A$3,'M-G05'!$B$3:$AH$300,20,FALSE)),"NT") -> 0.65 | K30: =IFERROR(IF($C30="NA","NA",VLOOKUP($A$3,'M-G05'!$B$3:$AH$300,19,FALSE)),"NT") -> 38 | M30: =IFERROR(VLOOKUP($A$3,'M-G05'!$B$3:$AH$300,3,FALSE),"NT") -> 24394

Sheet Grades 3-6
A2: Click here to return to the school and sheet selection interface
A3: ='Select School'!B3 -> 9999
A4: =TEXT(A3,"0000")&"-"&VLOOKUP(A3,SchList!$A$2:$B$474,2,FALSE) -> 9999-DISTRICT | O4: ELA | T4: Mathematics
N5: Grade | O5: Grade 3 | P5: Grade 4 | Q5: Grade 5 | R5: Grade 6 | S5: Grade | T5: Grade 3 | U5: Grade 4 | V5: Grade 5 | W5: Grade 6
N6: District | O6: =IFERROR(VLOOKUP(9999,'R-G03'!$B$3:$AC$300,5,FALSE),#N/A) -> 62.22 | P6: =IFERROR(VLOOKUP(9999,'R-G04'!$B$3:$AC$300,5,FALSE),#N/A) -> 57.32 | Q6: =IFERROR(VLOOKUP(9999,'R-G05'!$B$3:$AC$300,5,FALSE),#N/A) -> 60.41 | R6: =IFERROR(VLOOKUP(9999,'R-G06'!$B$3:$AC$300,5,FALSE),#N/A) -> 54.54 | S6: District | T6: =IFERROR(VLOOKUP(9999,'M-G03'!$B$3:$AC$300,5,FALSE),#N/A) -> 63.09 | U6: =IFERROR(VLOOKUP(9999,'M-G04'!$B$3:$AC$300,5,FALSE),#N/A) -> 61.47 | V6: =IFERROR(VLOOKUP(9999,'M-G05'!$B$3:$AC$300,5,FALSE),#N/A) -> 60.44 | W6: =IFERROR(VLOOKUP(9999,'M-G06'!$B$3:$AC$300,5,FALSE),#N/A) -> 50.13
N7: School | O7: =IFERROR(IF(OR($M$18<10,$M$18="NT"),#N/A,$D$18),#N/A) -> 62.22 | P7: =IFERROR(IF(OR($M$19<10,$M$19="NT"),#N/A,$D$19),#N/A) -> 57.32 | Q7: =IFERROR(IF(OR($M$20<10,$M$20="NT"),#N/A,$D$20),#N/A) -> 60.41 | R7: =IFERROR(IF(OR($M$21<10,$M$21="NT"),#N/A,$D$21),#N/A) -> 54.54 | S7: School | T7: =IFERROR(IF(OR($M$25<10,$M$25="NT"),#N/A,$D$25),#N/A) -> 63.09 | U7: =IFERROR(IF(OR($M$28<10,$M$28="NT"),#N/A,$D$28),#N/A) -> 61.47 | V7: =IFERROR(IF(OR($M$31<10,$M$31="NT"),#N/A,$D$31),#N/A) -> 60.44 | W7: =IFERROR(IF(OR($M$34<10,$M$34="NT"),#N/A,$D$34),#N/A) -> 50.13
A16: Grade | B16: Enrollment | C16: % Tested | D16: All | F16: =IFERROR(VLOOKUP(9999,'R-G03'!$B$265:$AH$300,13,FALSE),"NT") -> Key Ideas and Details | H16: =IFERROR(VLOOKUP(9999,'R-G03'!$B$265:$AH$300,18,FALSE),"NT") -> Craft and Structure | J16: =IFERROR(VLOOKUP(9999,'R-G03'!$B$265:$AH$300,23,FALSE),"NT") -> Integration of Knowledge and Ideas | M16: ELA Number Tested
D17: Avg. % Correct | E17: Pts. Max | F17: Avg.% Correct | G17: Pts. Max | H17: Avg.% Correct | I17: Pts. Max | J17: Avg.% Correct | K17: Pts. Max
A18: 3 | B18: =IFERROR(VLOOKUP(TEXT($A$3,"0000"),'Mem12-11-2014'!$A$3:$AC$500,7,FALSE),"NA") -> 27863 | C18: =IF(OR(M18<10,M18="NT",M18<10),"NA",IF(M18>B18,1,M18/B18)) -> 0.9593726447 | D18: =IFERROR(IF($C18="NA","NA",VLOOKUP($A$3,'R-G03'!$B$3:$AH$300,5,FALSE)),"NT") -> 62.22 | E18: =IFERROR(IF($C18="NA","NA",VLOOKUP($A$3,'R-G03'!$B$3:$AH$300,4,FALSE)),"NT") -> 52 | F18: =IFERROR(IF($C18="NA","NA",VLOOKUP($A$3,'R-G03'!$B$3:$AH$300,15,FALSE)),"NT") -> 0.66 | G18: =IFERROR(IF($C18="NA","NA",VLOOKUP($A$3,'R-G03'!$B$3:$AH$300,14,FALSE)),"NT") -> 16 | H18: =IFERROR(IF($C18="NA","NA",VLOOKUP($A$3,'R-G03'!$B$3:$AH$300,20,FALSE)),"NT") -> 0.64 | I18: =IFERROR(IF($C18="NA","NA",VLOOKUP($A$3,'R-G03'!$B$3:$AH$300,19,FALSE)),"NT") -> 26 | J18: =IFERROR(IF($C18="NA","NA",VLOOKUP($A$3,'R-G03'!$B$3:$AH$300,25,FALSE)),"NT") -> 0.53 | K18: =IFERROR(IF($C18="NA","NA",VLOOKUP($A$3,'R-G03'!$B$3:$AH$300,24,FALSE)),"NT") -> 10 | M18: =IFERROR(VLOOKUP($A$3,'R-G03'!$B$3:$AH$300,3,FALSE),"NT") -> 26731
A19: 4 | B19: =IFERROR(VLOOKUP(TEXT($A$3,"0000"),'Mem12-11-2014'!$A$3:$AC$500,8,FALSE),"NA") -> 24920 | C19: =IF(OR(M19="NA",M19="NT",M19<10),"NA",IF(M19>B19,1,M19/B19)) -> 0.9566211878 | D19: =IFERROR(IF($C19="NA","NA",VLOOKUP($A$3,'R-G04'!$B$3:$AH$300,5,FALSE)),"NT") -> 57.32 | E19: =IFERROR(IF($C19="NA","NA",VLOOKUP($A$3,'R-G04'!$B$3:$AH$300,4,FALSE)),"NT") -> 56 | F19: =IFERROR(IF($C19="NA","NA",VLOOKUP($A$3,'R-G04'!$B$3:$AH$300,15,FALSE)),"NT") -> 0.59 | G19: =IFERROR(IF($C19="NA","NA",VLOOKUP($A$3,'R-G04'!$B$3:$AH$300,14,FALSE)),"NT") -> 18 | H19: =IFERROR(IF($C19="NA","NA",VLOOKUP($A$3,'R-G04'!$B$3:$AH$300,20,FALSE)),"NT") -> 0.55 | I19: =IFERROR(IF($C19="NA","NA",VLOOKUP($A$3,'R-G04'!$B$3:$AH$300,19,FALSE)),"NT") -> 24 | J19: =IFERROR(IF($C19="NA","NA",VLOOKUP($A$3,'R-G04'!$B$3:$AH$300,25,FALSE)),"NT") -> 0.59 | K19: =IFERROR(IF($C19="NA","NA",VLOOKUP($A$3,'R-G04'!$B$3:$AH$300,24,FALSE)),"NT") -> 14 | M19: =IFERROR(VLOOKUP($A$3,'R-G04'!$B$3:$AH$300,3,FALSE),"NT") -> 23839
A20: 5 | B20: =IFERROR(VLOOKUP(TEXT($A$3,"0000"),'Mem12-11-2014'!$A$3:$AC$500,9,FALSE),"NA") -> 25290 | C20: =IF(OR(M20="NA",M20="NT",M20<10),"NA",IF(M20>B20,1,M20/B20)) -> 0.9627916172 | D20: =IFERROR(IF($C20="NA","NA",VLOOKUP($A$3,'R-G05'!$B$3:$AH$300,5,FALSE)),"NT") -> 60.41 | E20: =IFERROR(IF($C20="NA","NA",VLOOKUP($A$3,'R-G05'!$B$3:$AH$300,4,FALSE)),"NT") -> 49 | F20: =IFERROR(IF($C20="NA","NA",VLOOKUP($A$3,'R-G05'!$B$3:$AH$300,15,FALSE)),"NT") -> 0.59 | G20: =IFERROR(IF($C20="NA","NA",VLOOKUP($A$3,'R-G05'!$B$3:$AH$300,14,FALSE)),"NT") -> 15 | H20: =IFERROR(IF($C20="NA","NA",VLOOKUP($A$3,'R-G05'!$B$3:$AH$300,20,FALSE)),"NT") -> 0.6 | I20: =IFERROR(IF($C20="NA","NA",VLOOKUP($A$3,'R-G05'!$B$3:$AH$300,19,FALSE)),"NT") -> 26 | J20: =IFERROR(IF($C20="NA","NA",VLOOKUP($A$3,'R-G05'!$B$3:$AH$300,25,FALSE)),"NT") -> 0.65 | K20: =IFERROR(IF($C20="NA","NA",VLOOKUP($A$3,'R-G05'!$B$3:$AH$300,24,FALSE)),"NT") -> 8 | M20: =IFERROR(VLOOKUP($A$3,'R-G05'!$B$3:$AH$300,3,FALSE),"NT") -> 24349
A21: 6 | B21: =IFERROR(VLOOKUP(TEXT($A$3,"0000"),'Mem12-11-2014'!$A$3:$AC$500,10,FALSE),"NA") -> 25964 | C21: 0.9424202742 | D21: =IFERROR(IF($C21="NA","NA",VLOOKUP($A$3,'R-G06'!$B$3:$AH$300,5,FALSE)),"NT") -> 54.54 | E21: =IFERROR(IF($C21="NA","NA",VLOOKUP($A$3,'R-G06'!$B$3:$AH$300,4,FALSE)),"NT") -> 51 | F21: =IFERROR(IF($C21="NA","NA",VLOOKUP($A$3,'R-G06'!$B$3:$AH$300,15,FALSE)),"NT") -> 0.53 | G21: =IFERROR(IF($C21="NA","NA",VLOOKUP($A$3,'R-G06'!$B$3:$AH$300,14,FALSE)),"NT") -> 21 | H21: =IFERROR(IF($C21="NA","NA",VLOOKUP($A$3,'R-G06'!$B$3:$AH$300,20,FALSE)),"NT") -> 0.57 | I21: =IFERROR(IF($C21="NA","NA",VLOOKUP($A$3,'R-G06'!$B$3:$AH$300,19,FALSE)),"NT") -> 24 | J21: =IFERROR(IF($C21="NA","NA",VLOOKUP($A$3,'R-G06'!$B$3:$AH$300,25,FALSE)),"NT") -> 0.5 | K21: =IFERROR(IF($C21="NA","NA",VLOOKUP($A$3,'R-G06'!$B$3:$AH$300,24,FALSE)),"NT") -> 6 | M21: =IFERROR(VLOOKUP($A$3,'R-G06'!$B$3:$AH$300,3,FALSE),"NT") -> 24469
A23: Grade | B23: Enrollment | C23: % Tested | D23: All | F23: =IFERROR(VLOOKUP(9999,'M-G03'!$B$3:$AH$300,13,FALSE),"NT") -> Operations; Algebraic Thinking; and Numbers in Base Ten | J23: =IFERROR(VLOOKUP(9999,'M-G03'!$B$3:$AH$300,23,FALSE),"NT") -> Measurement; Data; and Geometry | M23: Math Number Tested
D24: Avg. % Correct | E24: Pts. Max | F24: Avg.% Correct | H24: Pts. Max | J24: Avg.% Correct | K24: Pts. Max
A25: 3 | B25: =IFERROR(VLOOKUP(TEXT($A$3,"0000"),'Mem12-11-2014'!$A$3:$AC$500,7,FALSE),"NA") -> 27863 | C25: =IF(OR(M25="NA",M25="NT",M25<10),"NA",IF(M25>B25,1,M25/B25)) -> 0.9506155116 | D25: =IFERROR(IF($C25="NA","NA",VLOOKUP($A$3,'M-G03'!$B$3:$AH$300,5,FALSE)),"NT") -> 63.09 | E25: =IFERROR(IF($C25="NA","NA",VLOOKUP($A$3,'M-G03'!$B$3:$AH$300,4,FALSE)),"NT") -> 54 | F25: =IFERROR(IF($C25="NA","NA",VLOOKUP($A$3,'M-G03'!$B$3:$AH$300,15,FALSE)),"NT") -> 0.62 | H25: =IFERROR(IF($C25="NA","NA",VLOOKUP($A$3,'M-G03'!$B$3:$AH$300,14,FALSE)),"NT") -> 48 | J25: =IFERROR(IF($C25="NA","NA",VLOOKUP($A$3,'M-G03'!$B$3:$AH$300,25,FALSE)),"NT") -> 0.69 | K25: =IFERROR(IF($C25="NA","NA",VLOOKUP($A$3,'M-G03'!$B$3:$AH$300,24,FALSE)),"NT") -> 6 | M25: =IFERROR(VLOOKUP($A$3,'M-G03'!$B$3:$AH$300,3,FALSE),"NT") -> 26487
A26: Grade | B26: Enrollment | C26: % Tested | D26: All | F26: =IFERROR(VLOOKUP(9999,'M-G04'!$B$3:$AH$300,13,FALSE),"NT") -> Operations and Algebraic Thinking | J26: =IFERROR(VLOOKUP(9999,'M-G04'!$B$3:$AH$300,18,FALSE),"NT") -> Numbers and Operations in Base Ten
D27: Avg. % Correct | E27: Pts. Max | F27: Avg.% Correct | H27: Pts. Max | J27: Avg.% Correct | K27: Pts. Max
A28: 4 | B28: =IFERROR(VLOOKUP(TEXT($A$3,"0000"),'Mem12-11-2014'!$A$3:$AC$500,8,FALSE),"NA") -> 24920 | C28: =IF(OR(M28="NA",M28="NT",M28<10),"NA",IF(M28>B28,1,M28/B28)) -> 0.9520064205 | D28: =IFERROR(IF($C28="NA","NA",VLOOKUP($A$3,'M-G04'!$B$3:$AH$300,5,FALSE)),"NT") -> 61.47 | E28: =IFERROR(IF($C28="NA","NA",VLOOKUP($A$3,'M-G04'!$B$3:$AH$300,4,FALSE)),"NT") -> 53 | F28: =IFERROR(IF($C28="NA","NA",VLOOKUP($A$3,'M-G04'!$B$3:$AH$300,15,FALSE)),"NT") -> 0.55 | H28: =IFERROR(IF($C28="NA","NA",VLOOKUP($A$3,'M-G04'!$B$3:$AH$300,14,FALSE)),"NT") -> 23 | J28: =IFERROR(IF($C28="NA","NA",VLOOKUP($A$3,'M-G04'!$B$3:$AH$300,20,FALSE)),"NT") -> 0.66 | K28: =IFERROR(IF($C28="NA","NA",VLOOKUP($A$3,'M-G04'!$B$3:$AH$300,19,FALSE)),"NT") -> 30 | M28: =IFERROR(VLOOKUP($A$3,'M-G04'!$B$3:$AH$300,3,FALSE),"NT") -> 23724
A29: Grade | B29: Enrollment | C29: % Tested | D29: All | F29: =IFERROR(VLOOKUP(9999,'M-G05'!$B$3:$AH$300,13,FALSE),"NT") -> Operations; Algebraic Thinking; and Fractions | J29: =IFERROR(VLOOKUP(9999,'M-G05'!$B$3:$AH$300,18,FALSE),"NT") -> Numbers and Operations in Base Ten
D30: Avg. % Correct | E30: Pts. Max | F30: Avg.% Correct | H30: Pts. Max | J30: Avg.% Correct | K30: Pts. Max
A31: 5 | B31: =IFERROR(VLOOKUP(TEXT($A$3,"0000"),'Mem12-11-2014'!$A$3:$AC$500,9,FALSE),"NA") -> 25290 | C31: =IF(OR(M31="NA",M31="NT",M31<10),"NA",IF(M31>B31,1,M31/B31)) -> 0.9645709767 | D31: =IFERROR(IF($C31="NA","NA",VLOOKUP($A$3,'M-G05'!$B$3:$AH$300,5,FALSE)),"NT") -> 60.44 | E31: =IFERROR(IF($C31="NA","NA",VLOOKUP($A$3,'M-G05'!$B$3:$AH$300,4,FALSE)),"NT") -> 50 | F31: =IFERROR(IF($C31="NA","NA",VLOOKUP($A$3,'M-G05'!$B$3:$AH$300,15,FALSE)),"NT") -> 0.46 | H31: =IFERROR(IF($C31="NA","NA",VLOOKUP($A$3,'M-G05'!$B$3:$AH$300,14,FALSE)),"NT") -> 12 | J31: =IFERROR(IF($C31="NA","NA",VLOOKUP($A$3,'M-G05'!$B$3:$AH$300,20,FALSE)),"NT") -> 0.65 | K31: =IFERROR(IF($C31="NA","NA",VLOOKUP($A$3,'M-G05'!$B$3:$AH$300,19,FALSE)),"NT") -> 38 | M31: =IFERROR(VLOOKUP($A$3,'M-G05'!$B$3:$AH$300,3,FALSE),"NT") -> 24394
A32: Grade | B32: Enrollment | C32: % Tested | D32: All | F32: =IFERROR(VLOOKUP($A$3,'M-G06'!$B$3:$AH$300,13,FALSE),"NT") -> Ratio and Proportional Relationships | J32: =IFERROR(VLOOKUP(9999,'M-G06'!$B$3:$AJ$300,33,FALSE),"NT") -> The Number System | M32: Math Number Tested
D33: Avg. % Correct | E33: Pts. Max | F33: Avg.% Correct | H33: Pts. Max | J33: Avg.% Correct | K33: Pts. Max
A34: 6 | B34: =IFERROR(VLOOKUP(TEXT($A$3,"0000"),'Mem12-11-2014'!$A$3:$AC$500,19,FALSE),"NA") -> 25949 | C34: =IF(OR(M34="NA",M34="NT",M34<10),"NA",IF(M34>B34,1,M34/B34)) -> 0.9428494354 | D34: =IFERROR(IF($C34="NA","NA",VLOOKUP($A$3,'M-G06'!$B$3:$AH$300,5,FALSE)),"NT") -> 50.13 | E34: =IFERROR(IF($C34="NA","NA",VLOOKUP($A$3,'M-G06'!$B$3:$AH$300,4,FALSE)),"NT") -> 61 | F34: =IFERROR(IF($C34="NA","NA",VLOOKUP($A$3,'M-G06'!$B$3:$AH$300,15,FALSE)),"NT") -> 0.5 | H34: =IFERROR(IF($C34="NA","NA",VLOOKUP($A$3,'M-G06'!$B$3:$AH$300,14,FALSE)),"NT") -> 23 | J34: =IFERROR(IF($C34="NA","NA",VLOOKUP($A$3,'M-G06'!$B$3:$AJ$300,35,FALSE)),"NT") -> 0.5 | K34: =IFERROR(IF($C34="NA","NA",VLOOKUP($A$3,'M-G06'!$B$3:$AJ$300,34,FALSE)),"NT") -> 38 | M34: =IFERROR(VLOOKUP($A$3,'M-G06'!$B$3:$AH$300,3,FALSE),"NT") -> 24466

Sheet Grades 6-8
A2: Click here to return to the school and sheet selection interface
A3: ='Select School'!B3 -> 9999
A4: =TEXT(A3,"0000")&"-"&VLOOKUP(A3,SchList!$A$2:$B$474,2,FALSE) -> 9999-DISTRICT | O4: ELA | S4: Mathematics
N5: Grade | O5: Grade 6 | P5: Grade 7 | Q5: Grade 8 | R5: Grade | S5: Grade 6 | T5: Grade 7 | U5: Grade 8 | V5: ALG 1 | W5: GEO
N6: District | O6: =IFERROR(VLOOKUP(9999,'R-G06'!$B$3:$AC$300,5,FALSE),#N/A) -> 54.54 | P6: =IFERROR(VLOOKUP(9999,'R-G07'!$B$3:$AC$300,5,FALSE),#N/A) -> 55.48 | Q6: =IFERROR(VLOOKUP(9999,'R-G08'!$B$3:$AC$300,5,FALSE),#N/A) -> 58.49 | R6: District | S6: =IFERROR(VLOOKUP(9999,'M-G06'!$B$3:$AC$300,5,FALSE),#N/A) -> 50.13 | T6: =IFERROR(VLOOKUP(9999,'M-G07'!$B$3:$AC$300,5,FALSE),#N/A) -> 39.98 | U6: =IFERROR(VLOOKUP(9999,'M-G08'!$B$3:$AC$300,5,FALSE),#N/A) -> 32.38989707 | V6: =IFERROR(VLOOKUP(9999,'M-ALG1'!$B$3:$AC$300,5,FALSE),#N/A) -> 35.02 | W6: =IFERROR(VLOOKUP(9999,'M-GEO'!$B$3:$AC$300,5,FALSE),#N/A) -> 42.28
N7: School | O7: =IFERROR(IF(OR($M$18<10,$M$18="NT"),#N/A,$D$18),#N/A) -> 54.54 | P7: =IFERROR(IF(OR($M$19<10,$M$19="NT"),#N/A,$D$19),#N/A) -> 55.48 | Q7: =IFERROR(IF(OR($M$20<10,$M$20="NT"),#N/A,$D$20),#N/A) -> 58.49 | R7: School | S7: =IFERROR(IF(OR($M$24<10,$M$24="NT"),#N/A,$D$24),#N/A) -> 50.13 | T7: =IFERROR(IF(OR($M$27<10,$M$27="NT"),#N/A,$D$27),#N/A) -> 39.98 | U7: =IFERROR(IF(OR($M$30<10,$M$30="NT"),#N/A,$D$30),#N/A) -> 32.38989707 | V7: =IFERROR(IF(OR($M$33<10,$M$33="NT"),#N/A,$D$33),#N/A) -> 35.02 | W7: =IFERROR(IF(OR($M$36<10,$M$36="NT"),#N/A,$D$36),#N/A) -> 42.28
A16: Grade | B16: Enrollment | C16: % Tested | D16: All | F16: =IFERROR(VLOOKUP(9999,'R-G06'!$B$3:$AH$300,13,FALSE),"NT") -> Key Ideas and Details | H16: =IFERROR(VLOOKUP(9999,'R-G06'!$B$3:$AH$300,18,FALSE),"NT") -> Craft and Structure | J16: =IFERROR(VLOOKUP(9999,'R-G06'!$B$3:$AH$300,23,FALSE),"NT") -> Integration of Knowledge and Ideas | M16: ELA Number Tested
D17: Avg. % Correct | E17: Pts. Max | F17: Avg. % Correct | G17: Pts. Max | H17: Avg.% Correct | I17: Pts. Max | J17: Avg.% Correct | K17: Pts. Max
A18: 6 | B18: =IFERROR(VLOOKUP(TEXT($A$3,"0000"),'Mem12-11-2014'!$A$3:$AC$500,10,FALSE),"NA") -> 25964 | C18: =IF(OR(M18<10,M18="NT",M18<10),"NA",IF(M18>B18,1,M18/B18)) -> 0.9424202742 | D18: =IFERROR(IF($C18="NA","NA",VLOOKUP($A$3,'R-G06'!$B$3:$AH$300,5,FALSE)),"NT") -> 54.54 | E18: =IFERROR(IF($C18="NA","NA",VLOOKUP($A$3,'R-G06'!$B$3:$AH$300,4,FALSE)),"NT") -> 51 | F18: =IFERROR(IF($C18="NA","NA",VLOOKUP($A$3,'R-G06'!$B$3:$AH$300,15,FALSE)),"NT") -> 0.53 | G18: =IFERROR(IF($C18="NA","NA",VLOOKUP($A$3,'R-G06'!$B$3:$AH$300,14,FALSE)),"NT") -> 21 | H18: =IFERROR(IF($C18="NA","NA",VLOOKUP($A$3,'R-G06'!$B$3:$AH$300,20,FALSE)),"NT") -> 0.57 | I18: =IFERROR(IF($C18="NA","NA",VLOOKUP($A$3,'R-G06'!$B$3:$AH$300,19,FALSE)),"NT") -> 24 | J18: =IFERROR(IF($C18="NA","NA",VLOOKUP($A$3,'R-G06'!$B$3:$AH$300,25,FALSE)),"NT") -> 0.5 | K18: =IFERROR(IF($C18="NA","NA",VLOOKUP($A$3,'R-G06'!$B$3:$AH$300,24,FALSE)),"NT") -> 6 | M18: =IFERROR(VLOOKUP($A$3,'R-G06'!$B$3:$AH$300,3,FALSE),"NT") -> 24469
A19: 7 | B19: =IFERROR(VLOOKUP(TEXT($A$3,"0000"),'Mem12-11-2014'!$A$3:$AC$500,11,FALSE),"NA") -> 26067 | C19: =IF(OR(M19="NA",M19="NT",M19<10),"NA",IF(M19>B19,1,M19/B19)) -> 0.9460620708 | D19: =IFERROR(IF($C19="NA","NA",VLOOKUP($A$3,'R-G07'!$B$3:$AH$300,5,FALSE)),"NT") -> 55.48 | E19: =IFERROR(IF($C19="NA","NA",VLOOKUP($A$3,'R-G07'!$B$3:$AH$300,4,FALSE)),"NT") -> 44 | F19: =IFERROR(IF($C19="NA","NA",VLOOKUP($A$3,'R-G07'!$B$3:$AH$300,15,FALSE)),"NT") -> 0.54 | G19: =IFERROR(IF($C19="NA","NA",VLOOKUP($A$3,'R-G07'!$B$3:$AH$300,14,FALSE)),"NT") -> 18 | H19: =IFERROR(IF($C19="NA","NA",VLOOKUP($A$3,'R-G07'!$B$3:$AH$300,20,FALSE)),"NT") -> 0.56 | I19: =IFERROR(IF($C19="NA","NA",VLOOKUP($A$3,'R-G07'!$B$3:$AH$300,19,FALSE)),"NT") -> 23 | J19: =IFERROR(IF($C19="NA","NA",VLOOKUP($A$3,'R-G07'!$B$3:$AH$300,25,FALSE)),"NT") -> 0.61 | K19: =IFERROR(IF($C19="NA","NA",VLOOKUP($A$3,'R-G07'!$B$3:$AH$300,24,FALSE)),"NT") -> 3 | M19: =IFERROR(VLOOKUP($A$3,'R-G07'!$B$3:$AH$300,3,FALSE),"NT") -> 24661
A20: 8 | B20: =IFERROR(VLOOKUP(TEXT($A$3,"0000"),'Mem12-11-2014'!$A$3:$AC$500,12,FALSE),"NA") -> 26912 | C20: 0.9482387039 | D20: =IFERROR(IF($C20="NA","NA",VLOOKUP($A$3,'R-G08'!$B$3:$AH$300,5,FALSE)),"NT") -> 58.49 | E20: =IFERROR(IF($C20="NA","NA",VLOOKUP($A$3,'R-G08'!$B$3:$AH$300,4,FALSE)),"NT") -> 45 | F20: =IFERROR(IF($C20="NA","NA",VLOOKUP($A$3,'R-G08'!$B$3:$AH$300,15,FALSE)),"NT") -> 0.61 | G20: =IFERROR(IF($C20="NA","NA",VLOOKUP($A$3,'R-G08'!$B$3:$AH$300,14,FALSE)),"NT") -> 18 | H20: =IFERROR(IF($C20="NA","NA",VLOOKUP($A$3,'R-G08'!$B$3:$AH$300,20,FALSE)),"NT") -> 0.57 | I20: =IFERROR(IF($C20="NA","NA",VLOOKUP($A$3,'R-G08'!$B$3:$AH$300,19,FALSE)),"NT") -> 24 | J20: =IFERROR(IF($C20="NA","NA",VLOOKUP($A$3,'R-G08'!$B$3:$AH$300,25,FALSE)),"NT") -> 0.57 | K20: =IFERROR(IF($C20="NA","NA",VLOOKUP($A$3,'R-G08'!$B$3:$AH$300,24,FALSE)),"NT") -> 3 | M20: =IFERROR(VLOOKUP($A$3,'R-G08'!$B$3:$AH$300,3,FALSE),"NT") -> 25519
A22: Grade | B22: Enrollment | C22: % Tested | D22: All | F22: =IFERROR(VLOOKUP($A$3,'M-G06'!$B$3:$AH$300,13,FALSE),"NT") -> Ratio and Proportional Relationships | J22: =IFERROR(VLOOKUP(9999,'M-G06'!$B$3:$AJ$300,33,FALSE),"NT") -> The Number System | M22: Math Number Tested
D23: Avg. % Correct | E23: Pts. Max | F23: Avg.% Correct | H23: Pts. Max | J23: Avg.% Correct | K23: Pts. Max
A24: 6 | B24: =IFERROR(VLOOKUP(TEXT($A$3,"0000"),'Mem12-11-2014'!$A$3:$AC$500,19,FALSE),"NA") -> 25949 | C24: =IF(OR(M24="NA",M24="NT",M24<10),"NA",IF(M24>B24,1,M24/B24)) -> 0.9428494354 | D24: =IFERROR(IF($C24="NA","NA",VLOOKUP($A$3,'M-G06'!$B$3:$AH$300,5,FALSE)),"NT") -> 50.13 | E24: =IFERROR(IF($C24="NA","NA",VLOOKUP($A$3,'M-G06'!$B$3:$AH$300,4,FALSE)),"NT") -> 61 | F24: =IFERROR(IF($C24="NA","NA",VLOOKUP($A$3,'M-G06'!$B$3:$AH$300,15,FALSE)),"NT") -> 0.5 | H24: =IFERROR(IF($C24="NA","NA",VLOOKUP($A$3,'M-G06'!$B$3:$AH$300,14,FALSE)),"NT") -> 23 | J24: =IFERROR(IF($C24="NA","NA",VLOOKUP($A$3,'M-G06'!$B$3:$AJ$300,35,FALSE)),"NT") -> 0.5 | K24: =IFERROR(IF($C24="NA","NA",VLOOKUP($A$3,'M-G06'!$B$3:$AJ$300,34,FALSE)),"NT") -> 38 | M24: =IFERROR(VLOOKUP($A$3,'M-G06'!$B$3:$AH$300,3,FALSE),"NT") -> 24466
A25: Grade | B25: Enrollment | C25: % Tested | D25: All | F25: =IFERROR(VLOOKUP($A$3,'M-G07'!$B$3:$AH$300,13,FALSE),"NT") -> Ratio and Proportional Relationships | H25: =IFERROR(VLOOKUP($A$3,'M-G07'!$B$3:$AH$300,18,FALSE),"NT") -> Expressions and Equations | J25: =IFERROR(VLOOKUP(9999,'M-G07'!$B$3:$AJ$300,33,FALSE),"NT") -> The Number System
D26: Avg. % Correct | E26: Pts. Max | F26: Avg.% Correct | G26: Pts. Max | H26: Avg.% Correct | I26: Pts. Max | J26: Avg.% Correct | K26: Pts. Max
A27: 7 | B27: =IFERROR(VLOOKUP(TEXT($A$3,"0000"),'Mem12-11-2014'!$A$3:$AC$500,22,FALSE),"NA") -> 22580 | C27: =IF(OR(M27="NA",M27="NT",M27<10),"NA",IF(M27>B27,1,M27/B27)) -> 0.9339238264 | D27: =IFERROR(IF($C27="NA","NA",VLOOKUP($A$3,'M-G07'!$B$3:$AH$300,5,FALSE)),"NT") -> 39.98 | E27: =IFERROR(IF($C27="NA","NA",VLOOKUP($A$3,'M-G07'!$B$3:$AH$300,4,FALSE)),"NT") -> 65 | F27: =IFERROR(IF($C27="NA","NA",VLOOKUP($A$3,'M-G07'!$B$3:$AH$300,15,FALSE)),"NT") -> 0.4 | G27: =IFERROR(IF($C27="NA","NA",VLOOKUP($A$3,'M-G07'!$B$3:$AH$300,14,FALSE)),"NT") -> 30 | H27: =IFERROR(IF($C27="NA","NA",VLOOKUP($A$3,'M-G07'!$B$3:$AH$300,20,FALSE)),"NT") -> 0.33 | I27: =IFERROR(IF($C27="NA","NA",VLOOKUP($A$3,'M-G07'!$B$3:$AH$300,19,FALSE)),"NT") -> 8 | J27: =IFERROR(IF($C27="NA","NA",VLOOKUP($A$3,'M-G07'!$B$3:$AJ$300,35,FALSE)),"NT") -> 0.42 | K27: =IFERROR(IF($C27="NA","NA",VLOOKUP($A$3,'M-G07'!$B$3:$AJ$300,34,FALSE)),"NT") -> 27 | M27: =IFERROR(VLOOKUP($A$3,'M-G07'!$B$3:$AH$300,3,FALSE),"NT") -> 21088
A28: Grade | B28: Enrollment | C28: % Tested | D28: All | F28: =IFERROR(VLOOKUP($A$3,'M-G08'!$B$3:$AH$300,13,FALSE),"NT") -> Expressions and Equations | H28: =IFERROR(VLOOKUP($A$3,'M-G08'!$B$3:$AH$300,18,FALSE),"NT") -> Functions | J28: =IFERROR(VLOOKUP(9999,'M-G08'!$B$3:$AJ$300,28,FALSE),"NT") -> Statistics and Probability and The Number System
D29: Avg. % Correct | E29: Pts. Max | F29: Avg.% Correct | G29: Pts. Max | H29: Avg.% Correct | I29: Pts. Max | J29: Avg.% Correct | K29: Pts. Max
A30: 8 | B30: =IFERROR(VLOOKUP(TEXT($A$3,"0000"),'Mem12-11-2014'!$A$3:$AC$500,26,FALSE),"NA") -> 15464 | C30: =IF(OR(M30="NA",M30="NT",M30<10),"NA",IF(M30>B30,1,M30/B30)) -> 0.9612648733 | D30: =IFERROR(IF($C30="NA","NA",VLOOKUP($A$3,'M-G08'!$B$3:$AH$300,5,FALSE)),"NT") -> 32.38989707 | E30: =IFERROR(IF($C30="NA","NA",VLOOKUP($A$3,'M-G08'!$B$3:$AH$300,4,FALSE)),"NT") -> 62 | F30: =IFERROR(IF($C30="NA","NA",VLOOKUP($A$3,'M-G08'!$B$3:$AH$300,15,FALSE)),"NT") -> 0.3229305705 | G30: =IFERROR(IF($C30="NA","NA",VLOOKUP($A$3,'M-G08'!$B$3:$AH$300,14,FALSE)),"NT") -> 45 | H30: =IFERROR(IF($C30="NA","NA",VLOOKUP($A$3,'M-G08'!$B$3:$AH$300,20,FALSE)),"NT") -> 0.3536443757 | I30: =IFERROR(IF($C30="NA","NA",VLOOKUP($A$3,'M-G08'!$B$3:$AH$300,19,FALSE)),"NT") -> 8 | J30: =IFERROR(IF($C30="NA","NA",VLOOKUP($A$3,'M-G08'!$B$3:$AJ$300,30,FALSE)),"NT") -> 0.3030025565 | K30: =IFERROR(IF($C30="NA","NA",VLOOKUP($A$3,'M-G08'!$B$3:$AJ$300,29,FALSE)),"NT") -> 9 | M30: =IFERROR(VLOOKUP($A$3,'M-G08'!$B$3:$AH$300,3,FALSE),"NT") -> 14865
A31: EOC Assessments | B31: Enrollment | C31: % Tested | D31: All | F31: =IFERROR(VLOOKUP(9999,'M-ALG1'!$B$3:$AH$300,13,FALSE),"NT") -> Algebra and Modeling | H31: =IFERROR(VLOOKUP(9999,'M-ALG1'!$B$3:$AH$300,18,FALSE),"NT") -> Functions and Modeling | J31: =IFERROR(VLOOKUP(9999,'M-ALG1'!$B$3:$AH$300,23,FALSE),"NT") -> Statistics and the Number System | M31: EOC Number Tested
D32: Avg. % Correct | E32: Pts. Max | F32: Avg.% Correct | G32: Pts. Max | H32: Avg.% Correct | I32: Pts. Max | J32: Avg.% Correct | K32: Pts. Max
A33: Algebra I | B33: =IFERROR(VLOOKUP(TEXT($A$3,"0000"),'Mem12-11-2014'!$A$3:$AC$500,27,FALSE),"NA") -> 29186 | C33: =IF(OR(M33="NA",M33="NT",M33<10),"NA",IF(M33>B33,1,M33/B33)) -> 0.9057424793 | D33: =IFERROR(IF($C33="NA","NA",VLOOKUP($A$3,'M-ALG1'!$B$3:$AH$300,5,FALSE)),"NT") -> 35.02 | E33: =IFERROR(IF($C33="NA","NA",VLOOKUP($A$3,'M-ALG1'!$B$3:$AH$300,4,FALSE)),"NT") -> 57 | F33: =IFERROR(IF($C33="NA","NA",VLOOKUP($A$3,'M-ALG1'!$B$3:$AH$300,15,FALSE)),"NT") -> 0.31 | G33: =IFERROR(IF($C33="NA","NA",VLOOKUP($A$3,'M-ALG1'!$B$3:$AH$300,14,FALSE)),"NT") -> 27 | H33: =IFERROR(IF($C33="NA","NA",VLOOKUP($A$3,'M-ALG1'!$B$3:$AH$300,20,FALSE)),"NT") -> 0.31 | I33: =IFERROR(IF($C33="NA","NA",VLOOKUP($A$3,'M-ALG1'!$B$3:$AH$300,19,FALSE)),"NT") -> 6 | J33: =IFERROR(IF($C33="NA","NA",VLOOKUP($A$3,'M-ALG1'!$B$3:$AH$300,25,FALSE)),"NT") -> 0.38 | K33: =IFERROR(IF($C33="NA","NA",VLOOKUP($A$3,'M-ALG1'!$B$3:$AH$300,24,FALSE)),"NT") -> 24 | M33: =IFERROR(VLOOKUP($A$3,'M-ALG1'!$B$3:$AH$300,3,FALSE),"NT") -> 26435
A34: EOC Assessments | B34: Enrollment | C34: % Tested | D34: All | F34: =IFERROR(VLOOKUP(9999,'M-GEO'!$B$3:$AH$300,13,FALSE),"NT") -> Congruence; Similarity; Right Triangles; and Trigonometry | H34: =IFERROR(VLOOKUP(9999,'M-GEO'!$B$3:$AH$300,18,FALSE),"NT") -> Circles; Geometric Measurement; and Geometric Properties with Equations
D35: Avg. % Correct | E35: Pts. Max | F35: Avg.% Correct | G35: Pts. Max | H35: Avg.% Correct | J35: Pts. Max
A36: Geometry | B36: =IFERROR(VLOOKUP(TEXT($A$3,"0000"),'Mem12-11-2014'!$A$3:$AC$500,28,FALSE),"NA") -> 30829 | C36: =IF(OR(M36="NA",M36="NT",M36<10),"NA",IF(M36>B36,1,M36/B36)) -> 0.9025917156 | D36: =IFERROR(IF($C36="NA","NA",VLOOKUP($A$3,'M-GEO'!$B$3:$AH$300,5,FALSE)),"NT") -> 42.28 | E36: =IFERROR(IF($C36="NA","NA",VLOOKUP($A$3,'M-GEO'!$B$3:$AH$300,4,FALSE)),"NT") -> 48 | F36: =IFERROR(IF($C36="NA","NA",VLOOKUP($A$3,'M-GEO'!$B$3:$AH$300,15,FALSE)),"NT") -> 0.43 | G36: =IFERROR(IF($C36="NA","NA",VLOOKUP($A$3,'M-GEO'!$B$3:$AH$300,14,FALSE)),"NT") -> 44 | H36: =IFERROR(IF($C36="NA","NA",VLOOKUP($A$3,'M-GEO'!$B$3:$AH$300,20,FALSE)),"NT") -> 0.33 | J36: =IFERROR(IF($C36="NA","NA",VLOOKUP($A$3,'M-GEO'!$B$3:$AH$300,19,FALSE)),"NT") -> 4 | M36: =IFERROR(VLOOKUP($A$3,'M-GEO'!$B$3:$AH$300,3,FALSE),"NT") -> 27826

Sheet Grades 9-12
A2: Click here to return to the school and sheet selection interface
A3: ='Select School'!B3 -> 9999
A4: =TEXT(A3,"0000")&"-"&VLOOKUP(A3,SchList!$A$2:$B$474,2,FALSE) -> 9999-DISTRICT | O4: ELA | S4: Mathematics
N5: Grade | O5: Grade 9 | P5: Grade 10 | Q5: Grade 11 | R5: EOC | S5: ALG 1 | T5: GEO | U5: ALG 2
N6: District | O6: =IFERROR(VLOOKUP(9999,'R-G09'!$B$3:$AC$300,5,FALSE),#N/A) -> 55.3 | P6: =IFERROR(VLOOKUP(9999,'R-G10'!$B$3:$AC$300,5,FALSE),#N/A) -> 48.17 | Q6: =IFERROR(VLOOKUP(9999,'R-G11'!$B$3:$AC$300,5,FALSE),#N/A) -> 46.52 | R6: District | S6: =IFERROR(VLOOKUP(9999,'M-ALG1'!$B$3:$AC$300,5,FALSE),#N/A) -> 35.02 | T6: =IFERROR(VLOOKUP(9999,'M-GEO'!$B$3:$AC$300,5,FALSE),#N/A) -> 42.28 | U6: =IFERROR(VLOOKUP(9999,'M-ALG2'!$B$3:$AC$300,5,FALSE),#N/A) -> 33.71
N7: School | O7: =IFERROR(IF(OR($M$18<10,$M$18="NT"),#N/A,$D$18),#N/A) -> 55.3 | P7: =IFERROR(IF(OR($M$19<10,$M$19="NT"),#N/A,$D$19),#N/A) -> 48.17 | Q7: =IFERROR(IF(OR($M$20<10,$M$20="NT"),#N/A,$D$20),#N/A) -> 46.52 | R7: School | S7: =IFERROR(IF(OR($M$24<10,$M$24="NT"),#N/A,$D$24),#N/A) -> 35.02 | T7: =IFERROR(IF(OR($M$27<10,$M$27="NT"),#N/A,$D$27),#N/A) -> 42.28 | U7: =IFERROR(IF(OR($M$30<10,$M$30="NT"),#N/A,$D$30),#N/A) -> 33.71
A16: Grade | B16: Enrollment | C16: % Tested | D16: All | F16: =IFERROR(VLOOKUP(9999,'R-G03'!$B$3:$AH$300,13,FALSE),"NT") -> Key Ideas and Details | H16: =IFERROR(VLOOKUP(9999,'R-G03'!$B$3:$AH$300,18,FALSE),"NT") -> Craft and Structure | J16: =IFERROR(VLOOKUP(9999,'R-G03'!$B$3:$AH$300,23,FALSE),"NT") -> Integration of Knowledge and Ideas | M16: ELA Number Tested
D17: Avg. % Correct | E17: Pts. Max | F17: Avg.% Correct | G17: Pts. Max | H17: Avg.% Correct | I17: Pts. Max | J17: Avg.% Correct | K17: Pts. Max
A18: 9 | B18: =IFERROR(VLOOKUP(TEXT($A$3,"0000"),'Mem12-11-2014'!$A$3:$AC$500,13,FALSE),"NA") -> 28258 | C18: =IF(OR(M18<10,M18="NT",M18<10),"NA",IF(M18>B18,1,M18/B18)) -> 0.8946846911 | D18: =IFERROR(IF($C18="NA","NA",VLOOKUP($A$3,'R-G09'!$B$3:$AH$300,5,FALSE)),"NT") -> 55.3 | E18: =IFERROR(IF($C18="NA","NA",VLOOKUP($A$3,'R-G09'!$B$3:$AH$300,4,FALSE)),"NT") -> 45 | F18: =IFERROR(IF($C18="NA","NA",VLOOKUP($A$3,'R-G09'!$B$3:$AH$300,15,FALSE)),"NT") -> 0.57 | G18: =IFERROR(IF($C18="NA","NA",VLOOKUP($A$3,'R-G09'!$B$3:$AH$300,14,FALSE)),"NT") -> 18 | H18: =IFERROR(IF($C18="NA","NA",VLOOKUP($A$3,'R-G09'!$B$3:$AH$300,20,FALSE)),"NT") -> 0.54 | I18: =IFERROR(IF($C18="NA","NA",VLOOKUP($A$3,'R-G09'!$B$3:$AH$300,19,FALSE)),"NT") -> 25 | J18: =IFERROR(IF($C18="NA","NA",VLOOKUP($A$3,'R-G09'!$B$3:$AH$300,25,FALSE)),"NT") -> 0.54 | K18: =IFERROR(IF($C18="NA","NA",VLOOKUP($A$3,'R-G09'!$B$3:$AH$300,24,FALSE)),"NT") -> 2 | M18: =IFERROR(VLOOKUP($A$3,'R-G09'!$B$3:$AH$300,3,FALSE),"NT") -> 25282
A19: 10 | B19: =IFERROR(VLOOKUP(TEXT($A$3,"0000"),'Mem12-11-2014'!$A$3:$AC$500,14,FALSE),"NA")-VLOOKUP(TEXT($A$3,"0000"),'Mem12-11-2014'!$A$3:$AD$500,30,FALSE) -> 27325 | C19: =IF(OR(M19="NA",M19="NT",M19<10),"NA",IF(M19>B19,1,M19/B19)) -> 0.8334126258 | D19: =IFERROR(IF($C19="NA","NA",VLOOKUP($A$3,'R-G10'!$B$3:$AH$300,5,FALSE)),"NT") -> 48.17 | E19: =IFERROR(IF($C19="NA","NA",VLOOKUP($A$3,'R-G10'!$B$3:$AH$300,4,FALSE)),"NT") -> 45 | F19: =IFERROR(IF($C19="NA","NA",VLOOKUP($A$3,'R-G10'!$B$3:$AH$300,15,FALSE)),"NT") -> 0.48 | G19: =IFERROR(IF($C19="NA","NA",VLOOKUP($A$3,'R-G10'!$B$3:$AH$300,14,FALSE)),"NT") -> 18 | H19: =IFERROR(IF($C19="NA","NA",VLOOKUP($A$3,'R-G10'!$B$3:$AH$300,20,FALSE)),"NT") -> 0.48 | I19: =IFERROR(IF($C19="NA","NA",VLOOKUP($A$3,'R-G10'!$B$3:$AH$300,19,FALSE)),"NT") -> 24 | J19: =IFERROR(IF($C19="NA","NA",VLOOKUP($A$3,'R-G10'!$B$3:$AH$300,25,FALSE)),"NT") -> 0.51 | K19: =IFERROR(IF($C19="NA","NA",VLOOKUP($A$3,'R-G10'!$B$3:$AH$300,24,FALSE)),"NT") -> 3 | M19: =IFERROR(VLOOKUP($A$3,'R-G10'!$B$3:$AH$300,3,FALSE),"NT") -> 22773
A20: 11 | B20: =IFERROR(VLOOKUP(TEXT($A$3,"0000"),'Mem12-11-2014'!$A$3:$AC$500,15,FALSE),"NA") -> 25916 | C20: 0.8006636827 | D20: =IFERROR(IF($C20="NA","NA",VLOOKUP($A$3,'R-G11'!$B$3:$AH$300,5,FALSE)),"NT") -> 46.52 | E20: =IFERROR(IF($C20="NA","NA",VLOOKUP($A$3,'R-G11'!$B$3:$AH$300,4,FALSE)),"NT") -> 51 | F20: =IFERROR(IF($C20="NA","NA",VLOOKUP($A$3,'R-G11'!$B$3:$AH$300,15,FALSE)),"NT") -> 0.47 | G20: =IFERROR(IF($C20="NA","NA",VLOOKUP($A$3,'R-G11'!$B$3:$AH$300,14,FALSE)),"NT") -> 22 | H20: =IFERROR(IF($C20="NA","NA",VLOOKUP($A$3,'R-G11'!$B$3:$AH$300,20,FALSE)),"NT") -> 0.46 | I20: =IFERROR(IF($C20="NA","NA",VLOOKUP($A$3,'R-G11'!$B$3:$AH$300,19,FALSE)),"NT") -> 25 | J20: =IFERROR(IF($C20="NA","NA",VLOOKUP($A$3,'R-G11'!$B$3:$AH$300,25,FALSE)),"NT") -> 0.46 | K20: =IFERROR(IF($C20="NA","NA",VLOOKUP($A$3,'R-G11'!$B$3:$AH$300,24,FALSE)),"NT") -> 4 | M20: =IFERROR(VLOOKUP($A$3,'R-G11'!$B$3:$AH$300,3,FALSE),"NT") -> 20750
A22: EOC Assessments | B22: Enrollment | C22: % Tested | D22: All | F22: =IFERROR(VLOOKUP(9999,'M-ALG1'!$B$3:$AH$300,13,FALSE),"NT") -> Algebra and Modeling | H22: =IFERROR(VLOOKUP(9999,'M-ALG1'!$B$3:$AH$300,18,FALSE),"NT") -> Functions and Modeling | J22: =IFERROR(VLOOKUP(9999,'M-ALG1'!$B$3:$AH$300,23,FALSE),"NT") -> Statistics and the Number System | M22: EOC Number Tested
D23: Avg. % Correct | E23: Pts. Max | F23: Avg.% Correct | G23: Pts. Max | H23: Avg.% Correct | I23: Pts. Max | J23: Avg.% Correct | K23: Pts. Max
A24: Algebra I | B24: =IFERROR(VLOOKUP(TEXT($A$3,"0000"),'Mem12-11-2014'!$A$3:$AC$500,27,FALSE),"NA") -> 29186 | C24: =IF(OR(M24="NA",M24="NT",M24<10),"NA",IF(M24>B24,1,M24/B24)) -> 0.9057424793 | D24: =IFERROR(IF($C24="NA","NA",VLOOKUP($A$3,'M-ALG1'!$B$3:$AH$300,5,FALSE)),"NT") -> 35.02 | E24: =IFERROR(IF($C24="NA","NA",VLOOKUP($A$3,'M-ALG1'!$B$3:$AH$300,4,FALSE)),"NT") -> 57 | F24: =IFERROR(IF($C24="NA","NA",VLOOKUP($A$3,'M-ALG1'!$B$3:$AH$300,15,FALSE)),"NT") -> 0.31 | G24: =IFERROR(IF($C24="NA","NA",VLOOKUP($A$3,'M-ALG1'!$B$3:$AH$300,14,FALSE)),"NT") -> 27 | H24: =IFERROR(IF($C24="NA","NA",VLOOKUP($A$3,'M-ALG1'!$B$3:$AH$300,20,FALSE)),"NT") -> 0.31 | I24: =IFERROR(IF($C24="NA","NA",VLOOKUP($A$3,'M-ALG1'!$B$3:$AH$300,19,FALSE)),"NT") -> 6 | J24: =IFERROR(IF($C24="NA","NA",VLOOKUP($A$3,'M-ALG1'!$B$3:$AH$300,25,FALSE)),"NT") -> 0.38 | K24: =IFERROR(IF($C24="NA","NA",VLOOKUP($A$3,'M-ALG1'!$B$3:$AH$300,24,FALSE)),"NT") -> 24 | M24: =IFERROR(VLOOKUP($A$3,'M-ALG1'!$B$3:$AH$300,3,FALSE),"NT") -> 26435
A25: EOC Assessments | B25: Enrollment | C25: % Tested | D25: All | F25: =IFERROR(VLOOKUP(9999,'M-GEO'!$B$3:$AH$300,13,FALSE),"NT") -> Congruence; Similarity; Right Triangles; and Trigonometry | H25: =IFERROR(VLOOKUP(9999,'M-GEO'!$B$3:$AH$300,18,FALSE),"NT") -> Circles; Geometric Measurement; and Geometric Properties with Equations
D26: Avg. % Correct | E26: Pts. Max | F26: Avg.% Correct | G26: Pts. Max | H26: Avg.% Correct | J26: Pts. Max
A27: Geometry | B27: =IFERROR(VLOOKUP(TEXT($A$3,"0000"),'Mem12-11-2014'!$A$3:$AC$500,28,FALSE),"NA") -> 30829 | C27: =IF(OR(M27="NA",M27="NT",M27<10),"NA",IF(M27>B27,1,M27/B27)) -> 0.9025917156 | D27: =IFERROR(IF($C27="NA","NA",VLOOKUP($A$3,'M-GEO'!$B$3:$AH$300,5,FALSE)),"NT") -> 42.28 | E27: =IFERROR(IF($C27="NA","NA",VLOOKUP($A$3,'M-GEO'!$B$3:$AH$300,4,FALSE)),"NT") -> 48 | F27: =IFERROR(IF($C27="NA","NA",VLOOKUP($A$3,'M-GEO'!$B$3:$AH$300,15,FALSE)),"NT") -> 0.43 | G27: =IFERROR(IF($C27="NA","NA",VLOOKUP($A$3,'M-GEO'!$B$3:$AH$300,14,FALSE)),"NT") -> 44 | H27: =IFERROR(IF($C27="NA","NA",VLOOKUP($A$3,'M-GEO'!$B$3:$AH$300,20,FALSE)),"NT") -> 0.33 | J27: =IFERROR(IF($C27="NA","NA",VLOOKUP($A$3,'M-GEO'!$B$3:$AH$300,19,FALSE)),"NT") -> 4 | M27: =IFERROR(VLOOKUP($A$3,'M-GEO'!$B$3:$AH$300,3,FALSE),"NT") -> 27826
A28: EOC Assessments | B28: Enrollment | C28: % Tested | D28: All | F28: =IFERROR(VLOOKUP(9999,'M-ALG2'!$B$3:$AH$300,13,FALSE),"NT") -> Algebra and Modeling | H28: =IFERROR(VLOOKUP(9999,'M-ALG2'!$B$3:$AH$300,18,FALSE),"NT") -> Functions and Modeling
D29: Avg. % Correct | E29: Pts. Max | F29: Avg.% Correct | G29: Pts. Max | H29: Avg.% Correct | I29: Pts. Max | J29: Pts. Max
A30: Algebra II | B30: =IFERROR(VLOOKUP(TEXT($A$3,"0000"),'Mem12-11-2014'!$A$3:$AC$500,29,FALSE),"NA") -> 26083 | C30: =IF(OR(M30="NA",M30="NT",M30<10),"NA",IF(M30>B30,1,M30/B30)) -> 0.8951424299 | D30: =IFERROR(IF($C30="NA","NA",VLOOKUP($A$3,'M-ALG2'!$B$3:$AH$300,5,FALSE)),"NT") -> 33.71 | E30: =IFERROR(IF($C30="NA","NA",VLOOKUP($A$3,'M-ALG2'!$B$3:$AH$300,4,FALSE)),"NT") -> 50 | F30: =IFERROR(IF($C30="NA","NA",VLOOKUP($A$3,'M-ALG2'!$B$3:$AH$300,15,FALSE)),"NT") -> 0.36 | G30: =IFERROR(IF($C30="NA","NA",VLOOKUP($A$3,'M-ALG2'!$B$3:$AH$300,14,FALSE)),"NT") -> 32 | H30: =IFERROR(IF($C30="NA","NA",VLOOKUP($A$3,'M-ALG2'!$B$3:$AH$300,20,FALSE)),"NT") -> 0.3 | I30: =IFERROR(IF($C30="NA","NA",VLOOKUP($A$3,#REF!,19,FALSE)),"NT") -> NT | J30: =IFERROR(IF($C30="NA","NA",VLOOKUP($A$3,'M-ALG2'!$B$3:$AH$300,19,FALSE)),"NT") -> 18 | K30: =IFERROR(IF($C30="NA","NA",VLOOKUP($A$3,#REF!,29,FALSE)),"NT") -> NT | M30: =IFERROR(VLOOKUP($A$3,'M-ALG2'!$B$3:$AH$300,3,FALSE),"NT") -> 23348

Sheet MYA-DATA (hidden)
B1: =COLUMN()-1 -> 1 | C1: =COLUMN()-1 -> 2 | D1: 3 | E1: 4 | F1: 5 | G1: 6 | H1: 7 | I1: 8 | J1: 9 | K1: 10 | L1: 11 | M1: 12 | N1: 13 | O1: 14 | P1: 15 | Q1: 16 | R1: 17 | S1: 18 | T1: 19 | U1: 20 | V1: 21 | W1: 22 | X1: 23 | Y1: 24 | Z1: 25 | AA1: 26 | AB1: 27 | AC1: 28 | AD1: 29 | AE1: 30 | AF1: 31 | AG1: 32 | AH1: 33
A2: Assessment | B2: WLOC | C2: School Name | D2: Number Tested | E2: Max Score | F2: Avg % Correct | G2: Avg Raw Score | H2: # Insufficient | I2: # Limited | J2: # Satisfactory | K2: % Insufficient | L2: % Limited | M2: % Satisfactory | N2: Domain1 | O2: Domain1 Max Score | P2: Avg Domain1 %Correct | Q2: Avg Domain1 Raw | R2: Domain1 Item List | S2: Domain2 | T2: Domain2 Max Score | U2: Avg Domain2 %Correct | V2: Avg Domain2 Raw | W2: Domain2 Item List | X2: Domain3 | Y2: Domain3 Max Score | Z2: Avg Domain3 %Correct | AA2: Avg Domain3 Raw | AB2: Domain3 Item List | AC2: Domain4 | AD2: Domain4 Max Score | AE2: Avg Domain4 %Correct | AF2: Avg Domain4 Raw | AG2: Domain4 Item List | AH2: Domain5 | AI2: Domain5 Max Score | AJ2: Avg Domain5 %Correct | AK2: Avg Domain5 Raw | AL2: Domain5 Item List
A3: 03 Reading Mid-Year 2014 - Grade 3 ELA | B3: 41 | C3: 0041 0041 - Air Base Elementary | D3: 126 | E3: 52 | F3: 72.79 | G3: 37.85 | H3: 32 | I3: 0 | J3: 94 | K3: 0.25 | L3: 0 | M3: 0.75 | N3: Key Ideas and Details | O3: 16 | P3: 0.76 | Q3: 12.09 | R3: 5;6;8;9;10;12;13;16;23;24;39;42;43;45;46;50 | S3: Craft and Structure | T3: 26 | U3: 0.75 | V3: 19.57 | W3: 1;2;3;4;7;11;14;17;18;19;26;27;28;29;30;31;32;34;36;37;38;41;47;48;52;53 | X3: Integration of Knowledge and Ideas | Y3: 10 | Z3: 0.62 | AA3: 6.19 | AB3: 15;25;35;44;49;51;54;55;56;57 | AG3: 15;25;35;44;49;51;54;55;56;57
A4: 03 Reading Mid-Year 2014 - Grade 3 ELA | B4: 70 | C4: 0070 0070 - Coral Reef Montessori Acad Ch | D4: 49 | E4: 52 | F4: 72.96 | G4: 37.94 | H4: 15 | I4: 0 | J4: 34 | K4: 0.31 | L4: 0 | M4: 0.69 | N4: Key Ideas and Details | O4: 16 | P4: 0.76 | Q4: 12.08 | R4: 5;6;8;9;10;12;13;16;23;24;39;42;43;45;46;50 | S4: Craft and Structure | T4: 26 | U4: 0.74 | V4: 19.27 | W4: 1;2;3;4;7;11;14;17;18;19;26;27;28;29;30;31;32;34;36;37;38;41;47;48;52;53 | X4: Integration of Knowledge and Ideas | Y4: 10 | Z4: 0.66 | AA4: 6.59 | AB4: 15;25;35;44;49;51;54;55;56;57 | AG4: 15;25;35;44;49;51;54;55;56;57
A5: 03 Reading Mid-Year 2014 - Grade 3 ELA | B5: 71 | C5: 0071 0071 - Eugenia B. Thomas K-8 Center | D5: 207 | E5: 52 | F5: 62.5 | G5: 32.5 | H5: 111 | I5: 0 | J5: 96 | K5: 0.54 | L5: 0 | M5: 0.46 | N5: Key Ideas and Details | O5: 16 | P5: 0.65 | Q5: 10.45 | R5: 5;6;8;9;10;12;13;16;23;24;39;42;43;45;46;50 | S5: Craft and Structure | T5: 26 | U5: 0.65 | V5: 16.83 | W5: 1;2;3;4;7;11;14;17;18;19;26;27;28;29;30;31;32;34;36;37;38;41;47;48;52;53 | X5: Integration of Knowledge and Ideas | Y5: 10 | Z5: 0.52 | AA5: 5.22 | AB5: 15;25;35;44;49;51;54;55;56;57 | AG5: 15;25;35;44;49;51;54;55;56;57
A6: 03 Reading Mid-Year 2014 - Grade 3 ELA | B6: 72 | C6: 0072 0072 - Summerville Charter School | D6: 84 | E6: 52 | F6: 59.98 | G6: 31.19 | H6: 50 | I6: 0 | J6: 34 | K6: 0.6 | L6: 0 | M6: 0.4 | N6: Key Ideas and Details | O6: 16 | P6: 0.66 | Q6: 10.48 | R6: 5;6;8;9;10;12;13;16;23;24;39;42;43;45;46;50 | S6: Craft and Structure | T6: 26 | U6: 0.6 | V6: 15.57 | W6: 1;2;3;4;7;11;14;17;18;19;26;27;28;29;30;31;32;34;36;37;38;41;47;48;52;53 | X6: Integration of Knowledge and Ideas | Y6: 10 | Z6: 0.51 | AA6: 5.14 | AB6: 15;25;35;44;49;51;54;55;56;57 | AG6: 15;25;35;44;49;51;54;55;56;57
A7: 03 Reading Mid-Year 2014 - Grade 3 ELA | B7: 73 | C7: 0073 0073 - Mandarin Lakes K-8 Center | D7: 159 | E7: 52 | F7: 51.45 | G7: 26.75 | H7: 128 | I7: 0 | J7: 31 | K7: 0.81 | L7: 0 | M7: 0.19 | N7: Key Ideas and Details | O7: 16 | P7: 0.55 | Q7: 8.7 | R7: 5;6;8;9;10;12;13;16;23;24;39;42;43;45;46;50 | S7: Craft and Structure | T7: 26 | U7: 0.53 | V7: 13.91 | W7: 1;2;3;4;7;11;14;17;18;19;26;27;28;29;30;31;32;34;36;37;38;41;47;48;52;53 | X7: Integration of Knowledge and Ideas | Y7: 10 | Z7: 0.41 | AA7: 4.14 | AB7: 15;25;35;44;49;51;54;55;56;57 | AG7: 15;25;35;44;49;51;54;55;56;57
A8: 03 Reading Mid-Year 2014 - Grade 3 ELA | B8: 81 | C8: 0081 0081 - Lenora B. Smith Elementary | D8: 60 | E8: 52 | F8: 55.71 | G8: 28.97 | H8: 46 | I8: 0 | J8: 14 | K8: 0.77 | L8: 0 | M8: 0.23 | N8: Key Ideas and Details | O8: 16 | P8: 0.6 | Q8: 9.6 | R8: 5;6;8;9;10;12;13;16;23;24;39;42;43;45;46;50 | S8: Craft and Structure | T8: 26 | U8: 0.57 | V8: 14.85 | W8: 1;2;3;4;7;11;14;17;18;19;26;27;28;29;30;31;32;34;36;37;38;41;47;48;52;53 | X8: Integration of Knowledge and Ideas | Y8: 10 | Z8: 0.45 | AA8: 4.52 | AB8: 15;25;35;44;49;51;54;55;56;57 | AG8: 15;25;35;44;49;51;54;55;56;57
A9: 03 Reading Mid-Year 2014 - Grade 3 ELA | B9: 91 | C9: 0091 0091 - Bob Graham Education Ctr | D9: 173 | E9: 52 | F9: 68.62 | G9: 35.68 | H9: 70 | I9: 0 | J9: 103 | K9: 0.4 | L9: 0 | M9: 0.6 | N9: Key Ideas and Details | O9: 16 | P9: 0.72 | Q9: 11.51 | R9: 5;6;8;9;10;12;13;16;23;24;39;42;43;45;46;50 | S9: Craft and Structure | T9: 26 | U9: 0.7 | V9: 18.09 | W9: 1;2;3;4;7;11;14;17;18;19;26;27;28;29;30;31;32;34;36;37;38;41;47;48;52;53 | X9: Integration of Knowledge and Ideas | Y9: 10 | Z9: 0.61 | AA9: 6.08 | AB9: 15;25;35;44;49;51;54;55;56;57 | AG9: 15;25;35;44;49;51;54;55;56;57
A10: 03 Reading Mid-Year 2014 - Grade 3 ELA | B10: 92 | C10: 0092 0092 - Norman S. Edelcup/sunny Isles | D10: 216 | E10: 52 | F10: 66.26 | G10: 34.45 | H10: 96 | I10: 0 | J10: 120 | K10: 0.44 | L10: 0 | M10: 0.56 | N10: Key Ideas and Details | O10: 16 | P10: 0.69 | Q10: 11.07 | R10: 5;6;8;9;10;12;13;16;23;24;39;42;43;45;46;50 | S10: Craft and Structure | T10: 26 | U10: 0.67 | V10: 17.44 | W10: 1;2;3;4;7;11;14;17;18;19;26;27;28;29;30;31;32;34;36;37;38;41;47;48;52;53 | X10: Integration of Knowledge and Ideas | Y10: 10 | Z10: 0.59 | AA10: 5.94 | AB10: 15;25;35;44;49;51;54;55;56;57 | AG10: 15;25;35;44;49;51;54;55;56;57
A11: 03 Reading Mid-Year 2014 - Grade 3 ELA | B11: 100 | C11: 0100 0100 - Mater Academy | D11: 174 | E11: 52 | F11: 68.65 | G11: 35.7 | H11: 73 | I11: 0 | J11: 101 | K11: 0.42 | L11: 0 | M11: 0.58 | N11: Key Ideas and Details | O11: 16 | P11: 0.72 | Q11: 11.45 | R11: 5;6;8;9;10;12;13;16;23;24;39;42;43;45;46;50 | S11: Craft and Structure | T11: 26 | U11: 0.71 | V11: 18.5 | W11: 1;2;3;4;7;11;14;17;18;19;26;27;28;29;30;31;32;34;36;37;38;41;47;48;52;53 | X11: Integration of Knowledge and Ideas | Y11: 10 | Z11: 0.57 | AA11: 5.74 | AB11: 15;25;35;44;49;51;54;55;56;57 | AG11: 15;25;35;44;49;51;54;55;56;57
A12: 03 Reading Mid-Year 2014 - Grade 3 ELA | B12: 101 | C12: 0101 0101 - Arcola Lake Elementary | D12: 83 | E12: 52 | F12: 52.46 | G12: 27.28 | H12: 63 | I12: 0 | J12: 20 | K12: 0.76 | L12: 0 | M12: 0.24 | N12: Key Ideas and Details | O12: 16 | P12: 0.56 | Q12: 8.9 | R12: 5;6;8;9;10;12;13;16;23;24;39;42;43;45;46;50 | S12: Craft and Structure | T12: 26 | U12: 0.54 | V12: 13.94 | W12: 1;2;3;4;7;11;14;17;18;19;26;27;28;29;30;31;32;34;36;37;38;41;47;48;52;53 | X12: Integration of Knowledge and Ideas | Y12: 10 | Z12: 0.44 | AA12: 4.43 | AB12: 15;25;35;44;49;51;54;55;56;57 | AG12: 15;25;35;44;49;51;54;55;56;57
A13: 03 Reading Mid-Year 2014 - Grade 3 ELA | B13: 102 | C13: 0102 0102 - Miami Community Charter School | D13: 87 | E13: 52 | F13: 73.41 | G13: 38.17 | H13: 32 | I13: 0 | J13: 55 | K13: 0.37 | L13: 0 | M13: 0.63 | N13: Key Ideas and Details | O13: 16 | P13: 0.77 | Q13: 12.28 | R13: 5;6;8;9;10;12;13;16;23;24;39;42;43;45;46;50 | S13: Craft and Structure | T13: 26 | U13: 0.74 | V13: 19.29 | W13: 1;2;3;4;7;11;14;17;18;19;26;27;28;29;30;31;32;34;36;37;38;41;47;48;52;53 | X13: Integration of Knowledge and Ideas | Y13: 10 | Z13: 0.66 | AA13: 6.61 | AB13: 15;25;35;44;49;51;54;55;56;57 | AG13: 15;25;35;44;49;51;54;55;56;57
A14: 03 Reading Mid-Year 2014 - Grade 3 ELA | B14: 111 | C14: 0111 0111 - Maya Angelou Elementary | D14: 136 | E14: 52 | F14: 52.21 | G14: 27.15 | H14: 95 | I14: 0 | J14: 41 | K14: 0.7 | L14: 0 | M14: 0.3 | N14: Key Ideas and Details | O14: 16 | P14: 0.56 | Q14: 8.99 | R14: 5;6;8;9;10;12;13;16;23;24;39;42;43;45;46;50 | S14: Craft and Structure | T14: 26 | U14: 0.52 | V14: 13.43 | W14: 1;2;3;4;7;11;14;17;18;19;26;27;28;29;30;31;32;34;36;37;38;41;47;48;52;53 | X14: Integration of Knowledge and Ideas | Y14: 10 | Z14: 0.47 | AA14: 4.73 | AB14: 15;25;35;44;49;51;54;55;56;57 | AG14: 15;25;35;44;49;51;54;55;56;57
A15: 03 Reading Mid-Year 2014 - Grade 3 ELA | B15: 121 | C15: 0121 0121 - Auburndale Elementary | D15: 149 | E15: 52 | F15: 68.93 | G15: 35.85 | H15: 52 | I15: 0 | J15: 97 | K15: 0.35 | L15: 0 | M15: 0.65 | N15: Key Ideas and Details | O15: 16 | P15: 0.73 | Q15: 11.64 | R15: 5;6;8;9;10;12;13;16;23;24;39;42;43;45;46;50 | S15: Craft and Structure | T15: 26 | U15: 0.7 | V15: 18.26 | W15: 1;2;3;4;7;11;14;17;18;19;26;27;28;29;30;31;32;34;36;37;38;41;47;48;52;53 | X15: Integration of Knowledge and Ideas | Y15: 10 | Z15: 0.59 | AA15: 5.95 | AB15: 15;25;35;44;49;51;54;55;56;57 | AG15: 15;25;35;44;49;51;54;55;56;57
A16: 03 Reading Mid-Year 2014 - Grade 3 ELA | B16: 122 | C16: 0122 0122 - Dr Rolando Espinosa K-8 | D16: 199 | E16: 52 | F16: 61.77 | G16: 32.12 | H16: 95 | I16: 0 | J16: 104 | K16: 0.48 | L16: 0 | M16: 0.52 | N16: Key Ideas and Details | O16: 16 | P16: 0.66 | Q16: 10.52 | R16: 5;6;8;9;10;12;13;16;23;24;39;42;43;45;46;50 | S16: Craft and Structure | T16: 26 | U16: 0.64 | V16: 16.58 | W16: 1;2;3;4;7;11;14;17;18;19;26;27;28;29;30;31;32;34;36;37;38;41;47;48;52;53 | X16: Integration of Knowledge and Ideas | Y16: 10 | Z16: 0.5 | AA16: 5.02 | AB16: 15;25;35;44;49;51;54;55;56;57 | AG16: 15;25;35;44;49;51;54;55;56;57
A17: 03 Reading Mid-Year 2014 - Grade 3 ELA | B17: 125 | C17: 0125 0125 - Norma Butler Bossard Elem | D17: 225 | E17: 52 | F17: 68.56 | G17: 35.65 | H17: 87 | I17: 0 | J17: 138 | K17: 0.39 | L17: 0 | M17: 0.61 | N17: Key Ideas and Details | O17: 16 | P17: 0.71 | Q17: 11.4 | R17: 5;6;8;9;10;12;13;16;23;24;39;42;43;45;46;50 | S17: Craft and Structure | T17: 26 | U17: 0.7 | V17: 18.27 | W17: 1;2;3;4;7;11;14;17;18;19;26;27;28;29;30;31;32;34;36;37;38;41;47;48;52;53 | X17: Integration of Knowledge and Ideas | Y17: 10 | Z17: 0.6 | AA17: 5.98 | AB17: 15;25;35;44;49;51;54;55;56;57 | AG17: 15;25;35;44;49;51;54;55;56;57
A18: 03 Reading Mid-Year 2014 - Grade 3 ELA | B18: 161 | C18: 0161 0161 - Avocado Elementary | D18: 138 | E18: 52 | F18: 50.63 | G18: 26.33 | H18: 104 | I18: 0 | J18: 34 | K18: 0.75 | L18: 0 | M18: 0.25 | N18: Key Ideas and Details | O18: 16 | P18: 0.54 | Q18: 8.58 | R18: 5;6;8;9;10;12;13;16;23;24;39;42;43;45;46;50 | S18: Craft and Structure | T18: 26 | U18: 0.52 | V18: 13.41 | W18: 1;2;3;4;7;11;14;17;18;19;26;27;28;29;30;31;32;34;36;37;38;41;47;48;52;53 | X18: Integration of Knowledge and Ideas | Y18: 10 | Z18: 0.43 | AA18: 4.34 | AB18: 15;25;35;44;49;51;54;55;56;57 | AG18: 15;25;35;44;49;51;54;55;56;57
A19: 03 Reading Mid-Year 2014 - Grade 3 ELA | B19: 201 | C19: 0201 0201 - Banyan Elementary | D19: 59 | E19: 52 | F19: 63.27 | G19: 32.9 | H19: 28 | I19: 0 | J19: 31 | K19: 0.47 | L19: 0 | M19: 0.53 | N19: Key Ideas and Details | O19: 16 | P19: 0.68 | Q19: 10.93 | R19: 5;6;8;9;10;12;13;16;23;24;39;42;43;45;46;50 | S19: Craft and Structure | T19: 26 | U19: 0.64 | V19: 16.69 | W19: 1;2;3;4;7;11;14;17;18;19;26;27;28;29;30;31;32;34;36;37;38;41;47;48;52;53 | X19: Integration of Knowledge and Ideas | Y19: 10 | Z19: 0.53 | AA19: 5.27 | AB19: 15;25;35;44;49;51;54;55;56;57 | AG19: 15;25;35;44;49;51;54;55;56;57
A20: 03 Reading Mid-Year 2014 - Grade 3 ELA | B20: 211 | C20: 0211 0211 - Dr. Manuel C. Barreiro Elem | D20: 134 | E20: 52 | F20: 64.34 | G20: 33.46 | H20: 65 | I20: 0 | J20: 69 | K20: 0.49 | L20: 0 | M20: 0.51 | N20: Key Ideas and Details | O20: 16 | P20: 0.68 | Q20: 10.87 | R20: 5;6;8;9;10;12;13;16;23;24;39;42;43;45;46;50 | S20: Craft and Structure | T20: 26 | U20: 0.65 | V20: 16.84 | W20: 1;2;3;4;7;11;14;17;18;19;26;27;28;29;30;31;32;34;36;37;38;41;47;48;52;53 | X20: Integration of Knowledge and Ideas | Y20: 10 | Z20: 0.57 | AA20: 5.75 | AB20: 15;25;35;44;49;51;54;55;56;57 | AG20: 15;25;35;44;49;51;54;55;56;57
A21: 03 Reading Mid-Year 2014 - Grade 3 ELA | B21: 231 | C21: 0231 0231 - Aventura Waterways K-8 Center | D21: 266 | E21: 52 | F21: 65.55 | G21: 34.09 | H21: 111 | I21: 0 | J21: 155 | K21: 0.42 | L21: 0 | M21: 0.58 | N21: Key Ideas and Details | O21: 16 | P21: 0.69 | Q21: 11.05 | R21: 5;6;8;9;10;12;13;16;23;24;39;42;43;45;46;50 | S21: Craft and Structure | T21: 26 | U21: 0.67 | V21: 17.5 | W21: 1;2;3;4;7;11;14;17;18;19;26;27;28;29;30;31;32;34;36;37;38;41;47;48;52;53 | X21: Integration of Knowledge and Ideas | Y21: 10 | Z21: 0.55 | AA21: 5.53 | AB21: 15;25;35;44;49;51;54;55;56;57 | AG21: 15;25;35;44;49;51;54;55;56;57
A22: 03 Reading Mid-Year 2014 - Grade 3 ELA | B22: 241 | C22: 0241 0241 - Ruth K Broad/bay Harbor K-8 | D22: 134 | E22: 52 | F22: 70.34 | G22: 36.57 | H22: 49 | I22: 0 | J22: 85 | K22: 0.37 | L22: 0 | M22: 0.63 | N22: Key Ideas and Details | O22: 16 | P22: 0.74 | Q22: 11.75 | R22: 5;6;8;9;10;12;13;16;23;24;39;42;43;45;46;50 | S22: Craft and Structure | T22: 26 | U22: 0.72 | V22: 18.78 | W22: 1;2;3;4;7;11;14;17;18;19;26;27;28;29;30;31;32;34;36;37;38;41;47;48;52;53 | X22: Integration of Knowledge and Ideas | Y22: 10 | Z22: 0.61 | AA22: 6.05 | AB22: 15;25;35;44;49;51;54;55;56;57 | AG22: 15;25;35;44;49;51;54;55;56;57
A23: 03 Reading Mid-Year 2014 - Grade 3 ELA | B23: 251 | C23: 0251 0251 - Ethel Koger Beckham Elementary | D23: 138 | E23: 52 | F23: 73.54 | G23: 38.24 | H23: 40 | I23: 0 | J23: 98 | K23: 0.29 | L23: 0 | M23: 0.71 | N23: Key Ideas and Details | O23: 16 | P23: 0.76 | Q23: 12.12 | R23: 5;6;8;9;10;12;13;16;23;24;39;42;43;45;46;50 | S23: Craft and Structure | T23: 26 | U23: 0.75 | V23: 19.49 | W23: 1;2;3;4;7;11;14;17;18;19;26;27;28;29;30;31;32;34;36;37;38;41;47;48;52;53 | X23: Integration of Knowledge and Ideas | Y23: 10 | Z23: 0.66 | AA23: 6.62 | AB23: 15;25;35;44;49;51;54;55;56;57 | AG23: 15;25;35;44;49;51;54;55;56;57
A24: 03 Reading Mid-Year 2014 - Grade 3 ELA | B24: 261 | C24: 0261 0261 - Bel-Aire Elementary | D24: 62 | E24: 52 | F24: 59.24 | G24: 30.81 | H24: 44 | I24: 0 | J24: 18 | K24: 0.71 | L24: 0 | M24: 0.29 | N24: Key Ideas and Details | O24: 16 | P24: 0.64 | Q24: 10.21 | R24: 5;6;8;9;10;12;13;16;23;24;39;42;43;45;46;50 | S24: Craft and Structure | T24: 26 | U24: 0.61 | V24: 15.89 | W24: 1;2;3;4;7;11;14;17;18;19;26;27;28;29;30;31;32;34;36;37;38;41;47;48;52;53 | X24: Integration of Knowledge and Ideas | Y24: 10 | Z24: 0.47 | AA24: 4.71 | AB24: 15;25;35;44;49;51;54;55;56;57 | AG24: 15;25;35;44;49;51;54;55;56;57
A25: 03 Reading Mid-Year 2014 - Grade 3 ELA | B25: 271 | C25: 0271 0271 - Bent Tree Elementary | D25: 60 | E25: 52 | F25: 68.65 | G25: 35.7 | H25: 28 | I25: 0 | J25: 32 | K25: 0.47 | L25: 0 | M25: 0.53 | N25: Key Ideas and Details | O25: 16 | P25: 0.72 | Q25: 11.52 | R25: 5;6;8;9;10;12;13;16;23;24;39;42;43;45;46;50 | S25: Craft and Structure | T25: 26 | U25: 0.72 | V25: 18.8 | W25: 1;2;3;4;7;11;14;17;18;19;26;27;28;29;30;31;32;34;36;37;38;41;47;48;52;53 | X25: Integration of Knowledge and Ideas | Y25: 10 | Z25: 0.54 | AA25: 5.38 | AB25: 15;25;35;44;49;51;54;55;56;57 | AG25: 15;25;35;44;49;51;54;55;56;57
A26: 03 Reading Mid-Year 2014 - Grade 3 ELA | B26: 311 | C26: 0311 0311 - Goulds Elementary | D26: 108 | E26: 52 | F26: 60.15 | G26: 31.28 | H26: 65 | I26: 0 | J26: 43 | K26: 0.6 | L26: 0 | M26: 0.4 | N26: Key Ideas and Details | O26: 16 | P26: 0.64 | Q26: 10.16 | R26: 5;6;8;9;10;12;13;16;23;24;39;42;43;45;46;50 | S26: Craft and Structure | T26: 26 | U26: 0.62 | V26: 16.06 | W26: 1;2;3;4;7;11;14;17;18;19;26;27;28;29;30;31;32;34;36;37;38;41;47;48;52;53 | X26: Integration of Knowledge and Ideas | Y26: 10 | Z26: 0.51 | AA26: 5.06 | AB26: 15;25;35;44;49;51;54;55;56;57 | AG26: 15;25;35;44;49;51;54;55;56;57
A27: 03 Reading Mid-Year 2014 - Grade 3 ELA | B27: 312 | C27: 0312 0312 - Mater Gardens Academy | D27: 98 | E27: 52 | F27: 70.02 | G27: 36.41 | H27: 36 | I27: 0 | J27: 62 | K27: 0.37 | L27: 0 | M27: 0.63 | N27: Key Ideas and Details | O27: 16 | P27: 0.72 | Q27: 11.54 | R27: 5;6;8;9;10;12;13;16;23;24;39;42;43;45;46;50 | S27: Craft and Structure | T27: 26 | U27: 0.74 | V27: 19.17 | W27: 1;2;3;4;7;11;14;17;18;19;26;27;28;29;30;31;32;34;36;37;38;41;47;48;52;53 | X27: Integration of Knowledge and Ideas | Y27: 10 | Z27: 0.57 | AA27: 5.69 | AB27: 15;25;35;44;49;51;54;55;56;57 | AG27: 15;25;35;44;49;51;54;55;56;57
A28: 03 Reading Mid-Year 2014 - Grade 3 ELA | B28: 321 | C28: 0321 0321 - Biscayne Elementary | D28: 117 | E28: 52 | F28: 58.61 | G28: 30.48 | H28: 76 | I28: 0 | J28: 41 | K28: 0.65 | L28: 0 | M28: 0.35 | N28: Key Ideas and Details | O28: 16 | P28: 0.63 | Q28: 10.08 | R28: 5;6;8;9;10;12;13;16;23;24;39;42;43;45;46;50 | S28: Craft and Structure | T28: 26 | U28: 0.6 | V28: 15.69 | W28: 1;2;3;4;7;11;14;17;18;19;26;27;28;29;30;31;32;34;36;37;38;41;47;48;52;53 | X28: Integration of Knowledge and Ideas | Y28: 10 | Z28: 0.47 | AA28: 4.71 | AB28: 15;25;35;44;49;51;54;55;56;57 | AG28: 15;25;35;44;49;51;54;55;56;57
A29: 03 Reading Mid-Year 2014 - Grade 3 ELA | B29: 332 | C29: 0332 0332 - Somerset Academy(silver Palms) | D29: 61 | E29: 52 | F29: 59.33 | G29: 30.85 | H29: 39 | I29: 0 | J29: 22 | K29: 0.64 | L29: 0 | M29: 0.36 | N29: Key Ideas and Details | O29: 16 | P29: 0.62 | Q29: 9.87 | R29: 5;6;8;9;10;12;13;16;23;24;39;42;43;45;46;50 | S29: Craft and Structure | T29: 26 | U29: 0.62 | V29: 16.02 | W29: 1;2;3;4;7;11;14;17;18;19;26;27;28;29;30;31;32;34;36;37;38;41;47;48;52;53 | X29: Integration of Knowledge and Ideas | Y29: 10 | Z29: 0.5 | AA29: 4.97 | AB29: 15;25;35;44;49;51;54;55;56;57 | AG29: 15;25;35;44;49;51;54;55;56;57
A30: 03 Reading Mid-Year 2014 - Grade 3 ELA | B30: 339 | C30: 0339 0339 - Somerset Academy Charter Elem | D30: 74 | E30: 52 | F30: 60.4 | G30: 31.41 | H30: 43 | I30: 0 | J30: 31 | K30: 0.58 | L30: 0 | M30: 0.42 | N30: Key Ideas and Details | O30: 16 | P30: 0.64 | Q30: 10.22 | R30: 5;6;8;9;10;12;13;16;23;24;39;42;43;45;46;50 | S30: Craft and Structure | T30: 26 | U30: 0.61 | V30: 15.82 | W30: 1;2;3;4;7;11;14;17;18;19;26;27;28;29;30;31;32;34;36;37;38;41;47;48;52;53 | X30: Integration of Knowledge and Ideas | Y30: 10 | Z30: 0.54 | AA30: 5.36 | AB30: 15;25;35;44;49;51;54;55;56;57 | AG30: 15;25;35;44;49;51;54;55;56;57
A31: 03 Reading Mid-Year 2014 - Grade 3 ELA | B31: 341 | C31: 0341 0341 - Arch Creek Elementary School | D31: 94 | E31: 52 | F31: 58.96 | G31: 30.66 | H31: 65 | I31: 0 | J31: 29 | K31: 0.69 | L31: 0 | M31: 0.31 | N31: Key Ideas and Details | O31: 16 | P31: 0.63 | Q31: 10.12 | R31: 5;6;8;9;10;12;13;16;23;24;39;42;43;45;46;50 | S31: Craft and Structure | T31: 26 | U31: 0.59 | V31: 15.38 | W31: 1;2;3;4;7;11;14;17;18;19;26;27;28;29;30;31;32;34;36;37;38;41;47;48;52;53 | X31: Integration of Knowledge and Ideas | Y31: 10 | Z31: 0.52 | AA31: 5.16 | AB31: 15;25;35;44;49;51;54;55;56;57 | AG31: 15;25;35;44;49;51;54;55;56;57
A32: 03 Reading Mid-Year 2014 - Grade 3 ELA | B32: 342 | C32: 0342 0342 - Pinecrest Academy South Campus | D32: 129 | E32: 52 | F32: 73.23 | G32: 38.08 | H32: 39 | I32: 0 | J32: 90 | K32: 0.3 | L32: 0 | M32: 0.7 | N32: Key Ideas and Details | O32: 16 | P32: 0.77 | Q32: 12.24 | R32: 5;6;8;9;10;12;13;16;23;24;39;42;43;45;46;50 | S32: Craft and Structure | T32: 26 | U32: 0.75 | V32: 19.4 | W32: 1;2;3;4;7;11;14;17;18;19;26;27;28;29;30;31;32;34;36;37;38;41;47;48;52;53 | X32: Integration of Knowledge and Ideas | Y32: 10 | Z32: 0.64 | AA32: 6.44 | AB32: 15;25;35;44;49;51;54;55;56;57 | AG32: 15;25;35;44;49;51;54;55;56;57
A33: 03 Reading Mid-Year 2014 - Grade 3 ELA | B33: 361 | C33: 0361 0361 - Biscayne Gardens Elementary | D33: 98 | E33: 52 | F33: 54.43 | G33: 28.31 | H33: 72 | I33: 0 | J33: 26 | K33: 0.73 | L33: 0 | M33: 0.27 | N33: Key Ideas and Details | O33: 16 | P33: 0.6 | Q33: 9.59 | R33: 5;6;8;9;10;12;13;16;23;24;39;42;43;45;46;50 | S33: Craft and Structure | T33: 26 | U33: 0.54 | V33: 13.99 | W33: 1;2;3;4;7;11;14;17;18;19;26;27;28;29;30;31;32;34;36;37;38;41;47;48;52;53 | X33: Integration of Knowledge and Ideas | Y33: 10 | Z33: 0.47 | AA33: 4.72 | AB33: 15;25;35;44;49;51;54;55;56;57 | AG33: 15;25;35;44;49;51;54;55;56;57
A34: 03 Reading Mid-Year 2014 - Grade 3 ELA | B34: 401 | C34: 0401 0401 - Van E. Blanton Elementary | D34: 92 | E34: 52 | F34: 56.84 | G34: 29.55 | H34: 62 | I34: 0 | J34: 30 | K34: 0.67 | L34: 0 | M34: 0.33 | N34: Key Ideas and Details | O34: 16 | P34: 0.62 | Q34: 9.93 | R34: 5;6;8;9;10;12;13;16;23;24;39;42;43;45;46;50 | S34: Craft and Structure | T34: 26 | U34: 0.57 | V34: 14.8 | W34: 1;2;3;4;7;11;14;17;18;19;26;27;28;29;30;31;32;34;36;37;38;41;47;48;52;53 | X34: Integration of Knowledge and Ideas | Y34: 10 | Z34: 0.48 | AA34: 4.82 | AB34: 15;25;35;44;49;51;54;55;56;57 | AG34: 15;25;35;44;49;51;54;55;56;57
A35: 03 Reading Mid-Year 2014 - Grade 3 ELA | B35: 410 | C35: 0410 0410 - Academir Charter School West | D35: 153 | E35: 52 | F35: 68.69 | G35: 35.72 | H35: 63 | I35: 0 | J35: 90 | K35: 0.41 | L35: 0 | M35: 0.59 | N35: Key Ideas and Details | O35: 16 | P35: 0.73 | Q35: 11.65 | R35: 5;6;8;9;10;12;13;16;23;24;39;42;43;45;46;50 | S35: Craft and Structure | T35: 26 | U35: 0.71 | V35: 18.38 | W35: 1;2;3;4;7;11;14;17;18;19;26;27;28;29;30;31;32;34;36;37;38;41;47;48;52;53 | X35: Integration of Knowledge and Ideas | Y35: 10 | Z35: 0.57 | AA35: 5.69 | AB35: 15;25;35;44;49;51;54;55;56;57 | AG35: 15;25;35;44;49;51;54;55;56;57
A36: 03 Reading Mid-Year 2014 - Grade 3 ELA | B36: 441 | C36: 0441 0441 - Blue Lakes Elementary | D36: 49 | E36: 52 | F36: 66.33 | G36: 34.49 | H36: 22 | I36: 0 | J36: 27 | K36: 0.45 | L36: 0 | M36: 0.55 | N36: Key Ideas and Details | O36: 16 | P36: 0.69 | Q36: 11.1 | R36: 5;6;8;9;10;12;13;16;23;24;39;42;43;45;46;50 | S36: Craft and Structure | T36: 26 | U36: 0.68 | V36: 17.63 | W36: 1;2;3;4;7;11;14;17;18;19;26;27;28;29;30;31;32;34;36;37;38;41;47;48;52;53 | X36: Integration of Knowledge and Ideas | Y36: 10 | Z36: 0.58 | AA36: 5.76 | AB36: 15;25;35;44;49;51;54;55;56;57 | AG36: 15;25;35;44;49;51;54;55;56;57
A37: 03 Reading Mid-Year 2014 - Grade 3 ELA | B37: 451 | C37: 0451 0451 - Bowman Ashe/doolin K-8 Acad | D37: 119 | E37: 52 | F37: 63.49 | G37: 33.02 | H37: 50 | I37: 0 | J37: 69 | K37: 0.42 | L37: 0 | M37: 0.58 | N37: Key Ideas and Details | O37: 16 | P37: 0.67 | Q37: 10.76 | R37: 5;6;8;9;10;12;13;16;23;24;39;42;43;45;46;50 | S37: Craft and Structure | T37: 26 | U37: 0.66 | V37: 17.1 | W37: 1;2;3;4;7;11;14;17;18;19;26;27;28;29;30;31;32;34;36;37;38;41;47;48;52;53 | X37: Integration of Knowledge and Ideas | Y37: 10 | Z37: 0.52 | AA37: 5.16 | AB37: 15;25;35;44;49;51;54;55;56;57 | AG37: 15;25;35;44;49;51;54;55;56;57
A38: 03 Reading Mid-Year 2014 - Grade 3 ELA | B38: 461 | C38: 0461 0461 - Brentwood Elementary | D38: 106 | E38: 52 | F38: 58.51 | G38: 30.42 | H38: 66 | I38: 0 | J38: 40 | K38: 0.62 | L38: 0 | M38: 0.38 | N38: Key Ideas and Details | O38: 16 | P38: 0.63 | Q38: 10.05 | R38: 5;6;8;9;10;12;13;16;23;24;39;42;43;45;46;50 | S38: Craft and Structure | T38: 26 | U38: 0.59 | V38: 15.45 | W38: 1;2;3;4;7;11;14;17;18;19;26;27;28;29;30;31;32;34;36;37;38;41;47;48;52;53 | X38: Integration of Knowledge and Ideas | Y38: 10 | Z38: 0.49 | AA38: 4.92 | AB38: 15;25;35;44;49;51;54;55;56;57 | AG38: 15;25;35;44;49;51;54;55;56;57
A39: 03 Reading Mid-Year 2014 - Grade 3 ELA | B39: 481 | C39: 0481 0481 - James H. Bright/jw Johnson Es | D39: 91 | E39: 52 | F39: 52.32 | G39: 27.21 | H39: 64 | I39: 0 | J39: 27 | K39: 0.7 | L39: 0 | M39: 0.3 | N39: Key Ideas and Details | O39: 16 | P39: 0.56 | Q39: 8.99 | R39: 5;6;8;9;10;12;13;16;23;24;39;42;43;45;46;50 | S39: Craft and Structure | T39: 26 | U39: 0.54 | V39: 14.14 | W39: 1;2;3;4;7;11;14;17;18;19;26;27;28;29;30;31;32;34;36;37;38;41;47;48;52;53 | X39: Integration of Knowledge and Ideas | Y39: 10 | Z39: 0.41 | AA39: 4.08 | AB39: 15;25;35;44;49;51;54;55;56;57 | AG39: 15;25;35;44;49;51;54;55;56;57
A40: 03 Reading Mid-Year 2014 - Grade 3 ELA | B40: 510 | C40: 0510 0510 - Archimedean Academy | D40: 116 | E40: 52 | F40: 75.68 | G40: 39.35 | H40: 27 | I40: 0 | J40: 89 | K40: 0.23 | L40: 0 | M40: 0.77 | N40: Key Ideas and Details | O40: 16 | P40: 0.79 | Q40: 12.6 | R40: 5;6;8;9;10;12;13;16;23;24;39;42;43;45;46;50 | S40: Craft and Structure | T40: 26 | U40: 0.77 | V40: 19.91 | W40: 1;2;3;4;7;11;14;17;18;19;26;27;28;29;30;31;32;34;36;37;38;41;47;48;52;53 | X40: Integration of Knowledge and Ideas | Y40: 10 | Z40: 0.68 | AA40: 6.84 | AB40: 15;25;35;44;49;51;54;55;56;57 | AG40: 15;25;35;44;49;51;54;55;56;57
A41: 03 Reading Mid-Year 2014 - Grade 3 ELA | B41: 520 | C41: 0520 0520 - Somerset Academy | D41: 112 | E41: 52 | F41: 70.02 | G41: 36.41 | H41: 46 | I41: 0 | J41: 66 | K41: 0.41 | L41: 0 | M41: 0.59 | N41: Key Ideas and Details | O41: 16 | P41: 0.75 | Q41: 12.01 | R41: 5;6;8;9;10;12;13;16;23;24;39;42;43;45;46;50 | S41: Craft and Structure | T41: 26 | U41: 0.72 | V41: 18.7 | W41: 1;2;3;4;7;11;14;17;18;19;26;27;28;29;30;31;32;34;36;37;38;41;47;48;52;53 | X41: Integration of Knowledge and Ideas | Y41: 10 | Z41: 0.57 | AA41: 5.71 | AB41: 15;25;35;44;49;51;54;55;56;57 | AG41: 15;25;35;44;49;51;54;55;56;57
A42: 03 Reading Mid-Year 2014 - Grade 3 ELA | B42: 521 | C42: 0521 0521 - Broadmoor Elementary | D42: 85 | E42: 52 | F42: 56.7 | G42: 29.48 | H42: 59 | I42: 0 | J42: 26 | K42: 0.69 | L42: 0 | M42: 0.31 | N42: Key Ideas and Details | O42: 16 | P42: 0.61 | Q42: 9.69 | R42: 5;6;8;9;10;12;13;16;23;24;39;42;43;45;46;50 | S42: Craft and Structure | T42: 26 | U42: 0.57 | V42: 14.73 | W42: 1;2;3;4;7;11;14;17;18;19;26;27;28;29;30;31;32;34;36;37;38;41;47;48;52;53 | X42: Integration of Knowledge and Ideas | Y42: 10 | Z42: 0.51 | AA42: 5.06 | AB42: 15;25;35;44;49;51;54;55;56;57 | AG42: 15;25;35;44;49;51;54;55;56;57
A43: 03 Reading Mid-Year 2014 - Grade 3 ELA | B43: 561 | C43: 0561 0561 - W.j. Bryan Elementary | D43: 138 | E43: 52 | F43: 59.45 | G43: 30.91 | H43: 80 | I43: 0 | J43: 58 | K43: 0.58 | L43: 0 | M43: 0.42 | N43: Key Ideas and Details | O43: 16 | P43: 0.62 | Q43: 9.83 | R43: 5;6;8;9;10;12;13;16;23;24;39;42;43;45;46;50 | S43: Craft and Structure | T43: 26 | U43: 0.62 | V43: 16.05 | W43: 1;2;3;4;7;11;14;17;18;19;26;27;28;29;30;31;32;34;36;37;38;41;47;48;52;53 | X43: Integration of Knowledge and Ideas | Y43: 10 | Z43: 0.5 | AA43: 5.03 | AB43: 15;25;35;44;49;51;54;55;56;57 | AG43: 15;25;35;44;49;51;54;55;56;57
A44: 03 Reading Mid-Year 2014 - Grade 3 ELA | B44: 600 | C44: 0600 0600 - Pinecrest Prep Academy | D44: 122 | E44: 52 | F44: 75.79 | G44: 39.41 | H44: 26 | I44: 0 | J44: 96 | K44: 0.21 | L44: 0 | M44: 0.79 | N44: Key Ideas and Details | O44: 16 | P44: 0.79 | Q44: 12.63 | R44: 5;6;8;9;10;12;13;16;23;24;39;42;43;45;46;50 | S44: Craft and Structure | T44: 26 | U44: 0.77 | V44: 20.09 | W44: 1;2;3;4;7;11;14;17;18;19;26;27;28;29;30;31;32;34;36;37;38;41;47;48;52;53 | X44: Integration of Knowledge and Ideas | Y44: 10 | Z44: 0.67 | AA44: 6.69 | AB44: 15;25;35;44;49;51;54;55;56;57 | AG44: 15;25;35;44;49;51;54;55;56;57
A45: 03 Reading Mid-Year 2014 - Grade 3 ELA | B45: 641 | C45: 0641 0641 - Bunche Park Elementary | D45: 46 | E45: 52 | F45: 50.92 | G45: 26.48 | H45: 34 | I45: 0 | J45: 12 | K45: 0.74 | L45: 0 | M45: 0.26 | N45: Key Ideas and Details | O45: 16 | P45: 0.54 | Q45: 8.61 | R45: 5;6;8;9;10;12;13;16;23;24;39;42;43;45;46;50 | S45: Craft and Structure | T45: 26 | U45: 0.53 | V45: 13.78 | W45: 1;2;3;4;7;11;14;17;18;19;26;27;28;29;30;31;32;34;36;37;38;41;47;48;52;53 | X45: Integration of Knowledge and Ideas | Y45: 10 | Z45: 0.41 | AA45: 4.09 | AB45: 15;25;35;44;49;51;54;55;56;57 | AG45: 15;25;35;44;49;51;54;55;56;57
A46: 03 Reading Mid-Year 2014 - Grade 3 ELA | B46: 651 | C46: 0651 0651 - Campbell Drive K-8 Center | D46: 112 | E46: 52 | F46: 56.73 | G46: 29.5 | H46: 82 | I46: 0 | J46: 30 | K46: 0.73 | L46: 0 | M46: 0.27 | N46: Key Ideas and Details | O46: 16 | P46: 0.62 | Q46: 9.86 | R46: 5;6;8;9;10;12;13;16;23;24;39;42;43;45;46;50 | S46: Craft and Structure | T46: 26 | U46: 0.57 | V46: 14.72 | W46: 1;2;3;4;7;11;14;17;18;19;26;27;28;29;30;31;32;34;36;37;38;41;47;48;52;53 | X46: Integration of Knowledge and Ideas | Y46: 10 | Z46: 0.49 | AA46: 4.92 | AB46: 15;25;35;44;49;51;54;55;56;57 | AG46: 15;25;35;44;49;51;54;55;56;57
A47: 03 Reading Mid-Year 2014 - Grade 3 ELA | B47: 661 | C47: 0661 0661 - Caribbean Elementary | D47: 85 | E47: 52 | F47: 55 | G47: 28.6 | H47: 65 | I47: 0 | J47: 20 | K47: 0.76 | L47: 0 | M47: 0.24 | N47: Key Ideas and Details | O47: 16 | P47: 0.61 | Q47: 9.68 | R47: 5;6;8;9;10;12;13;16;23;24;39;42;43;45;46;50 | S47: Craft and Structure | T47: 26 | U47: 0.55 | V47: 14.36 | W47: 1;2;3;4;7;11;14;17;18;19;26;27;28;29;30;31;32;34;36;37;38;41;47;48;52;53 | X47: Integration of Knowledge and Ideas | Y47: 10 | Z47: 0.46 | AA47: 4.55 | AB47: 15;25;35;44;49;51;54;55;56;57 | AG47: 15;25;35;44;49;51;54;55;56;57
A48: 03 Reading Mid-Year 2014 - Grade 3 ELA | B48: 671 | C48: 0671 0671 - Calusa Elementary | D48: 153 | E48: 52 | F48: 70.16 | G48: 36.48 | H48: 53 | I48: 0 | J48: 100 | K48: 0.35 | L48: 0 | M48: 0.65 | N48: Key Ideas and Details | O48: 16 | P48: 0.72 | Q48: 11.54 | R48: 5;6;8;9;10;12;13;16;23;24;39;42;43;45;46;50 | S48: Craft and Structure | T48: 26 | U48: 0.72 | V48: 18.68 | W48: 1;2;3;4;7;11;14;17;18;19;26;27;28;29;30;31;32;34;36;37;38;41;47;48;52;53 | X48: Integration of Knowledge and Ideas | Y48: 10 | Z48: 0.63 | AA48: 6.26 | AB48: 15;25;35;44;49;51;54;55;56;57 | AG48: 15;25;35;44;49;51;54;55;56;57
A49: 03 Reading Mid-Year 2014 - Grade 3 ELA | B49: 681 | C49: 0681 0681 - Carol City Elementary | D49: 64 | E49: 52 | F49: 56.34 | G49: 29.3 | H49: 44 | I49: 0 | J49: 20 | K49: 0.69 | L49: 0 | M49: 0.31 | N49: Key Ideas and Details | O49: 16 | P49: 0.6 | Q49: 9.59 | R49: 5;6;8;9;10;12;13;16;23;24;39;42;43;45;46;50 | S49: Craft and Structure | T49: 26 | U49: 0.57 | V49: 14.84 | W49: 1;2;3;4;7;11;14;17;18;19;26;27;28;29;30;31;32;34;36;37;38;41;47;48;52;53 | X49: Integration of Knowledge and Ideas | Y49: 10 | Z49: 0.49 | AA49: 4.86 | AB49: 15;25;35;44;49;51;54;55;56;57 | AG49: 15;25;35;44;49;51;54;55;56;57
A50: 03 Reading Mid-Year 2014 - Grade 3 ELA | B50: 721 | C50: 0721 0721 - George Washington Carver Elem | D50: 82 | E50: 52 | F50: 63.16 | G50: 32.84 | H50: 45 | I50: 0 | J50: 37 | K50: 0.55 | L50: 0 | M50: 0.45 | N50: Key Ideas and Details | O50: 16 | P50: 0.67 | Q50: 10.65 | R50: 5;6;8;9;10;12;13;16;23;24;39;42;43;45;46;50 | S50: Craft and Structure | T50: 26 | U50: 0.64 | V50: 16.72 | W50: 1;2;3;4;7;11;14;17;18;19;26;27;28;29;30;31;32;34;36;37;38;41;47;48;52;53 | X50: Integration of Knowledge and Ideas | Y50: 10 | Z50: 0.55 | AA50: 5.48 | AB50: 15;25;35;44;49;51;54;55;56;57 | AG50: 15;25;35;44;49;51;54;55;56;57
A51: 03 Reading Mid-Year 2014 - Grade 3 ELA | B51: 761 | C51: 0761 0761 - Fienberg/fisher K-8 Center | D51: 77 | E51: 52 | F51: 51.27 | G51: 26.66 | H51: 56 | I51: 0 | J51: 21 | K51: 0.73 | L51: 0 | M51: 0.27 | N51: Key Ideas and Details | O51: 16 | P51: 0.56 | Q51: 8.9 | R51: 5;6;8;9;10;12;13;16;23;24;39;42;43;45;46;50 | S51: Craft and Structure | T51: 26 | U51: 0.54 | V51: 14.01 | W51: 1;2;3;4;7;11;14;17;18;19;26;27;28;29;30;31;32;34;36;37;38;41;47;48;52;53 | X51: Integration of Knowledge and Ideas | Y51: 10 | Z51: 0.38 | AA51: 3.75 | AB51: 15;25;35;44;49;51;54;55;56;57 | AG51: 15;25;35;44;49;51;54;55;56;57
A52: 03 Reading Mid-Year 2014 - Grade 3 ELA | B52: 771 | C52: 0771 0771 - William A. Chapman Elementary | D52: 79 | E52: 52 | F52: 53.14 | G52: 27.63 | H52: 60 | I52: 0 | J52: 19 | K52: 0.76 | L52: 0 | M52: 0.24 | N52: Key Ideas and Details | O52: 16 | P52: 0.56 | Q52: 9 | R52: 5;6;8;9;10;12;13;16;23;24;39;42;43;45;46;50 | S52: Craft and Structure | T52: 26 | U52: 0.55 | V52: 14.19 | W52: 1;2;3;4;7;11;14;17;18;19;26;27;28;29;30;31;32;34;36;37;38;41;47;48;52;53 | X52: Integration of Knowledge and Ideas | Y52: 10 | Z52: 0.44 | AA52: 4.44 | AB52: 15;25;35;44;49;51;54;55;56;57 | AG52: 15;25;35;44;49;51;54;55;56;57
A53: 03 Reading Mid-Year 2014 - Grade 3 ELA | B53: 801 | C53: 0801 0801 - Citrus Grove Elementary | D53: 151 | E53: 52 | F53: 50.41 | G53: 26.21 | H53: 121 | I53: 0 | J53: 30 | K53: 0.8 | L53: 0 | M53: 0.2 | N53: Key Ideas and Details | O53: 16 | P53: 0.54 | Q53: 8.68 | R53: 5;6;8;9;10;12;13;16;23;24;39;42;43;45;46;50 | S53: Craft and Structure | T53: 26 | U53: 0.51 | V53: 13.27 | W53: 1;2;3;4;7;11;14;17;18;19;26;27;28;29;30;31;32;34;36;37;38;41;47;48;52;53 | X53: Integration of Knowledge and Ideas | Y53: 10 | Z53: 0.43 | AA53: 4.26 | AB53: 15;25;35;44;49;51;54;55;56;57 | AG53: 15;25;35;44;49;51;54;55;56;57
A54: 03 Reading Mid-Year 2014 - Grade 3 ELA | B54: 831 | C54: 0831 0831 - Claude Pepper Elementary | D54: 113 | E54: 52 | F54: 65.74 | G54: 34.19 | H54: 57 | I54: 0 | J54: 56 | K54: 0.5 | L54: 0 | M54: 0.5 | N54: Key Ideas and Details | O54: 16 | P54: 0.69 | Q54: 10.95 | R54: 5;6;8;9;10;12;13;16;23;24;39;42;43;45;46;50 | S54: Craft and Structure | T54: 26 | U54: 0.66 | V54: 17.24 | W54: 1;2;3;4;7;11;14;17;18;19;26;27;28;29;30;31;32;34;36;37;38;41;47;48;52;53 | X54: Integration of Knowledge and Ideas | Y54: 10 | Z54: 0.6 | AA54: 6 | AB54: 15;25;35;44;49;51;54;55;56;57 | AG54: 15;25;35;44;49;51;54;55;56;57
A55: 03 Reading Mid-Year 2014 - Grade 3 ELA | B55: 841 | C55: 0841 0841 - Coconut Grove Elementary | D55: 73 | E55: 52 | F55: 64.91 | G55: 33.75 | H55: 28 | I55: 0 | J55: 45 | K55: 0.38 | L55: 0 | M55: 0.62 | N55: Key Ideas and Details | O55: 16 | P55: 0.68 | Q55: 10.9 | R55: 5;6;8;9;10;12;13;16;23;24;39;42;43;45;46;50 | S55: Craft and Structure | T55: 26 | U55: 0.67 | V55: 17.45 | W55: 1;2;3;4;7;11;14;17;18;19;26;27;28;29;30;31;32;34;36;37;38;41;47;48;52;53 | X55: Integration of Knowledge and Ideas | Y55: 10 | Z55: 0.54 | AA55: 5.4 | AB55: 15;25;35;44;49;51;54;55;56;57 | AG55: 15;25;35;44;49;51;54;55;56;57
A56: 03 Reading Mid-Year 2014 - Grade 3 ELA | B56: 861 | C56: 0861 0861 - Colonial Drive Elementary | D56: 43 | E56: 52 | F56: 64.58 | G56: 33.58 | H56: 23 | I56: 0 | J56: 20 | K56: 0.53 | L56: 0 | M56: 0.47 | N56: Key Ideas and Details | O56: 16 | P56: 0.71 | Q56: 11.35 | R56: 5;6;8;9;10;12;13;16;23;24;39;42;43;45;46;50 | S56: Craft and Structure | T56: 26 | U56: 0.65 | V56: 16.98 | W56: 1;2;3;4;7;11;14;17;18;19;26;27;28;29;30;31;32;34;36;37;38;41;47;48;52;53 | X56: Integration of Knowledge and Ideas | Y56: 10 | Z56: 0.53 | AA56: 5.26 | AB56: 15;25;35;44;49;51;54;55;56;57 | AG56: 15;25;35;44;49;51;54;55;56;57
A57: 03 Reading Mid-Year 2014 - Grade 3 ELA | B57: 881 | C57: 0881 0881 - Comstock Elementary | D57: 91 | E57: 52 | F57: 54.06 | G57: 28.11 | H57: 65 | I57: 0 | J57: 26 | K57: 0.71 | L57: 0 | M57: 0.29 | N57: Key Ideas and Details | O57: 16 | P57: 0.57 | Q57: 9.04 | R57: 5;6;8;9;10;12;13;16;23;24;39;42;43;45;46;50 | S57: Craft and Structure | T57: 26 | U57: 0.56 | V57: 14.54 | W57: 1;2;3;4;7;11;14;17;18;19;26;27;28;29;30;31;32;34;36;37;38;41;47;48;52;53 | X57: Integration of Knowledge and Ideas | Y57: 10 | Z57: 0.45 | AA57: 4.53 | AB57: 15;25;35;44;49;51;54;55;56;57 | AG57: 15;25;35;44;49;51;54;55;56;57
A58: 03 Reading Mid-Year 2014 - Grade 3 ELA | B58: 950 | C58: 0950 0950 - Aventura City Of Excellence | D58: 106 | E58: 52 | F58: 72.3 | G58: 37.59 | H58: 34 | I58: 0 | J58: 72 | K58: 0.32 | L58: 0 | M58: 0.68 | N58: Key Ideas and Details | O58: 16 | P58: 0.72 | Q58: 11.44 | R58: 5;6;8;9;10;12;13;16;23;24;39;42;43;45;46;50 | S58: Craft and Structure | T58: 26 | U58: 0.76 | V58: 19.78 | W58: 1;2;3;4;7;11;14;17;18;19;26;27;28;29;30;31;32;34;36;37;38;41;47;48;52;53 | X58: Integration of Knowledge and Ideas | Y58: 10 | Z58: 0.64 | AA58: 6.37 | AB58: 15;25;35;44;49;51;54;55;56;57 | AG58: 15;25;35;44;49;51;54;55;56;57
A59: 03 Reading Mid-Year 2014 - Grade 3 ELA | B59: 961 | C59: 0961 0961 - Coral Gables Preparatory Acad | D59: 77 | E59: 52 | F59: 78.5 | G59: 40.82 | H59: 10 | I59: 0 | J59: 67 | K59: 0.13 | L59: 0 | M59: 0.87 | N59: Key Ideas and Details | O59: 16 | P59: 0.8 | Q59: 12.79 | R59: 5;6;8;9;10;12;13;16;23;24;39;42;43;45;46;50 | S59: Craft and Structure | T59: 26 | U59: 0.82 | V59: 21.31 | W59: 1;2;3;4;7;11;14;17;18;19;26;27;28;29;30;31;32;34;36;37;38;41;47;48;52;53 | X59: Integration of Knowledge and Ideas | Y59: 10 | Z59: 0.67 | AA59: 6.71 | AB59: 15;25;35;44;49;51;54;55;56;57 | AG59: 15;25;35;44;49;51;54;55;56;57
A60: 03 Reading Mid-Year 2014 - Grade 3 ELA | B60: 1001 | C60: 1001 1001 - Coral Park Elementary | D60: 177 | E60: 52 | F60: 70.34 | G60: 36.58 | H60: 64 | I60: 0 | J60: 113 | K60: 0.36 | L60: 0 | M60: 0.64 | N60: Key Ideas and Details | O60: 16 | P60: 0.72 | Q60: 11.47 | R60: 5;6;8;9;10;12;13;16;23;24;39;42;43;45;46;50 | S60: Craft and Structure | T60: 26 | U60: 0.72 | V60: 18.84 | W60: 1;2;3;4;7;11;14;17;18;19;26;27;28;29;30;31;32;34;36;37;38;41;47;48;52;53 | X60: Integration of Knowledge and Ideas | Y60: 10 | Z60: 0.63 | AA60: 6.26 | AB60: 15;25;35;44;49;51;54;55;56;57 | AG60: 15;25;35;44;49;51;54;55;56;57
A61: 03 Reading Mid-Year 2014 - Grade 3 ELA | B61: 1010 | C61: 1010 1010 - Charter School At Waterstone | D61: 232 | E61: 52 | F61: 67.8 | G61: 35.26 | H61: 91 | I61: 0 | J61: 141 | K61: 0.39 | L61: 0 | M61: 0.61 | N61: Key Ideas and Details | O61: 16 | P61: 0.73 | Q61: 11.64 | R61: 5;6;8;9;10;12;13;16;23;24;39;42;43;45;46;50 | S61: Craft and Structure | T61: 26 | U61: 0.68 | V61: 17.66 | W61: 1;2;3;4;7;11;14;17;18;19;26;27;28;29;30;31;32;34;36;37;38;41;47;48;52;53 | X61: Integration of Knowledge and Ideas | Y61: 10 | Z61: 0.6 | AA61: 5.95 | AB61: 15;25;35;44;49;51;54;55;56;57 | AG61: 15;25;35;44;49;51;54;55;56;57
A62: 03 Reading Mid-Year 2014 - Grade 3 ELA | B62: 1014 | C62: 1014 1014 - Hive Preparatory School | D62: 106 | E62: 52 | F62: 68.98 | G62: 35.87 | H62: 44 | I62: 0 | J62: 62 | K62: 0.42 | L62: 0 | M62: 0.58 | N62: Key Ideas and Details | O62: 16 | P62: 0.71 | Q62: 11.4 | R62: 5;6;8;9;10;12;13;16;23;24;39;42;43;45;46;50 | S62: Craft and Structure | T62: 26 | U62: 0.72 | V62: 18.63 | W62: 1;2;3;4;7;11;14;17;18;19;26;27;28;29;30;31;32;34;36;37;38;41;47;48;52;53 | X62: Integration of Knowledge and Ideas | Y62: 10 | Z62: 0.58 | AA62: 5.84 | AB62: 15;25;35;44;49;51;54;55;56;57 | AG62: 15;25;35;44;49;51;54;55;56;57
A63: 03 Reading Mid-Year 2014 - Grade 3 ELA | B63: 1017 | C63: 1017 1017 - Mater Academy Of Intl Studies | D63: 110 | E63: 52 | F63: 60.75 | G63: 31.59 | H63: 63 | I63: 0 | J63: 47 | K63: 0.57 | L63: 0 | M63: 0.43 | N63: Key Ideas and Details | O63: 16 | P63: 0.63 | Q63: 10.06 | R63: 5;6;8;9;10;12;13;16;23;24;39;42;43;45;46;50 | S63: Craft and Structure | T63: 26 | U63: 0.62 | V63: 16.22 | W63: 1;2;3;4;7;11;14;17;18;19;26;27;28;29;30;31;32;34;36;37;38;41;47;48;52;53 | X63: Integration of Knowledge and Ideas | Y63: 10 | Z63: 0.53 | AA63: 5.31 | AB63: 15;25;35;44;49;51;54;55;56;57 | AG63: 15;25;35;44;49;51;54;55;56;57
A64: 03 Reading Mid-Year 2014 - Grade 3 ELA | B64: 1020 | C64: 1020 1020 - Youth Co-Op Charter School | D64: 82 | E64: 52 | F64: 60.81 | G64: 31.62 | H64: 47 | I64: 0 | J64: 35 | K64: 0.57 | L64: 0 | M64: 0.43 | N64: Key Ideas and Details | O64: 16 | P64: 0.65 | Q64: 10.35 | R64: 5;6;8;9;10;12;13;16;23;24;39;42;43;45;46;50 | S64: Craft and Structure | T64: 26 | U64: 0.62 | V64: 16.18 | W64: 1;2;3;4;7;11;14;17;18;19;26;27;28;29;30;31;32;34;36;37;38;41;47;48;52;53 | X64: Integration of Knowledge and Ideas | Y64: 10 | Z64: 0.51 | AA64: 5.09 | AB64: 15;25;35;44;49;51;54;55;56;57 | AG64: 15;25;35;44;49;51;54;55;56;57
A65: 03 Reading Mid-Year 2014 - Grade 3 ELA | B65: 1041 | C65: 1041 1041 - Coral Reef Elementary | D65: 103 | E65: 52 | F65: 73.84 | G65: 38.4 | H65: 29 | I65: 0 | J65: 74 | K65: 0.28 | L65: 0 | M65: 0.72 | N65: Key Ideas and Details | O65: 16 | P65: 0.77 | Q65: 12.36 | R65: 5;6;8;9;10;12;13;16;23;24;39;42;43;45;46;50 | S65: Craft and Structure | T65: 26 | U65: 0.76 | V65: 19.79 | W65: 1;2;3;4;7;11;14;17;18;19;26;27;28;29;30;31;32;34;36;37;38;41;47;48;52;53 | X65: Integration of Knowledge and Ideas | Y65: 10 | Z65: 0.63 | AA65: 6.25 | AB65: 15;25;35;44;49;51;54;55;56;57 | AG65: 15;25;35;44;49;51;54;55;56;57
A66: 03 Reading Mid-Year 2014 - Grade 3 ELA | B66: 1081 | C66: 1081 1081 - Coral Terrace Elementary | D66: 70 | E66: 52 | F66: 55.88 | G66: 29.06 | H66: 47 | I66: 0 | J66: 23 | K66: 0.67 | L66: 0 | M66: 0.33 | N66: Key Ideas and Details | O66: 16 | P66: 0.61 | Q66: 9.67 | R66: 5;6;8;9;10;12;13;16;23;24;39;42;43;45;46;50 | S66: Craft and Structure | T66: 26 | U66: 0.56 | V66: 14.47 | W66: 1;2;3;4;7;11;14;17;18;19;26;27;28;29;30;31;32;34;36;37;38;41;47;48;52;53 | X66: Integration of Knowledge and Ideas | Y66: 10 | Z66: 0.49 | AA66: 4.91 | AB66: 15;25;35;44;49;51;54;55;56;57 | AG66: 15;25;35;44;49;51;54;55;56;57
A67: 03 Reading Mid-Year 2014 - Grade 3 ELA | B67: 1121 | C67: 1121 1121 - Coral Way K-8 Center | D67: 159 | E67: 52 | F67: 63.44 | G67: 32.99 | H67: 82 | I67: 0 | J67: 77 | K67: 0.52 | L67: 0 | M67: 0.48 | N67: Key Ideas and Details | O67: 16 | P67: 0.66 | Q67: 10.6 | R67: 5;6;8;9;10;12;13;16;23;24;39;42;43;45;46;50 | S67: Craft and Structure | T67: 26 | U67: 0.65 | V67: 17.01 | W67: 1;2;3;4;7;11;14;17;18;19;26;27;28;29;30;31;32;34;36;37;38;41;47;48;52;53 | X67: Integration of Knowledge and Ideas | Y67: 10 | Z67: 0.54 | AA67: 5.37 | AB67: 15;25;35;44;49;51;54;55;56;57 | AG67: 15;25;35;44;49;51;54;55;56;57
A68: 03 Reading Mid-Year 2014 - Grade 3 ELA | B68: 1161 | C68: 1161 1161 - Crestview Elementary | D68: 63 | E68: 52 | F68: 54.55 | G68: 28.37 | H68: 55 | I68: 0 | J68: 8 | K68: 0.87 | L68: 0 | M68: 0.13 | N68: Key Ideas and Details | O68: 16 | P68: 0.61 | Q68: 9.76 | R68: 5;6;8;9;10;12;13;16;23;24;39;42;43;45;46;50 | S68: Craft and Structure | T68: 26 | U68: 0.54 | V68: 14.16 | W68: 1;2;3;4;7;11;14;17;18;19;26;27;28;29;30;31;32;34;36;37;38;41;47;48;52;53 | X68: Integration of Knowledge and Ideas | Y68: 10 | Z68: 0.44 | AA68: 4.44 | AB68: 15;25;35;44;49;51;54;55;56;57 | AG68: 15;25;35;44;49;51;54;55;56;57
A69: 03 Reading Mid-Year 2014 - Grade 3 ELA | B69: 1241 | C69: 1241 1241 - Cutler Ridge Elementary | D69: 91 | E69: 52 | F69: 60.97 | G69: 31.7 | H69: 51 | I69: 0 | J69: 40 | K69: 0.56 | L69: 0 | M69: 0.44 | N69: Key Ideas and Details | O69: 16 | P69: 0.63 | Q69: 10.12 | R69: 5;6;8;9;10;12;13;16;23;24;39;42;43;45;46;50 | S69: Craft and Structure | T69: 26 | U69: 0.63 | V69: 16.32 | W69: 1;2;3;4;7;11;14;17;18;19;26;27;28;29;30;31;32;34;36;37;38;41;47;48;52;53 | X69: Integration of Knowledge and Ideas | Y69: 10 | Z69: 0.53 | AA69: 5.26 | AB69: 15;25;35;44;49;51;54;55;56;57 | AG69: 15;25;35;44;49;51;54;55;56;57
A70: 03 Reading Mid-Year 2014 - Grade 3 ELA | B70: 1281 | C70: 1281 1281 - Cypress Elementary | D70: 58 | E70: 52 | F70: 67.27 | G70: 34.98 | H70: 24 | I70: 0 | J70: 34 | K70: 0.41 | L70: 0 | M70: 0.59 | N70: Key Ideas and Details | O70: 16 | P70: 0.7 | Q70: 11.14 | R70: 5;6;8;9;10;12;13;16;23;24;39;42;43;45;46;50 | S70: Craft and Structure | T70: 26 | U70: 0.71 | V70: 18.4 | W70: 1;2;3;4;7;11;14;17;18;19;26;27;28;29;30;31;32;34;36;37;38;41;47;48;52;53 | X70: Integration of Knowledge and Ideas | Y70: 10 | Z70: 0.54 | AA70: 5.45 | AB70: 15;25;35;44;49;51;54;55;56;57 | AG70: 15;25;35;44;49;51;54;55;56;57
A71: 03 Reading Mid-Year 2014 - Grade 3 ELA | B71: 1331 | C71: 1331 1331 - Devon Aire K-8 Center | D71: 181 | E71: 52 | F71: 75.12 | G71: 39.06 | H71: 43 | I71: 0 | J71: 138 | K71: 0.24 | L71: 0 | M71: 0.76 | N71: Key Ideas and Details | O71: 16 | P71: 0.77 | Q71: 12.33 | R71: 5;6;8;9;10;12;13;16;23;24;39;42;43;45;46;50 | S71: Craft and Structure | T71: 26 | U71: 0.77 | V71: 20.14 | W71: 1;2;3;4;7;11;14;17;18;19;26;27;28;29;30;31;32;34;36;37;38;41;47;48;52;53 | X71: Integration of Knowledge and Ideas | Y71: 10 | Z71: 0.66 | AA71: 6.59 | AB71: 15;25;35;44;49;51;54;55;56;57 | AG71: 15;25;35;44;49;51;54;55;56;57
A72: 03 Reading Mid-Year 2014 - Grade 3 ELA | B72: 1361 | C72: 1361 1361 - Frederick Douglass Elementary | D72: 28 | E72: 52 | F72: 55.63 | G72: 28.93 | H72: 17 | I72: 0 | J72: 11 | K72: 0.61 | L72: 0 | M72: 0.39 | N72: Key Ideas and Details | O72: 16 | P72: 0.61 | Q72: 9.71 | R72: 5;6;8;9;10;12;13;16;23;24;39;42;43;45;46;50 | S72: Craft and Structure | T72: 26 | U72: 0.55 | V72: 14.39 | W72: 1;2;3;4;7;11;14;17;18;19;26;27;28;29;30;31;32;34;36;37;38;41;47;48;52;53 | X72: Integration of Knowledge and Ideas | Y72: 10 | Z72: 0.48 | AA72: 4.82 | AB72: 15;25;35;44;49;51;54;55;56;57 | AG72: 15;25;35;44;49;51;54;55;56;57
A73: 03 Reading Mid-Year 2014 - Grade 3 ELA | B73: 1371 | C73: 1371 1371 - Marjory Stoneman Douglas Elem | D73: 176 | E73: 52 | F73: 65.73 | G73: 34.18 | H73: 91 | I73: 0 | J73: 85 | K73: 0.52 | L73: 0 | M73: 0.48 | N73: Key Ideas and Details | O73: 16 | P73: 0.7 | Q73: 11.26 | R73: 5;6;8;9;10;12;13;16;23;24;39;42;43;45;46;50 | S73: Craft and Structure | T73: 26 | U73: 0.66 | V73: 17.28 | W73: 1;2;3;4;7;11;14;17;18;19;26;27;28;29;30;31;32;34;36;37;38;41;47;48;52;53 | X73: Integration of Knowledge and Ideas | Y73: 10 | Z73: 0.56 | AA73: 5.64 | AB73: 15;25;35;44;49;51;54;55;56;57 | AG73: 15;25;35;44;49;51;54;55;56;57
A74: 03 Reading Mid-Year 2014 - Grade 3 ELA | B74: 1401 | C74: 1401 1401 - Charles R. Drew K-8 Center | D74: 42 | E74: 52 | F74: 49.04 | G74: 25.5 | H74: 33 | I74: 0 | J74: 9 | K74: 0.79 | L74: 0 | M74: 0.21 | N74: Key Ideas and Details | O74: 16 | P74: 0.56 | Q74: 8.95 | R74: 5;6;8;9;10;12;13;16;23;24;39;42;43;45;46;50 | S74: Craft and Structure | T74: 26 | U74: 0.49 | V74: 12.67 | W74: 1;2;3;4;7;11;14;17;18;19;26;27;28;29;30;31;32;34;36;37;38;41;47;48;52;53 | X74: Integration of Knowledge and Ideas | Y74: 10 | Z74: 0.39 | AA74: 3.88 | AB74: 15;25;35;44;49;51;54;55;56;57 | AG74: 15;25;35;44;49;51;54;55;56;57
A75: 03 Reading Mid-Year 2014 - Grade 3 ELA | B75: 1441 | C75: 1441 1441 - Paul Laurence Dunbar K-8 Ctr | D75: 53 | E75: 52 | F75: 50.07 | G75: 26.04 | H75: 44 | I75: 0 | J75: 9 | K75: 0.83 | L75: 0 | M75: 0.17 | N75: Key Ideas and Details | O75: 16 | P75: 0.55 | Q75: 8.75 | R75: 5;6;8;9;10;12;13;16;23;24;39;42;43;45;46;50 | S75: Craft and Structure | T75: 26 | U75: 0.49 | V75: 12.85 | W75: 1;2;3;4;7;11;14;17;18;19;26;27;28;29;30;31;32;34;36;37;38;41;47;48;52;53 | X75: Integration of Knowledge and Ideas | Y75: 10 | Z75: 0.44 | AA75: 4.43 | AB75: 15;25;35;44;49;51;54;55;56;57 | AG75: 15;25;35;44;49;51;54;55;56;57
A76: 03 Reading Mid-Year 2014 - Grade 3 ELA | B76: 1481 | C76: 1481 1481 - John G. Dupuis Elementary | D76: 110 | E76: 52 | F76: 65.49 | G76: 34.05 | H76: 48 | I76: 0 | J76: 62 | K76: 0.44 | L76: 0 | M76: 0.56 | N76: Key Ideas and Details | O76: 16 | P76: 0.71 | Q76: 11.33 | R76: 5;6;8;9;10;12;13;16;23;24;39;42;43;45;46;50 | S76: Craft and Structure | T76: 26 | U76: 0.67 | V76: 17.44 | W76: 1;2;3;4;7;11;14;17;18;19;26;27;28;29;30;31;32;34;36;37;38;41;47;48;52;53 | X76: Integration of Knowledge and Ideas | Y76: 10 | Z76: 0.53 | AA76: 5.29 | AB76: 15;25;35;44;49;51;54;55;56;57 | AG76: 15;25;35;44;49;51;54;55;56;57
A77: 03 Reading Mid-Year 2014 - Grade 3 ELA | B77: 1521 | C77: 1521 1521 - Amelia Earhart Elementary | D77: 64 | E77: 52 | F77: 53.64 | G77: 27.89 | H77: 43 | I77: 0 | J77: 21 | K77: 0.67 | L77: 0 | M77: 0.33 | N77: Key Ideas and Details | O77: 16 | P77: 0.56 | Q77: 8.98 | R77: 5;6;8;9;10;12;13;16;23;24;39;42;43;45;46;50 | S77: Craft and Structure | T77: 26 | U77: 0.55 | V77: 14.42 | W77: 1;2;3;4;7;11;14;17;18;19;26;27;28;29;30;31;32;34;36;37;38;41;47;48;52;53 | X77: Integration of Knowledge and Ideas | Y77: 10 | Z77: 0.45 | AA77: 4.48 | AB77: 15;25;35;44;49;51;54;55;56;57 | AG77: 15;25;35;44;49;51;54;55;56;57
A78: 03 Reading Mid-Year 2014 - Grade 3 ELA | B78: 1561 | C78: 1561 1561 - Earlington Heights Elementary | D78: 82 | E78: 52 | F78: 50.94 | G78: 26.49 | H78: 66 | I78: 0 | J78: 16 | K78: 0.8 | L78: 0 | M78: 0.2 | N78: Key Ideas and Details | O78: 16 | P78: 0.55 | Q78: 8.72 | R78: 5;6;8;9;10;12;13;16;23;24;39;42;43;45;46;50 | S78: Craft and Structure | T78: 26 | U78: 0.51 | V78: 13.13 | W78: 1;2;3;4;7;11;14;17;18;19;26;27;28;29;30;31;32;34;36;37;38;41;47;48;52;53 | X78: Integration of Knowledge and Ideas | Y78: 10 | Z78: 0.46 | AA78: 4.63 | AB78: 15;25;35;44;49;51;54;55;56;57 | AG78: 15;25;35;44;49;51;54;55;56;57
A79: 03 Reading Mid-Year 2014 - Grade 3 ELA | B79: 1601 | C79: 1601 1601 - Edison Park K-8 Center | D79: 61 | E79: 52 | F79: 47.89 | G79: 24.9 | H79: 55 | I79: 0 | J79: 6 | K79: 0.9 | L79: 0 | M79: 0.1 | N79: Key Ideas and Details | O79: 16 | P79: 0.53 | Q79: 8.41 | R79: 5;6;8;9;10;12;13;16;23;24;39;42;43;45;46;50 | S79: Craft and Structure | T79: 26 | U79: 0.47 | V79: 12.11 | W79: 1;2;3;4;7;11;14;17;18;19;26;27;28;29;30;31;32;34;36;37;38;41;47;48;52;53 | X79: Integration of Knowledge and Ideas | Y79: 10 | Z79: 0.44 | AA79: 4.38 | AB79: 15;25;35;44;49;51;54;55;56;57 | AG79: 15;25;35;44;49;51;54;55;56;57
A80: 03 Reading Mid-Year 2014 - Grade 3 ELA | B80: 1641 | C80: 1641 1641 - Emerson Elementary | D80: 71 | E80: 52 | F80: 57.85 | G80: 30.08 | H80: 41 | I80: 0 | J80: 30 | K80: 0.58 | L80: 0 | M80: 0.42 | N80: Key Ideas and Details | O80: 16 | P80: 0.61 | Q80: 9.82 | R80: 5;6;8;9;10;12;13;16;23;24;39;42;43;45;46;50 | S80: Craft and Structure | T80: 26 | U80: 0.59 | V80: 15.35 | W80: 1;2;3;4;7;11;14;17;18;19;26;27;28;29;30;31;32;34;36;37;38;41;47;48;52;53 | X80: Integration of Knowledge and Ideas | Y80: 10 | Z80: 0.49 | AA80: 4.92 | AB80: 15;25;35;44;49;51;54;55;56;57 | AG80: 15;25;35;44;49;51;54;55;56;57
A81: 03 Reading Mid-Year 2014 - Grade 3 ELA | B81: 1681 | C81: 1681 1681 - Lillie C. Evans K-8 Center | D81: 48 | E81: 52 | F81: 50.48 | G81: 26.25 | H81: 40 | I81: 0 | J81: 8 | K81: 0.83 | L81: 0 | M81: 0.17 | N81: Key Ideas and Details | O81: 16 | P81: 0.58 | Q81: 9.27 | R81: 5;6;8;9;10;12;13;16;23;24;39;42;43;45;46;50 | S81: Craft and Structure | T81: 26 | U81: 0.51 | V81: 13.13 | W81: 1;2;3;4;7;11;14;17;18;19;26;27;28;29;30;31;32;34;36;37;38;41;47;48;52;53 | X81: Integration of Knowledge and Ideas | Y81: 10 | Z81: 0.39 | AA81: 3.85 | AB81: 15;25;35;44;49;51;54;55;56;57 | AG81: 15;25;35;44;49;51;54;55;56;57
A82: 03 Reading Mid-Year 2014 - Grade 3 ELA | B82: 1691 | C82: 1691 1691 - Christina M. Eve Elementary | D82: 127 | E82: 52 | F82: 69.4 | G82: 36.09 | H82: 45 | I82: 0 | J82: 82 | K82: 0.35 | L82: 0 | M82: 0.65 | N82: Key Ideas and Details | O82: 16 | P82: 0.73 | Q82: 11.7 | R82: 5;6;8;9;10;12;13;16;23;24;39;42;43;45;46;50 | S82: Craft and Structure | T82: 26 | U82: 0.71 | V82: 18.57 | W82: 1;2;3;4;7;11;14;17;18;19;26;27;28;29;30;31;32;34;36;37;38;41;47;48;52;53 | X82: Integration of Knowledge and Ideas | Y82: 10 | Z82: 0.58 | AA82: 5.82 | AB82: 15;25;35;44;49;51;54;55;56;57 | AG82: 15;25;35;44;49;51;54;55;56;57
A83: 03 Reading Mid-Year 2014 - Grade 3 ELA | B83: 1721 | C83: 1721 1721 - Everglades K-8 Center | D83: 135 | E83: 52 | F83: 70.47 | G83: 36.64 | H83: 49 | I83: 0 | J83: 86 | K83: 0.36 | L83: 0 | M83: 0.64 | N83: Key Ideas and Details | O83: 16 | P83: 0.74 | Q83: 11.81 | R83: 5;6;8;9;10;12;13;16;23;24;39;42;43;45;46;50 | S83: Craft and Structure | T83: 26 | U83: 0.73 | V83: 18.9 | W83: 1;2;3;4;7;11;14;17;18;19;26;27;28;29;30;31;32;34;36;37;38;41;47;48;52;53 | X83: Integration of Knowledge and Ideas | Y83: 10 | Z83: 0.59 | AA83: 5.94 | AB83: 15;25;35;44;49;51;54;55;56;57 | AG83: 15;25;35;44;49;51;54;55;56;57
A84: 03 Reading Mid-Year 2014 - Grade 3 ELA | B84: 1761 | C84: 1761 1761 - David Fairchild Elementary | D84: 99 | E84: 52 | F84: 73.99 | G84: 38.47 | H84: 21 | I84: 0 | J84: 78 | K84: 0.21 | L84: 0 | M84: 0.79 | N84: Key Ideas and Details | O84: 16 | P84: 0.77 | Q84: 12.22 | R84: 5;6;8;9;10;12;13;16;23;24;39;42;43;45;46;50 | S84: Craft and Structure | T84: 26 | U84: 0.76 | V84: 19.8 | W84: 1;2;3;4;7;11;14;17;18;19;26;27;28;29;30;31;32;34;36;37;38;41;47;48;52;53 | X84: Integration of Knowledge and Ideas | Y84: 10 | Z84: 0.65 | AA84: 6.45 | AB84: 15;25;35;44;49;51;54;55;56;57 | AG84: 15;25;35;44;49;51;54;55;56;57
A85: 03 Reading Mid-Year 2014 - Grade 3 ELA | B85: 1801 | C85: 1801 1801 - Fairlawn Elementary | D85: 115 | E85: 52 | F85: 66.94 | G85: 34.81 | H85: 50 | I85: 0 | J85: 65 | K85: 0.43 | L85: 0 | M85: 0.57 | N85: Key Ideas and Details | O85: 16 | P85: 0.72 | Q85: 11.45 | R85: 5;6;8;9;10;12;13;16;23;24;39;42;43;45;46;50 | S85: Craft and Structure | T85: 26 | U85: 0.68 | V85: 17.7 | W85: 1;2;3;4;7;11;14;17;18;19;26;27;28;29;30;31;32;34;36;37;38;41;47;48;52;53 | X85: Integration of Knowledge and Ideas | Y85: 10 | Z85: 0.57 | AA85: 5.65 | AB85: 15;25;35;44;49;51;54;55;56;57 | AG85: 15;25;35;44;49;51;54;55;56;57
A86: 03 Reading Mid-Year 2014 - Grade 3 ELA | B86: 1811 | C86: 1811 1811 - Dante B. Fascell Elementary | D86: 87 | E86: 52 | F86: 65.34 | G86: 33.98 | H86: 41 | I86: 0 | J86: 46 | K86: 0.47 | L86: 0 | M86: 0.53 | N86: Key Ideas and Details | O86: 16 | P86: 0.69 | Q86: 11.08 | R86: 5;6;8;9;10;12;13;16;23;24;39;42;43;45;46;50 | S86: Craft and Structure | T86: 26 | U86: 0.67 | V86: 17.34 | W86: 1;2;3;4;7;11;14;17;18;19;26;27;28;29;30;31;32;34;36;37;38;41;47;48;52;53 | X86: Integration of Knowledge and Ideas | Y86: 10 | Z86: 0.56 | AA86: 5.55 | AB86: 15;25;35;44;49;51;54;55;56;57 | AG86: 15;25;35;44;49;51;54;55;56;57
A87: 03 Reading Mid-Year 2014 - Grade 3 ELA | B87: 1841 | C87: 1841 1841 - Flagami Elementary | D87: 72 | E87: 52 | F87: 61.43 | G87: 31.94 | H87: 39 | I87: 0 | J87: 33 | K87: 0.54 | L87: 0 | M87: 0.46 | N87: Key Ideas and Details | O87: 16 | P87: 0.65 | Q87: 10.32 | R87: 5;6;8;9;10;12;13;16;23;24;39;42;43;45;46;50 | S87: Craft and Structure | T87: 26 | U87: 0.63 | V87: 16.4 | W87: 1;2;3;4;7;11;14;17;18;19;26;27;28;29;30;31;32;34;36;37;38;41;47;48;52;53 | X87: Integration of Knowledge and Ideas | Y87: 10 | Z87: 0.52 | AA87: 5.22 | AB87: 15;25;35;44;49;51;54;55;56;57 | AG87: 15;25;35;44;49;51;54;55;56;57
A88: 03 Reading Mid-Year 2014 - Grade 3 ELA | B88: 1881 | C88: 1881 1881 - Henry M. Flagler Elementary | D88: 110 | E88: 52 | F88: 58.15 | G88: 30.24 | H88: 62 | I88: 0 | J88: 48 | K88: 0.56 | L88: 0 | M88: 0.44 | N88: Key Ideas and Details | O88: 16 | P88: 0.62 | Q88: 9.95 | R88: 5;6;8;9;10;12;13;16;23;24;39;42;43;45;46;50 | S88: Craft and Structure | T88: 26 | U88: 0.59 | V88: 15.27 | W88: 1;2;3;4;7;11;14;17;18;19;26;27;28;29;30;31;32;34;36;37;38;41;47;48;52;53 | X88: Integration of Knowledge and Ideas | Y88: 10 | Z88: 0.5 | AA88: 5.02 | AB88: 15;25;35;44;49;51;54;55;56;57 | AG88: 15;25;35;44;49;51;54;55;56;57
A89: 03 Reading Mid-Year 2014 - Grade 3 ELA | B89: 1921 | C89: 1921 1921 - Flamingo Elementary | D89: 119 | E89: 52 | F89: 53.78 | G89: 27.97 | H89: 89 | I89: 0 | J89: 30 | K89: 0.75 | L89: 0 | M89: 0.25 | N89: Key Ideas and Details | O89: 16 | P89: 0.58 | Q89: 9.2 | R89: 5;6;8;9;10;12;13;16;23;24;39;42;43;45;46;50 | S89: Craft and Structure | T89: 26 | U89: 0.55 | V89: 14.2 | W89: 1;2;3;4;7;11;14;17;18;19;26;27;28;29;30;31;32;34;36;37;38;41;47;48;52;53 | X89: Integration of Knowledge and Ideas | Y89: 10 | Z89: 0.46 | AA89: 4.56 | AB89: 15;25;35;44;49;51;54;55;56;57 | AG89: 15;25;35;44;49;51;54;55;56;57
A90: 03 Reading Mid-Year 2014 - Grade 3 ELA | B90: 2001 | C90: 2001 2001 - Florida City Elementary | D90: 131 | E90: 52 | F90: 55.02 | G90: 28.61 | H90: 91 | I90: 0 | J90: 40 | K90: 0.69 | L90: 0 | M90: 0.31 | N90: Key Ideas and Details | O90: 16 | P90: 0.6 | Q90: 9.5 | R90: 5;6;8;9;10;12;13;16;23;24;39;42;43;45;46;50 | S90: Craft and Structure | T90: 26 | U90: 0.55 | V90: 14.31 | W90: 1;2;3;4;7;11;14;17;18;19;26;27;28;29;30;31;32;34;36;37;38;41;47;48;52;53 | X90: Integration of Knowledge and Ideas | Y90: 10 | Z90: 0.48 | AA90: 4.8 | AB90: 15;25;35;44;49;51;54;55;56;57 | AG90: 15;25;35;44;49;51;54;55;56;57
A91: 03 Reading Mid-Year 2014 - Grade 3 ELA | B91: 2003 | C91: 2003 2003 - Bridgeprep Academy South | D91: 42 | E91: 52 | F91: 70.01 | G91: 36.4 | H91: 15 | I91: 0 | J91: 27 | K91: 0.36 | L91: 0 | M91: 0.64 | N91: Key Ideas and Details | O91: 16 | P91: 0.72 | Q91: 11.57 | R91: 5;6;8;9;10;12;13;16;23;24;39;42;43;45;46;50 | S91: Craft and Structure | T91: 26 | U91: 0.71 | V91: 18.5 | W91: 1;2;3;4;7;11;14;17;18;19;26;27;28;29;30;31;32;34;36;37;38;41;47;48;52;53 | X91: Integration of Knowledge and Ideas | Y91: 10 | Z91: 0.63 | AA91: 6.33 | AB91: 15;25;35;44;49;51;54;55;56;57 | AG91: 15;25;35;44;49;51;54;55;56;57
A92: 03 Reading Mid-Year 2014 - Grade 3 ELA | B92: 2006 | C92: 2006 2006 - Richard Allen Leadership Acad | D92: 5 | E92: 52 | F92: 58.85 | G92: 30.6 | H92: 3 | I92: 0 | J92: 2 | K92: 0.6 | L92: 0 | M92: 0.4 | N92: Key Ideas and Details | O92: 16 | P92: 0.67 | Q92: 10.8 | R92: 5;6;8;9;10;12;13;16;23;24;39;42;43;45;46;50 | S92: Craft and Structure | T92: 26 | U92: 0.56 | V92: 14.6 | W92: 1;2;3;4;7;11;14;17;18;19;26;27;28;29;30;31;32;34;36;37;38;41;47;48;52;53 | X92: Integration of Knowledge and Ideas | Y92: 10 | Z92: 0.52 | AA92: 5.2 | AB92: 15;25;35;44;49;51;54;55;56;57 | AG92: 15;25;35;44;49;51;54;55;56;57
A93: 03 Reading Mid-Year 2014 - Grade 3 ELA | B93: 2007 | C93: 2007 2007 - Somerset Academy Elementary | D93: 76 | E93: 52 | F93: 75.84 | G93: 39.43 | H93: 17 | I93: 0 | J93: 59 | K93: 0.22 | L93: 0 | M93: 0.78 | N93: Key Ideas and Details | O93: 16 | P93: 0.79 | Q93: 12.64 | R93: 5;6;8;9;10;12;13;16;23;24;39;42;43;45;46;50 | S93: Craft and Structure | T93: 26 | U93: 0.77 | V93: 20.09 | W93: 1;2;3;4;7;11;14;17;18;19;26;27;28;29;30;31;32;34;36;37;38;41;47;48;52;53 | X93: Integration of Knowledge and Ideas | Y93: 10 | Z93: 0.67 | AA93: 6.7 | AB93: 15;25;35;44;49;51;54;55;56;57 | AG93: 15;25;35;44;49;51;54;55;56;57
A94: 03 Reading Mid-Year 2014 - Grade 3 ELA | B94: 2012 | C94: 2012 2012 - Somerset Arts Academy | D94: 68 | E94: 52 | F94: 63.8 | G94: 33.18 | H94: 38 | I94: 0 | J94: 30 | K94: 0.56 | L94: 0 | M94: 0.44 | N94: Key Ideas and Details | O94: 16 | P94: 0.67 | Q94: 10.65 | R94: 5;6;8;9;10;12;13;16;23;24;39;42;43;45;46;50 | S94: Craft and Structure | T94: 26 | U94: 0.65 | V94: 16.97 | W94: 1;2;3;4;7;11;14;17;18;19;26;27;28;29;30;31;32;34;36;37;38;41;47;48;52;53 | X94: Integration of Knowledge and Ideas | Y94: 10 | Z94: 0.56 | AA94: 5.56 | AB94: 15;25;35;44;49;51;54;55;56;57 | AG94: 15;25;35;44;49;51;54;55;56;57
A95: 03 Reading Mid-Year 2014 - Grade 3 ELA | B95: 2013 | C95: 2013 2013 - Bridgeprep Acad Greater Miami | D95: 72 | E95: 52 | F95: 71.34 | G95: 37.1 | H95: 24 | I95: 0 | J95: 48 | K95: 0.33 | L95: 0 | M95: 0.67 | N95: Key Ideas and Details | O95: 16 | P95: 0.75 | Q95: 11.99 | R95: 5;6;8;9;10;12;13;16;23;24;39;42;43;45;46;50 | S95: Craft and Structure | T95: 26 | U95: 0.73 | V95: 19 | W95: 1;2;3;4;7;11;14;17;18;19;26;27;28;29;30;31;32;34;36;37;38;41;47;48;52;53 | X95: Integration of Knowledge and Ideas | Y95: 10 | Z95: 0.61 | AA95: 6.11 | AB95: 15;25;35;44;49;51;54;55;56;57 | AG95: 15;25;35;44;49;51;54;55;56;57
A96: 03 Reading Mid-Year 2014 - Grade 3 ELA | B96: 2021 | C96: 2021 2021 - Gloria Floyd Elementary | D96: 82 | E96: 52 | F96: 66.89 | G96: 34.78 | H96: 37 | I96: 0 | J96: 45 | K96: 0.45 | L96: 0 | M96: 0.55 | N96: Key Ideas and Details | O96: 16 | P96: 0.69 | Q96: 11.05 | R96: 5;6;8;9;10;12;13;16;23;24;39;42;43;45;46;50 | S96: Craft and Structure | T96: 26 | U96: 0.7 | V96: 18.07 | W96: 1;2;3;4;7;11;14;17;18;19;26;27;28;29;30;31;32;34;36;37;38;41;47;48;52;53 | X96: Integration of Knowledge and Ideas | Y96: 10 | Z96: 0.57 | AA96: 5.66 | AB96: 15;25;35;44;49;51;54;55;56;57 | AG96: 15;25;35;44;49;51;54;55;56;57
A97: 03 Reading Mid-Year 2014 - Grade 3 ELA | B97: 2041 | C97: 2041 2041 - Benjamin Franklin K-8 Center | D97: 84 | E97: 52 | F97: 55.54 | G97: 28.88 | H97: 57 | I97: 0 | J97: 27 | K97: 0.68 | L97: 0 | M97: 0.32 | N97: Key Ideas and Details | O97: 16 | P97: 0.6 | Q97: 9.51 | R97: 5;6;8;9;10;12;13;16;23;24;39;42;43;45;46;50 | S97: Craft and Structure | T97: 26 | U97: 0.56 | V97: 14.57 | W97: 1;2;3;4;7;11;14;17;18;19;26;27;28;29;30;31;32;34;36;37;38;41;47;48;52;53 | X97: Integration of Knowledge and Ideas | Y97: 10 | Z97: 0.48 | AA97: 4.8 | AB97: 15;25;35;44;49;51;54;55;56;57 | AG97: 15;25;35;44;49;51;54;55;56;57
A98: 03 Reading Mid-Year 2014 - Grade 3 ELA | B98: 2060 | C98: 2060 2060 - Gibson Charter School | D98: 41 | E98: 52 | F98: 49.53 | G98: 25.76 | H98: 33 | I98: 0 | J98: 8 | K98: 0.8 | L98: 0 | M98: 0.2 | N98: Key Ideas and Details | O98: 16 | P98: 0.56 | Q98: 8.93 | R98: 5;6;8;9;10;12;13;16;23;24;39;42;43;45;46;50 | S98: Craft and Structure | T98: 26 | U98: 0.5 | V98: 12.95 | W98: 1;2;3;4;7;11;14;17;18;19;26;27;28;29;30;31;32;34;36;37;38;41;47;48;52;53 | X98: Integration of Knowledge and Ideas | Y98: 10 | Z98: 0.39 | AA98: 3.88 | AB98: 15;25;35;44;49;51;54;55;56;57 | AG98: 15;25;35;44;49;51;54;55;56;57
A99: 03 Reading Mid-Year 2014 - Grade 3 ELA | B99: 2081 | C99: 2081 2081 - Fulford Elementary | D99: 78 | E99: 52 | F99: 66.07 | G99: 34.36 | H99: 36 | I99: 0 | J99: 42 | K99: 0.46 | L99: 0 | M99: 0.54 | N99: Key Ideas and Details | O99: 16 | P99: 0.7 | Q99: 11.14 | R99: 5;6;8;9;10;12;13;16;23;24;39;42;43;45;46;50 | S99: Craft and Structure | T99: 26 | U99: 0.68 | V99: 17.69 | W99: 1;2;3;4;7;11;14;17;18;19;26;27;28;29;30;31;32;34;36;37;38;41;47;48;52;53 | X99: Integration of Knowledge and Ideas | Y99: 10 | Z99: 0.55 | AA99: 5.53 | AB99: 15;25;35;44;49;51;54;55;56;57 | AG99: 15;25;35;44;49;51;54;55;56;57
A100: 03 Reading Mid-Year 2014 - Grade 3 ELA | B100: 2111 | C100: 2111 2111 - Hialeah Gardens Elementary | D100: 129 | E100: 52 | F100: 70.45 | G100: 36.64 | H100: 40 | I100: 0 | J100: 89 | K100: 0.31 | L100: 0 | M100: 0.69 | N100: Key Ideas and Details | O100: 16 | P100: 0.73 | Q100: 11.61 | R100: 5;6;8;9;10;12;13;16;23;24;39;42;43;45;46;50 | S100: Craft and Structure | T100: 26 | U100: 0.72 | V100: 18.72 | W100: 1;2;3;4;7;11;14;17;18;19;26;27;28;29;30;31;32;34;36;37;38;41;47;48;52;53 | X100: Integration of Knowledge and Ideas | Y100: 10 | Z100: 0.63 | AA100: 6.3 | AB100: 15;25;35;44;49;51;54;55;56;57 | AG100: 15;25;35;44;49;51;54;55;56;57
A101: 03 Reading Mid-Year 2014 - Grade 3 ELA | B101: 2151 | C101: 2151 2151 - Jack D. Gordon Elementary | D101: 174 | E101: 52 | F101: 68.59 | G101: 35.67 | H101: 72 | I101: 0 | J101: 102 | K101: 0.41 | L101: 0 | M101: 0.59 | N101: Key Ideas and Details | O101: 16 | P101: 0.71 | Q101: 11.37 | R101: 5;6;8;9;10;12;13;16;23;24;39;42;43;45;46;50 | S101: Craft and Structure | T101: 26 | U101: 0.7 | V101: 18.26 | W101: 1;2;3;4;7;11;14;17;18;19;26;27;28;29;30;31;32;34;36;37;38;41;47;48;52;53 | X101: Integration of Knowledge and Ideas | Y101: 10 | Z101: 0.6 | AA101: 6.04 | AB101: 15;25;35;44;49;51;54;55;56;57 | AG101: 15;25;35;44;49;51;54;55;56;57
A102: 03 Reading Mid-Year 2014 - Grade 3 ELA | B102: 2161 | C102: 2161 2161 - Golden Glades Elementary | D102: 39 | E102: 52 | F102: 46.5 | G102: 24.18 | H102: 34 | I102: 0 | J102: 5 | K102: 0.87 | L102: 0 | M102: 0.13 | N102: Key Ideas and Details | O102: 16 | P102: 0.5 | Q102: 7.95 | R102: 5;6;8;9;10;12;13;16;23;24;39;42;43;45;46;50 | S102: Craft and Structure | T102: 26 | U102: 0.48 | V102: 12.41 | W102: 1;2;3;4;7;11;14;17;18;19;26;27;28;29;30;31;32;34;36;37;38;41;47;48;52;53 | X102: Integration of Knowledge and Ideas | Y102: 10 | Z102: 0.38 | AA102: 3.82 | AB102: 15;25;35;44;49;51;54;55;56;57 | AG102: 15;25;35;44;49;51;54;55;56;57
A103: 03 Reading Mid-Year 2014 - Grade 3 ELA | B103: 2181 | C103: 2181 2181 - Joella C. Good Elementary | D103: 166 | E103: 52 | F103: 59.73 | G103: 31.06 | H103: 92 | I103: 0 | J103: 74 | K103: 0.55 | L103: 0 | M103: 0.45 | N103: Key Ideas and Details | O103: 16 | P103: 0.63 | Q103: 10.06 | R103: 5;6;8;9;10;12;13;16;23;24;39;42;43;45;46;50 | S103: Craft and Structure | T103: 26 | U103: 0.61 | V103: 15.95 | W103: 1;2;3;4;7;11;14;17;18;19;26;27;28;29;30;31;32;34;36;37;38;41;47;48;52;53 | X103: Integration of Knowledge and Ideas | Y103: 10 | Z103: 0.5 | AA103: 5.05 | AB103: 15;25;35;44;49;51;54;55;56;57 | AG103: 15;25;35;44;49;51;54;55;56;57
A104: 03 Reading Mid-Year 2014 - Grade 3 ELA | B104: 2191 | C104: 2191 2191 - Spanish Lake Elementary | D104: 269 | E104: 52 | F104: 65.26 | G104: 33.94 | H104: 130 | I104: 0 | J104: 139 | K104: 0.48 | L104: 0 | M104: 0.52 | N104: Key Ideas and Details | O104: 16 | P104: 0.68 | Q104: 10.86 | R104: 5;6;8;9;10;12;13;16;23;24;39;42;43;45;46;50 | S104: Craft and Structure | T104: 26 | U104: 0.66 | V104: 17.28 | W104: 1;2;3;4;7;11;14;17;18;19;26;27;28;29;30;31;32;34;36;37;38;41;47;48;52;53 | X104: Integration of Knowledge and Ideas | Y104: 10 | Z104: 0.58 | AA104: 5.8 | AB104: 15;25;35;44;49;51;54;55;56;57 | AG104: 15;25;35;44;49;51;54;55;56;57
A105: 03 Reading Mid-Year 2014 - Grade 3 ELA | B105: 2241 | C105: 2241 2241 - Gratigny Elementary | D105: 94 | E105: 52 | F105: 48.73 | G105: 25.34 | H105: 77 | I105: 0 | J105: 17 | K105: 0.82 | L105: 0 | M105: 0.18 | N105: Key Ideas and Details | O105: 16 | P105: 0.54 | Q105: 8.57 | R105: 5;6;8;9;10;12;13;16;23;24;39;42;43;45;46;50 | S105: Craft and Structure | T105: 26 | U105: 0.49 | V105: 12.71 | W105: 1;2;3;4;7;11;14;17;18;19;26;27;28;29;30;31;32;34;36;37;38;41;47;48;52;53 | X105: Integration of Knowledge and Ideas | Y105: 10 | Z105: 0.41 | AA105: 4.05 | AB105: 15;25;35;44;49;51;54;55;56;57 | AG105: 15;25;35;44;49;51;54;55;56;57
A106: 03 Reading Mid-Year 2014 - Grade 3 ELA | B106: 2261 | C106: 2261 2261 - Greenglade Elementary | D106: 75 | E106: 52 | F106: 67.28 | G106: 34.99 | H106: 34 | I106: 0 | J106: 41 | K106: 0.45 | L106: 0 | M106: 0.55 | N106: Key Ideas and Details | O106: 16 | P106: 0.71 | Q106: 11.37 | R106: 5;6;8;9;10;12;13;16;23;24;39;42;43;45;46;50 | S106: Craft and Structure | T106: 26 | U106: 0.68 | V106: 17.79 | W106: 1;2;3;4;7;11;14;17;18;19;26;27;28;29;30;31;32;34;36;37;38;41;47;48;52;53 | X106: Integration of Knowledge and Ideas | Y106: 10 | Z106: 0.58 | AA106: 5.83 | AB106: 15;25;35;44;49;51;54;55;56;57 | AG106: 15;25;35;44;49;51;54;55;56;57
A107: 03 Reading Mid-Year 2014 - Grade 3 ELA | B107: 2281 | C107: 2281 2281 - Greynolds Park Elementary | D107: 110 | E107: 52 | F107: 59.16 | G107: 30.76 | H107: 64 | I107: 0 | J107: 46 | K107: 0.58 | L107: 0 | M107: 0.42 | N107: Key Ideas and Details | O107: 16 | P107: 0.62 | Q107: 9.96 | R107: 5;6;8;9;10;12;13;16;23;24;39;42;43;45;46;50 | S107: Craft and Structure | T107: 26 | U107: 0.6 | V107: 15.57 | W107: 1;2;3;4;7;11;14;17;18;19;26;27;28;29;30;31;32;34;36;37;38;41;47;48;52;53 | X107: Integration of Knowledge and Ideas | Y107: 10 | Z107: 0.52 | AA107: 5.23 | AB107: 15;25;35;44;49;51;54;55;56;57 | AG107: 15;25;35;44;49;51;54;55;56;57
A108: 03 Reading Mid-Year 2014 - Grade 3 ELA | B108: 2321 | C108: 2321 2321 - Gulfstream Elementary | D108: 88 | E108: 52 | F108: 60.75 | G108: 31.59 | H108: 50 | I108: 0 | J108: 38 | K108: 0.57 | L108: 0 | M108: 0.43 | N108: Key Ideas and Details | O108: 16 | P108: 0.63 | Q108: 10.03 | R108: 5;6;8;9;10;12;13;16;23;24;39;42;43;45;46;50 | S108: Craft and Structure | T108: 26 | U108: 0.63 | V108: 16.38 | W108: 1;2;3;4;7;11;14;17;18;19;26;27;28;29;30;31;32;34;36;37;38;41;47;48;52;53 | X108: Integration of Knowledge and Ideas | Y108: 10 | Z108: 0.52 | AA108: 5.18 | AB108: 15;25;35;44;49;51;54;55;56;57 | AG108: 15;25;35;44;49;51;54;55;56;57
A109: 03 Reading Mid-Year 2014 - Grade 3 ELA | B109: 2331 | C109: 2331 2331 - Charles R. Hadley Elementary | D109: 141 | E109: 52 | F109: 61.84 | G109: 32.16 | H109: 73 | I109: 0 | J109: 68 | K109: 0.52 | L109: 0 | M109: 0.48 | N109: Key Ideas and Details | O109: 16 | P109: 0.65 | Q109: 10.35 | R109: 5;6;8;9;10;12;13;16;23;24;39;42;43;45;46;50 | S109: Craft and Structure | T109: 26 | U109: 0.64 | V109: 16.52 | W109: 1;2;3;4;7;11;14;17;18;19;26;27;28;29;30;31;32;34;36;37;38;41;47;48;52;53 | X109: Integration of Knowledge and Ideas | Y109: 10 | Z109: 0.53 | AA109: 5.29 | AB109: 15;25;35;44;49;51;54;55;56;57 | AG109: 15;25;35;44;49;51;54;55;56;57
A110: 03 Reading Mid-Year 2014 - Grade 3 ELA | B110: 2341 | C110: 2341 2341 - Joe Hall Elementary | D110: 79 | E110: 52 | F110: 59.2 | G110: 30.78 | H110: 44 | I110: 0 | J110: 35 | K110: 0.56 | L110: 0 | M110: 0.44 | N110: Key Ideas and Details | O110: 16 | P110: 0.62 | Q110: 9.9 | R110: 5;6;8;9;10;12;13;16;23;24;39;42;43;45;46;50 | S110: Craft and Structure | T110: 26 | U110: 0.61 | V110: 15.76 | W110: 1;2;3;4;7;11;14;17;18;19;26;27;28;29;30;31;32;34;36;37;38;41;47;48;52;53 | X110: Integration of Knowledge and Ideas | Y110: 10 | Z110: 0.51 | AA110: 5.13 | AB110: 15;25;35;44;49;51;54;55;56;57 | AG110: 15;25;35;44;49;51;54;55;56;57
A111: 03 Reading Mid-Year 2014 - Grade 3 ELA | B111: 2351 | C111: 2351 2351 - Eneida Massas Hartner Elem | D111: 82 | E111: 52 | F111: 67 | G111: 34.84 | H111: 36 | I111: 0 | J111: 46 | K111: 0.44 | L111: 0 | M111: 0.56 | N111: Key Ideas and Details | O111: 16 | P111: 0.73 | Q111: 11.59 | R111: 5;6;8;9;10;12;13;16;23;24;39;42;43;45;46;50 | S111: Craft and Structure | T111: 26 | U111: 0.68 | V111: 17.65 | W111: 1;2;3;4;7;11;14;17;18;19;26;27;28;29;30;31;32;34;36;37;38;41;47;48;52;53 | X111: Integration of Knowledge and Ideas | Y111: 10 | Z111: 0.56 | AA111: 5.61 | AB111: 15;25;35;44;49;51;54;55;56;57 | AG111: 15;25;35;44;49;51;54;55;56;57
A112: 03 Reading Mid-Year 2014 - Grade 3 ELA | B112: 2361 | C112: 2361 2361 - Hialeah Elementary | D112: 134 | E112: 52 | F112: 60.28 | G112: 31.34 | H112: 78 | I112: 0 | J112: 56 | K112: 0.58 | L112: 0 | M112: 0.42 | N112: Key Ideas and Details | O112: 16 | P112: 0.64 | Q112: 10.3 | R112: 5;6;8;9;10;12;13;16;23;24;39;42;43;45;46;50 | S112: Craft and Structure | T112: 26 | U112: 0.61 | V112: 15.8 | W112: 1;2;3;4;7;11;14;17;18;19;26;27;28;29;30;31;32;34;36;37;38;41;47;48;52;53 | X112: Integration of Knowledge and Ideas | Y112: 10 | Z112: 0.52 | AA112: 5.25 | AB112: 15;25;35;44;49;51;54;55;56;57 | AG112: 15;25;35;44;49;51;54;55;56;57
A113: 03 Reading Mid-Year 2014 - Grade 3 ELA | B113: 2371 | C113: 2371 2371 - West Hialeah Gardens Elem | D113: 188 | E113: 52 | F113: 64.35 | G113: 33.46 | H113: 90 | I113: 0 | J113: 98 | K113: 0.48 | L113: 0 | M113: 0.52 | N113: Key Ideas and Details | O113: 16 | P113: 0.67 | Q113: 10.71 | R113: 5;6;8;9;10;12;13;16;23;24;39;42;43;45;46;50 | S113: Craft and Structure | T113: 26 | U113: 0.67 | V113: 17.5 | W113: 1;2;3;4;7;11;14;17;18;19;26;27;28;29;30;31;32;34;36;37;38;41;47;48;52;53 | X113: Integration of Knowledge and Ideas | Y113: 10 | Z113: 0.53 | AA113: 5.26 | AB113: 15;25;35;44;49;51;54;55;56;57 | AG113: 15;25;35;44;49;51;54;55;56;57
A114: 03 Reading Mid-Year 2014 - Grade 3 ELA | B114: 2401 | C114: 2401 2401 - Hibiscus Elementary | D114: 69 | E114: 52 | F114: 60.56 | G114: 31.49 | H114: 41 | I114: 0 | J114: 28 | K114: 0.59 | L114: 0 | M114: 0.41 | N114: Key Ideas and Details | O114: 16 | P114: 0.65 | Q114: 10.33 | R114: 5;6;8;9;10;12;13;16;23;24;39;42;43;45;46;50 | S114: Craft and Structure | T114: 26 | U114: 0.61 | V114: 15.91 | W114: 1;2;3;4;7;11;14;17;18;19;26;27;28;29;30;31;32;34;36;37;38;41;47;48;52;53 | X114: Integration of Knowledge and Ideas | Y114: 10 | Z114: 0.52 | AA114: 5.25 | AB114: 15;25;35;44;49;51;54;55;56;57 | AG114: 15;25;35;44;49;51;54;55;56;57
A115: 03 Reading Mid-Year 2014 - Grade 3 ELA | B115: 2441 | C115: 2441 2441 - Virginia A Boone/highland Oaks | D115: 134 | E115: 52 | F115: 70.79 | G115: 36.81 | H115: 42 | I115: 0 | J115: 92 | K115: 0.31 | L115: 0 | M115: 0.69 | N115: Key Ideas and Details | O115: 16 | P115: 0.73 | Q115: 11.67 | R115: 5;6;8;9;10;12;13;16;23;24;39;42;43;45;46;50 | S115: Craft and Structure | T115: 26 | U115: 0.72 | V115: 18.81 | W115: 1;2;3;4;7;11;14;17;18;19;26;27;28;29;30;31;32;34;36;37;38;41;47;48;52;53 | X115: Integration of Knowledge and Ideas | Y115: 10 | Z115: 0.63 | AA115: 6.33 | AB115: 15;25;35;44;49;51;54;55;56;57 | AG115: 15;25;35;44;49;51;54;55;56;57
A116: 03 Reading Mid-Year 2014 - Grade 3 ELA | B116: 2501 | C116: 2501 2501 - Holmes Elementary | D116: 141 | E116: 52 | F116: 51.92 | G116: 27 | H116: 111 | I116: 0 | J116: 30 | K116: 0.79 | L116: 0 | M116: 0.21 | N116: Key Ideas and Details | O116: 16 | P116: 0.57 | Q116: 9.03 | R116: 5;6;8;9;10;12;13;16;23;24;39;42;43;45;46;50 | S116: Craft and Structure | T116: 26 | U116: 0.52 | V116: 13.6 | W116: 1;2;3;4;7;11;14;17;18;19;26;27;28;29;30;31;32;34;36;37;38;41;47;48;52;53 | X116: Integration of Knowledge and Ideas | Y116: 10 | Z116: 0.44 | AA116: 4.37 | AB116: 15;25;35;44;49;51;54;55;56;57 | AG116: 15;25;35;44;49;51;54;55;56;57
A117: 03 Reading Mid-Year 2014 - Grade 3 ELA | B117: 2511 | C117: 2511 2511 - Zora Neale Hurston Elementary | D117: 112 | E117: 52 | F117: 65.95 | G117: 34.29 | H117: 49 | I117: 0 | J117: 63 | K117: 0.44 | L117: 0 | M117: 0.56 | N117: Key Ideas and Details | O117: 16 | P117: 0.71 | Q117: 11.38 | R117: 5;6;8;9;10;12;13;16;23;24;39;42;43;45;46;50 | S117: Craft and Structure | T117: 26 | U117: 0.67 | V117: 17.53 | W117: 1;2;3;4;7;11;14;17;18;19;26;27;28;29;30;31;32;34;36;37;38;41;47;48;52;53 | X117: Integration of Knowledge and Ideas | Y117: 10 | Z117: 0.54 | AA117: 5.38 | AB117: 15;25;35;44;49;51;54;55;56;57 | AG117: 15;25;35;44;49;51;54;55;56;57
A118: 03 Reading Mid-Year 2014 - Grade 3 ELA | B118: 2521 | C118: 2521 2521 - Oliver Hoover Elementary | D118: 123 | E118: 52 | F118: 67.48 | G118: 35.09 | H118: 48 | I118: 0 | J118: 75 | K118: 0.39 | L118: 0 | M118: 0.61 | N118: Key Ideas and Details | O118: 16 | P118: 0.7 | Q118: 11.2 | R118: 5;6;8;9;10;12;13;16;23;24;39;42;43;45;46;50 | S118: Craft and Structure | T118: 26 | U118: 0.69 | V118: 17.85 | W118: 1;2;3;4;7;11;14;17;18;19;26;27;28;29;30;31;32;34;36;37;38;41;47;48;52;53 | X118: Integration of Knowledge and Ideas | Y118: 10 | Z118: 0.6 | AA118: 6.04 | AB118: 15;25;35;44;49;51;54;55;56;57 | AG118: 15;25;35;44;49;51;54;55;56;57
A119: 03 Reading Mid-Year 2014 - Grade 3 ELA | B119: 2541 | C119: 2541 2541 - Howard Drive Elementary | D119: 105 | E119: 52 | F119: 66.59 | G119: 34.63 | H119: 46 | I119: 0 | J119: 59 | K119: 0.44 | L119: 0 | M119: 0.56 | N119: Key Ideas and Details | O119: 16 | P119: 0.68 | Q119: 10.89 | R119: 5;6;8;9;10;12;13;16;23;24;39;42;43;45;46;50 | S119: Craft and Structure | T119: 26 | U119: 0.69 | V119: 17.92 | W119: 1;2;3;4;7;11;14;17;18;19;26;27;28;29;30;31;32;34;36;37;38;41;47;48;52;53 | X119: Integration of Knowledge and Ideas | Y119: 10 | Z119: 0.58 | AA119: 5.82 | AB119: 15;25;35;44;49;51;54;55;56;57 | AG119: 15;25;35;44;49;51;54;55;56;57
A120: 03 Reading Mid-Year 2014 - Grade 3 ELA | B120: 2581 | C120: 2581 2581 - Madie Ives Elementary | D120: 142 | E120: 52 | F120: 63.26 | G120: 32.89 | H120: 73 | I120: 0 | J120: 69 | K120: 0.51 | L120: 0 | M120: 0.49 | N120: Key Ideas and Details | O120: 16 | P120: 0.67 | Q120: 10.74 | R120: 5;6;8;9;10;12;13;16;23;24;39;42;43;45;46;50 | S120: Craft and Structure | T120: 26 | U120: 0.64 | V120: 16.7 | W120: 1;2;3;4;7;11;14;17;18;19;26;27;28;29;30;31;32;34;36;37;38;41;47;48;52;53 | X120: Integration of Knowledge and Ideas | Y120: 10 | Z120: 0.55 | AA120: 5.45 | AB120: 15;25;35;44;49;51;54;55;56;57 | AG120: 15;25;35;44;49;51;54;55;56;57
A121: 03 Reading Mid-Year 2014 - Grade 3 ELA | B121: 2641 | C121: 2641 2641 - Kendale Elementary | D121: 81 | E121: 52 | F121: 66.62 | G121: 34.64 | H121: 36 | I121: 0 | J121: 45 | K121: 0.44 | L121: 0 | M121: 0.56 | N121: Key Ideas and Details | O121: 16 | P121: 0.7 | Q121: 11.1 | R121: 5;6;8;9;10;12;13;16;23;24;39;42;43;45;46;50 | S121: Craft and Structure | T121: 26 | U121: 0.69 | V121: 17.9 | W121: 1;2;3;4;7;11;14;17;18;19;26;27;28;29;30;31;32;34;36;37;38;41;47;48;52;53 | X121: Integration of Knowledge and Ideas | Y121: 10 | Z121: 0.56 | AA121: 5.64 | AB121: 15;25;35;44;49;51;54;55;56;57 | AG121: 15;25;35;44;49;51;54;55;56;57
A122: 03 Reading Mid-Year 2014 - Grade 3 ELA | B122: 2651 | C122: 2651 2651 - Kendale Lakes Elementary | D122: 112 | E122: 52 | F122: 68.1 | G122: 35.41 | H122: 36 | I122: 0 | J122: 76 | K122: 0.32 | L122: 0 | M122: 0.68 | N122: Key Ideas and Details | O122: 16 | P122: 0.7 | Q122: 11.21 | R122: 5;6;8;9;10;12;13;16;23;24;39;42;43;45;46;50 | S122: Craft and Structure | T122: 26 | U122: 0.71 | V122: 18.38 | W122: 1;2;3;4;7;11;14;17;18;19;26;27;28;29;30;31;32;34;36;37;38;41;47;48;52;53 | X122: Integration of Knowledge and Ideas | Y122: 10 | Z122: 0.58 | AA122: 5.82 | AB122: 15;25;35;44;49;51;54;55;56;57 | AG122: 15;25;35;44;49;51;54;55;56;57
A123: 03 Reading Mid-Year 2014 - Grade 3 ELA | B123: 2661 | C123: 2661 2661 - Kensington Park Elementary | D123: 186 | E123: 52 | F123: 52.01 | G123: 27.04 | H123: 140 | I123: 0 | J123: 46 | K123: 0.75 | L123: 0 | M123: 0.25 | N123: Key Ideas and Details | O123: 16 | P123: 0.56 | Q123: 8.97 | R123: 5;6;8;9;10;12;13;16;23;24;39;42;43;45;46;50 | S123: Craft and Structure | T123: 26 | U123: 0.53 | V123: 13.83 | W123: 1;2;3;4;7;11;14;17;18;19;26;27;28;29;30;31;32;34;36;37;38;41;47;48;52;53 | X123: Integration of Knowledge and Ideas | Y123: 10 | Z123: 0.42 | AA123: 4.24 | AB123: 15;25;35;44;49;51;54;55;56;57 | AG123: 15;25;35;44;49;51;54;55;56;57
A124: 03 Reading Mid-Year 2014 - Grade 3 ELA | B124: 2701 | C124: 2701 2701 - Kenwood K-8 Center | D124: 104 | E124: 52 | F124: 64.22 | G124: 33.39 | H124: 52 | I124: 0 | J124: 52 | K124: 0.5 | L124: 0 | M124: 0.5 | N124: Key Ideas and Details | O124: 16 | P124: 0.67 | Q124: 10.77 | R124: 5;6;8;9;10;12;13;16;23;24;39;42;43;45;46;50 | S124: Craft and Structure | T124: 26 | U124: 0.66 | V124: 17.2 | W124: 1;2;3;4;7;11;14;17;18;19;26;27;28;29;30;31;32;34;36;37;38;41;47;48;52;53 | X124: Integration of Knowledge and Ideas | Y124: 10 | Z124: 0.54 | AA124: 5.42 | AB124: 15;25;35;44;49;51;54;55;56;57 | AG124: 15;25;35;44;49;51;54;55;56;57
A125: 03 Reading Mid-Year 2014 - Grade 3 ELA | B125: 2741 | C125: 2741 2741 - Key Biscayne K-8 Center | D125: 185 | E125: 52 | F125: 66.27 | G125: 34.46 | H125: 80 | I125: 0 | J125: 105 | K125: 0.43 | L125: 0 | M125: 0.57 | N125: Key Ideas and Details | O125: 16 | P125: 0.68 | Q125: 10.92 | R125: 5;6;8;9;10;12;13;16;23;24;39;42;43;45;46;50 | S125: Craft and Structure | T125: 26 | U125: 0.68 | V125: 17.71 | W125: 1;2;3;4;7;11;14;17;18;19;26;27;28;29;30;31;32;34;36;37;38;41;47;48;52;53 | X125: Integration of Knowledge and Ideas | Y125: 10 | Z125: 0.58 | AA125: 5.83 | AB125: 15;25;35;44;49;51;54;55;56;57 | AG125: 15;25;35;44;49;51;54;55;56;57
A126: 03 Reading Mid-Year 2014 - Grade 3 ELA | B126: 2781 | C126: 2781 2781 - Kinloch Park Elementary | D126: 131 | E126: 52 | F126: 58.43 | G126: 30.38 | H126: 72 | I126: 0 | J126: 59 | K126: 0.55 | L126: 0 | M126: 0.45 | N126: Key Ideas and Details | O126: 16 | P126: 0.62 | Q126: 9.86 | R126: 5;6;8;9;10;12;13;16;23;24;39;42;43;45;46;50 | S126: Craft and Structure | T126: 26 | U126: 0.59 | V126: 15.36 | W126: 1;2;3;4;7;11;14;17;18;19;26;27;28;29;30;31;32;34;36;37;38;41;47;48;52;53 | X126: Integration of Knowledge and Ideas | Y126: 10 | Z126: 0.52 | AA126: 5.16 | AB126: 15;25;35;44;49;51;54;55;56;57 | AG126: 15;25;35;44;49;51;54;55;56;57
A127: 03 Reading Mid-Year 2014 - Grade 3 ELA | B127: 2801 | C127: 2801 2801 - Lake Stevens Elementary | D127: 48 | E127: 52 | F127: 57.57 | G127: 29.94 | H127: 34 | I127: 0 | J127: 14 | K127: 0.71 | L127: 0 | M127: 0.29 | N127: Key Ideas and Details | O127: 16 | P127: 0.61 | Q127: 9.81 | R127: 5;6;8;9;10;12;13;16;23;24;39;42;43;45;46;50 | S127: Craft and Structure | T127: 26 | U127: 0.6 | V127: 15.48 | W127: 1;2;3;4;7;11;14;17;18;19;26;27;28;29;30;31;32;34;36;37;38;41;47;48;52;53 | X127: Integration of Knowledge and Ideas | Y127: 10 | Z127: 0.46 | AA127: 4.65 | AB127: 15;25;35;44;49;51;54;55;56;57 | AG127: 15;25;35;44;49;51;54;55;56;57
A128: 03 Reading Mid-Year 2014 - Grade 3 ELA | B128: 2821 | C128: 2821 2821 - Lakeview Elementary | D128: 75 | E128: 52 | F128: 55.82 | G128: 29.03 | H128: 53 | I128: 0 | J128: 22 | K128: 0.71 | L128: 0 | M128: 0.29 | N128: Key Ideas and Details | O128: 16 | P128: 0.61 | Q128: 9.73 | R128: 5;6;8;9;10;12;13;16;23;24;39;42;43;45;46;50 | S128: Craft and Structure | T128: 26 | U128: 0.57 | V128: 14.91 | W128: 1;2;3;4;7;11;14;17;18;19;26;27;28;29;30;31;32;34;36;37;38;41;47;48;52;53 | X128: Integration of Knowledge and Ideas | Y128: 10 | Z128: 0.44 | AA128: 4.39 | AB128: 15;25;35;44;49;51;54;55;56;57 | AG128: 15;25;35;44;49;51;54;55;56;57
A129: 03 Reading Mid-Year 2014 - Grade 3 ELA | B129: 2881 | C129: 2881 2881 - Leewood K-8 Center | D129: 84 | E129: 52 | F129: 73.6 | G129: 38.27 | H129: 21 | I129: 0 | J129: 63 | K129: 0.25 | L129: 0 | M129: 0.75 | N129: Key Ideas and Details | O129: 16 | P129: 0.75 | Q129: 11.96 | R129: 5;6;8;9;10;12;13;16;23;24;39;42;43;45;46;50 | S129: Craft and Structure | T129: 26 | U129: 0.76 | V129: 19.81 | W129: 1;2;3;4;7;11;14;17;18;19;26;27;28;29;30;31;32;34;36;37;38;41;47;48;52;53 | X129: Integration of Knowledge and Ideas | Y129: 10 | Z129: 0.65 | AA129: 6.5 | AB129: 15;25;35;44;49;51;54;55;56;57 | AG129: 15;25;35;44;49;51;54;55;56;57
A130: 03 Reading Mid-Year 2014 - Grade 3 ELA | B130: 2891 | C130: 2891 2891 - William Lehman Elementary | D130: 111 | E130: 52 | F130: 63.58 | G130: 33.06 | H130: 51 | I130: 0 | J130: 60 | K130: 0.46 | L130: 0 | M130: 0.54 | N130: Key Ideas and Details | O130: 16 | P130: 0.68 | Q130: 10.85 | R130: 5;6;8;9;10;12;13;16;23;24;39;42;43;45;46;50 | S130: Craft and Structure | T130: 26 | U130: 0.65 | V130: 16.99 | W130: 1;2;3;4;7;11;14;17;18;19;26;27;28;29;30;31;32;34;36;37;38;41;47;48;52;53 | X130: Integration of Knowledge and Ideas | Y130: 10 | Z130: 0.52 | AA130: 5.23 | AB130: 15;25;35;44;49;51;54;55;56;57 | AG130: 15;25;35;44;49;51;54;55;56;57
A131: 03 Reading Mid-Year 2014 - Grade 3 ELA | B131: 2901 | C131: 2901 2901 - Leisure City K-8 Center | D131: 107 | E131: 52 | F131: 50.4 | G131: 26.21 | H131: 87 | I131: 0 | J131: 20 | K131: 0.81 | L131: 0 | M131: 0.19 | N131: Key Ideas and Details | O131: 16 | P131: 0.55 | Q131: 8.79 | R131: 5;6;8;9;10;12;13;16;23;24;39;42;43;45;46;50 | S131: Craft and Structure | T131: 26 | U131: 0.52 | V131: 13.54 | W131: 1;2;3;4;7;11;14;17;18;19;26;27;28;29;30;31;32;34;36;37;38;41;47;48;52;53 | X131: Integration of Knowledge and Ideas | Y131: 10 | Z131: 0.39 | AA131: 3.87 | AB131: 15;25;35;44;49;51;54;55;56;57 | AG131: 15;25;35;44;49;51;54;55;56;57
A132: 03 Reading Mid-Year 2014 - Grade 3 ELA | B132: 2911 | C132: 2911 2911 - Linda Lentin K-8 Center | D132: 92 | E132: 52 | F132: 54.29 | G132: 28.23 | H132: 64 | I132: 0 | J132: 28 | K132: 0.7 | L132: 0 | M132: 0.3 | N132: Key Ideas and Details | O132: 16 | P132: 0.56 | Q132: 9.01 | R132: 5;6;8;9;10;12;13;16;23;24;39;42;43;45;46;50 | S132: Craft and Structure | T132: 26 | U132: 0.57 | V132: 14.72 | W132: 1;2;3;4;7;11;14;17;18;19;26;27;28;29;30;31;32;34;36;37;38;41;47;48;52;53 | X132: Integration of Knowledge and Ideas | Y132: 10 | Z132: 0.45 | AA132: 4.5 | AB132: 15;25;35;44;49;51;54;55;56;57 | AG132: 15;25;35;44;49;51;54;55;56;57
A133: 03 Reading Mid-Year 2014 - Grade 3 ELA | B133: 2941 | C133: 2941 2941 - Laura C. Saunders Elementary | D133: 123 | E133: 52 | F133: 49.25 | G133: 25.61 | H133: 96 | I133: 0 | J133: 27 | K133: 0.78 | L133: 0 | M133: 0.22 | N133: Key Ideas and Details | O133: 16 | P133: 0.54 | Q133: 8.59 | R133: 5;6;8;9;10;12;13;16;23;24;39;42;43;45;46;50 | S133: Craft and Structure | T133: 26 | U133: 0.49 | V133: 12.79 | W133: 1;2;3;4;7;11;14;17;18;19;26;27;28;29;30;31;32;34;36;37;38;41;47;48;52;53 | X133: Integration of Knowledge and Ideas | Y133: 10 | Z133: 0.42 | AA133: 4.24 | AB133: 15;25;35;44;49;51;54;55;56;57 | AG133: 15;25;35;44;49;51;54;55;56;57
A134: 03 Reading Mid-Year 2014 - Grade 3 ELA | B134: 2981 | C134: 2981 2981 - Liberty City Elementary | D134: 57 | E134: 52 | F134: 50.1 | G134: 26.05 | H134: 49 | I134: 0 | J134: 8 | K134: 0.86 | L134: 0 | M134: 0.14 | N134: Key Ideas and Details | O134: 16 | P134: 0.53 | Q134: 8.51 | R134: 5;6;8;9;10;12;13;16;23;24;39;42;43;45;46;50 | S134: Craft and Structure | T134: 26 | U134: 0.52 | V134: 13.44 | W134: 1;2;3;4;7;11;14;17;18;19;26;27;28;29;30;31;32;34;36;37;38;41;47;48;52;53 | X134: Integration of Knowledge and Ideas | Y134: 10 | Z134: 0.41 | AA134: 4.11 | AB134: 15;25;35;44;49;51;54;55;56;57 | AG134: 15;25;35;44;49;51;54;55;56;57
A135: 03 Reading Mid-Year 2014 - Grade 3 ELA | B135: 3021 | C135: 3021 3021 - Jesse J Mccrary Jr Elementary | D135: 94 | E135: 52 | F135: 54.62 | G135: 28.4 | H135: 69 | I135: 0 | J135: 25 | K135: 0.73 | L135: 0 | M135: 0.27 | N135: Key Ideas and Details | O135: 16 | P135: 0.59 | Q135: 9.46 | R135: 5;6;8;9;10;12;13;16;23;24;39;42;43;45;46;50 | S135: Craft and Structure | T135: 26 | U135: 0.55 | V135: 14.29 | W135: 1;2;3;4;7;11;14;17;18;19;26;27;28;29;30;31;32;34;36;37;38;41;47;48;52;53 | X135: Integration of Knowledge and Ideas | Y135: 10 | Z135: 0.47 | AA135: 4.66 | AB135: 15;25;35;44;49;51;54;55;56;57 | AG135: 15;25;35;44;49;51;54;55;56;57
A136: 03 Reading Mid-Year 2014 - Grade 3 ELA | B136: 3025 | C136: 3025 3025 - Advantage Academy Santa Fe | D136: 77 | E136: 52 | F136: 71.15 | G136: 37 | H136: 22 | I136: 0 | J136: 55 | K136: 0.29 | L136: 0 | M136: 0.71 | N136: Key Ideas and Details | O136: 16 | P136: 0.74 | Q136: 11.82 | R136: 5;6;8;9;10;12;13;16;23;24;39;42;43;45;46;50 | S136: Craft and Structure | T136: 26 | U136: 0.73 | V136: 19.05 | W136: 1;2;3;4;7;11;14;17;18;19;26;27;28;29;30;31;32;34;36;37;38;41;47;48;52;53 | X136: Integration of Knowledge and Ideas | Y136: 10 | Z136: 0.61 | AA136: 6.13 | AB136: 15;25;35;44;49;51;54;55;56;57 | AG136: 15;25;35;44;49;51;54;55;56;57
A137: 03 Reading Mid-Year 2014 - Grade 3 ELA | B137: 3030 | C137: 3030 3030 - Doral Academy | D137: 198 | E137: 52 | F137: 75.2 | G137: 39.11 | H137: 51 | I137: 0 | J137: 147 | K137: 0.26 | L137: 0 | M137: 0.74 | N137: Key Ideas and Details | O137: 16 | P137: 0.77 | Q137: 12.34 | R137: 5;6;8;9;10;12;13;16;23;24;39;42;43;45;46;50 | S137: Craft and Structure | T137: 26 | U137: 0.78 | V137: 20.31 | W137: 1;2;3;4;7;11;14;17;18;19;26;27;28;29;30;31;32;34;36;37;38;41;47;48;52;53 | X137: Integration of Knowledge and Ideas | Y137: 10 | Z137: 0.65 | AA137: 6.45 | AB137: 15;25;35;44;49;51;54;55;56;57 | AG137: 15;25;35;44;49;51;54;55;56;57
A138: 03 Reading Mid-Year 2014 - Grade 3 ELA | B138: 3033 | C138: 3033 3033 - Somerset Oaks Academy | D138: 53 | E138: 52 | F138: 51.67 | G138: 26.87 | H138: 40 | I138: 0 | J138: 13 | K138: 0.75 | L138: 0 | M138: 0.25 | N138: Key Ideas and Details | O138: 16 | P138: 0.56 | Q138: 8.94 | R138: 5;6;8;9;10;12;13;16;23;24;39;42;43;45;46;50 | S138: Craft and Structure | T138: 26 | U138: 0.53 | V138: 13.87 | W138: 1;2;3;4;7;11;14;17;18;19;26;27;28;29;30;31;32;34;36;37;38;41;47;48;52;53 | X138: Integration of Knowledge and Ideas | Y138: 10 | Z138: 0.41 | AA138: 4.06 | AB138: 15;25;35;44;49;51;54;55;56;57 | AG138: 15;25;35;44;49;51;54;55;56;57
A139: 03 Reading Mid-Year 2014 - Grade 3 ELA | B139: 3034 | C139: 3034 3034 - Bridgeprep Acad Village Green | D139: 41 | E139: 52 | F139: 60.27 | G139: 31.34 | H139: 25 | I139: 0 | J139: 16 | K139: 0.61 | L139: 0 | M139: 0.39 | N139: Key Ideas and Details | O139: 16 | P139: 0.63 | Q139: 10.05 | R139: 5;6;8;9;10;12;13;16;23;24;39;42;43;45;46;50 | S139: Craft and Structure | T139: 26 | U139: 0.63 | V139: 16.51 | W139: 1;2;3;4;7;11;14;17;18;19;26;27;28;29;30;31;32;34;36;37;38;41;47;48;52;53 | X139: Integration of Knowledge and Ideas | Y139: 10 | Z139: 0.48 | AA139: 4.78 | AB139: 15;25;35;44;49;51;54;55;56;57 | AG139: 15;25;35;44;49;51;54;55;56;57
A140: 03 Reading Mid-Year 2014 - Grade 3 ELA | B140: 3035 | C140: 3035 3035 - Ramz Academy Elem Miami Campus | D140: 40 | E140: 52 | F140: 53.85 | G140: 28 | H140: 28 | I140: 0 | J140: 12 | K140: 0.7 | L140: 0 | M140: 0.3 | N140: Key Ideas and Details | O140: 16 | P140: 0.58 | Q140: 9.23 | R140: 5;6;8;9;10;12;13;16;23;24;39;42;43;45;46;50 | S140: Craft and Structure | T140: 26 | U140: 0.56 | V140: 14.45 | W140: 1;2;3;4;7;11;14;17;18;19;26;27;28;29;30;31;32;34;36;37;38;41;47;48;52;53 | X140: Integration of Knowledge and Ideas | Y140: 10 | Z140: 0.43 | AA140: 4.33 | AB140: 15;25;35;44;49;51;54;55;56;57 | AG140: 15;25;35;44;49;51;54;55;56;57
A141: 03 Reading Mid-Year 2014 - Grade 3 ELA | B141: 3041 | C141: 3041 3041 - Lorah Park Elementary | D141: 71 | E141: 52 | F141: 53.82 | G141: 27.99 | H141: 53 | I141: 0 | J141: 18 | K141: 0.75 | L141: 0 | M141: 0.25 | N141: Key Ideas and Details | O141: 16 | P141: 0.58 | Q141: 9.27 | R141: 5;6;8;9;10;12;13;16;23;24;39;42;43;45;46;50 | S141: Craft and Structure | T141: 26 | U141: 0.54 | V141: 14.14 | W141: 1;2;3;4;7;11;14;17;18;19;26;27;28;29;30;31;32;34;36;37;38;41;47;48;52;53 | X141: Integration of Knowledge and Ideas | Y141: 10 | Z141: 0.46 | AA141: 4.58 | AB141: 15;25;35;44;49;51;54;55;56;57 | AG141: 15;25;35;44;49;51;54;55;56;57
A142: 03 Reading Mid-Year 2014 - Grade 3 ELA | B142: 3051 | C142: 3051 3051 - Toussaint L''ouverture Elem | D142: 86 | E142: 52 | F142: 53.38 | G142: 27.76 | H142: 70 | I142: 0 | J142: 16 | K142: 0.81 | L142: 0 | M142: 0.19 | N142: Key Ideas and Details | O142: 16 | P142: 0.59 | Q142: 9.4 | R142: 5;6;8;9;10;12;13;16;23;24;39;42;43;45;46;50 | S142: Craft and Structure | T142: 26 | U142: 0.54 | V142: 14.12 | W142: 1;2;3;4;7;11;14;17;18;19;26;27;28;29;30;31;32;34;36;37;38;41;47;48;52;53 | X142: Integration of Knowledge and Ideas | Y142: 10 | Z142: 0.42 | AA142: 4.24 | AB142: 15;25;35;44;49;51;54;55;56;57 | AG142: 15;25;35;44;49;51;54;55;56;57
A143: 03 Reading Mid-Year 2014 - Grade 3 ELA | B143: 3061 | C143: 3061 3061 - Ludlam Elementary | D143: 62 | E143: 52 | F143: 62.75 | G143: 32.63 | H143: 35 | I143: 0 | J143: 27 | K143: 0.56 | L143: 0 | M143: 0.44 | N143: Key Ideas and Details | O143: 16 | P143: 0.67 | Q143: 10.63 | R143: 5;6;8;9;10;12;13;16;23;24;39;42;43;45;46;50 | S143: Craft and Structure | T143: 26 | U143: 0.64 | V143: 16.68 | W143: 1;2;3;4;7;11;14;17;18;19;26;27;28;29;30;31;32;34;36;37;38;41;47;48;52;53 | X143: Integration of Knowledge and Ideas | Y143: 10 | Z143: 0.53 | AA143: 5.32 | AB143: 15;25;35;44;49;51;54;55;56;57 | AG143: 15;25;35;44;49;51;54;55;56;57
A144: 03 Reading Mid-Year 2014 - Grade 3 ELA | B144: 3100 | C144: 3100 3100 - Mater Academy East Charter | D144: 95 | E144: 52 | F144: 73 | G144: 37.96 | H144: 24 | I144: 0 | J144: 71 | K144: 0.25 | L144: 0 | M144: 0.75 | N144: Key Ideas and Details | O144: 16 | P144: 0.76 | Q144: 12.17 | R144: 5;6;8;9;10;12;13;16;23;24;39;42;43;45;46;50 | S144: Craft and Structure | T144: 26 | U144: 0.73 | V144: 19.07 | W144: 1;2;3;4;7;11;14;17;18;19;26;27;28;29;30;31;32;34;36;37;38;41;47;48;52;53 | X144: Integration of Knowledge and Ideas | Y144: 10 | Z144: 0.67 | AA144: 6.72 | AB144: 15;25;35;44;49;51;54;55;56;57 | AG144: 15;25;35;44;49;51;54;55;56;57
A145: 03 Reading Mid-Year 2014 - Grade 3 ELA | B145: 3101 | C145: 3101 3101 - Frank C. Martin K-8 Center | D145: 137 | E145: 52 | F145: 73.54 | G145: 38.24 | H145: 38 | I145: 0 | J145: 99 | K145: 0.28 | L145: 0 | M145: 0.72 | N145: Key Ideas and Details | O145: 16 | P145: 0.77 | Q145: 12.26 | R145: 5;6;8;9;10;12;13;16;23;24;39;42;43;45;46;50 | S145: Craft and Structure | T145: 26 | U145: 0.76 | V145: 19.64 | W145: 1;2;3;4;7;11;14;17;18;19;26;27;28;29;30;31;32;34;36;37;38;41;47;48;52;53 | X145: Integration of Knowledge and Ideas | Y145: 10 | Z145: 0.64 | AA145: 6.35 | AB145: 15;25;35;44;49;51;54;55;56;57 | AG145: 15;25;35;44;49;51;54;55;56;57
A146: 03 Reading Mid-Year 2014 - Grade 3 ELA | B146: 3111 | C146: 3111 3111 - Wesley Matthews Elementary | D146: 80 | E146: 52 | F146: 69.83 | G146: 36.31 | H146: 29 | I146: 0 | J146: 51 | K146: 0.36 | L146: 0 | M146: 0.64 | N146: Key Ideas and Details | O146: 16 | P146: 0.73 | Q146: 11.63 | R146: 5;6;8;9;10;12;13;16;23;24;39;42;43;45;46;50 | S146: Craft and Structure | T146: 26 | U146: 0.71 | V146: 18.49 | W146: 1;2;3;4;7;11;14;17;18;19;26;27;28;29;30;31;32;34;36;37;38;41;47;48;52;53 | X146: Integration of Knowledge and Ideas | Y146: 10 | Z146: 0.62 | AA146: 6.2 | AB146: 15;25;35;44;49;51;54;55;56;57 | AG146: 15;25;35;44;49;51;54;55;56;57
A147: 03 Reading Mid-Year 2014 - Grade 3 ELA | B147: 3141 | C147: 3141 3141 - Meadowlane Elementary | D147: 160 | E147: 52 | F147: 65.1 | G147: 33.85 | H147: 74 | I147: 0 | J147: 86 | K147: 0.46 | L147: 0 | M147: 0.54 | N147: Key Ideas and Details | O147: 16 | P147: 0.69 | Q147: 11.02 | R147: 5;6;8;9;10;12;13;16;23;24;39;42;43;45;46;50 | S147: Craft and Structure | T147: 26 | U147: 0.66 | V147: 17.24 | W147: 1;2;3;4;7;11;14;17;18;19;26;27;28;29;30;31;32;34;36;37;38;41;47;48;52;53 | X147: Integration of Knowledge and Ideas | Y147: 10 | Z147: 0.56 | AA147: 5.59 | AB147: 15;25;35;44;49;51;54;55;56;57 | AG147: 15;25;35;44;49;51;54;55;56;57
A148: 03 Reading Mid-Year 2014 - Grade 3 ELA | B148: 3181 | C148: 3181 3181 - Melrose Elementary | D148: 80 | E148: 52 | F148: 49.04 | G148: 25.5 | H148: 62 | I148: 0 | J148: 18 | K148: 0.78 | L148: 0 | M148: 0.23 | N148: Key Ideas and Details | O148: 16 | P148: 0.54 | Q148: 8.68 | R148: 5;6;8;9;10;12;13;16;23;24;39;42;43;45;46;50 | S148: Craft and Structure | T148: 26 | U148: 0.48 | V148: 12.61 | W148: 1;2;3;4;7;11;14;17;18;19;26;27;28;29;30;31;32;34;36;37;38;41;47;48;52;53 | X148: Integration of Knowledge and Ideas | Y148: 10 | Z148: 0.42 | AA148: 4.21 | AB148: 15;25;35;44;49;51;54;55;56;57 | AG148: 15;25;35;44;49;51;54;55;56;57
A149: 03 Reading Mid-Year 2014 - Grade 3 ELA | B149: 3191 | C149: 3191 3191 - Ada Merritt K-8 Center | D149: 45 | E149: 52 | F149: 74.49 | G149: 38.73 | H149: 9 | I149: 0 | J149: 36 | K149: 0.2 | L149: 0 | M149: 0.8 | N149: Key Ideas and Details | O149: 16 | P149: 0.78 | Q149: 12.51 | R149: 5;6;8;9;10;12;13;16;23;24;39;42;43;45;46;50 | S149: Craft and Structure | T149: 26 | U149: 0.77 | V149: 19.93 | W149: 1;2;3;4;7;11;14;17;18;19;26;27;28;29;30;31;32;34;36;37;38;41;47;48;52;53 | X149: Integration of Knowledge and Ideas | Y149: 10 | Z149: 0.63 | AA149: 6.29 | AB149: 15;25;35;44;49;51;54;55;56;57 | AG149: 15;25;35;44;49;51;54;55;56;57
A150: 03 Reading Mid-Year 2014 - Grade 3 ELA | B150: 3241 | C150: 3241 3241 - Miami Gardens Elementary | D150: 44 | E150: 52 | F150: 55.55 | G150: 28.89 | H150: 32 | I150: 0 | J150: 12 | K150: 0.73 | L150: 0 | M150: 0.27 | N150: Key Ideas and Details | O150: 16 | P150: 0.59 | Q150: 9.34 | R150: 5;6;8;9;10;12;13;16;23;24;39;42;43;45;46;50 | S150: Craft and Structure | T150: 26 | U150: 0.57 | V150: 14.91 | W150: 1;2;3;4;7;11;14;17;18;19;26;27;28;29;30;31;32;34;36;37;38;41;47;48;52;53 | X150: Integration of Knowledge and Ideas | Y150: 10 | Z150: 0.46 | AA150: 4.64 | AB150: 15;25;35;44;49;51;54;55;56;57 | AG150: 15;25;35;44;49;51;54;55;56;57
A151: 03 Reading Mid-Year 2014 - Grade 3 ELA | B151: 3261 | C151: 3261 3261 - Miami Heights Elementary | D151: 179 | E151: 52 | F151: 58.43 | G151: 30.39 | H151: 115 | I151: 0 | J151: 64 | K151: 0.64 | L151: 0 | M151: 0.36 | N151: Key Ideas and Details | O151: 16 | P151: 0.63 | Q151: 9.98 | R151: 5;6;8;9;10;12;13;16;23;24;39;42;43;45;46;50 | S151: Craft and Structure | T151: 26 | U151: 0.6 | V151: 15.57 | W151: 1;2;3;4;7;11;14;17;18;19;26;27;28;29;30;31;32;34;36;37;38;41;47;48;52;53 | X151: Integration of Knowledge and Ideas | Y151: 10 | Z151: 0.48 | AA151: 4.83 | AB151: 15;25;35;44;49;51;54;55;56;57 | AG151: 15;25;35;44;49;51;54;55;56;57
A152: 03 Reading Mid-Year 2014 - Grade 3 ELA | B152: 3281 | C152: 3281 3281 - Miami Lakes K-8 Center | D152: 157 | E152: 52 | F152: 60.74 | G152: 31.59 | H152: 85 | I152: 0 | J152: 72 | K152: 0.54 | L152: 0 | M152: 0.46 | N152: Key Ideas and Details | O152: 16 | P152: 0.64 | Q152: 10.17 | R152: 5;6;8;9;10;12;13;16;23;24;39;42;43;45;46;50 | S152: Craft and Structure | T152: 26 | U152: 0.63 | V152: 16.5 | W152: 1;2;3;4;7;11;14;17;18;19;26;27;28;29;30;31;32;34;36;37;38;41;47;48;52;53 | X152: Integration of Knowledge and Ideas | Y152: 10 | Z152: 0.49 | AA152: 4.92 | AB152: 15;25;35;44;49;51;54;55;56;57 | AG152: 15;25;35;44;49;51;54;55;56;57
A153: 03 Reading Mid-Year 2014 - Grade 3 ELA | B153: 3301 | C153: 3301 3301 - Miami Park Elementary | D153: 54 | E153: 52 | F153: 51.32 | G153: 26.69 | H153: 42 | I153: 0 | J153: 12 | K153: 0.78 | L153: 0 | M153: 0.22 | N153: Key Ideas and Details | O153: 16 | P153: 0.55 | Q153: 8.8 | R153: 5;6;8;9;10;12;13;16;23;24;39;42;43;45;46;50 | S153: Craft and Structure | T153: 26 | U153: 0.52 | V153: 13.46 | W153: 1;2;3;4;7;11;14;17;18;19;26;27;28;29;30;31;32;34;36;37;38;41;47;48;52;53 | X153: Integration of Knowledge and Ideas | Y153: 10 | Z153: 0.44 | AA153: 4.43 | AB153: 15;25;35;44;49;51;54;55;56;57 | AG153: 15;25;35;44;49;51;54;55;56;57
A154: 03 Reading Mid-Year 2014 - Grade 3 ELA | B154: 3341 | C154: 3341 3341 - Miami Shores Elementary | D154: 146 | E154: 52 | F154: 63.65 | G154: 33.1 | H154: 75 | I154: 0 | J154: 71 | K154: 0.51 | L154: 0 | M154: 0.49 | N154: Key Ideas and Details | O154: 16 | P154: 0.66 | Q154: 10.53 | R154: 5;6;8;9;10;12;13;16;23;24;39;42;43;45;46;50 | S154: Craft and Structure | T154: 26 | U154: 0.66 | V154: 17.24 | W154: 1;2;3;4;7;11;14;17;18;19;26;27;28;29;30;31;32;34;36;37;38;41;47;48;52;53 | X154: Integration of Knowledge and Ideas | Y154: 10 | Z154: 0.53 | AA154: 5.32 | AB154: 15;25;35;44;49;51;54;55;56;57 | AG154: 15;25;35;44;49;51;54;55;56;57
A155: 03 Reading Mid-Year 2014 - Grade 3 ELA | B155: 3381 | C155: 3381 3381 - Miami Springs Elementary | D155: 73 | E155: 52 | F155: 65.62 | G155: 34.12 | H155: 35 | I155: 0 | J155: 38 | K155: 0.48 | L155: 0 | M155: 0.52 | N155: Key Ideas and Details | O155: 16 | P155: 0.71 | Q155: 11.37 | R155: 5;6;8;9;10;12;13;16;23;24;39;42;43;45;46;50 | S155: Craft and Structure | T155: 26 | U155: 0.66 | V155: 17.08 | W155: 1;2;3;4;7;11;14;17;18;19;26;27;28;29;30;31;32;34;36;37;38;41;47;48;52;53 | X155: Integration of Knowledge and Ideas | Y155: 10 | Z155: 0.57 | AA155: 5.67 | AB155: 15;25;35;44;49;51;54;55;56;57 | AG155: 15;25;35;44;49;51;54;55;56;57
A156: 03 Reading Mid-Year 2014 - Grade 3 ELA | B156: 3421 | C156: 3421 3421 - M.a. Milam K-8 Center | D156: 76 | E156: 52 | F156: 59.89 | G156: 31.14 | H156: 43 | I156: 0 | J156: 33 | K156: 0.57 | L156: 0 | M156: 0.43 | N156: Key Ideas and Details | O156: 16 | P156: 0.62 | Q156: 9.91 | R156: 5;6;8;9;10;12;13;16;23;24;39;42;43;45;46;50 | S156: Craft and Structure | T156: 26 | U156: 0.62 | V156: 16.13 | W156: 1;2;3;4;7;11;14;17;18;19;26;27;28;29;30;31;32;34;36;37;38;41;47;48;52;53 | X156: Integration of Knowledge and Ideas | Y156: 10 | Z156: 0.51 | AA156: 5.11 | AB156: 15;25;35;44;49;51;54;55;56;57 | AG156: 15;25;35;44;49;51;54;55;56;57
A157: 03 Reading Mid-Year 2014 - Grade 3 ELA | B157: 3431 | C157: 3431 3431 - Phyllis Ruth Miller Elementary | D157: 95 | E157: 52 | F157: 63.16 | G157: 32.84 | H157: 53 | I157: 0 | J157: 42 | K157: 0.56 | L157: 0 | M157: 0.44 | N157: Key Ideas and Details | O157: 16 | P157: 0.67 | Q157: 10.64 | R157: 5;6;8;9;10;12;13;16;23;24;39;42;43;45;46;50 | S157: Craft and Structure | T157: 26 | U157: 0.65 | V157: 16.77 | W157: 1;2;3;4;7;11;14;17;18;19;26;27;28;29;30;31;32;34;36;37;38;41;47;48;52;53 | X157: Integration of Knowledge and Ideas | Y157: 10 | Z157: 0.54 | AA157: 5.43 | AB157: 15;25;35;44;49;51;54;55;56;57 | AG157: 15;25;35;44;49;51;54;55;56;57
A158: 03 Reading Mid-Year 2014 - Grade 3 ELA | B158: 3501 | C158: 3501 3501 - Morningside K-8 Academy | D158: 71 | E158: 52 | F158: 55.85 | G158: 29.04 | H158: 50 | I158: 0 | J158: 21 | K158: 0.7 | L158: 0 | M158: 0.3 | N158: Key Ideas and Details | O158: 16 | P158: 0.58 | Q158: 9.27 | R158: 5;6;8;9;10;12;13;16;23;24;39;42;43;45;46;50 | S158: Craft and Structure | T158: 26 | U158: 0.57 | V158: 14.96 | W158: 1;2;3;4;7;11;14;17;18;19;26;27;28;29;30;31;32;34;36;37;38;41;47;48;52;53 | X158: Integration of Knowledge and Ideas | Y158: 10 | Z158: 0.48 | AA158: 4.82 | AB158: 15;25;35;44;49;51;54;55;56;57 | AG158: 15;25;35;44;49;51;54;55;56;57
A159: 03 Reading Mid-Year 2014 - Grade 3 ELA | B159: 3541 | C159: 3541 3541 - Robert Russa Moton Elementary | D159: 65 | E159: 52 | F159: 59.29 | G159: 30.83 | H159: 44 | I159: 0 | J159: 21 | K159: 0.68 | L159: 0 | M159: 0.32 | N159: Key Ideas and Details | O159: 16 | P159: 0.66 | Q159: 10.51 | R159: 5;6;8;9;10;12;13;16;23;24;39;42;43;45;46;50 | S159: Craft and Structure | T159: 26 | U159: 0.59 | V159: 15.45 | W159: 1;2;3;4;7;11;14;17;18;19;26;27;28;29;30;31;32;34;36;37;38;41;47;48;52;53 | X159: Integration of Knowledge and Ideas | Y159: 10 | Z159: 0.49 | AA159: 4.88 | AB159: 15;25;35;44;49;51;54;55;56;57 | AG159: 15;25;35;44;49;51;54;55;56;57
A160: 03 Reading Mid-Year 2014 - Grade 3 ELA | B160: 3581 | C160: 3581 3581 - Myrtle Grove K-8 Center | D160: 69 | E160: 52 | F160: 57.83 | G160: 30.07 | H160: 43 | I160: 0 | J160: 26 | K160: 0.62 | L160: 0 | M160: 0.38 | N160: Key Ideas and Details | O160: 16 | P160: 0.61 | Q160: 9.77 | R160: 5;6;8;9;10;12;13;16;23;24;39;42;43;45;46;50 | S160: Craft and Structure | T160: 26 | U160: 0.61 | V160: 15.9 | W160: 1;2;3;4;7;11;14;17;18;19;26;27;28;29;30;31;32;34;36;37;38;41;47;48;52;53 | X160: Integration of Knowledge and Ideas | Y160: 10 | Z160: 0.44 | AA160: 4.41 | AB160: 15;25;35;44;49;51;54;55;56;57 | AG160: 15;25;35;44;49;51;54;55;56;57
A161: 03 Reading Mid-Year 2014 - Grade 3 ELA | B161: 3610 | C161: 3610 3610 - Keys Gate Charter School | D161: 1 | E161: 52 | F161: 76.92 | G161: 40 | H161: 0 | I161: 0 | J161: 1 | K161: 0 | L161: 0 | M161: 1 | N161: Key Ideas and Details | O161: 16 | P161: 0.94 | Q161: 15 | R161: 5;6;8;9;10;12;13;16;23;24;39;42;43;45;46;50 | S161: Craft and Structure | T161: 26 | U161: 0.73 | V161: 19 | W161: 1;2;3;4;7;11;14;17;18;19;26;27;28;29;30;31;32;34;36;37;38;41;47;48;52;53 | X161: Integration of Knowledge and Ideas | Y161: 10 | Z161: 0.6 | AA161: 6 | AB161: 15;25;35;44;49;51;54;55;56;57 | AG161: 15;25;35;44;49;51;54;55;56;57
A162: 03 Reading Mid-Year 2014 - Grade 3 ELA | B162: 3621 | C162: 3621 3621 - Coconut Palm K-8 Academy | D162: 168 | E162: 52 | F162: 59.23 | G162: 30.8 | H162: 103 | I162: 0 | J162: 65 | K162: 0.61 | L162: 0 | M162: 0.39 | N162: Key Ideas and Details | O162: 16 | P162: 0.64 | Q162: 10.24 | R162: 5;6;8;9;10;12;13;16;23;24;39;42;43;45;46;50 | S162: Craft and Structure | T162: 26 | U162: 0.61 | V162: 15.77 | W162: 1;2;3;4;7;11;14;17;18;19;26;27;28;29;30;31;32;34;36;37;38;41;47;48;52;53 | X162: Integration of Knowledge and Ideas | Y162: 10 | Z162: 0.48 | AA162: 4.78 | AB162: 15;25;35;44;49;51;54;55;56;57 | AG162: 15;25;35;44;49;51;54;55;56;57
A163: 03 Reading Mid-Year 2014 - Grade 3 ELA | B163: 3661 | C163: 3661 3661 - Natural Bridge Elementary | D163: 98 | E163: 52 | F163: 58.2 | G163: 30.27 | H163: 65 | I163: 0 | J163: 33 | K163: 0.66 | L163: 0 | M163: 0.34 | N163: Key Ideas and Details | O163: 16 | P163: 0.63 | Q163: 10.05 | R163: 5;6;8;9;10;12;13;16;23;24;39;42;43;45;46;50 | S163: Craft and Structure | T163: 26 | U163: 0.59 | V163: 15.3 | W163: 1;2;3;4;7;11;14;17;18;19;26;27;28;29;30;31;32;34;36;37;38;41;47;48;52;53 | X163: Integration of Knowledge and Ideas | Y163: 10 | Z163: 0.49 | AA163: 4.92 | AB163: 15;25;35;44;49;51;54;55;56;57 | AG163: 15;25;35;44;49;51;54;55;56;57
A164: 03 Reading Mid-Year 2014 - Grade 3 ELA | B164: 3701 | C164: 3701 3701 - Norland Elementary | D164: 101 | E164: 52 | F164: 60.93 | G164: 31.68 | H164: 65 | I164: 0 | J164: 36 | K164: 0.64 | L164: 0 | M164: 0.36 | N164: Key Ideas and Details | O164: 16 | P164: 0.66 | Q164: 10.6 | R164: 5;6;8;9;10;12;13;16;23;24;39;42;43;45;46;50 | S164: Craft and Structure | T164: 26 | U164: 0.61 | V164: 15.83 | W164: 1;2;3;4;7;11;14;17;18;19;26;27;28;29;30;31;32;34;36;37;38;41;47;48;52;53 | X164: Integration of Knowledge and Ideas | Y164: 10 | Z164: 0.52 | AA164: 5.25 | AB164: 15;25;35;44;49;51;54;55;56;57 | AG164: 15;25;35;44;49;51;54;55;56;57
A165: 03 Reading Mid-Year 2014 - Grade 3 ELA | B165: 3741 | C165: 3741 3741 - North Beach Elementary | D165: 166 | E165: 52 | F165: 72.38 | G165: 37.64 | H165: 44 | I165: 0 | J165: 122 | K165: 0.27 | L165: 0 | M165: 0.73 | N165: Key Ideas and Details | O165: 16 | P165: 0.75 | Q165: 11.9 | R165: 5;6;8;9;10;12;13;16;23;24;39;42;43;45;46;50 | S165: Craft and Structure | T165: 26 | U165: 0.75 | V165: 19.4 | W165: 1;2;3;4;7;11;14;17;18;19;26;27;28;29;30;31;32;34;36;37;38;41;47;48;52;53 | X165: Integration of Knowledge and Ideas | Y165: 10 | Z165: 0.63 | AA165: 6.34 | AB165: 15;25;35;44;49;51;54;55;56;57 | AG165: 15;25;35;44;49;51;54;55;56;57
A166: 03 Reading Mid-Year 2014 - Grade 3 ELA | B166: 3781 | C166: 3781 3781 - Barbara Hawkins Elementary | D166: 55 | E166: 52 | F166: 56.64 | G166: 29.45 | H166: 35 | I166: 0 | J166: 20 | K166: 0.64 | L166: 0 | M166: 0.36 | N166: Key Ideas and Details | O166: 16 | P166: 0.62 | Q166: 9.91 | R166: 5;6;8;9;10;12;13;16;23;24;39;42;43;45;46;50 | S166: Craft and Structure | T166: 26 | U166: 0.58 | V166: 15.16 | W166: 1;2;3;4;7;11;14;17;18;19;26;27;28;29;30;31;32;34;36;37;38;41;47;48;52;53 | X166: Integration of Knowledge and Ideas | Y166: 10 | Z166: 0.44 | AA166: 4.38 | AB166: 15;25;35;44;49;51;54;55;56;57 | AG166: 15;25;35;44;49;51;54;55;56;57
A167: 03 Reading Mid-Year 2014 - Grade 3 ELA | B167: 3821 | C167: 3821 3821 - North County K-8 Center | D167: 54 | E167: 52 | F167: 51 | G167: 26.52 | H167: 41 | I167: 0 | J167: 13 | K167: 0.76 | L167: 0 | M167: 0.24 | N167: Key Ideas and Details | O167: 16 | P167: 0.57 | Q167: 9.07 | R167: 5;6;8;9;10;12;13;16;23;24;39;42;43;45;46;50 | S167: Craft and Structure | T167: 26 | U167: 0.51 | V167: 13.3 | W167: 1;2;3;4;7;11;14;17;18;19;26;27;28;29;30;31;32;34;36;37;38;41;47;48;52;53 | X167: Integration of Knowledge and Ideas | Y167: 10 | Z167: 0.41 | AA167: 4.15 | AB167: 15;25;35;44;49;51;54;55;56;57 | AG167: 15;25;35;44;49;51;54;55;56;57
A168: 03 Reading Mid-Year 2014 - Grade 3 ELA | B168: 3861 | C168: 3861 3861 - North Glade Elementary | D168: 47 | E168: 52 | F168: 61.25 | G168: 31.85 | H168: 30 | I168: 0 | J168: 17 | K168: 0.64 | L168: 0 | M168: 0.36 | N168: Key Ideas and Details | O168: 16 | P168: 0.67 | Q168: 10.79 | R168: 5;6;8;9;10;12;13;16;23;24;39;42;43;45;46;50 | S168: Craft and Structure | T168: 26 | U168: 0.63 | V168: 16.3 | W168: 1;2;3;4;7;11;14;17;18;19;26;27;28;29;30;31;32;34;36;37;38;41;47;48;52;53 | X168: Integration of Knowledge and Ideas | Y168: 10 | Z168: 0.48 | AA168: 4.77 | AB168: 15;25;35;44;49;51;54;55;56;57 | AG168: 15;25;35;44;49;51;54;55;56;57
A169: 03 Reading Mid-Year 2014 - Grade 3 ELA | B169: 3901 | C169: 3901 3901 - North Hialeah Elementary | D169: 111 | E169: 52 | F169: 52.49 | G169: 27.3 | H169: 75 | I169: 0 | J169: 36 | K169: 0.68 | L169: 0 | M169: 0.32 | N169: Key Ideas and Details | O169: 16 | P169: 0.55 | Q169: 8.86 | R169: 5;6;8;9;10;12;13;16;23;24;39;42;43;45;46;50 | S169: Craft and Structure | T169: 26 | U169: 0.53 | V169: 13.73 | W169: 1;2;3;4;7;11;14;17;18;19;26;27;28;29;30;31;32;34;36;37;38;41;47;48;52;53 | X169: Integration of Knowledge and Ideas | Y169: 10 | Z169: 0.47 | AA169: 4.71 | AB169: 15;25;35;44;49;51;54;55;56;57 | AG169: 15;25;35;44;49;51;54;55;56;57
A170: 03 Reading Mid-Year 2014 - Grade 3 ELA | B170: 3941 | C170: 3941 3941 - North Miami Elementary | D170: 91 | E170: 52 | F170: 55.35 | G170: 28.78 | H170: 67 | I170: 0 | J170: 24 | K170: 0.74 | L170: 0 | M170: 0.26 | N170: Key Ideas and Details | O170: 16 | P170: 0.6 | Q170: 9.53 | R170: 5;6;8;9;10;12;13;16;23;24;39;42;43;45;46;50 | S170: Craft and Structure | T170: 26 | U170: 0.57 | V170: 14.7 | W170: 1;2;3;4;7;11;14;17;18;19;26;27;28;29;30;31;32;34;36;37;38;41;47;48;52;53 | X170: Integration of Knowledge and Ideas | Y170: 10 | Z170: 0.45 | AA170: 4.55 | AB170: 15;25;35;44;49;51;54;55;56;57 | AG170: 15;25;35;44;49;51;54;55;56;57
A171: 03 Reading Mid-Year 2014 - Grade 3 ELA | B171: 3981 | C171: 3981 3981 - North Twin Lakes Elementary | D171: 93 | E171: 52 | F171: 64.02 | G171: 33.29 | H171: 49 | I171: 0 | J171: 44 | K171: 0.53 | L171: 0 | M171: 0.47 | N171: Key Ideas and Details | O171: 16 | P171: 0.69 | Q171: 10.95 | R171: 5;6;8;9;10;12;13;16;23;24;39;42;43;45;46;50 | S171: Craft and Structure | T171: 26 | U171: 0.65 | V171: 16.82 | W171: 1;2;3;4;7;11;14;17;18;19;26;27;28;29;30;31;32;34;36;37;38;41;47;48;52;53 | X171: Integration of Knowledge and Ideas | Y171: 10 | Z171: 0.55 | AA171: 5.53 | AB171: 15;25;35;44;49;51;54;55;56;57 | AG171: 15;25;35;44;49;51;54;55;56;57
A172: 03 Reading Mid-Year 2014 - Grade 3 ELA | B172: 4000 | C172: 4000 4000 - Miami Children''s Museum | D172: 50 | E172: 52 | F172: 71.35 | G172: 37.1 | H172: 21 | I172: 0 | J172: 29 | K172: 0.42 | L172: 0 | M172: 0.58 | N172: Key Ideas and Details | O172: 16 | P172: 0.73 | Q172: 11.66 | R172: 5;6;8;9;10;12;13;16;23;24;39;42;43;45;46;50 | S172: Craft and Structure | T172: 26 | U172: 0.74 | V172: 19.32 | W172: 1;2;3;4;7;11;14;17;18;19;26;27;28;29;30;31;32;34;36;37;38;41;47;48;52;53 | X172: Integration of Knowledge and Ideas | Y172: 10 | Z172: 0.61 | AA172: 6.12 | AB172: 15;25;35;44;49;51;54;55;56;57 | AG172: 15;25;35;44;49;51;54;55;56;57
A173: 03 Reading Mid-Year 2014 - Grade 3 ELA | B173: 4001 | C173: 4001 4001 - Norwood Elementary | D173: 91 | E173: 52 | F173: 58.69 | G173: 30.52 | H173: 58 | I173: 0 | J173: 33 | K173: 0.64 | L173: 0 | M173: 0.36 | N173: Key Ideas and Details | O173: 16 | P173: 0.63 | Q173: 10.02 | R173: 5;6;8;9;10;12;13;16;23;24;39;42;43;45;46;50 | S173: Craft and Structure | T173: 26 | U173: 0.59 | V173: 15.35 | W173: 1;2;3;4;7;11;14;17;18;19;26;27;28;29;30;31;32;34;36;37;38;41;47;48;52;53 | X173: Integration of Knowledge and Ideas | Y173: 10 | Z173: 0.51 | AA173: 5.14 | AB173: 15;25;35;44;49;51;54;55;56;57 | AG173: 15;25;35;44;49;51;54;55;56;57
A174: 03 Reading Mid-Year 2014 - Grade 3 ELA | B174: 4012 | C174: 4012 4012 - Somerset Acad At Silver Palms | D174: 88 | E174: 52 | F174: 73.65 | G174: 38.3 | H174: 28 | I174: 0 | J174: 60 | K174: 0.32 | L174: 0 | M174: 0.68 | N174: Key Ideas and Details | O174: 16 | P174: 0.75 | Q174: 11.95 | R174: 5;6;8;9;10;12;13;16;23;24;39;42;43;45;46;50 | S174: Craft and Structure | T174: 26 | U174: 0.76 | V174: 19.84 | W174: 1;2;3;4;7;11;14;17;18;19;26;27;28;29;30;31;32;34;36;37;38;41;47;48;52;53 | X174: Integration of Knowledge and Ideas | Y174: 10 | Z174: 0.65 | AA174: 6.5 | AB174: 15;25;35;44;49;51;54;55;56;57 | AG174: 15;25;35;44;49;51;54;55;56;57
A175: 03 Reading Mid-Year 2014 - Grade 3 ELA | B175: 4021 | C175: 4021 4021 - Oak Grove Elementary | D175: 98 | E175: 52 | F175: 52.02 | G175: 27.05 | H175: 77 | I175: 0 | J175: 21 | K175: 0.79 | L175: 0 | M175: 0.21 | N175: Key Ideas and Details | O175: 16 | P175: 0.57 | Q175: 9.1 | R175: 5;6;8;9;10;12;13;16;23;24;39;42;43;45;46;50 | S175: Craft and Structure | T175: 26 | U175: 0.53 | V175: 13.72 | W175: 1;2;3;4;7;11;14;17;18;19;26;27;28;29;30;31;32;34;36;37;38;41;47;48;52;53 | X175: Integration of Knowledge and Ideas | Y175: 10 | Z175: 0.42 | AA175: 4.22 | AB175: 15;25;35;44;49;51;54;55;56;57 | AG175: 15;25;35;44;49;51;54;55;56;57
A176: 03 Reading Mid-Year 2014 - Grade 3 ELA | B176: 4031 | C176: 4031 4031 - Gateway Environmental K-8 | D176: 245 | E176: 52 | F176: 56.15 | G176: 29.2 | H176: 171 | I176: 0 | J176: 74 | K176: 0.7 | L176: 0 | M176: 0.3 | N176: Key Ideas and Details | O176: 16 | P176: 0.58 | Q176: 9.27 | R176: 5;6;8;9;10;12;13;16;23;24;39;42;43;45;46;50 | S176: Craft and Structure | T176: 26 | U176: 0.58 | V176: 15.12 | W176: 1;2;3;4;7;11;14;17;18;19;26;27;28;29;30;31;32;34;36;37;38;41;47;48;52;53 | X176: Integration of Knowledge and Ideas | Y176: 10 | Z176: 0.48 | AA176: 4.81 | AB176: 15;25;35;44;49;51;54;55;56;57 | AG176: 15;25;35;44;49;51;54;55;56;57
A177: 03 Reading Mid-Year 2014 - Grade 3 ELA | B177: 4061 | C177: 4061 4061 - Ojus Elementary | D177: 163 | E177: 52 | F177: 66.39 | G177: 34.52 | H177: 77 | I177: 0 | J177: 86 | K177: 0.47 | L177: 0 | M177: 0.53 | N177: Key Ideas and Details | O177: 16 | P177: 0.72 | Q177: 11.5 | R177: 5;6;8;9;10;12;13;16;23;24;39;42;43;45;46;50 | S177: Craft and Structure | T177: 26 | U177: 0.67 | V177: 17.36 | W177: 1;2;3;4;7;11;14;17;18;19;26;27;28;29;30;31;32;34;36;37;38;41;47;48;52;53 | X177: Integration of Knowledge and Ideas | Y177: 10 | Z177: 0.57 | AA177: 5.67 | AB177: 15;25;35;44;49;51;54;55;56;57 | AG177: 15;25;35;44;49;51;54;55;56;57
A178: 03 Reading Mid-Year 2014 - Grade 3 ELA | B178: 4071 | C178: 4071 4071 - Agenoria S. Paschal/olinda El | D178: 65 | E178: 52 | F178: 56.36 | G178: 29.31 | H178: 45 | I178: 0 | J178: 20 | K178: 0.69 | L178: 0 | M178: 0.31 | N178: Key Ideas and Details | O178: 16 | P178: 0.59 | Q178: 9.38 | R178: 5;6;8;9;10;12;13;16;23;24;39;42;43;45;46;50 | S178: Craft and Structure | T178: 26 | U178: 0.6 | V178: 15.72 | W178: 1;2;3;4;7;11;14;17;18;19;26;27;28;29;30;31;32;34;36;37;38;41;47;48;52;53 | X178: Integration of Knowledge and Ideas | Y178: 10 | Z178: 0.42 | AA178: 4.2 | AB178: 15;25;35;44;49;51;54;55;56;57 | AG178: 15;25;35;44;49;51;54;55;56;57
A179: 03 Reading Mid-Year 2014 - Grade 3 ELA | B179: 4081 | C179: 4081 4081 - Primary Learning Center | D179: 54 | E179: 52 | F179: 77.64 | G179: 40.37 | H179: 11 | I179: 0 | J179: 43 | K179: 0.2 | L179: 0 | M179: 0.8 | N179: Key Ideas and Details | O179: 16 | P179: 0.8 | Q179: 12.83 | R179: 5;6;8;9;10;12;13;16;23;24;39;42;43;45;46;50 | S179: Craft and Structure | T179: 26 | U179: 0.8 | V179: 20.74 | W179: 1;2;3;4;7;11;14;17;18;19;26;27;28;29;30;31;32;34;36;37;38;41;47;48;52;53 | X179: Integration of Knowledge and Ideas | Y179: 10 | Z179: 0.68 | AA179: 6.8 | AB179: 15;25;35;44;49;51;54;55;56;57 | AG179: 15;25;35;44;49;51;54;55;56;57
A180: 03 Reading Mid-Year 2014 - Grade 3 ELA | B180: 4091 | C180: 4091 4091 - Olympia Heights Elementary | D180: 83 | E180: 52 | F180: 60.56 | G180: 31.49 | H180: 50 | I180: 0 | J180: 33 | K180: 0.6 | L180: 0 | M180: 0.4 | N180: Key Ideas and Details | O180: 16 | P180: 0.65 | Q180: 10.33 | R180: 5;6;8;9;10;12;13;16;23;24;39;42;43;45;46;50 | S180: Craft and Structure | T180: 26 | U180: 0.61 | V180: 15.77 | W180: 1;2;3;4;7;11;14;17;18;19;26;27;28;29;30;31;32;34;36;37;38;41;47;48;52;53 | X180: Integration of Knowledge and Ideas | Y180: 10 | Z180: 0.54 | AA180: 5.4 | AB180: 15;25;35;44;49;51;54;55;56;57 | AG180: 15;25;35;44;49;51;54;55;56;57
A181: 03 Reading Mid-Year 2014 - Grade 3 ELA | B181: 4121 | C181: 4121 4121 - Dr. Robert B. Ingram El | D181: 72 | E181: 52 | F181: 52.64 | G181: 27.38 | H181: 57 | I181: 0 | J181: 15 | K181: 0.79 | L181: 0 | M181: 0.21 | N181: Key Ideas and Details | O181: 16 | P181: 0.6 | Q181: 9.53 | R181: 5;6;8;9;10;12;13;16;23;24;39;42;43;45;46;50 | S181: Craft and Structure | T181: 26 | U181: 0.53 | V181: 13.74 | W181: 1;2;3;4;7;11;14;17;18;19;26;27;28;29;30;31;32;34;36;37;38;41;47;48;52;53 | X181: Integration of Knowledge and Ideas | Y181: 10 | Z181: 0.41 | AA181: 4.11 | AB181: 15;25;35;44;49;51;54;55;56;57 | AG181: 15;25;35;44;49;51;54;55;56;57
A182: 03 Reading Mid-Year 2014 - Grade 3 ELA | B182: 4171 | C182: 4171 4171 - Orchard Villa Elementary | D182: 57 | E182: 52 | F182: 60.36 | G182: 31.39 | H182: 34 | I182: 0 | J182: 23 | K182: 0.6 | L182: 0 | M182: 0.4 | N182: Key Ideas and Details | O182: 16 | P182: 0.63 | Q182: 10.05 | R182: 5;6;8;9;10;12;13;16;23;24;39;42;43;45;46;50 | S182: Craft and Structure | T182: 26 | U182: 0.63 | V182: 16.35 | W182: 1;2;3;4;7;11;14;17;18;19;26;27;28;29;30;31;32;34;36;37;38;41;47;48;52;53 | X182: Integration of Knowledge and Ideas | Y182: 10 | Z182: 0.5 | AA182: 4.98 | AB182: 15;25;35;44;49;51;54;55;56;57 | AG182: 15;25;35;44;49;51;54;55;56;57
A183: 03 Reading Mid-Year 2014 - Grade 3 ELA | B183: 4221 | C183: 4221 4221 - Palmetto Elementary | D183: 117 | E183: 52 | F183: 69.05 | G183: 35.91 | H183: 41 | I183: 0 | J183: 76 | K183: 0.35 | L183: 0 | M183: 0.65 | N183: Key Ideas and Details | O183: 16 | P183: 0.71 | Q183: 11.36 | R183: 5;6;8;9;10;12;13;16;23;24;39;42;43;45;46;50 | S183: Craft and Structure | T183: 26 | U183: 0.71 | V183: 18.49 | W183: 1;2;3;4;7;11;14;17;18;19;26;27;28;29;30;31;32;34;36;37;38;41;47;48;52;53 | X183: Integration of Knowledge and Ideas | Y183: 10 | Z183: 0.61 | AA183: 6.06 | AB183: 15;25;35;44;49;51;54;55;56;57 | AG183: 15;25;35;44;49;51;54;55;56;57
A184: 03 Reading Mid-Year 2014 - Grade 3 ELA | B184: 4241 | C184: 4241 4241 - Palm Lakes Elementary | D184: 157 | E184: 52 | F184: 55.83 | G184: 29.03 | H184: 103 | I184: 0 | J184: 54 | K184: 0.66 | L184: 0 | M184: 0.34 | N184: Key Ideas and Details | O184: 16 | P184: 0.6 | Q184: 9.55 | R184: 5;6;8;9;10;12;13;16;23;24;39;42;43;45;46;50 | S184: Craft and Structure | T184: 26 | U184: 0.57 | V184: 14.7 | W184: 1;2;3;4;7;11;14;17;18;19;26;27;28;29;30;31;32;34;36;37;38;41;47;48;52;53 | X184: Integration of Knowledge and Ideas | Y184: 10 | Z184: 0.48 | AA184: 4.78 | AB184: 15;25;35;44;49;51;54;55;56;57 | AG184: 15;25;35;44;49;51;54;55;56;57
A185: 03 Reading Mid-Year 2014 - Grade 3 ELA | B185: 4261 | C185: 4261 4261 - Palm Springs Elementary | D185: 129 | E185: 52 | F185: 54.99 | G185: 28.6 | H185: 93 | I185: 0 | J185: 36 | K185: 0.72 | L185: 0 | M185: 0.28 | N185: Key Ideas and Details | O185: 16 | P185: 0.6 | Q185: 9.55 | R185: 5;6;8;9;10;12;13;16;23;24;39;42;43;45;46;50 | S185: Craft and Structure | T185: 26 | U185: 0.56 | V185: 14.52 | W185: 1;2;3;4;7;11;14;17;18;19;26;27;28;29;30;31;32;34;36;37;38;41;47;48;52;53 | X185: Integration of Knowledge and Ideas | Y185: 10 | Z185: 0.45 | AA185: 4.53 | AB185: 15;25;35;44;49;51;54;55;56;57 | AG185: 15;25;35;44;49;51;54;55;56;57
A186: 03 Reading Mid-Year 2014 - Grade 3 ELA | B186: 4281 | C186: 4281 4281 - Palm Springs North Elementary | D186: 149 | E186: 52 | F186: 66.7 | G186: 34.68 | H186: 63 | I186: 0 | J186: 86 | K186: 0.42 | L186: 0 | M186: 0.58 | N186: Key Ideas and Details | O186: 16 | P186: 0.7 | Q186: 11.15 | R186: 5;6;8;9;10;12;13;16;23;24;39;42;43;45;46;50 | S186: Craft and Structure | T186: 26 | U186: 0.68 | V186: 17.79 | W186: 1;2;3;4;7;11;14;17;18;19;26;27;28;29;30;31;32;34;36;37;38;41;47;48;52;53 | X186: Integration of Knowledge and Ideas | Y186: 10 | Z186: 0.57 | AA186: 5.74 | AB186: 15;25;35;44;49;51;54;55;56;57 | AG186: 15;25;35;44;49;51;54;55;56;57
A187: 03 Reading Mid-Year 2014 - Grade 3 ELA | B187: 4301 | C187: 4301 4301 - Parkview Elementary | D187: 53 | E187: 52 | F187: 56.6 | G187: 29.43 | H187: 38 | I187: 0 | J187: 15 | K187: 0.72 | L187: 0 | M187: 0.28 | N187: Key Ideas and Details | O187: 16 | P187: 0.56 | Q187: 9 | R187: 5;6;8;9;10;12;13;16;23;24;39;42;43;45;46;50 | S187: Craft and Structure | T187: 26 | U187: 0.6 | V187: 15.7 | W187: 1;2;3;4;7;11;14;17;18;19;26;27;28;29;30;31;32;34;36;37;38;41;47;48;52;53 | X187: Integration of Knowledge and Ideas | Y187: 10 | Z187: 0.47 | AA187: 4.74 | AB187: 15;25;35;44;49;51;54;55;56;57 | AG187: 15;25;35;44;49;51;54;55;56;57
A188: 03 Reading Mid-Year 2014 - Grade 3 ELA | B188: 4341 | C188: 4341 4341 - Parkway Elementary | D188: 61 | E188: 52 | F188: 58.95 | G188: 30.66 | H188: 40 | I188: 0 | J188: 21 | K188: 0.66 | L188: 0 | M188: 0.34 | N188: Key Ideas and Details | O188: 16 | P188: 0.65 | Q188: 10.3 | R188: 5;6;8;9;10;12;13;16;23;24;39;42;43;45;46;50 | S188: Craft and Structure | T188: 26 | U188: 0.6 | V188: 15.48 | W188: 1;2;3;4;7;11;14;17;18;19;26;27;28;29;30;31;32;34;36;37;38;41;47;48;52;53 | X188: Integration of Knowledge and Ideas | Y188: 10 | Z188: 0.49 | AA188: 4.89 | AB188: 15;25;35;44;49;51;54;55;56;57 | AG188: 15;25;35;44;49;51;54;55;56;57
A189: 03 Reading Mid-Year 2014 - Grade 3 ELA | B189: 4381 | C189: 4381 4381 - Dr Henry E Perrine Academy | D189: 153 | E189: 52 | F189: 67.17 | G189: 34.93 | H189: 67 | I189: 0 | J189: 86 | K189: 0.44 | L189: 0 | M189: 0.56 | N189: Key Ideas and Details | O189: 16 | P189: 0.69 | Q189: 10.97 | R189: 5;6;8;9;10;12;13;16;23;24;39;42;43;45;46;50 | S189: Craft and Structure | T189: 26 | U189: 0.71 | V189: 18.35 | W189: 1;2;3;4;7;11;14;17;18;19;26;27;28;29;30;31;32;34;36;37;38;41;47;48;52;53 | X189: Integration of Knowledge and Ideas | Y189: 10 | Z189: 0.56 | AA189: 5.6 | AB189: 15;25;35;44;49;51;54;55;56;57 | AG189: 15;25;35;44;49;51;54;55;56;57
A190: 03 Reading Mid-Year 2014 - Grade 3 ELA | B190: 4391 | C190: 4391 4391 - Irving and Beatrice Peskoe K-8 | D190: 100 | E190: 52 | F190: 54.9 | G190: 28.55 | H190: 67 | I190: 0 | J190: 33 | K190: 0.67 | L190: 0 | M190: 0.33 | N190: Key Ideas and Details | O190: 16 | P190: 0.58 | Q190: 9.34 | R190: 5;6;8;9;10;12;13;16;23;24;39;42;43;45;46;50 | S190: Craft and Structure | T190: 26 | U190: 0.56 | V190: 14.65 | W190: 1;2;3;4;7;11;14;17;18;19;26;27;28;29;30;31;32;34;36;37;38;41;47;48;52;53 | X190: Integration of Knowledge and Ideas | Y190: 10 | Z190: 0.46 | AA190: 4.56 | AB190: 15;25;35;44;49;51;54;55;56;57 | AG190: 15;25;35;44;49;51;54;55;56;57
A191: 03 Reading Mid-Year 2014 - Grade 3 ELA | B191: 4401 | C191: 4401 4401 - Kelsey L. Pharr Elementary | D191: 51 | E191: 52 | F191: 53.58 | G191: 27.86 | H191: 37 | I191: 0 | J191: 14 | K191: 0.73 | L191: 0 | M191: 0.27 | N191: Key Ideas and Details | O191: 16 | P191: 0.56 | Q191: 8.98 | R191: 5;6;8;9;10;12;13;16;23;24;39;42;43;45;46;50 | S191: Craft and Structure | T191: 26 | U191: 0.54 | V191: 14.16 | W191: 1;2;3;4;7;11;14;17;18;19;26;27;28;29;30;31;32;34;36;37;38;41;47;48;52;53 | X191: Integration of Knowledge and Ideas | Y191: 10 | Z191: 0.47 | AA191: 4.73 | AB191: 15;25;35;44;49;51;54;55;56;57 | AG191: 15;25;35;44;49;51;54;55;56;57
A192: 03 Reading Mid-Year 2014 - Grade 3 ELA | B192: 4421 | C192: 4421 4421 - Pinecrest Elementary | D192: 168 | E192: 52 | F192: 72.99 | G192: 37.95 | H192: 50 | I192: 0 | J192: 118 | K192: 0.3 | L192: 0 | M192: 0.7 | N192: Key Ideas and Details | O192: 16 | P192: 0.74 | Q192: 11.8 | R192: 5;6;8;9;10;12;13;16;23;24;39;42;43;45;46;50 | S192: Craft and Structure | T192: 26 | U192: 0.76 | V192: 19.65 | W192: 1;2;3;4;7;11;14;17;18;19;26;27;28;29;30;31;32;34;36;37;38;41;47;48;52;53 | X192: Integration of Knowledge and Ideas | Y192: 10 | Z192: 0.65 | AA192: 6.5 | AB192: 15;25;35;44;49;51;54;55;56;57 | AG192: 15;25;35;44;49;51;54;55;56;57
A193: 03 Reading Mid-Year 2014 - Grade 3 ELA | B193: 4441 | C193: 4441 4441 - Pine Lake Elementary | D193: 48 | E193: 52 | F193: 59.38 | G193: 30.88 | H193: 31 | I193: 0 | J193: 17 | K193: 0.65 | L193: 0 | M193: 0.35 | N193: Key Ideas and Details | O193: 16 | P193: 0.64 | Q193: 10.17 | R193: 5;6;8;9;10;12;13;16;23;24;39;42;43;45;46;50 | S193: Craft and Structure | T193: 26 | U193: 0.61 | V193: 15.85 | W193: 1;2;3;4;7;11;14;17;18;19;26;27;28;29;30;31;32;34;36;37;38;41;47;48;52;53 | X193: Integration of Knowledge and Ideas | Y193: 10 | Z193: 0.49 | AA193: 4.85 | AB193: 15;25;35;44;49;51;54;55;56;57 | AG193: 15;25;35;44;49;51;54;55;56;57
A194: 03 Reading Mid-Year 2014 - Grade 3 ELA | B194: 4461 | C194: 4461 4461 - Pine Villa Elementary | D194: 43 | E194: 52 | F194: 55.64 | G194: 28.93 | H194: 32 | I194: 0 | J194: 11 | K194: 0.74 | L194: 0 | M194: 0.26 | N194: Key Ideas and Details | O194: 16 | P194: 0.61 | Q194: 9.72 | R194: 5;6;8;9;10;12;13;16;23;24;39;42;43;45;46;50 | S194: Craft and Structure | T194: 26 | U194: 0.56 | V194: 14.51 | W194: 1;2;3;4;7;11;14;17;18;19;26;27;28;29;30;31;32;34;36;37;38;41;47;48;52;53 | X194: Integration of Knowledge and Ideas | Y194: 10 | Z194: 0.47 | AA194: 4.7 | AB194: 15;25;35;44;49;51;54;55;56;57 | AG194: 15;25;35;44;49;51;54;55;56;57
A195: 03 Reading Mid-Year 2014 - Grade 3 ELA | B195: 4491 | C195: 4491 4491 - Henry E.s. Reeves Elementary | D195: 164 | E195: 52 | F195: 54.03 | G195: 28.1 | H195: 124 | I195: 0 | J195: 40 | K195: 0.76 | L195: 0 | M195: 0.24 | N195: Key Ideas and Details | O195: 16 | P195: 0.59 | Q195: 9.34 | R195: 5;6;8;9;10;12;13;16;23;24;39;42;43;45;46;50 | S195: Craft and Structure | T195: 26 | U195: 0.54 | V195: 14.16 | W195: 1;2;3;4;7;11;14;17;18;19;26;27;28;29;30;31;32;34;36;37;38;41;47;48;52;53 | X195: Integration of Knowledge and Ideas | Y195: 10 | Z195: 0.46 | AA195: 4.59 | AB195: 15;25;35;44;49;51;54;55;56;57 | AG195: 15;25;35;44;49;51;54;55;56;57
A196: 03 Reading Mid-Year 2014 - Grade 3 ELA | B196: 4501 | C196: 4501 4501 - Poinciana Park Elementary | D196: 58 | E196: 52 | F196: 51.26 | G196: 26.66 | H196: 47 | I196: 0 | J196: 11 | K196: 0.81 | L196: 0 | M196: 0.19 | N196: Key Ideas and Details | O196: 16 | P196: 0.55 | Q196: 8.86 | R196: 5;6;8;9;10;12;13;16;23;24;39;42;43;45;46;50 | S196: Craft and Structure | T196: 26 | U196: 0.54 | V196: 13.93 | W196: 1;2;3;4;7;11;14;17;18;19;26;27;28;29;30;31;32;34;36;37;38;41;47;48;52;53 | X196: Integration of Knowledge and Ideas | Y196: 10 | Z196: 0.39 | AA196: 3.86 | AB196: 15;25;35;44;49;51;54;55;56;57 | AG196: 15;25;35;44;49;51;54;55;56;57
A197: 03 Reading Mid-Year 2014 - Grade 3 ELA | B197: 4511 | C197: 4511 4511 - Dr Gilbert L. Porter Elem | D197: 120 | E197: 52 | F197: 62.77 | G197: 32.64 | H197: 61 | I197: 0 | J197: 59 | K197: 0.51 | L197: 0 | M197: 0.49 | N197: Key Ideas and Details | O197: 16 | P197: 0.67 | Q197: 10.66 | R197: 5;6;8;9;10;12;13;16;23;24;39;42;43;45;46;50 | S197: Craft and Structure | T197: 26 | U197: 0.64 | V197: 16.68 | W197: 1;2;3;4;7;11;14;17;18;19;26;27;28;29;30;31;32;34;36;37;38;41;47;48;52;53 | X197: Integration of Knowledge and Ideas | Y197: 10 | Z197: 0.53 | AA197: 5.31 | AB197: 15;25;35;44;49;51;54;55;56;57 | AG197: 15;25;35;44;49;51;54;55;56;57
A198: 03 Reading Mid-Year 2014 - Grade 3 ELA | B198: 4541 | C198: 4541 4541 - Rainbow Park Elementary | D198: 72 | E198: 52 | F198: 55.07 | G198: 28.64 | H198: 52 | I198: 0 | J198: 20 | K198: 0.72 | L198: 0 | M198: 0.28 | N198: Key Ideas and Details | O198: 16 | P198: 0.58 | Q198: 9.19 | R198: 5;6;8;9;10;12;13;16;23;24;39;42;43;45;46;50 | S198: Craft and Structure | T198: 26 | U198: 0.56 | V198: 14.5 | W198: 1;2;3;4;7;11;14;17;18;19;26;27;28;29;30;31;32;34;36;37;38;41;47;48;52;53 | X198: Integration of Knowledge and Ideas | Y198: 10 | Z198: 0.49 | AA198: 4.94 | AB198: 15;25;35;44;49;51;54;55;56;57 | AG198: 15;25;35;44;49;51;54;55;56;57
A199: 03 Reading Mid-Year 2014 - Grade 3 ELA | B199: 4581 | C199: 4581 4581 - Redland Elementary | D199: 159 | E199: 52 | F199: 55.53 | G199: 28.87 | H199: 110 | I199: 0 | J199: 49 | K199: 0.69 | L199: 0 | M199: 0.31 | N199: Key Ideas and Details | O199: 16 | P199: 0.6 | Q199: 9.56 | R199: 5;6;8;9;10;12;13;16;23;24;39;42;43;45;46;50 | S199: Craft and Structure | T199: 26 | U199: 0.56 | V199: 14.64 | W199: 1;2;3;4;7;11;14;17;18;19;26;27;28;29;30;31;32;34;36;37;38;41;47;48;52;53 | X199: Integration of Knowledge and Ideas | Y199: 10 | Z199: 0.47 | AA199: 4.68 | AB199: 15;25;35;44;49;51;54;55;56;57 | AG199: 15;25;35;44;49;51;54;55;56;57
A200: 03 Reading Mid-Year 2014 - Grade 3 ELA | B200: 4611 | C200: 4611 4611 - Redondo Elementary | D200: 152 | E200: 52 | F200: 57.73 | G200: 30.02 | H200: 102 | I200: 0 | J200: 50 | K200: 0.67 | L200: 0 | M200: 0.33 | N200: Key Ideas and Details | O200: 16 | P200: 0.62 | Q200: 9.95 | R200: 5;6;8;9;10;12;13;16;23;24;39;42;43;45;46;50 | S200: Craft and Structure | T200: 26 | U200: 0.58 | V200: 14.97 | W200: 1;2;3;4;7;11;14;17;18;19;26;27;28;29;30;31;32;34;36;37;38;41;47;48;52;53 | X200: Integration of Knowledge and Ideas | Y200: 10 | Z200: 0.51 | AA200: 5.11 | AB200: 15;25;35;44;49;51;54;55;56;57 | AG200: 15;25;35;44;49;51;54;55;56;57
... 2050 more rows

Sheet R-G03 (hidden)
B1: =COLUMN()-1 -> 1 | C1: =COLUMN()-1 -> 2 | D1: 3 | E1: 4 | F1: 5 | G1: 6 | H1: 7 | I1: 8 | J1: 9 | K1: 10 | L1: 11 | M1: 12 | N1: 13 | O1: 14 | P1: 15 | Q1: 16 | R1: 17 | S1: 18 | T1: 19 | U1: 20 | V1: 21 | W1: 22 | X1: 23 | Y1: 24 | Z1: 25 | AA1: 26 | AB1: 27 | AC1: 28 | AD1: 29 | AE1: 30 | AF1: 31 | AG1: 32 | AH1: 33
A2: Assessment | B2: WLOC | C2: School Name | D2: Number Tested | E2: Max Score | F2: Avg % Correct | G2: Avg Raw Score | H2: # Insufficient | I2: # Limited | J2: # Satisfactory | K2: % Insufficient | L2: % Limited | M2: % Satisfactory | N2: Domain1 | O2: Domain1 Max Score | P2: Avg Domain1 %Correct | Q2: Avg Domain1 Raw | R2: Domain1 Item List | S2: Domain2 | T2: Domain2 Max Score | U2: Avg Domain2 %Correct | V2: Avg Domain2 Raw | W2: Domain2 Item List | X2: Domain3 | Y2: Domain3 Max Score | Z2: Avg Domain3 %Correct | AA2: Avg Domain3 Raw | AB2: Domain3 Item List | AC2: Domain4 | AD2: Domain4 Max Score | AE2: Avg Domain4 %Correct | AF2: Avg Domain4 Raw | AG2: Domain4 Item List | AH2: Domain5 | AI2: Domain5 Max Score | AJ2: Avg Domain5 %Correct | AK2: Avg Domain5 Raw | AL2: Domain5 Item List
A3: 03 Reading Mid-Year 2014 - Grade 3 ELA | B3: 41 | C3: 0041 0041 - Air Base Elementary | D3: 126 | E3: 52 | F3: 72.79 | G3: 37.85 | H3: 32 | I3: 0 | J3: 94 | K3: 0.25 | L3: 0 | M3: 0.75 | N3: Key Ideas and Details | O3: 16 | P3: 0.76 | Q3: 12.09 | R3: 5;6;8;9;10;12;13;16;23;24;39;42;43;45;46;50 | S3: Craft and Structure | T3: 26 | U3: 0.75 | V3: 19.57 | W3: 1;2;3;4;7;11;14;17;18;19;26;27;28;29;30;31;32;34;36;37;38;41;47;48;52;53 | X3: Integration of Knowledge and Ideas | Y3: 10 | Z3: 0.62 | AA3: 6.19 | AB3: 15;25;35;44;49;51;54;55;56;57 | AG3: 15;25;35;44;49;51;54;55;56;57
A4: 03 Reading Mid-Year 2014 - Grade 3 ELA | B4: 70 | C4: 0070 0070 - Coral Reef Montessori Acad Ch | D4: 49 | E4: 52 | F4: 72.96 | G4: 37.94 | H4: 15 | I4: 0 | J4: 34 | K4: 0.31 | L4: 0 | M4: 0.69 | N4: Key Ideas and Details | O4: 16 | P4: 0.76 | Q4: 12.08 | R4: 5;6;8;9;10;12;13;16;23;24;39;42;43;45;46;50 | S4: Craft and Structure | T4: 26 | U4: 0.74 | V4: 19.27 | W4: 1;2;3;4;7;11;14;17;18;19;26;27;28;29;30;31;32;34;36;37;38;41;47;48;52;53 | X4: Integration of Knowledge and Ideas | Y4: 10 | Z4: 0.66 | AA4: 6.59 | AB4: 15;25;35;44;49;51;54;55;56;57 | AG4: 15;25;35;44;49;51;54;55;56;57
A5: 03 Reading Mid-Year 2014 - Grade 3 ELA | B5: 71 | C5: 0071 0071 - Eugenia B. Thomas K-8 Center | D5: 207 | E5: 52 | F5: 62.5 | G5: 32.5 | H5: 111 | I5: 0 | J5: 96 | K5: 0.54 | L5: 0 | M5: 0.46 | N5: Key Ideas and Details | O5: 16 | P5: 0.65 | Q5: 10.45 | R5: 5;6;8;9;10;12;13;16;23;24;39;42;43;45;46;50 | S5: Craft and Structure | T5: 26 | U5: 0.65 | V5: 16.83 | W5: 1;2;3;4;7;11;14;17;18;19;26;27;28;29;30;31;32;34;36;37;38;41;47;48;52;53 | X5: Integration of Knowledge and Ideas | Y5: 10 | Z5: 0.52 | AA5: 5.22 | AB5: 15;25;35;44;49;51;54;55;56;57 | AG5: 15;25;35;44;49;51;54;55;56;57
A6: 03 Reading Mid-Year 2014 - Grade 3 ELA | B6: 72 | C6: 0072 0072 - Summerville Charter School | D6: 84 | E6: 52 | F6: 59.98 | G6: 31.19 | H6: 50 | I6: 0 | J6: 34 | K6: 0.6 | L6: 0 | M6: 0.4 | N6: Key Ideas and Details | O6: 16 | P6: 0.66 | Q6: 10.48 | R6: 5;6;8;9;10;12;13;16;23;24;39;42;43;45;46;50 | S6: Craft and Structure | T6: 26 | U6: 0.6 | V6: 15.57 | W6: 1;2;3;4;7;11;14;17;18;19;26;27;28;29;30;31;32;34;36;37;38;41;47;48;52;53 | X6: Integration of Knowledge and Ideas | Y6: 10 | Z6: 0.51 | AA6: 5.14 | AB6: 15;25;35;44;49;51;54;55;56;57 | AG6: 15;25;35;44;49;51;54;55;56;57
A7: 03 Reading Mid-Year 2014 - Grade 3 ELA | B7: 73 | C7: 0073 0073 - Mandarin Lakes K-8 Center | D7: 159 | E7: 52 | F7: 51.45 | G7: 26.75 | H7: 128 | I7: 0 | J7: 31 | K7: 0.81 | L7: 0 | M7: 0.19 | N7: Key Ideas and Details | O7: 16 | P7: 0.55 | Q7: 8.7 | R7: 5;6;8;9;10;12;13;16;23;24;39;42;43;45;46;50 | S7: Craft and Structure | T7: 26 | U7: 0.53 | V7: 13.91 | W7: 1;2;3;4;7;11;14;17;18;19;26;27;28;29;30;31;32;34;36;37;38;41;47;48;52;53 | X7: Integration of Knowledge and Ideas | Y7: 10 | Z7: 0.41 | AA7: 4.14 | AB7: 15;25;35;44;49;51;54;55;56;57 | AG7: 15;25;35;44;49;51;54;55;56;57
A8: 03 Reading Mid-Year 2014 - Grade 3 ELA | B8: 81 | C8: 0081 0081 - Lenora B. Smith Elementary | D8: 60 | E8: 52 | F8: 55.71 | G8: 28.97 | H8: 46 | I8: 0 | J8: 14 | K8: 0.77 | L8: 0 | M8: 0.23 | N8: Key Ideas and Details | O8: 16 | P8: 0.6 | Q8: 9.6 | R8: 5;6;8;9;10;12;13;16;23;24;39;42;43;45;46;50 | S8: Craft and Structure | T8: 26 | U8: 0.57 | V8: 14.85 | W8: 1;2;3;4;7;11;14;17;18;19;26;27;28;29;30;31;32;34;36;37;38;41;47;48;52;53 | X8: Integration of Knowledge and Ideas | Y8: 10 | Z8: 0.45 | AA8: 4.52 | AB8: 15;25;35;44;49;51;54;55;56;57 | AG8: 15;25;35;44;49;51;54;55;56;57
A9: 03 Reading Mid-Year 2014 - Grade 3 ELA | B9: 91 | C9: 0091 0091 - Bob Graham Education Ctr | D9: 173 | E9: 52 | F9: 68.62 | G9: 35.68 | H9: 70 | I9: 0 | J9: 103 | K9: 0.4 | L9: 0 | M9: 0.6 | N9: Key Ideas and Details | O9: 16 | P9: 0.72 | Q9: 11.51 | R9: 5;6;8;9;10;12;13;16;23;24;39;42;43;45;46;50 | S9: Craft and Structure | T9: 26 | U9: 0.7 | V9: 18.09 | W9: 1;2;3;4;7;11;14;17;18;19;26;27;28;29;30;31;32;34;36;37;38;41;47;48;52;53 | X9: Integration of Knowledge and Ideas | Y9: 10 | Z9: 0.61 | AA9: 6.08 | AB9: 15;25;35;44;49;51;54;55;56;57 | AG9: 15;25;35;44;49;51;54;55;56;57
A10: 03 Reading Mid-Year 2014 - Grade 3 ELA | B10: 92 | C10: 0092 0092 - Norman S. Edelcup/sunny Isles | D10: 216 | E10: 52 | F10: 66.26 | G10: 34.45 | H10: 96 | I10: 0 | J10: 120 | K10: 0.44 | L10: 0 | M10: 0.56 | N10: Key Ideas and Details | O10: 16 | P10: 0.69 | Q10: 11.07 | R10: 5;6;8;9;10;12;13;16;23;24;39;42;43;45;46;50 | S10: Craft and Structure | T10: 26 | U10: 0.67 | V10: 17.44 | W10: 1;2;3;4;7;11;14;17;18;19;26;27;28;29;30;31;32;34;36;37;38;41;47;48;52;53 | X10: Integration of Knowledge and Ideas | Y10: 10 | Z10: 0.59 | AA10: 5.94 | AB10: 15;25;35;44;49;51;54;55;56;57 | AG10: 15;25;35;44;49;51;54;55;56;57
A11: 03 Reading Mid-Year 2014 - Grade 3 ELA | B11: 100 | C11: 0100 0100 - Mater Academy | D11: 174 | E11: 52 | F11: 68.65 | G11: 35.7 | H11: 73 | I11: 0 | J11: 101 | K11: 0.42 | L11: 0 | M11: 0.58 | N11: Key Ideas and Details | O11: 16 | P11: 0.72 | Q11: 11.45 | R11: 5;6;8;9;10;12;13;16;23;24;39;42;43;45;46;50 | S11: Craft and Structure | T11: 26 | U11: 0.71 | V11: 18.5 | W11: 1;2;3;4;7;11;14;17;18;19;26;27;28;29;30;31;32;34;36;37;38;41;47;48;52;53 | X11: Integration of Knowledge and Ideas | Y11: 10 | Z11: 0.57 | AA11: 5.74 | AB11: 15;25;35;44;49;51;54;55;56;57 | AG11: 15;25;35;44;49;51;54;55;56;57
A12: 03 Reading Mid-Year 2014 - Grade 3 ELA | B12: 101 | C12: 0101 0101 - Arcola Lake Elementary | D12: 83 | E12: 52 | F12: 52.46 | G12: 27.28 | H12: 63 | I12: 0 | J12: 20 | K12: 0.76 | L12: 0 | M12: 0.24 | N12: Key Ideas and Details | O12: 16 | P12: 0.56 | Q12: 8.9 | R12: 5;6;8;9;10;12;13;16;23;24;39;42;43;45;46;50 | S12: Craft and Structure | T12: 26 | U12: 0.54 | V12: 13.94 | W12: 1;2;3;4;7;11;14;17;18;19;26;27;28;29;30;31;32;34;36;37;38;41;47;48;52;53 | X12: Integration of Knowledge and Ideas | Y12: 10 | Z12: 0.44 | AA12: 4.43 | AB12: 15;25;35;44;49;51;54;55;56;57 | AG12: 15;25;35;44;49;51;54;55;56;57
A13: 03 Reading Mid-Year 2014 - Grade 3 ELA | B13: 102 | C13: 0102 0102 - Miami Community Charter School | D13: 87 | E13: 52 | F13: 73.41 | G13: 38.17 | H13: 32 | I13: 0 | J13: 55 | K13: 0.37 | L13: 0 | M13: 0.63 | N13: Key Ideas and Details | O13: 16 | P13: 0.77 | Q13: 12.28 | R13: 5;6;8;9;10;12;13;16;23;24;39;42;43;45;46;50 | S13: Craft and Structure | T13: 26 | U13: 0.74 | V13: 19.29 | W13: 1;2;3;4;7;11;14;17;18;19;26;27;28;29;30;31;32;34;36;37;38;41;47;48;52;53 | X13: Integration of Knowledge and Ideas | Y13: 10 | Z13: 0.66 | AA13: 6.61 | AB13: 15;25;35;44;49;51;54;55;56;57 | AG13: 15;25;35;44;49;51;54;55;56;57
A14: 03 Reading Mid-Year 2014 - Grade 3 ELA | B14: 111 | C14: 0111 0111 - Maya Angelou Elementary | D14: 136 | E14: 52 | F14: 52.21 | G14: 27.15 | H14: 95 | I14: 0 | J14: 41 | K14: 0.7 | L14: 0 | M14: 0.3 | N14: Key Ideas and Details | O14: 16 | P14: 0.56 | Q14: 8.99 | R14: 5;6;8;9;10;12;13;16;23;24;39;42;43;45;46;50 | S14: Craft and Structure | T14: 26 | U14: 0.52 | V14: 13.43 | W14: 1;2;3;4;7;11;14;17;18;19;26;27;28;29;30;31;32;34;36;37;38;41;47;48;52;53 | X14: Integration of Knowledge and Ideas | Y14: 10 | Z14: 0.47 | AA14: 4.73 | AB14: 15;25;35;44;49;51;54;55;56;57 | AG14: 15;25;35;44;49;51;54;55;56;57
A15: 03 Reading Mid-Year 2014 - Grade 3 ELA | B15: 121 | C15: 0121 0121 - Auburndale Elementary | D15: 149 | E15: 52 | F15: 68.93 | G15: 35.85 | H15: 52 | I15: 0 | J15: 97 | K15: 0.35 | L15: 0 | M15: 0.65 | N15: Key Ideas and Details | O15: 16 | P15: 0.73 | Q15: 11.64 | R15: 5;6;8;9;10;12;13;16;23;24;39;42;43;45;46;50 | S15: Craft and Structure | T15: 26 | U15: 0.7 | V15: 18.26 | W15: 1;2;3;4;7;11;14;17;18;19;26;27;28;29;30;31;32;34;36;37;38;41;47;48;52;53 | X15: Integration of Knowledge and Ideas | Y15: 10 | Z15: 0.59 | AA15: 5.95 | AB15: 15;25;35;44;49;51;54;55;56;57 | AG15: 15;25;35;44;49;51;54;55;56;57
A16: 03 Reading Mid-Year 2014 - Grade 3 ELA | B16: 122 | C16: 0122 0122 - Dr Rolando Espinosa K-8 | D16: 199 | E16: 52 | F16: 61.77 | G16: 32.12 | H16: 95 | I16: 0 | J16: 104 | K16: 0.48 | L16: 0 | M16: 0.52 | N16: Key Ideas and Details | O16: 16 | P16: 0.66 | Q16: 10.52 | R16: 5;6;8;9;10;12;13;16;23;24;39;42;43;45;46;50 | S16: Craft and Structure | T16: 26 | U16: 0.64 | V16: 16.58 | W16: 1;2;3;4;7;11;14;17;18;19;26;27;28;29;30;31;32;34;36;37;38;41;47;48;52;53 | X16: Integration of Knowledge and Ideas | Y16: 10 | Z16: 0.5 | AA16: 5.02 | AB16: 15;25;35;44;49;51;54;55;56;57 | AG16: 15;25;35;44;49;51;54;55;56;57
A17: 03 Reading Mid-Year 2014 - Grade 3 ELA | B17: 125 | C17: 0125 0125 - Norma Butler Bossard Elem | D17: 225 | E17: 52 | F17: 68.56 | G17: 35.65 | H17: 87 | I17: 0 | J17: 138 | K17: 0.39 | L17: 0 | M17: 0.61 | N17: Key Ideas and Details | O17: 16 | P17: 0.71 | Q17: 11.4 | R17: 5;6;8;9;10;12;13;16;23;24;39;42;43;45;46;50 | S17: Craft and Structure | T17: 26 | U17: 0.7 | V17: 18.27 | W17: 1;2;3;4;7;11;14;17;18;19;26;27;28;29;30;31;32;34;36;37;38;41;47;48;52;53 | X17: Integration of Knowledge and Ideas | Y17: 10 | Z17: 0.6 | AA17: 5.98 | AB17: 15;25;35;44;49;51;54;55;56;57 | AG17: 15;25;35;44;49;51;54;55;56;57
A18: 03 Reading Mid-Year 2014 - Grade 3 ELA | B18: 161 | C18: 0161 0161 - Avocado Elementary | D18: 138 | E18: 52 | F18: 50.63 | G18: 26.33 | H18: 104 | I18: 0 | J18: 34 | K18: 0.75 | L18: 0 | M18: 0.25 | N18: Key Ideas and Details | O18: 16 | P18: 0.54 | Q18: 8.58 | R18: 5;6;8;9;10;12;13;16;23;24;39;42;43;45;46;50 | S18: Craft and Structure | T18: 26 | U18: 0.52 | V18: 13.41 | W18: 1;2;3;4;7;11;14;17;18;19;26;27;28;29;30;31;32;34;36;37;38;41;47;48;52;53 | X18: Integration of Knowledge and Ideas | Y18: 10 | Z18: 0.43 | AA18: 4.34 | AB18: 15;25;35;44;49;51;54;55;56;57 | AG18: 15;25;35;44;49;51;54;55;56;57
A19: 03 Reading Mid-Year 2014 - Grade 3 ELA | B19: 201 | C19: 0201 0201 - Banyan Elementary | D19: 59 | E19: 52 | F19: 63.27 | G19: 32.9 | H19: 28 | I19: 0 | J19: 31 | K19: 0.47 | L19: 0 | M19: 0.53 | N19: Key Ideas and Details | O19: 16 | P19: 0.68 | Q19: 10.93 | R19: 5;6;8;9;10;12;13;16;23;24;39;42;43;45;46;50 | S19: Craft and Structure | T19: 26 | U19: 0.64 | V19: 16.69 | W19: 1;2;3;4;7;11;14;17;18;19;26;27;28;29;30;31;32;34;36;37;38;41;47;48;52;53 | X19: Integration of Knowledge and Ideas | Y19: 10 | Z19: 0.53 | AA19: 5.27 | AB19: 15;25;35;44;49;51;54;55;56;57 | AG19: 15;25;35;44;49;51;54;55;56;57
A20: 03 Reading Mid-Year 2014 - Grade 3 ELA | B20: 211 | C20: 0211 0211 - Dr. Manuel C. Barreiro Elem | D20: 134 | E20: 52 | F20: 64.34 | G20: 33.46 | H20: 65 | I20: 0 | J20: 69 | K20: 0.49 | L20: 0 | M20: 0.51 | N20: Key Ideas and Details | O20: 16 | P20: 0.68 | Q20: 10.87 | R20: 5;6;8;9;10;12;13;16;23;24;39;42;43;45;46;50 | S20: Craft and Structure | T20: 26 | U20: 0.65 | V20: 16.84 | W20: 1;2;3;4;7;11;14;17;18;19;26;27;28;29;30;31;32;34;36;37;38;41;47;48;52;53 | X20: Integration of Knowledge and Ideas | Y20: 10 | Z20: 0.57 | AA20: 5.75 | AB20: 15;25;35;44;49;51;54;55;56;57 | AG20: 15;25;35;44;49;51;54;55;56;57
A21: 03 Reading Mid-Year 2014 - Grade 3 ELA | B21: 231 | C21: 0231 0231 - Aventura Waterways K-8 Center | D21: 266 | E21: 52 | F21: 65.55 | G21: 34.09 | H21: 111 | I21: 0 | J21: 155 | K21: 0.42 | L21: 0 | M21: 0.58 | N21: Key Ideas and Details | O21: 16 | P21: 0.69 | Q21: 11.05 | R21: 5;6;8;9;10;12;13;16;23;24;39;42;43;45;46;50 | S21: Craft and Structure | T21: 26 | U21: 0.67 | V21: 17.5 | W21: 1;2;3;4;7;11;14;17;18;19;26;27;28;29;30;31;32;34;36;37;38;41;47;48;52;53 | X21: Integration of Knowledge and Ideas | Y21: 10 | Z21: 0.55 | AA21: 5.53 | AB21: 15;25;35;44;49;51;54;55;56;57 | AG21: 15;25;35;44;49;51;54;55;56;57
A22: 03 Reading Mid-Year 2014 - Grade 3 ELA | B22: 241 | C22: 0241 0241 - Ruth K Broad/bay Harbor K-8 | D22: 134 | E22: 52 | F22: 70.34 | G22: 36.57 | H22: 49 | I22: 0 | J22: 85 | K22: 0.37 | L22: 0 | M22: 0.63 | N22: Key Ideas and Details | O22: 16 | P22: 0.74 | Q22: 11.75 | R22: 5;6;8;9;10;12;13;16;23;24;39;42;43;45;46;50 | S22: Craft and Structure | T22: 26 | U22: 0.72 | V22: 18.78 | W22: 1;2;3;4;7;11;14;17;18;19;26;27;28;29;30;31;32;34;36;37;38;41;47;48;52;53 | X22: Integration of Knowledge and Ideas | Y22: 10 | Z22: 0.61 | AA22: 6.05 | AB22: 15;25;35;44;49;51;54;55;56;57 | AG22: 15;25;35;44;49;51;54;55;56;57
A23: 03 Reading Mid-Year 2014 - Grade 3 ELA | B23: 251 | C23: 0251 0251 - Ethel Koger Beckham Elementary | D23: 138 | E23: 52 | F23: 73.54 | G23: 38.24 | H23: 40 | I23: 0 | J23: 98 | K23: 0.29 | L23: 0 | M23: 0.71 | N23: Key Ideas and Details | O23: 16 | P23: 0.76 | Q23: 12.12 | R23: 5;6;8;9;10;12;13;16;23;24;39;42;43;45;46;50 | S23: Craft and Structure | T23: 26 | U23: 0.75 | V23: 19.49 | W23: 1;2;3;4;7;11;14;17;18;19;26;27;28;29;30;31;32;34;36;37;38;41;47;48;52;53 | X23: Integration of Knowledge and Ideas | Y23: 10 | Z23: 0.66 | AA23: 6.62 | AB23: 15;25;35;44;49;51;54;55;56;57 | AG23: 15;25;35;44;49;51;54;55;56;57
A24: 03 Reading Mid-Year 2014 - Grade 3 ELA | B24: 261 | C24: 0261 0261 - Bel-Aire Elementary | D24: 62 | E24: 52 | F24: 59.24 | G24: 30.81 | H24: 44 | I24: 0 | J24: 18 | K24: 0.71 | L24: 0 | M24: 0.29 | N24: Key Ideas and Details | O24: 16 | P24: 0.64 | Q24: 10.21 | R24: 5;6;8;9;10;12;13;16;23;24;39;42;43;45;46;50 | S24: Craft and Structure | T24: 26 | U24: 0.61 | V24: 15.89 | W24: 1;2;3;4;7;11;14;17;18;19;26;27;28;29;30;31;32;34;36;37;38;41;47;48;52;53 | X24: Integration of Knowledge and Ideas | Y24: 10 | Z24: 0.47 | AA24: 4.71 | AB24: 15;25;35;44;49;51;54;55;56;57 | AG24: 15;25;35;44;49;51;54;55;56;57
A25: 03 Reading Mid-Year 2014 - Grade 3 ELA | B25: 271 | C25: 0271 0271 - Bent Tree Elementary | D25: 60 | E25: 52 | F25: 68.65 | G25: 35.7 | H25: 28 | I25: 0 | J25: 32 | K25: 0.47 | L25: 0 | M25: 0.53 | N25: Key Ideas and Details | O25: 16 | P25: 0.72 | Q25: 11.52 | R25: 5;6;8;9;10;12;13;16;23;24;39;42;43;45;46;50 | S25: Craft and Structure | T25: 26 | U25: 0.72 | V25: 18.8 | W25: 1;2;3;4;7;11;14;17;18;19;26;27;28;29;30;31;32;34;36;37;38;41;47;48;52;53 | X25: Integration of Knowledge and Ideas | Y25: 10 | Z25: 0.54 | AA25: 5.38 | AB25: 15;25;35;44;49;51;54;55;56;57 | AG25: 15;25;35;44;49;51;54;55;56;57
A26: 03 Reading Mid-Year 2014 - Grade 3 ELA | B26: 311 | C26: 0311 0311 - Goulds Elementary | D26: 108 | E26: 52 | F26: 60.15 | G26: 31.28 | H26: 65 | I26: 0 | J26: 43 | K26: 0.6 | L26: 0 | M26: 0.4 | N26: Key Ideas and Details | O26: 16 | P26: 0.64 | Q26: 10.16 | R26: 5;6;8;9;10;12;13;16;23;24;39;42;43;45;46;50 | S26: Craft and Structure | T26: 26 | U26: 0.62 | V26: 16.06 | W26: 1;2;3;4;7;11;14;17;18;19;26;27;28;29;30;31;32;34;36;37;38;41;47;48;52;53 | X26: Integration of Knowledge and Ideas | Y26: 10 | Z26: 0.51 | AA26: 5.06 | AB26: 15;25;35;44;49;51;54;55;56;57 | AG26: 15;25;35;44;49;51;54;55;56;57
A27: 03 Reading Mid-Year 2014 - Grade 3 ELA | B27: 312 | C27: 0312 0312 - Mater Gardens Academy | D27: 98 | E27: 52 | F27: 70.02 | G27: 36.41 | H27: 36 | I27: 0 | J27: 62 | K27: 0.37 | L27: 0 | M27: 0.63 | N27: Key Ideas and Details | O27: 16 | P27: 0.72 | Q27: 11.54 | R27: 5;6;8;9;10;12;13;16;23;24;39;42;43;45;46;50 | S27: Craft and Structure | T27: 26 | U27: 0.74 | V27: 19.17 | W27: 1;2;3;4;7;11;14;17;18;19;26;27;28;29;30;31;32;34;36;37;38;41;47;48;52;53 | X27: Integration of Knowledge and Ideas | Y27: 10 | Z27: 0.57 | AA27: 5.69 | AB27: 15;25;35;44;49;51;54;55;56;57 | AG27: 15;25;35;44;49;51;54;55;56;57
A28: 03 Reading Mid-Year 2014 - Grade 3 ELA | B28: 321 | C28: 0321 0321 - Biscayne Elementary | D28: 117 | E28: 52 | F28: 58.61 | G28: 30.48 | H28: 76 | I28: 0 | J28: 41 | K28: 0.65 | L28: 0 | M28: 0.35 | N28: Key Ideas and Details | O28: 16 | P28: 0.63 | Q28: 10.08 | R28: 5;6;8;9;10;12;13;16;23;24;39;42;43;45;46;50 | S28: Craft and Structure | T28: 26 | U28: 0.6 | V28: 15.69 | W28: 1;2;3;4;7;11;14;17;18;19;26;27;28;29;30;31;32;34;36;37;38;41;47;48;52;53 | X28: Integration of Knowledge and Ideas | Y28: 10 | Z28: 0.47 | AA28: 4.71 | AB28: 15;25;35;44;49;51;54;55;56;57 | AG28: 15;25;35;44;49;51;54;55;56;57
A29: 03 Reading Mid-Year 2014 - Grade 3 ELA | B29: 332 | C29: 0332 0332 - Somerset Academy(silver Palms) | D29: 61 | E29: 52 | F29: 59.33 | G29: 30.85 | H29: 39 | I29: 0 | J29: 22 | K29: 0.64 | L29: 0 | M29: 0.36 | N29: Key Ideas and Details | O29: 16 | P29: 0.62 | Q29: 9.87 | R29: 5;6;8;9;10;12;13;16;23;24;39;42;43;45;46;50 | S29: Craft and Structure | T29: 26 | U29: 0.62 | V29: 16.02 | W29: 1;2;3;4;7;11;14;17;18;19;26;27;28;29;30;31;32;34;36;37;38;41;47;48;52;53 | X29: Integration of Knowledge and Ideas | Y29: 10 | Z29: 0.5 | AA29: 4.97 | AB29: 15;25;35;44;49;51;54;55;56;57 | AG29: 15;25;35;44;49;51;54;55;56;57
A30: 03 Reading Mid-Year 2014 - Grade 3 ELA | B30: 339 | C30: 0339 0339 - Somerset Academy Charter Elem | D30: 74 | E30: 52 | F30: 60.4 | G30: 31.41 | H30: 43 | I30: 0 | J30: 31 | K30: 0.58 | L30: 0 | M30: 0.42 | N30: Key Ideas and Details | O30: 16 | P30: 0.64 | Q30: 10.22 | R30: 5;6;8;9;10;12;13;16;23;24;39;42;43;45;46;50 | S30: Craft and Structure | T30: 26 | U30: 0.61 | V30: 15.82 | W30: 1;2;3;4;7;11;14;17;18;19;26;27;28;29;30;31;32;34;36;37;38;41;47;48;52;53 | X30: Integration of Knowledge and Ideas | Y30: 10 | Z30: 0.54 | AA30: 5.36 | AB30: 15;25;35;44;49;51;54;55;56;57 | AG30: 15;25;35;44;49;51;54;55;56;57
A31: 03 Reading Mid-Year 2014 - Grade 3 ELA | B31: 341 | C31: 0341 0341 - Arch Creek Elementary School | D31: 94 | E31: 52 | F31: 58.96 | G31: 30.66 | H31: 65 | I31: 0 | J31: 29 | K31: 0.69 | L31: 0 | M31: 0.31 | N31: Key Ideas and Details | O31: 16 | P31: 0.63 | Q31: 10.12 | R31: 5;6;8;9;10;12;13;16;23;24;39;42;43;45;46;50 | S31: Craft and Structure | T31: 26 | U31: 0.59 | V31: 15.38 | W31: 1;2;3;4;7;11;14;17;18;19;26;27;28;29;30;31;32;34;36;37;38;41;47;48;52;53 | X31: Integration of Knowledge and Ideas | Y31: 10 | Z31: 0.52 | AA31: 5.16 | AB31: 15;25;35;44;49;51;54;55;56;57 | AG31: 15;25;35;44;49;51;54;55;56;57
A32: 03 Reading Mid-Year 2014 - Grade 3 ELA | B32: 342 | C32: 0342 0342 - Pinecrest Academy South Campus | D32: 129 | E32: 52 | F32: 73.23 | G32: 38.08 | H32: 39 | I32: 0 | J32: 90 | K32: 0.3 | L32: 0 | M32: 0.7 | N32: Key Ideas and Details | O32: 16 | P32: 0.77 | Q32: 12.24 | R32: 5;6;8;9;10;12;13;16;23;24;39;42;43;45;46;50 | S32: Craft and Structure | T32: 26 | U32: 0.75 | V32: 19.4 | W32: 1;2;3;4;7;11;14;17;18;19;26;27;28;29;30;31;32;34;36;37;38;41;47;48;52;53 | X32: Integration of Knowledge and Ideas | Y32: 10 | Z32: 0.64 | AA32: 6.44 | AB32: 15;25;35;44;49;51;54;55;56;57 | AG32: 15;25;35;44;49;51;54;55;56;57
A33: 03 Reading Mid-Year 2014 - Grade 3 ELA | B33: 361 | C33: 0361 0361 - Biscayne Gardens Elementary | D33: 98 | E33: 52 | F33: 54.43 | G33: 28.31 | H33: 72 | I33: 0 | J33: 26 | K33: 0.73 | L33: 0 | M33: 0.27 | N33: Key Ideas and Details | O33: 16 | P33: 0.6 | Q33: 9.59 | R33: 5;6;8;9;10;12;13;16;23;24;39;42;43;45;46;50 | S33: Craft and Structure | T33: 26 | U33: 0.54 | V33: 13.99 | W33: 1;2;3;4;7;11;14;17;18;19;26;27;28;29;30;31;32;34;36;37;38;41;47;48;52;53 | X33: Integration of Knowledge and Ideas | Y33: 10 | Z33: 0.47 | AA33: 4.72 | AB33: 15;25;35;44;49;51;54;55;56;57 | AG33: 15;25;35;44;49;51;54;55;56;57
A34: 03 Reading Mid-Year 2014 - Grade 3 ELA | B34: 401 | C34: 0401 0401 - Van E. Blanton Elementary | D34: 92 | E34: 52 | F34: 56.84 | G34: 29.55 | H34: 62 | I34: 0 | J34: 30 | K34: 0.67 | L34: 0 | M34: 0.33 | N34: Key Ideas and Details | O34: 16 | P34: 0.62 | Q34: 9.93 | R34: 5;6;8;9;10;12;13;16;23;24;39;42;43;45;46;50 | S34: Craft and Structure | T34: 26 | U34: 0.57 | V34: 14.8 | W34: 1;2;3;4;7;11;14;17;18;19;26;27;28;29;30;31;32;34;36;37;38;41;47;48;52;53 | X34: Integration of Knowledge and Ideas | Y34: 10 | Z34: 0.48 | AA34: 4.82 | AB34: 15;25;35;44;49;51;54;55;56;57 | AG34: 15;25;35;44;49;51;54;55;56;57
A35: 03 Reading Mid-Year 2014 - Grade 3 ELA | B35: 410 | C35: 0410 0410 - Academir Charter School West | D35: 153 | E35: 52 | F35: 68.69 | G35: 35.72 | H35: 63 | I35: 0 | J35: 90 | K35: 0.41 | L35: 0 | M35: 0.59 | N35: Key Ideas and Details | O35: 16 | P35: 0.73 | Q35: 11.65 | R35: 5;6;8;9;10;12;13;16;23;24;39;42;43;45;46;50 | S35: Craft and Structure | T35: 26 | U35: 0.71 | V35: 18.38 | W35: 1;2;3;4;7;11;14;17;18;19;26;27;28;29;30;31;32;34;36;37;38;41;47;48;52;53 | X35: Integration of Knowledge and Ideas | Y35: 10 | Z35: 0.57 | AA35: 5.69 | AB35: 15;25;35;44;49;51;54;55;56;57 | AG35: 15;25;35;44;49;51;54;55;56;57
A36: 03 Reading Mid-Year 2014 - Grade 3 ELA | B36: 441 | C36: 0441 0441 - Blue Lakes Elementary | D36: 49 | E36: 52 | F36: 66.33 | G36: 34.49 | H36: 22 | I36: 0 | J36: 27 | K36: 0.45 | L36: 0 | M36: 0.55 | N36: Key Ideas and Details | O36: 16 | P36: 0.69 | Q36: 11.1 | R36: 5;6;8;9;10;12;13;16;23;24;39;42;43;45;46;50 | S36: Craft and Structure | T36: 26 | U36: 0.68 | V36: 17.63 | W36: 1;2;3;4;7;11;14;17;18;19;26;27;28;29;30;31;32;34;36;37;38;41;47;48;52;53 | X36: Integration of Knowledge and Ideas | Y36: 10 | Z36: 0.58 | AA36: 5.76 | AB36: 15;25;35;44;49;51;54;55;56;57 | AG36: 15;25;35;44;49;51;54;55;56;57
A37: 03 Reading Mid-Year 2014 - Grade 3 ELA | B37: 451 | C37: 0451 0451 - Bowman Ashe/doolin K-8 Acad | D37: 119 | E37: 52 | F37: 63.49 | G37: 33.02 | H37: 50 | I37: 0 | J37: 69 | K37: 0.42 | L37: 0 | M37: 0.58 | N37: Key Ideas and Details | O37: 16 | P37: 0.67 | Q37: 10.76 | R37: 5;6;8;9;10;12;13;16;23;24;39;42;43;45;46;50 | S37: Craft and Structure | T37: 26 | U37: 0.66 | V37: 17.1 | W37: 1;2;3;4;7;11;14;17;18;19;26;27;28;29;30;31;32;34;36;37;38;41;47;48;52;53 | X37: Integration of Knowledge and Ideas | Y37: 10 | Z37: 0.52 | AA37: 5.16 | AB37: 15;25;35;44;49;51;54;55;56;57 | AG37: 15;25;35;44;49;51;54;55;56;57
A38: 03 Reading Mid-Year 2014 - Grade 3 ELA | B38: 461 | C38: 0461 0461 - Brentwood Elementary | D38: 106 | E38: 52 | F38: 58.51 | G38: 30.42 | H38: 66 | I38: 0 | J38: 40 | K38: 0.62 | L38: 0 | M38: 0.38 | N38: Key Ideas and Details | O38: 16 | P38: 0.63 | Q38: 10.05 | R38: 5;6;8;9;10;12;13;16;23;24;39;42;43;45;46;50 | S38: Craft and Structure | T38: 26 | U38: 0.59 | V38: 15.45 | W38: 1;2;3;4;7;11;14;17;18;19;26;27;28;29;30;31;32;34;36;37;38;41;47;48;52;53 | X38: Integration of Knowledge and Ideas | Y38: 10 | Z38: 0.49 | AA38: 4.92 | AB38: 15;25;35;44;49;51;54;55;56;57 | AG38: 15;25;35;44;49;51;54;55;56;57
A39: 03 Reading Mid-Year 2014 - Grade 3 ELA | B39: 481 | C39: 0481 0481 - James H. Bright/jw Johnson Es | D39: 91 | E39: 52 | F39: 52.32 | G39: 27.21 | H39: 64 | I39: 0 | J39: 27 | K39: 0.7 | L39: 0 | M39: 0.3 | N39: Key Ideas and Details | O39: 16 | P39: 0.56 | Q39: 8.99 | R39: 5;6;8;9;10;12;13;16;23;24;39;42;43;45;46;50 | S39: Craft and Structure | T39: 26 | U39: 0.54 | V39: 14.14 | W39: 1;2;3;4;7;11;14;17;18;19;26;27;28;29;30;31;32;34;36;37;38;41;47;48;52;53 | X39: Integration of Knowledge and Ideas | Y39: 10 | Z39: 0.41 | AA39: 4.08 | AB39: 15;25;35;44;49;51;54;55;56;57 | AG39: 15;25;35;44;49;51;54;55;56;57
A40: 03 Reading Mid-Year 2014 - Grade 3 ELA | B40: 510 | C40: 0510 0510 - Archimedean Academy | D40: 116 | E40: 52 | F40: 75.68 | G40: 39.35 | H40: 27 | I40: 0 | J40: 89 | K40: 0.23 | L40: 0 | M40: 0.77 | N40: Key Ideas and Details | O40: 16 | P40: 0.79 | Q40: 12.6 | R40: 5;6;8;9;10;12;13;16;23;24;39;42;43;45;46;50 | S40: Craft and Structure | T40: 26 | U40: 0.77 | V40: 19.91 | W40: 1;2;3;4;7;11;14;17;18;19;26;27;28;29;30;31;32;34;36;37;38;41;47;48;52;53 | X40: Integration of Knowledge and Ideas | Y40: 10 | Z40: 0.68 | AA40: 6.84 | AB40: 15;25;35;44;49;51;54;55;56;57 | AG40: 15;25;35;44;49;51;54;55;56;57
A41: 03 Reading Mid-Year 2014 - Grade 3 ELA | B41: 520 | C41: 0520 0520 - Somerset Academy | D41: 112 | E41: 52 | F41: 70.02 | G41: 36.41 | H41: 46 | I41: 0 | J41: 66 | K41: 0.41 | L41: 0 | M41: 0.59 | N41: Key Ideas and Details | O41: 16 | P41: 0.75 | Q41: 12.01 | R41: 5;6;8;9;10;12;13;16;23;24;39;42;43;45;46;50 | S41: Craft and Structure | T41: 26 | U41: 0.72 | V41: 18.7 | W41: 1;2;3;4;7;11;14;17;18;19;26;27;28;29;30;31;32;34;36;37;38;41;47;48;52;53 | X41: Integration of Knowledge and Ideas | Y41: 10 | Z41: 0.57 | AA41: 5.71 | AB41: 15;25;35;44;49;51;54;55;56;57 | AG41: 15;25;35;44;49;51;54;55;56;57
A42: 03 Reading Mid-Year 2014 - Grade 3 ELA | B42: 521 | C42: 0521 0521 - Broadmoor Elementary | D42: 85 | E42: 52 | F42: 56.7 | G42: 29.48 | H42: 59 | I42: 0 | J42: 26 | K42: 0.69 | L42: 0 | M42: 0.31 | N42: Key Ideas and Details | O42: 16 | P42: 0.61 | Q42: 9.69 | R42: 5;6;8;9;10;12;13;16;23;24;39;42;43;45;46;50 | S42: Craft and Structure | T42: 26 | U42: 0.57 | V42: 14.73 | W42: 1;2;3;4;7;11;14;17;18;19;26;27;28;29;30;31;32;34;36;37;38;41;47;48;52;53 | X42: Integration of Knowledge and Ideas | Y42: 10 | Z42: 0.51 | AA42: 5.06 | AB42: 15;25;35;44;49;51;54;55;56;57 | AG42: 15;25;35;44;49;51;54;55;56;57
A43: 03 Reading Mid-Year 2014 - Grade 3 ELA | B43: 561 | C43: 0561 0561 - W.j. Bryan Elementary | D43: 138 | E43: 52 | F43: 59.45 | G43: 30.91 | H43: 80 | I43: 0 | J43: 58 | K43: 0.58 | L43: 0 | M43: 0.42 | N43: Key Ideas and Details | O43: 16 | P43: 0.62 | Q43: 9.83 | R43: 5;6;8;9;10;12;13;16;23;24;39;42;43;45;46;50 | S43: Craft and Structure | T43: 26 | U43: 0.62 | V43: 16.05 | W43: 1;2;3;4;7;11;14;17;18;19;26;27;28;29;30;31;32;34;36;37;38;41;47;48;52;53 | X43: Integration of Knowledge and Ideas | Y43: 10 | Z43: 0.5 | AA43: 5.03 | AB43: 15;25;35;44;49;51;54;55;56;57 | AG43: 15;25;35;44;49;51;54;55;56;57
A44: 03 Reading Mid-Year 2014 - Grade 3 ELA | B44: 600 | C44: 0600 0600 - Pinecrest Prep Academy | D44: 122 | E44: 52 | F44: 75.79 | G44: 39.41 | H44: 26 | I44: 0 | J44: 96 | K44: 0.21 | L44: 0 | M44: 0.79 | N44: Key Ideas and Details | O44: 16 | P44: 0.79 | Q44: 12.63 | R44: 5;6;8;9;10;12;13;16;23;24;39;42;43;45;46;50 | S44: Craft and Structure | T44: 26 | U44: 0.77 | V44: 20.09 | W44: 1;2;3;4;7;11;14;17;18;19;26;27;28;29;30;31;32;34;36;37;38;41;47;48;52;53 | X44: Integration of Knowledge and Ideas | Y44: 10 | Z44: 0.67 | AA44: 6.69 | AB44: 15;25;35;44;49;51;54;55;56;57 | AG44: 15;25;35;44;49;51;54;55;56;57
A45: 03 Reading Mid-Year 2014 - Grade 3 ELA | B45: 641 | C45: 0641 0641 - Bunche Park Elementary | D45: 46 | E45: 52 | F45: 50.92 | G45: 26.48 | H45: 34 | I45: 0 | J45: 12 | K45: 0.74 | L45: 0 | M45: 0.26 | N45: Key Ideas and Details | O45: 16 | P45: 0.54 | Q45: 8.61 | R45: 5;6;8;9;10;12;13;16;23;24;39;42;43;45;46;50 | S45: Craft and Structure | T45: 26 | U45: 0.53 | V45: 13.78 | W45: 1;2;3;4;7;11;14;17;18;19;26;27;28;29;30;31;32;34;36;37;38;41;47;48;52;53 | X45: Integration of Knowledge and Ideas | Y45: 10 | Z45: 0.41 | AA45: 4.09 | AB45: 15;25;35;44;49;51;54;55;56;57 | AG45: 15;25;35;44;49;51;54;55;56;57
A46: 03 Reading Mid-Year 2014 - Grade 3 ELA | B46: 651 | C46: 0651 0651 - Campbell Drive K-8 Center | D46: 112 | E46: 52 | F46: 56.73 | G46: 29.5 | H46: 82 | I46: 0 | J46: 30 | K46: 0.73 | L46: 0 | M46: 0.27 | N46: Key Ideas and Details | O46: 16 | P46: 0.62 | Q46: 9.86 | R46: 5;6;8;9;10;12;13;16;23;24;39;42;43;45;46;50 | S46: Craft and Structure | T46: 26 | U46: 0.57 | V46: 14.72 | W46: 1;2;3;4;7;11;14;17;18;19;26;27;28;29;30;31;32;34;36;37;38;41;47;48;52;53 | X46: Integration of Knowledge and Ideas | Y46: 10 | Z46: 0.49 | AA46: 4.92 | AB46: 15;25;35;44;49;51;54;55;56;57 | AG46: 15;25;35;44;49;51;54;55;56;57
A47: 03 Reading Mid-Year 2014 - Grade 3 ELA | B47: 661 | C47: 0661 0661 - Caribbean Elementary | D47: 85 | E47: 52 | F47: 55 | G47: 28.6 | H47: 65 | I47: 0 | J47: 20 | K47: 0.76 | L47: 0 | M47: 0.24 | N47: Key Ideas and Details | O47: 16 | P47: 0.61 | Q47: 9.68 | R47: 5;6;8;9;10;12;13;16;23;24;39;42;43;45;46;50 | S47: Craft and Structure | T47: 26 | U47: 0.55 | V47: 14.36 | W47: 1;2;3;4;7;11;14;17;18;19;26;27;28;29;30;31;32;34;36;37;38;41;47;48;52;53 | X47: Integration of Knowledge and Ideas | Y47: 10 | Z47: 0.46 | AA47: 4.55 | AB47: 15;25;35;44;49;51;54;55;56;57 | AG47: 15;25;35;44;49;51;54;55;56;57
A48: 03 Reading Mid-Year 2014 - Grade 3 ELA | B48: 671 | C48: 0671 0671 - Calusa Elementary | D48: 153 | E48: 52 | F48: 70.16 | G48: 36.48 | H48: 53 | I48: 0 | J48: 100 | K48: 0.35 | L48: 0 | M48: 0.65 | N48: Key Ideas and Details | O48: 16 | P48: 0.72 | Q48: 11.54 | R48: 5;6;8;9;10;12;13;16;23;24;39;42;43;45;46;50 | S48: Craft and Structure | T48: 26 | U48: 0.72 | V48: 18.68 | W48: 1;2;3;4;7;11;14;17;18;19;26;27;28;29;30;31;32;34;36;37;38;41;47;48;52;53 | X48: Integration of Knowledge and Ideas | Y48: 10 | Z48: 0.63 | AA48: 6.26 | AB48: 15;25;35;44;49;51;54;55;56;57 | AG48: 15;25;35;44;49;51;54;55;56;57
A49: 03 Reading Mid-Year 2014 - Grade 3 ELA | B49: 681 | C49: 0681 0681 - Carol City Elementary | D49: 64 | E49: 52 | F49: 56.34 | G49: 29.3 | H49: 44 | I49: 0 | J49: 20 | K49: 0.69 | L49: 0 | M49: 0.31 | N49: Key Ideas and Details | O49: 16 | P49: 0.6 | Q49: 9.59 | R49: 5;6;8;9;10;12;13;16;23;24;39;42;43;45;46;50 | S49: Craft and Structure | T49: 26 | U49: 0.57 | V49: 14.84 | W49: 1;2;3;4;7;11;14;17;18;19;26;27;28;29;30;31;32;34;36;37;38;41;47;48;52;53 | X49: Integration of Knowledge and Ideas | Y49: 10 | Z49: 0.49 | AA49: 4.86 | AB49: 15;25;35;44;49;51;54;55;56;57 | AG49: 15;25;35;44;49;51;54;55;56;57
A50: 03 Reading Mid-Year 2014 - Grade 3 ELA | B50: 721 | C50: 0721 0721 - George Washington Carver Elem | D50: 82 | E50: 52 | F50: 63.16 | G50: 32.84 | H50: 45 | I50: 0 | J50: 37 | K50: 0.55 | L50: 0 | M50: 0.45 | N50: Key Ideas and Details | O50: 16 | P50: 0.67 | Q50: 10.65 | R50: 5;6;8;9;10;12;13;16;23;24;39;42;43;45;46;50 | S50: Craft and Structure | T50: 26 | U50: 0.64 | V50: 16.72 | W50: 1;2;3;4;7;11;14;17;18;19;26;27;28;29;30;31;32;34;36;37;38;41;47;48;52;53 | X50: Integration of Knowledge and Ideas | Y50: 10 | Z50: 0.55 | AA50: 5.48 | AB50: 15;25;35;44;49;51;54;55;56;57 | AG50: 15;25;35;44;49;51;54;55;56;57
A51: 03 Reading Mid-Year 2014 - Grade 3 ELA | B51: 761 | C51: 0761 0761 - Fienberg/fisher K-8 Center | D51: 77 | E51: 52 | F51: 51.27 | G51: 26.66 | H51: 56 | I51: 0 | J51: 21 | K51: 0.73 | L51: 0 | M51: 0.27 | N51: Key Ideas and Details | O51: 16 | P51: 0.56 | Q51: 8.9 | R51: 5;6;8;9;10;12;13;16;23;24;39;42;43;45;46;50 | S51: Craft and Structure | T51: 26 | U51: 0.54 | V51: 14.01 | W51: 1;2;3;4;7;11;14;17;18;19;26;27;28;29;30;31;32;34;36;37;38;41;47;48;52;53 | X51: Integration of Knowledge and Ideas | Y51: 10 | Z51: 0.38 | AA51: 3.75 | AB51: 15;25;35;44;49;51;54;55;56;57 | AG51: 15;25;35;44;49;51;54;55;56;57
A52: 03 Reading Mid-Year 2014 - Grade 3 ELA | B52: 771 | C52: 0771 0771 - William A. Chapman Elementary | D52: 79 | E52: 52 | F52: 53.14 | G52: 27.63 | H52: 60 | I52: 0 | J52: 19 | K52: 0.76 | L52: 0 | M52: 0.24 | N52: Key Ideas and Details | O52: 16 | P52: 0.56 | Q52: 9 | R52: 5;6;8;9;10;12;13;16;23;24;39;42;43;45;46;50 | S52: Craft and Structure | T52: 26 | U52: 0.55 | V52: 14.19 | W52: 1;2;3;4;7;11;14;17;18;19;26;27;28;29;30;31;32;34;36;37;38;41;47;48;52;53 | X52: Integration of Knowledge and Ideas | Y52: 10 | Z52: 0.44 | AA52: 4.44 | AB52: 15;25;35;44;49;51;54;55;56;57 | AG52: 15;25;35;44;49;51;54;55;56;57
A53: 03 Reading Mid-Year 2014 - Grade 3 ELA | B53: 801 | C53: 0801 0801 - Citrus Grove Elementary | D53: 151 | E53: 52 | F53: 50.41 | G53: 26.21 | H53: 121 | I53: 0 | J53: 30 | K53: 0.8 | L53: 0 | M53: 0.2 | N53: Key Ideas and Details | O53: 16 | P53: 0.54 | Q53: 8.68 | R53: 5;6;8;9;10;12;13;16;23;24;39;42;43;45;46;50 | S53: Craft and Structure | T53: 26 | U53: 0.51 | V53: 13.27 | W53: 1;2;3;4;7;11;14;17;18;19;26;27;28;29;30;31;32;34;36;37;38;41;47;48;52;53 | X53: Integration of Knowledge and Ideas | Y53: 10 | Z53: 0.43 | AA53: 4.26 | AB53: 15;25;35;44;49;51;54;55;56;57 | AG53: 15;25;35;44;49;51;54;55;56;57
A54: 03 Reading Mid-Year 2014 - Grade 3 ELA | B54: 831 | C54: 0831 0831 - Claude Pepper Elementary | D54: 113 | E54: 52 | F54: 65.74 | G54: 34.19 | H54: 57 | I54: 0 | J54: 56 | K54: 0.5 | L54: 0 | M54: 0.5 | N54: Key Ideas and Details | O54: 16 | P54: 0.69 | Q54: 10.95 | R54: 5;6;8;9;10;12;13;16;23;24;39;42;43;45;46;50 | S54: Craft and Structure | T54: 26 | U54: 0.66 | V54: 17.24 | W54: 1;2;3;4;7;11;14;17;18;19;26;27;28;29;30;31;32;34;36;37;38;41;47;48;52;53 | X54: Integration of Knowledge and Ideas | Y54: 10 | Z54: 0.6 | AA54: 6 | AB54: 15;25;35;44;49;51;54;55;56;57 | AG54: 15;25;35;44;49;51;54;55;56;57
A55: 03 Reading Mid-Year 2014 - Grade 3 ELA | B55: 841 | C55: 0841 0841 - Coconut Grove Elementary | D55: 73 | E55: 52 | F55: 64.91 | G55: 33.75 | H55: 28 | I55: 0 | J55: 45 | K55: 0.38 | L55: 0 | M55: 0.62 | N55: Key Ideas and Details | O55: 16 | P55: 0.68 | Q55: 10.9 | R55: 5;6;8;9;10;12;13;16;23;24;39;42;43;45;46;50 | S55: Craft and Structure | T55: 26 | U55: 0.67 | V55: 17.45 | W55: 1;2;3;4;7;11;14;17;18;19;26;27;28;29;30;31;32;34;36;37;38;41;47;48;52;53 | X55: Integration of Knowledge and Ideas | Y55: 10 | Z55: 0.54 | AA55: 5.4 | AB55: 15;25;35;44;49;51;54;55;56;57 | AG55: 15;25;35;44;49;51;54;55;56;57
A56: 03 Reading Mid-Year 2014 - Grade 3 ELA | B56: 861 | C56: 0861 0861 - Colonial Drive Elementary | D56: 43 | E56: 52 | F56: 64.58 | G56: 33.58 | H56: 23 | I56: 0 | J56: 20 | K56: 0.53 | L56: 0 | M56: 0.47 | N56: Key Ideas and Details | O56: 16 | P56: 0.71 | Q56: 11.35 | R56: 5;6;8;9;10;12;13;16;23;24;39;42;43;45;46;50 | S56: Craft and Structure | T56: 26 | U56: 0.65 | V56: 16.98 | W56: 1;2;3;4;7;11;14;17;18;19;26;27;28;29;30;31;32;34;36;37;38;41;47;48;52;53 | X56: Integration of Knowledge and Ideas | Y56: 10 | Z56: 0.53 | AA56: 5.26 | AB56: 15;25;35;44;49;51;54;55;56;57 | AG56: 15;25;35;44;49;51;54;55;56;57
A57: 03 Reading Mid-Year 2014 - Grade 3 ELA | B57: 881 | C57: 0881 0881 - Comstock Elementary | D57: 91 | E57: 52 | F57: 54.06 | G57: 28.11 | H57: 65 | I57: 0 | J57: 26 | K57: 0.71 | L57: 0 | M57: 0.29 | N57: Key Ideas and Details | O57: 16 | P57: 0.57 | Q57: 9.04 | R57: 5;6;8;9;10;12;13;16;23;24;39;42;43;45;46;50 | S57: Craft and Structure | T57: 26 | U57: 0.56 | V57: 14.54 | W57: 1;2;3;4;7;11;14;17;18;19;26;27;28;29;30;31;32;34;36;37;38;41;47;48;52;53 | X57: Integration of Knowledge and Ideas | Y57: 10 | Z57: 0.45 | AA57: 4.53 | AB57: 15;25;35;44;49;51;54;55;56;57 | AG57: 15;25;35;44;49;51;54;55;56;57
A58: 03 Reading Mid-Year 2014 - Grade 3 ELA | B58: 950 | C58: 0950 0950 - Aventura City Of Excellence | D58: 106 | E58: 52 | F58: 72.3 | G58: 37.59 | H58: 34 | I58: 0 | J58: 72 | K58: 0.32 | L58: 0 | M58: 0.68 | N58: Key Ideas and Details | O58: 16 | P58: 0.72 | Q58: 11.44 | R58: 5;6;8;9;10;12;13;16;23;24;39;42;43;45;46;50 | S58: Craft and Structure | T58: 26 | U58: 0.76 | V58: 19.78 | W58: 1;2;3;4;7;11;14;17;18;19;26;27;28;29;30;31;32;34;36;37;38;41;47;48;52;53 | X58: Integration of Knowledge and Ideas | Y58: 10 | Z58: 0.64 | AA58: 6.37 | AB58: 15;25;35;44;49;51;54;55;56;57 | AG58: 15;25;35;44;49;51;54;55;56;57
A59: 03 Reading Mid-Year 2014 - Grade 3 ELA | B59: 961 | C59: 0961 0961 - Coral Gables Preparatory Acad | D59: 77 | E59: 52 | F59: 78.5 | G59: 40.82 | H59: 10 | I59: 0 | J59: 67 | K59: 0.13 | L59: 0 | M59: 0.87 | N59: Key Ideas and Details | O59: 16 | P59: 0.8 | Q59: 12.79 | R59: 5;6;8;9;10;12;13;16;23;24;39;42;43;45;46;50 | S59: Craft and Structure | T59: 26 | U59: 0.82 | V59: 21.31 | W59: 1;2;3;4;7;11;14;17;18;19;26;27;28;29;30;31;32;34;36;37;38;41;47;48;52;53 | X59: Integration of Knowledge and Ideas | Y59: 10 | Z59: 0.67 | AA59: 6.71 | AB59: 15;25;35;44;49;51;54;55;56;57 | AG59: 15;25;35;44;49;51;54;55;56;57
A60: 03 Reading Mid-Year 2014 - Grade 3 ELA | B60: 1001 | C60: 1001 1001 - Coral Park Elementary | D60: 177 | E60: 52 | F60: 70.34 | G60: 36.58 | H60: 64 | I60: 0 | J60: 113 | K60: 0.36 | L60: 0 | M60: 0.64 | N60: Key Ideas and Details | O60: 16 | P60: 0.72 | Q60: 11.47 | R60: 5;6;8;9;10;12;13;16;23;24;39;42;43;45;46;50 | S60: Craft and Structure | T60: 26 | U60: 0.72 | V60: 18.84 | W60: 1;2;3;4;7;11;14;17;18;19;26;27;28;29;30;31;32;34;36;37;38;41;47;48;52;53 | X60: Integration of Knowledge and Ideas | Y60: 10 | Z60: 0.63 | AA60: 6.26 | AB60: 15;25;35;44;49;51;54;55;56;57 | AG60: 15;25;35;44;49;51;54;55;56;57
A61: 03 Reading Mid-Year 2014 - Grade 3 ELA | B61: 1010 | C61: 1010 1010 - Charter School At Waterstone | D61: 232 | E61: 52 | F61: 67.8 | G61: 35.26 | H61: 91 | I61: 0 | J61: 141 | K61: 0.39 | L61: 0 | M61: 0.61 | N61: Key Ideas and Details | O61: 16 | P61: 0.73 | Q61: 11.64 | R61: 5;6;8;9;10;12;13;16;23;24;39;42;43;45;46;50 | S61: Craft and Structure | T61: 26 | U61: 0.68 | V61: 17.66 | W61: 1;2;3;4;7;11;14;17;18;19;26;27;28;29;30;31;32;34;36;37;38;41;47;48;52;53 | X61: Integration of Knowledge and Ideas | Y61: 10 | Z61: 0.6 | AA61: 5.95 | AB61: 15;25;35;44;49;51;54;55;56;57 | AG61: 15;25;35;44;49;51;54;55;56;57
A62: 03 Reading Mid-Year 2014 - Grade 3 ELA | B62: 1014 | C62: 1014 1014 - Hive Preparatory School | D62: 106 | E62: 52 | F62: 68.98 | G62: 35.87 | H62: 44 | I62: 0 | J62: 62 | K62: 0.42 | L62: 0 | M62: 0.58 | N62: Key Ideas and Details | O62: 16 | P62: 0.71 | Q62: 11.4 | R62: 5;6;8;9;10;12;13;16;23;24;39;42;43;45;46;50 | S62: Craft and Structure | T62: 26 | U62: 0.72 | V62: 18.63 | W62: 1;2;3;4;7;11;14;17;18;19;26;27;28;29;30;31;32;34;36;37;38;41;47;48;52;53 | X62: Integration of Knowledge and Ideas | Y62: 10 | Z62: 0.58 | AA62: 5.84 | AB62: 15;25;35;44;49;51;54;55;56;57 | AG62: 15;25;35;44;49;51;54;55;56;57
A63: 03 Reading Mid-Year 2014 - Grade 3 ELA | B63: 1017 | C63: 1017 1017 - Mater Academy Of Intl Studies | D63: 110 | E63: 52 | F63: 60.75 | G63: 31.59 | H63: 63 | I63: 0 | J63: 47 | K63: 0.57 | L63: 0 | M63: 0.43 | N63: Key Ideas and Details | O63: 16 | P63: 0.63 | Q63: 10.06 | R63: 5;6;8;9;10;12;13;16;23;24;39;42;43;45;46;50 | S63: Craft and Structure | T63: 26 | U63: 0.62 | V63: 16.22 | W63: 1;2;3;4;7;11;14;17;18;19;26;27;28;29;30;31;32;34;36;37;38;41;47;48;52;53 | X63: Integration of Knowledge and Ideas | Y63: 10 | Z63: 0.53 | AA63: 5.31 | AB63: 15;25;35;44;49;51;54;55;56;57 | AG63: 15;25;35;44;49;51;54;55;56;57
A64: 03 Reading Mid-Year 2014 - Grade 3 ELA | B64: 1020 | C64: 1020 1020 - Youth Co-Op Charter School | D64: 82 | E64: 52 | F64: 60.81 | G64: 31.62 | H64: 47 | I64: 0 | J64: 35 | K64: 0.57 | L64: 0 | M64: 0.43 | N64: Key Ideas and Details | O64: 16 | P64: 0.65 | Q64: 10.35 | R64: 5;6;8;9;10;12;13;16;23;24;39;42;43;45;46;50 | S64: Craft and Structure | T64: 26 | U64: 0.62 | V64: 16.18 | W64: 1;2;3;4;7;11;14;17;18;19;26;27;28;29;30;31;32;34;36;37;38;41;47;48;52;53 | X64: Integration of Knowledge and Ideas | Y64: 10 | Z64: 0.51 | AA64: 5.09 | AB64: 15;25;35;44;49;51;54;55;56;57 | AG64: 15;25;35;44;49;51;54;55;56;57
A65: 03 Reading Mid-Year 2014 - Grade 3 ELA | B65: 1041 | C65: 1041 1041 - Coral Reef Elementary | D65: 103 | E65: 52 | F65: 73.84 | G65: 38.4 | H65: 29 | I65: 0 | J65: 74 | K65: 0.28 | L65: 0 | M65: 0.72 | N65: Key Ideas and Details | O65: 16 | P65: 0.77 | Q65: 12.36 | R65: 5;6;8;9;10;12;13;16;23;24;39;42;43;45;46;50 | S65: Craft and Structure | T65: 26 | U65: 0.76 | V65: 19.79 | W65: 1;2;3;4;7;11;14;17;18;19;26;27;28;29;30;31;32;34;36;37;38;41;47;48;52;53 | X65: Integration of Knowledge and Ideas | Y65: 10 | Z65: 0.63 | AA65: 6.25 | AB65: 15;25;35;44;49;51;54;55;56;57 | AG65: 15;25;35;44;49;51;54;55;56;57
A66: 03 Reading Mid-Year 2014 - Grade 3 ELA | B66: 1081 | C66: 1081 1081 - Coral Terrace Elementary | D66: 70 | E66: 52 | F66: 55.88 | G66: 29.06 | H66: 47 | I66: 0 | J66: 23 | K66: 0.67 | L66: 0 | M66: 0.33 | N66: Key Ideas and Details | O66: 16 | P66: 0.61 | Q66: 9.67 | R66: 5;6;8;9;10;12;13;16;23;24;39;42;43;45;46;50 | S66: Craft and Structure | T66: 26 | U66: 0.56 | V66: 14.47 | W66: 1;2;3;4;7;11;14;17;18;19;26;27;28;29;30;31;32;34;36;37;38;41;47;48;52;53 | X66: Integration of Knowledge and Ideas | Y66: 10 | Z66: 0.49 | AA66: 4.91 | AB66: 15;25;35;44;49;51;54;55;56;57 | AG66: 15;25;35;44;49;51;54;55;56;57
A67: 03 Reading Mid-Year 2014 - Grade 3 ELA | B67: 1121 | C67: 1121 1121 - Coral Way K-8 Center | D67: 159 | E67: 52 | F67: 63.44 | G67: 32.99 | H67: 82 | I67: 0 | J67: 77 | K67: 0.52 | L67: 0 | M67: 0.48 | N67: Key Ideas and Details | O67: 16 | P67: 0.66 | Q67: 10.6 | R67: 5;6;8;9;10;12;13;16;23;24;39;42;43;45;46;50 | S67: Craft and Structure | T67: 26 | U67: 0.65 | V67: 17.01 | W67: 1;2;3;4;7;11;14;17;18;19;26;27;28;29;30;31;32;34;36;37;38;41;47;48;52;53 | X67: Integration of Knowledge and Ideas | Y67: 10 | Z67: 0.54 | AA67: 5.37 | AB67: 15;25;35;44;49;51;54;55;56;57 | AG67: 15;25;35;44;49;51;54;55;56;57
A68: 03 Reading Mid-Year 2014 - Grade 3 ELA | B68: 1161 | C68: 1161 1161 - Crestview Elementary | D68: 63 | E68: 52 | F68: 54.55 | G68: 28.37 | H68: 55 | I68: 0 | J68: 8 | K68: 0.87 | L68: 0 | M68: 0.13 | N68: Key Ideas and Details | O68: 16 | P68: 0.61 | Q68: 9.76 | R68: 5;6;8;9;10;12;13;16;23;24;39;42;43;45;46;50 | S68: Craft and Structure | T68: 26 | U68: 0.54 | V68: 14.16 | W68: 1;2;3;4;7;11;14;17;18;19;26;27;28;29;30;31;32;34;36;37;38;41;47;48;52;53 | X68: Integration of Knowledge and Ideas | Y68: 10 | Z68: 0.44 | AA68: 4.44 | AB68: 15;25;35;44;49;51;54;55;56;57 | AG68: 15;25;35;44;49;51;54;55;56;57
A69: 03 Reading Mid-Year 2014 - Grade 3 ELA | B69: 1241 | C69: 1241 1241 - Cutler Ridge Elementary | D69: 91 | E69: 52 | F69: 60.97 | G69: 31.7 | H69: 51 | I69: 0 | J69: 40 | K69: 0.56 | L69: 0 | M69: 0.44 | N69: Key Ideas and Details | O69: 16 | P69: 0.63 | Q69: 10.12 | R69: 5;6;8;9;10;12;13;16;23;24;39;42;43;45;46;50 | S69: Craft and Structure | T69: 26 | U69: 0.63 | V69: 16.32 | W69: 1;2;3;4;7;11;14;17;18;19;26;27;28;29;30;31;32;34;36;37;38;41;47;48;52;53 | X69: Integration of Knowledge and Ideas | Y69: 10 | Z69: 0.53 | AA69: 5.26 | AB69: 15;25;35;44;49;51;54;55;56;57 | AG69: 15;25;35;44;49;51;54;55;56;57
A70: 03 Reading Mid-Year 2014 - Grade 3 ELA | B70: 1281 | C70: 1281 1281 - Cypress Elementary | D70: 58 | E70: 52 | F70: 67.27 | G70: 34.98 | H70: 24 | I70: 0 | J70: 34 | K70: 0.41 | L70: 0 | M70: 0.59 | N70: Key Ideas and Details | O70: 16 | P70: 0.7 | Q70: 11.14 | R70: 5;6;8;9;10;12;13;16;23;24;39;42;43;45;46;50 | S70: Craft and Structure | T70: 26 | U70: 0.71 | V70: 18.4 | W70: 1;2;3;4;7;11;14;17;18;19;26;27;28;29;30;31;32;34;36;37;38;41;47;48;52;53 | X70: Integration of Knowledge and Ideas | Y70: 10 | Z70: 0.54 | AA70: 5.45 | AB70: 15;25;35;44;49;51;54;55;56;57 | AG70: 15;25;35;44;49;51;54;55;56;57
A71: 03 Reading Mid-Year 2014 - Grade 3 ELA | B71: 1331 | C71: 1331 1331 - Devon Aire K-8 Center | D71: 181 | E71: 52 | F71: 75.12 | G71: 39.06 | H71: 43 | I71: 0 | J71: 138 | K71: 0.24 | L71: 0 | M71: 0.76 | N71: Key Ideas and Details | O71: 16 | P71: 0.77 | Q71: 12.33 | R71: 5;6;8;9;10;12;13;16;23;24;39;42;43;45;46;50 | S71: Craft and Structure | T71: 26 | U71: 0.77 | V71: 20.14 | W71: 1;2;3;4;7;11;14;17;18;19;26;27;28;29;30;31;32;34;36;37;38;41;47;48;52;53 | X71: Integration of Knowledge and Ideas | Y71: 10 | Z71: 0.66 | AA71: 6.59 | AB71: 15;25;35;44;49;51;54;55;56;57 | AG71: 15;25;35;44;49;51;54;55;56;57
A72: 03 Reading Mid-Year 2014 - Grade 3 ELA | B72: 1361 | C72: 1361 1361 - Frederick Douglass Elementary | D72: 28 | E72: 52 | F72: 55.63 | G72: 28.93 | H72: 17 | I72: 0 | J72: 11 | K72: 0.61 | L72: 0 | M72: 0.39 | N72: Key Ideas and Details | O72: 16 | P72: 0.61 | Q72: 9.71 | R72: 5;6;8;9;10;12;13;16;23;24;39;42;43;45;46;50 | S72: Craft and Structure | T72: 26 | U72: 0.55 | V72: 14.39 | W72: 1;2;3;4;7;11;14;17;18;19;26;27;28;29;30;31;32;34;36;37;38;41;47;48;52;53 | X72: Integration of Knowledge and Ideas | Y72: 10 | Z72: 0.48 | AA72: 4.82 | AB72: 15;25;35;44;49;51;54;55;56;57 | AG72: 15;25;35;44;49;51;54;55;56;57
A73: 03 Reading Mid-Year 2014 - Grade 3 ELA | B73: 1371 | C73: 1371 1371 - Marjory Stoneman Douglas Elem | D73: 176 | E73: 52 | F73: 65.73 | G73: 34.18 | H73: 91 | I73: 0 | J73: 85 | K73: 0.52 | L73: 0 | M73: 0.48 | N73: Key Ideas and Details | O73: 16 | P73: 0.7 | Q73: 11.26 | R73: 5;6;8;9;10;12;13;16;23;24;39;42;43;45;46;50 | S73: Craft and Structure | T73: 26 | U73: 0.66 | V73: 17.28 | W73: 1;2;3;4;7;11;14;17;18;19;26;27;28;29;30;31;32;34;36;37;38;41;47;48;52;53 | X73: Integration of Knowledge and Ideas | Y73: 10 | Z73: 0.56 | AA73: 5.64 | AB73: 15;25;35;44;49;51;54;55;56;57 | AG73: 15;25;35;44;49;51;54;55;56;57
A74: 03 Reading Mid-Year 2014 - Grade 3 ELA | B74: 1401 | C74: 1401 1401 - Charles R. Drew K-8 Center | D74: 42 | E74: 52 | F74: 49.04 | G74: 25.5 | H74: 33 | I74: 0 | J74: 9 | K74: 0.79 | L74: 0 | M74: 0.21 | N74: Key Ideas and Details | O74: 16 | P74: 0.56 | Q74: 8.95 | R74: 5;6;8;9;10;12;13;16;23;24;39;42;43;45;46;50 | S74: Craft and Structure | T74: 26 | U74: 0.49 | V74: 12.67 | W74: 1;2;3;4;7;11;14;17;18;19;26;27;28;29;30;31;32;34;36;37;38;41;47;48;52;53 | X74: Integration of Knowledge and Ideas | Y74: 10 | Z74: 0.39 | AA74: 3.88 | AB74: 15;25;35;44;49;51;54;55;56;57 | AG74: 15;25;35;44;49;51;54;55;56;57
A75: 03 Reading Mid-Year 2014 - Grade 3 ELA | B75: 1441 | C75: 1441 1441 - Paul Laurence Dunbar K-8 Ctr | D75: 53 | E75: 52 | F75: 50.07 | G75: 26.04 | H75: 44 | I75: 0 | J75: 9 | K75: 0.83 | L75: 0 | M75: 0.17 | N75: Key Ideas and Details | O75: 16 | P75: 0.55 | Q75: 8.75 | R75: 5;6;8;9;10;12;13;16;23;24;39;42;43;45;46;50 | S75: Craft and Structure | T75: 26 | U75: 0.49 | V75: 12.85 | W75: 1;2;3;4;7;11;14;17;18;19;26;27;28;29;30;31;32;34;36;37;38;41;47;48;52;53 | X75: Integration of Knowledge and Ideas | Y75: 10 | Z75: 0.44 | AA75: 4.43 | AB75: 15;25;35;44;49;51;54;55;56;57 | AG75: 15;25;35;44;49;51;54;55;56;57
A76: 03 Reading Mid-Year 2014 - Grade 3 ELA | B76: 1481 | C76: 1481 1481 - John G. Dupuis Elementary | D76: 110 | E76: 52 | F76: 65.49 | G76: 34.05 | H76: 48 | I76: 0 | J76: 62 | K76: 0.44 | L76: 0 | M76: 0.56 | N76: Key Ideas and Details | O76: 16 | P76: 0.71 | Q76: 11.33 | R76: 5;6;8;9;10;12;13;16;23;24;39;42;43;45;46;50 | S76: Craft and Structure | T76: 26 | U76: 0.67 | V76: 17.44 | W76: 1;2;3;4;7;11;14;17;18;19;26;27;28;29;30;31;32;34;36;37;38;41;47;48;52;53 | X76: Integration of Knowledge and Ideas | Y76: 10 | Z76: 0.53 | AA76: 5.29 | AB76: 15;25;35;44;49;51;54;55;56;57 | AG76: 15;25;35;44;49;51;54;55;56;57
A77: 03 Reading Mid-Year 2014 - Grade 3 ELA | B77: 1521 | C77: 1521 1521 - Amelia Earhart Elementary | D77: 64 | E77: 52 | F77: 53.64 | G77: 27.89 | H77: 43 | I77: 0 | J77: 21 | K77: 0.67 | L77: 0 | M77: 0.33 | N77: Key Ideas and Details | O77: 16 | P77: 0.56 | Q77: 8.98 | R77: 5;6;8;9;10;12;13;16;23;24;39;42;43;45;46;50 | S77: Craft and Structure | T77: 26 | U77: 0.55 | V77: 14.42 | W77: 1;2;3;4;7;11;14;17;18;19;26;27;28;29;30;31;32;34;36;37;38;41;47;48;52;53 | X77: Integration of Knowledge and Ideas | Y77: 10 | Z77: 0.45 | AA77: 4.48 | AB77: 15;25;35;44;49;51;54;55;56;57 | AG77: 15;25;35;44;49;51;54;55;56;57
A78: 03 Reading Mid-Year 2014 - Grade 3 ELA | B78: 1561 | C78: 1561 1561 - Earlington Heights Elementary | D78: 82 | E78: 52 | F78: 50.94 | G78: 26.49 | H78: 66 | I78: 0 | J78: 16 | K78: 0.8 | L78: 0 | M78: 0.2 | N78: Key Ideas and Details | O78: 16 | P78: 0.55 | Q78: 8.72 | R78: 5;6;8;9;10;12;13;16;23;24;39;42;43;45;46;50 | S78: Craft and Structure | T78: 26 | U78: 0.51 | V78: 13.13 | W78: 1;2;3;4;7;11;14;17;18;19;26;27;28;29;30;31;32;34;36;37;38;41;47;48;52;53 | X78: Integration of Knowledge and Ideas | Y78: 10 | Z78: 0.46 | AA78: 4.63 | AB78: 15;25;35;44;49;51;54;55;56;57 | AG78: 15;25;35;44;49;51;54;55;56;57
A79: 03 Reading Mid-Year 2014 - Grade 3 ELA | B79: 1601 | C79: 1601 1601 - Edison Park K-8 Center | D79: 61 | E79: 52 | F79: 47.89 | G79: 24.9 | H79: 55 | I79: 0 | J79: 6 | K79: 0.9 | L79: 0 | M79: 0.1 | N79: Key Ideas and Details | O79: 16 | P79: 0.53 | Q79: 8.41 | R79: 5;6;8;9;10;12;13;16;23;24;39;42;43;45;46;50 | S79: Craft and Structure | T79: 26 | U79: 0.47 | V79: 12.11 | W79: 1;2;3;4;7;11;14;17;18;19;26;27;28;29;30;31;32;34;36;37;38;41;47;48;52;53 | X79: Integration of Knowledge and Ideas | Y79: 10 | Z79: 0.44 | AA79: 4.38 | AB79: 15;25;35;44;49;51;54;55;56;57 | AG79: 15;25;35;44;49;51;54;55;56;57
A80: 03 Reading Mid-Year 2014 - Grade 3 ELA | B80: 1641 | C80: 1641 1641 - Emerson Elementary | D80: 71 | E80: 52 | F80: 57.85 | G80: 30.08 | H80: 41 | I80: 0 | J80: 30 | K80: 0.58 | L80: 0 | M80: 0.42 | N80: Key Ideas and Details | O80: 16 | P80: 0.61 | Q80: 9.82 | R80: 5;6;8;9;10;12;13;16;23;24;39;42;43;45;46;50 | S80: Craft and Structure | T80: 26 | U80: 0.59 | V80: 15.35 | W80: 1;2;3;4;7;11;14;17;18;19;26;27;28;29;30;31;32;34;36;37;38;41;47;48;52;53 | X80: Integration of Knowledge and Ideas | Y80: 10 | Z80: 0.49 | AA80: 4.92 | AB80: 15;25;35;44;49;51;54;55;56;57 | AG80: 15;25;35;44;49;51;54;55;56;57
A81: 03 Reading Mid-Year 2014 - Grade 3 ELA | B81: 1681 | C81: 1681 1681 - Lillie C. Evans K-8 Center | D81: 48 | E81: 52 | F81: 50.48 | G81: 26.25 | H81: 40 | I81: 0 | J81: 8 | K81: 0.83 | L81: 0 | M81: 0.17 | N81: Key Ideas and Details | O81: 16 | P81: 0.58 | Q81: 9.27 | R81: 5;6;8;9;10;12;13;16;23;24;39;42;43;45;46;50 | S81: Craft and Structure | T81: 26 | U81: 0.51 | V81: 13.13 | W81: 1;2;3;4;7;11;14;17;18;19;26;27;28;29;30;31;32;34;36;37;38;41;47;48;52;53 | X81: Integration of Knowledge and Ideas | Y81: 10 | Z81: 0.39 | AA81: 3.85 | AB81: 15;25;35;44;49;51;54;55;56;57 | AG81: 15;25;35;44;49;51;54;55;56;57
A82: 03 Reading Mid-Year 2014 - Grade 3 ELA | B82: 1691 | C82: 1691 1691 - Christina M. Eve Elementary | D82: 127 | E82: 52 | F82: 69.4 | G82: 36.09 | H82: 45 | I82: 0 | J82: 82 | K82: 0.35 | L82: 0 | M82: 0.65 | N82: Key Ideas and Details | O82: 16 | P82: 0.73 | Q82: 11.7 | R82: 5;6;8;9;10;12;13;16;23;24;39;42;43;45;46;50 | S82: Craft and Structure | T82: 26 | U82: 0.71 | V82: 18.57 | W82: 1;2;3;4;7;11;14;17;18;19;26;27;28;29;30;31;32;34;36;37;38;41;47;48;52;53 | X82: Integration of Knowledge and Ideas | Y82: 10 | Z82: 0.58 | AA82: 5.82 | AB82: 15;25;35;44;49;51;54;55;56;57 | AG82: 15;25;35;44;49;51;54;55;56;57
A83: 03 Reading Mid-Year 2014 - Grade 3 ELA | B83: 1721 | C83: 1721 1721 - Everglades K-8 Center | D83: 135 | E83: 52 | F83: 70.47 | G83: 36.64 | H83: 49 | I83: 0 | J83: 86 | K83: 0.36 | L83: 0 | M83: 0.64 | N83: Key Ideas and Details | O83: 16 | P83: 0.74 | Q83: 11.81 | R83: 5;6;8;9;10;12;13;16;23;24;39;42;43;45;46;50 | S83: Craft and Structure | T83: 26 | U83: 0.73 | V83: 18.9 | W83: 1;2;3;4;7;11;14;17;18;19;26;27;28;29;30;31;32;34;36;37;38;41;47;48;52;53 | X83: Integration of Knowledge and Ideas | Y83: 10 | Z83: 0.59 | AA83: 5.94 | AB83: 15;25;35;44;49;51;54;55;56;57 | AG83: 15;25;35;44;49;51;54;55;56;57
A84: 03 Reading Mid-Year 2014 - Grade 3 ELA | B84: 1761 | C84: 1761 1761 - David Fairchild Elementary | D84: 99 | E84: 52 | F84: 73.99 | G84: 38.47 | H84: 21 | I84: 0 | J84: 78 | K84: 0.21 | L84: 0 | M84: 0.79 | N84: Key Ideas and Details | O84: 16 | P84: 0.77 | Q84: 12.22 | R84: 5;6;8;9;10;12;13;16;23;24;39;42;43;45;46;50 | S84: Craft and Structure | T84: 26 | U84: 0.76 | V84: 19.8 | W84: 1;2;3;4;7;11;14;17;18;19;26;27;28;29;30;31;32;34;36;37;38;41;47;48;52;53 | X84: Integration of Knowledge and Ideas | Y84: 10 | Z84: 0.65 | AA84: 6.45 | AB84: 15;25;35;44;49;51;54;55;56;57 | AG84: 15;25;35;44;49;51;54;55;56;57
A85: 03 Reading Mid-Year 2014 - Grade 3 ELA | B85: 1801 | C85: 1801 1801 - Fairlawn Elementary | D85: 115 | E85: 52 | F85: 66.94 | G85: 34.81 | H85: 50 | I85: 0 | J85: 65 | K85: 0.43 | L85: 0 | M85: 0.57 | N85: Key Ideas and Details | O85: 16 | P85: 0.72 | Q85: 11.45 | R85: 5;6;8;9;10;12;13;16;23;24;39;42;43;45;46;50 | S85: Craft and Structure | T85: 26 | U85: 0.68 | V85: 17.7 | W85: 1;2;3;4;7;11;14;17;18;19;26;27;28;29;30;31;32;34;36;37;38;41;47;48;52;53 | X85: Integration of Knowledge and Ideas | Y85: 10 | Z85: 0.57 | AA85: 5.65 | AB85: 15;25;35;44;49;51;54;55;56;57 | AG85: 15;25;35;44;49;51;54;55;56;57
A86: 03 Reading Mid-Year 2014 - Grade 3 ELA | B86: 1811 | C86: 1811 1811 - Dante B. Fascell Elementary | D86: 87 | E86: 52 | F86: 65.34 | G86: 33.98 | H86: 41 | I86: 0 | J86: 46 | K86: 0.47 | L86: 0 | M86: 0.53 | N86: Key Ideas and Details | O86: 16 | P86: 0.69 | Q86: 11.08 | R86: 5;6;8;9;10;12;13;16;23;24;39;42;43;45;46;50 | S86: Craft and Structure | T86: 26 | U86: 0.67 | V86: 17.34 | W86: 1;2;3;4;7;11;14;17;18;19;26;27;28;29;30;31;32;34;36;37;38;41;47;48;52;53 | X86: Integration of Knowledge and Ideas | Y86: 10 | Z86: 0.56 | AA86: 5.55 | AB86: 15;25;35;44;49;51;54;55;56;57 | AG86: 15;25;35;44;49;51;54;55;56;57
A87: 03 Reading Mid-Year 2014 - Grade 3 ELA | B87: 1841 | C87: 1841 1841 - Flagami Elementary | D87: 72 | E87: 52 | F87: 61.43 | G87: 31.94 | H87: 39 | I87: 0 | J87: 33 | K87: 0.54 | L87: 0 | M87: 0.46 | N87: Key Ideas and Details | O87: 16 | P87: 0.65 | Q87: 10.32 | R87: 5;6;8;9;10;12;13;16;23;24;39;42;43;45;46;50 | S87: Craft and Structure | T87: 26 | U87: 0.63 | V87: 16.4 | W87: 1;2;3;4;7;11;14;17;18;19;26;27;28;29;30;31;32;34;36;37;38;41;47;48;52;53 | X87: Integration of Knowledge and Ideas | Y87: 10 | Z87: 0.52 | AA87: 5.22 | AB87: 15;25;35;44;49;51;54;55;56;57 | AG87: 15;25;35;44;49;51;54;55;56;57
A88: 03 Reading Mid-Year 2014 - Grade 3 ELA | B88: 1881 | C88: 1881 1881 - Henry M. Flagler Elementary | D88: 110 | E88: 52 | F88: 58.15 | G88: 30.24 | H88: 62 | I88: 0 | J88: 48 | K88: 0.56 | L88: 0 | M88: 0.44 | N88: Key Ideas and Details | O88: 16 | P88: 0.62 | Q88: 9.95 | R88: 5;6;8;9;10;12;13;16;23;24;39;42;43;45;46;50 | S88: Craft and Structure | T88: 26 | U88: 0.59 | V88: 15.27 | W88: 1;2;3;4;7;11;14;17;18;19;26;27;28;29;30;31;32;34;36;37;38;41;47;48;52;53 | X88: Integration of Knowledge and Ideas | Y88: 10 | Z88: 0.5 | AA88: 5.02 | AB88: 15;25;35;44;49;51;54;55;56;57 | AG88: 15;25;35;44;49;51;54;55;56;57
A89: 03 Reading Mid-Year 2014 - Grade 3 ELA | B89: 1921 | C89: 1921 1921 - Flamingo Elementary | D89: 119 | E89: 52 | F89: 53.78 | G89: 27.97 | H89: 89 | I89: 0 | J89: 30 | K89: 0.75 | L89: 0 | M89: 0.25 | N89: Key Ideas and Details | O89: 16 | P89: 0.58 | Q89: 9.2 | R89: 5;6;8;9;10;12;13;16;23;24;39;42;43;45;46;50 | S89: Craft and Structure | T89: 26 | U89: 0.55 | V89: 14.2 | W89: 1;2;3;4;7;11;14;17;18;19;26;27;28;29;30;31;32;34;36;37;38;41;47;48;52;53 | X89: Integration of Knowledge and Ideas | Y89: 10 | Z89: 0.46 | AA89: 4.56 | AB89: 15;25;35;44;49;51;54;55;56;57 | AG89: 15;25;35;44;49;51;54;55;56;57
A90: 03 Reading Mid-Year 2014 - Grade 3 ELA | B90: 2001 | C90: 2001 2001 - Florida City Elementary | D90: 131 | E90: 52 | F90: 55.02 | G90: 28.61 | H90: 91 | I90: 0 | J90: 40 | K90: 0.69 | L90: 0 | M90: 0.31 | N90: Key Ideas and Details | O90: 16 | P90: 0.6 | Q90: 9.5 | R90: 5;6;8;9;10;12;13;16;23;24;39;42;43;45;46;50 | S90: Craft and Structure | T90: 26 | U90: 0.55 | V90: 14.31 | W90: 1;2;3;4;7;11;14;17;18;19;26;27;28;29;30;31;32;34;36;37;38;41;47;48;52;53 | X90: Integration of Knowledge and Ideas | Y90: 10 | Z90: 0.48 | AA90: 4.8 | AB90: 15;25;35;44;49;51;54;55;56;57 | AG90: 15;25;35;44;49;51;54;55;56;57
A91: 03 Reading Mid-Year 2014 - Grade 3 ELA | B91: 2003 | C91: 2003 2003 - Bridgeprep Academy South | D91: 42 | E91: 52 | F91: 70.01 | G91: 36.4 | H91: 15 | I91: 0 | J91: 27 | K91: 0.36 | L91: 0 | M91: 0.64 | N91: Key Ideas and Details | O91: 16 | P91: 0.72 | Q91: 11.57 | R91: 5;6;8;9;10;12;13;16;23;24;39;42;43;45;46;50 | S91: Craft and Structure | T91: 26 | U91: 0.71 | V91: 18.5 | W91: 1;2;3;4;7;11;14;17;18;19;26;27;28;29;30;31;32;34;36;37;38;41;47;48;52;53 | X91: Integration of Knowledge and Ideas | Y91: 10 | Z91: 0.63 | AA91: 6.33 | AB91: 15;25;35;44;49;51;54;55;56;57 | AG91: 15;25;35;44;49;51;54;55;56;57
A92: 03 Reading Mid-Year 2014 - Grade 3 ELA | B92: 2006 | C92: 2006 2006 - Richard Allen Leadership Acad | D92: 5 | E92: 52 | F92: 58.85 | G92: 30.6 | H92: 3 | I92: 0 | J92: 2 | K92: 0.6 | L92: 0 | M92: 0.4 | N92: Key Ideas and Details | O92: 16 | P92: 0.67 | Q92: 10.8 | R92: 5;6;8;9;10;12;13;16;23;24;39;42;43;45;46;50 | S92: Craft and Structure | T92: 26 | U92: 0.56 | V92: 14.6 | W92: 1;2;3;4;7;11;14;17;18;19;26;27;28;29;30;31;32;34;36;37;38;41;47;48;52;53 | X92: Integration of Knowledge and Ideas | Y92: 10 | Z92: 0.52 | AA92: 5.2 | AB92: 15;25;35;44;49;51;54;55;56;57 | AG92: 15;25;35;44;49;51;54;55;56;57
A93: 03 Reading Mid-Year 2014 - Grade 3 ELA | B93: 2007 | C93: 2007 2007 - Somerset Academy Elementary | D93: 76 | E93: 52 | F93: 75.84 | G93: 39.43 | H93: 17 | I93: 0 | J93: 59 | K93: 0.22 | L93: 0 | M93: 0.78 | N93: Key Ideas and Details | O93: 16 | P93: 0.79 | Q93: 12.64 | R93: 5;6;8;9;10;12;13;16;23;24;39;42;43;45;46;50 | S93: Craft and Structure | T93: 26 | U93: 0.77 | V93: 20.09 | W93: 1;2;3;4;7;11;14;17;18;19;26;27;28;29;30;31;32;34;36;37;38;41;47;48;52;53 | X93: Integration of Knowledge and Ideas | Y93: 10 | Z93: 0.67 | AA93: 6.7 | AB93: 15;25;35;44;49;51;54;55;56;57 | AG93: 15;25;35;44;49;51;54;55;56;57
A94: 03 Reading Mid-Year 2014 - Grade 3 ELA | B94: 2012 | C94: 2012 2012 - Somerset Arts Academy | D94: 68 | E94: 52 | F94: 63.8 | G94: 33.18 | H94: 38 | I94: 0 | J94: 30 | K94: 0.56 | L94: 0 | M94: 0.44 | N94: Key Ideas and Details | O94: 16 | P94: 0.67 | Q94: 10.65 | R94: 5;6;8;9;10;12;13;16;23;24;39;42;43;45;46;50 | S94: Craft and Structure | T94: 26 | U94: 0.65 | V94: 16.97 | W94: 1;2;3;4;7;11;14;17;18;19;26;27;28;29;30;31;32;34;36;37;38;41;47;48;52;53 | X94: Integration of Knowledge and Ideas | Y94: 10 | Z94: 0.56 | AA94: 5.56 | AB94: 15;25;35;44;49;51;54;55;56;57 | AG94: 15;25;35;44;49;51;54;55;56;57
A95: 03 Reading Mid-Year 2014 - Grade 3 ELA | B95: 2013 | C95: 2013 2013 - Bridgeprep Acad Greater Miami | D95: 72 | E95: 52 | F95: 71.34 | G95: 37.1 | H95: 24 | I95: 0 | J95: 48 | K95: 0.33 | L95: 0 | M95: 0.67 | N95: Key Ideas and Details | O95: 16 | P95: 0.75 | Q95: 11.99 | R95: 5;6;8;9;10;12;13;16;23;24;39;42;43;45;46;50 | S95: Craft and Structure | T95: 26 | U95: 0.73 | V95: 19 | W95: 1;2;3;4;7;11;14;17;18;19;26;27;28;29;30;31;32;34;36;37;38;41;47;48;52;53 | X95: Integration of Knowledge and Ideas | Y95: 10 | Z95: 0.61 | AA95: 6.11 | AB95: 15;25;35;44;49;51;54;55;56;57 | AG95: 15;25;35;44;49;51;54;55;56;57
A96: 03 Reading Mid-Year 2014 - Grade 3 ELA | B96: 2021 | C96: 2021 2021 - Gloria Floyd Elementary | D96: 82 | E96: 52 | F96: 66.89 | G96: 34.78 | H96: 37 | I96: 0 | J96: 45 | K96: 0.45 | L96: 0 | M96: 0.55 | N96: Key Ideas and Details | O96: 16 | P96: 0.69 | Q96: 11.05 | R96: 5;6;8;9;10;12;13;16;23;24;39;42;43;45;46;50 | S96: Craft and Structure | T96: 26 | U96: 0.7 | V96: 18.07 | W96: 1;2;3;4;7;11;14;17;18;19;26;27;28;29;30;31;32;34;36;37;38;41;47;48;52;53 | X96: Integration of Knowledge and Ideas | Y96: 10 | Z96: 0.57 | AA96: 5.66 | AB96: 15;25;35;44;49;51;54;55;56;57 | AG96: 15;25;35;44;49;51;54;55;56;57
A97: 03 Reading Mid-Year 2014 - Grade 3 ELA | B97: 2041 | C97: 2041 2041 - Benjamin Franklin K-8 Center | D97: 84 | E97: 52 | F97: 55.54 | G97: 28.88 | H97: 57 | I97: 0 | J97: 27 | K97: 0.68 | L97: 0 | M97: 0.32 | N97: Key Ideas and Details | O97: 16 | P97: 0.6 | Q97: 9.51 | R97: 5;6;8;9;10;12;13;16;23;24;39;42;43;45;46;50 | S97: Craft and Structure | T97: 26 | U97: 0.56 | V97: 14.57 | W97: 1;2;3;4;7;11;14;17;18;19;26;27;28;29;30;31;32;34;36;37;38;41;47;48;52;53 | X97: Integration of Knowledge and Ideas | Y97: 10 | Z97: 0.48 | AA97: 4.8 | AB97: 15;25;35;44;49;51;54;55;56;57 | AG97: 15;25;35;44;49;51;54;55;56;57
A98: 03 Reading Mid-Year 2014 - Grade 3 ELA | B98: 2060 | C98: 2060 2060 - Gibson Charter School | D98: 41 | E98: 52 | F98: 49.53 | G98: 25.76 | H98: 33 | I98: 0 | J98: 8 | K98: 0.8 | L98: 0 | M98: 0.2 | N98: Key Ideas and Details | O98: 16 | P98: 0.56 | Q98: 8.93 | R98: 5;6;8;9;10;12;13;16;23;24;39;42;43;45;46;50 | S98: Craft and Structure | T98: 26 | U98: 0.5 | V98: 12.95 | W98: 1;2;3;4;7;11;14;17;18;19;26;27;28;29;30;31;32;34;36;37;38;41;47;48;52;53 | X98: Integration of Knowledge and Ideas | Y98: 10 | Z98: 0.39 | AA98: 3.88 | AB98: 15;25;35;44;49;51;54;55;56;57 | AG98: 15;25;35;44;49;51;54;55;56;57
A99: 03 Reading Mid-Year 2014 - Grade 3 ELA | B99: 2081 | C99: 2081 2081 - Fulford Elementary | D99: 78 | E99: 52 | F99: 66.07 | G99: 34.36 | H99: 36 | I99: 0 | J99: 42 | K99: 0.46 | L99: 0 | M99: 0.54 | N99: Key Ideas and Details | O99: 16 | P99: 0.7 | Q99: 11.14 | R99: 5;6;8;9;10;12;13;16;23;24;39;42;43;45;46;50 | S99: Craft and Structure | T99: 26 | U99: 0.68 | V99: 17.69 | W99: 1;2;3;4;7;11;14;17;18;19;26;27;28;29;30;31;32;34;36;37;38;41;47;48;52;53 | X99: Integration of Knowledge and Ideas | Y99: 10 | Z99: 0.55 | AA99: 5.53 | AB99: 15;25;35;44;49;51;54;55;56;57 | AG99: 15;25;35;44;49;51;54;55;56;57
A100: 03 Reading Mid-Year 2014 - Grade 3 ELA | B100: 2111 | C100: 2111 2111 - Hialeah Gardens Elementary | D100: 129 | E100: 52 | F100: 70.45 | G100: 36.64 | H100: 40 | I100: 0 | J100: 89 | K100: 0.31 | L100: 0 | M100: 0.69 | N100: Key Ideas and Details | O100: 16 | P100: 0.73 | Q100: 11.61 | R100: 5;6;8;9;10;12;13;16;23;24;39;42;43;45;46;50 | S100: Craft and Structure | T100: 26 | U100: 0.72 | V100: 18.72 | W100: 1;2;3;4;7;11;14;17;18;19;26;27;28;29;30;31;32;34;36;37;38;41;47;48;52;53 | X100: Integration of Knowledge and Ideas | Y100: 10 | Z100: 0.63 | AA100: 6.3 | AB100: 15;25;35;44;49;51;54;55;56;57 | AG100: 15;25;35;44;49;51;54;55;56;57
A101: 03 Reading Mid-Year 2014 - Grade 3 ELA | B101: 2151 | C101: 2151 2151 - Jack D. Gordon Elementary | D101: 174 | E101: 52 | F101: 68.59 | G101: 35.67 | H101: 72 | I101: 0 | J101: 102 | K101: 0.41 | L101: 0 | M101: 0.59 | N101: Key Ideas and Details | O101: 16 | P101: 0.71 | Q101: 11.37 | R101: 5;6;8;9;10;12;13;16;23;24;39;42;43;45;46;50 | S101: Craft and Structure | T101: 26 | U101: 0.7 | V101: 18.26 | W101: 1;2;3;4;7;11;14;17;18;19;26;27;28;29;30;31;32;34;36;37;38;41;47;48;52;53 | X101: Integration of Knowledge and Ideas | Y101: 10 | Z101: 0.6 | AA101: 6.04 | AB101: 15;25;35;44;49;51;54;55;56;57 | AG101: 15;25;35;44;49;51;54;55;56;57
A102: 03 Reading Mid-Year 2014 - Grade 3 ELA | B102: 2161 | C102: 2161 2161 - Golden Glades Elementary | D102: 39 | E102: 52 | F102: 46.5 | G102: 24.18 | H102: 34 | I102: 0 | J102: 5 | K102: 0.87 | L102: 0 | M102: 0.13 | N102: Key Ideas and Details | O102: 16 | P102: 0.5 | Q102: 7.95 | R102: 5;6;8;9;10;12;13;16;23;24;39;42;43;45;46;50 | S102: Craft and Structure | T102: 26 | U102: 0.48 | V102: 12.41 | W102: 1;2;3;4;7;11;14;17;18;19;26;27;28;29;30;31;32;34;36;37;38;41;47;48;52;53 | X102: Integration of Knowledge and Ideas | Y102: 10 | Z102: 0.38 | AA102: 3.82 | AB102: 15;25;35;44;49;51;54;55;56;57 | AG102: 15;25;35;44;49;51;54;55;56;57
A103: 03 Reading Mid-Year 2014 - Grade 3 ELA | B103: 2181 | C103: 2181 2181 - Joella C. Good Elementary | D103: 166 | E103: 52 | F103: 59.73 | G103: 31.06 | H103: 92 | I103: 0 | J103: 74 | K103: 0.55 | L103: 0 | M103: 0.45 | N103: Key Ideas and Details | O103: 16 | P103: 0.63 | Q103: 10.06 | R103: 5;6;8;9;10;12;13;16;23;24;39;42;43;45;46;50 | S103: Craft and Structure | T103: 26 | U103: 0.61 | V103: 15.95 | W103: 1;2;3;4;7;11;14;17;18;19;26;27;28;29;30;31;32;34;36;37;38;41;47;48;52;53 | X103: Integration of Knowledge and Ideas | Y103: 10 | Z103: 0.5 | AA103: 5.05 | AB103: 15;25;35;44;49;51;54;55;56;57 | AG103: 15;25;35;44;49;51;54;55;56;57
A104: 03 Reading Mid-Year 2014 - Grade 3 ELA | B104: 2191 | C104: 2191 2191 - Spanish Lake Elementary | D104: 269 | E104: 52 | F104: 65.26 | G104: 33.94 | H104: 130 | I104: 0 | J104: 139 | K104: 0.48 | L104: 0 | M104: 0.52 | N104: Key Ideas and Details | O104: 16 | P104: 0.68 | Q104: 10.86 | R104: 5;6;8;9;10;12;13;16;23;24;39;42;43;45;46;50 | S104: Craft and Structure | T104: 26 | U104: 0.66 | V104: 17.28 | W104: 1;2;3;4;7;11;14;17;18;19;26;27;28;29;30;31;32;34;36;37;38;41;47;48;52;53 | X104: Integration of Knowledge and Ideas | Y104: 10 | Z104: 0.58 | AA104: 5.8 | AB104: 15;25;35;44;49;51;54;55;56;57 | AG104: 15;25;35;44;49;51;54;55;56;57
A105: 03 Reading Mid-Year 2014 - Grade 3 ELA | B105: 2241 | C105: 2241 2241 - Gratigny Elementary | D105: 94 | E105: 52 | F105: 48.73 | G105: 25.34 | H105: 77 | I105: 0 | J105: 17 | K105: 0.82 | L105: 0 | M105: 0.18 | N105: Key Ideas and Details | O105: 16 | P105: 0.54 | Q105: 8.57 | R105: 5;6;8;9;10;12;13;16;23;24;39;42;43;45;46;50 | S105: Craft and Structure | T105: 26 | U105: 0.49 | V105: 12.71 | W105: 1;2;3;4;7;11;14;17;18;19;26;27;28;29;30;31;32;34;36;37;38;41;47;48;52;53 | X105: Integration of Knowledge and Ideas | Y105: 10 | Z105: 0.41 | AA105: 4.05 | AB105: 15;25;35;44;49;51;54;55;56;57 | AG105: 15;25;35;44;49;51;54;55;56;57
A106: 03 Reading Mid-Year 2014 - Grade 3 ELA | B106: 2261 | C106: 2261 2261 - Greenglade Elementary | D106: 75 | E106: 52 | F106: 67.28 | G106: 34.99 | H106: 34 | I106: 0 | J106: 41 | K106: 0.45 | L106: 0 | M106: 0.55 | N106: Key Ideas and Details | O106: 16 | P106: 0.71 | Q106: 11.37 | R106: 5;6;8;9;10;12;13;16;23;24;39;42;43;45;46;50 | S106: Craft and Structure | T106: 26 | U106: 0.68 | V106: 17.79 | W106: 1;2;3;4;7;11;14;17;18;19;26;27;28;29;30;31;32;34;36;37;38;41;47;48;52;53 | X106: Integration of Knowledge and Ideas | Y106: 10 | Z106: 0.58 | AA106: 5.83 | AB106: 15;25;35;44;49;51;54;55;56;57 | AG106: 15;25;35;44;49;51;54;55;56;57
A107: 03 Reading Mid-Year 2014 - Grade 3 ELA | B107: 2281 | C107: 2281 2281 - Greynolds Park Elementary | D107: 110 | E107: 52 | F107: 59.16 | G107: 30.76 | H107: 64 | I107: 0 | J107: 46 | K107: 0.58 | L107: 0 | M107: 0.42 | N107: Key Ideas and Details | O107: 16 | P107: 0.62 | Q107: 9.96 | R107: 5;6;8;9;10;12;13;16;23;24;39;42;43;45;46;50 | S107: Craft and Structure | T107: 26 | U107: 0.6 | V107: 15.57 | W107: 1;2;3;4;7;11;14;17;18;19;26;27;28;29;30;31;32;34;36;37;38;41;47;48;52;53 | X107: Integration of Knowledge and Ideas | Y107: 10 | Z107: 0.52 | AA107: 5.23 | AB107: 15;25;35;44;49;51;54;55;56;57 | AG107: 15;25;35;44;49;51;54;55;56;57
A108: 03 Reading Mid-Year 2014 - Grade 3 ELA | B108: 2321 | C108: 2321 2321 - Gulfstream Elementary | D108: 88 | E108: 52 | F108: 60.75 | G108: 31.59 | H108: 50 | I108: 0 | J108: 38 | K108: 0.57 | L108: 0 | M108: 0.43 | N108: Key Ideas and Details | O108: 16 | P108: 0.63 | Q108: 10.03 | R108: 5;6;8;9;10;12;13;16;23;24;39;42;43;45;46;50 | S108: Craft and Structure | T108: 26 | U108: 0.63 | V108: 16.38 | W108: 1;2;3;4;7;11;14;17;18;19;26;27;28;29;30;31;32;34;36;37;38;41;47;48;52;53 | X108: Integration of Knowledge and Ideas | Y108: 10 | Z108: 0.52 | AA108: 5.18 | AB108: 15;25;35;44;49;51;54;55;56;57 | AG108: 15;25;35;44;49;51;54;55;56;57
A109: 03 Reading Mid-Year 2014 - Grade 3 ELA | B109: 2331 | C109: 2331 2331 - Charles R. Hadley Elementary | D109: 141 | E109: 52 | F109: 61.84 | G109: 32.16 | H109: 73 | I109: 0 | J109: 68 | K109: 0.52 | L109: 0 | M109: 0.48 | N109: Key Ideas and Details | O109: 16 | P109: 0.65 | Q109: 10.35 | R109: 5;6;8;9;10;12;13;16;23;24;39;42;43;45;46;50 | S109: Craft and Structure | T109: 26 | U109: 0.64 | V109: 16.52 | W109: 1;2;3;4;7;11;14;17;18;19;26;27;28;29;30;31;32;34;36;37;38;41;47;48;52;53 | X109: Integration of Knowledge and Ideas | Y109: 10 | Z109: 0.53 | AA109: 5.29 | AB109: 15;25;35;44;49;51;54;55;56;57 | AG109: 15;25;35;44;49;51;54;55;56;57
A110: 03 Reading Mid-Year 2014 - Grade 3 ELA | B110: 2341 | C110: 2341 2341 - Joe Hall Elementary | D110: 79 | E110: 52 | F110: 59.2 | G110: 30.78 | H110: 44 | I110: 0 | J110: 35 | K110: 0.56 | L110: 0 | M110: 0.44 | N110: Key Ideas and Details | O110: 16 | P110: 0.62 | Q110: 9.9 | R110: 5;6;8;9;10;12;13;16;23;24;39;42;43;45;46;50 | S110: Craft and Structure | T110: 26 | U110: 0.61 | V110: 15.76 | W110: 1;2;3;4;7;11;14;17;18;19;26;27;28;29;30;31;32;34;36;37;38;41;47;48;52;53 | X110: Integration of Knowledge and Ideas | Y110: 10 | Z110: 0.51 | AA110: 5.13 | AB110: 15;25;35;44;49;51;54;55;56;57 | AG110: 15;25;35;44;49;51;54;55;56;57
A111: 03 Reading Mid-Year 2014 - Grade 3 ELA | B111: 2351 | C111: 2351 2351 - Eneida Massas Hartner Elem | D111: 82 | E111: 52 | F111: 67 | G111: 34.84 | H111: 36 | I111: 0 | J111: 46 | K111: 0.44 | L111: 0 | M111: 0.56 | N111: Key Ideas and Details | O111: 16 | P111: 0.73 | Q111: 11.59 | R111: 5;6;8;9;10;12;13;16;23;24;39;42;43;45;46;50 | S111: Craft and Structure | T111: 26 | U111: 0.68 | V111: 17.65 | W111: 1;2;3;4;7;11;14;17;18;19;26;27;28;29;30;31;32;34;36;37;38;41;47;48;52;53 | X111: Integration of Knowledge and Ideas | Y111: 10 | Z111: 0.56 | AA111: 5.61 | AB111: 15;25;35;44;49;51;54;55;56;57 | AG111: 15;25;35;44;49;51;54;55;56;57
A112: 03 Reading Mid-Year 2014 - Grade 3 ELA | B112: 2361 | C112: 2361 2361 - Hialeah Elementary | D112: 134 | E112: 52 | F112: 60.28 | G112: 31.34 | H112: 78 | I112: 0 | J112: 56 | K112: 0.58 | L112: 0 | M112: 0.42 | N112: Key Ideas and Details | O112: 16 | P112: 0.64 | Q112: 10.3 | R112: 5;6;8;9;10;12;13;16;23;24;39;42;43;45;46;50 | S112: Craft and Structure | T112: 26 | U112: 0.61 | V112: 15.8 | W112: 1;2;3;4;7;11;14;17;18;19;26;27;28;29;30;31;32;34;36;37;38;41;47;48;52;53 | X112: Integration of Knowledge and Ideas | Y112: 10 | Z112: 0.52 | AA112: 5.25 | AB112: 15;25;35;44;49;51;54;55;56;57 | AG112: 15;25;35;44;49;51;54;55;56;57
A113: 03 Reading Mid-Year 2014 - Grade 3 ELA | B113: 2371 | C113: 2371 2371 - West Hialeah Gardens Elem | D113: 188 | E113: 52 | F113: 64.35 | G113: 33.46 | H113: 90 | I113: 0 | J113: 98 | K113: 0.48 | L113: 0 | M113: 0.52 | N113: Key Ideas and Details | O113: 16 | P113: 0.67 | Q113: 10.71 | R113: 5;6;8;9;10;12;13;16;23;24;39;42;43;45;46;50 | S113: Craft and Structure | T113: 26 | U113: 0.67 | V113: 17.5 | W113: 1;2;3;4;7;11;14;17;18;19;26;27;28;29;30;31;32;34;36;37;38;41;47;48;52;53 | X113: Integration of Knowledge and Ideas | Y113: 10 | Z113: 0.53 | AA113: 5.26 | AB113: 15;25;35;44;49;51;54;55;56;57 | AG113: 15;25;35;44;49;51;54;55;56;57
A114: 03 Reading Mid-Year 2014 - Grade 3 ELA | B114: 2401 | C114: 2401 2401 - Hibiscus Elementary | D114: 69 | E114: 52 | F114: 60.56 | G114: 31.49 | H114: 41 | I114: 0 | J114: 28 | K114: 0.59 | L114: 0 | M114: 0.41 | N114: Key Ideas and Details | O114: 16 | P114: 0.65 | Q114: 10.33 | R114: 5;6;8;9;10;12;13;16;23;24;39;42;43;45;46;50 | S114: Craft and Structure | T114: 26 | U114: 0.61 | V114: 15.91 | W114: 1;2;3;4;7;11;14;17;18;19;26;27;28;29;30;31;32;34;36;37;38;41;47;48;52;53 | X114: Integration of Knowledge and Ideas | Y114: 10 | Z114: 0.52 | AA114: 5.25 | AB114: 15;25;35;44;49;51;54;55;56;57 | AG114: 15;25;35;44;49;51;54;55;56;57
A115: 03 Reading Mid-Year 2014 - Grade 3 ELA | B115: 2441 | C115: 2441 2441 - Virginia A Boone/highland Oaks | D115: 134 | E115: 52 | F115: 70.79 | G115: 36.81 | H115: 42 | I115: 0 | J115: 92 | K115: 0.31 | L115: 0 | M115: 0.69 | N115: Key Ideas and Details | O115: 16 | P115: 0.73 | Q115: 11.67 | R115: 5;6;8;9;10;12;13;16;23;24;39;42;43;45;46;50 | S115: Craft and Structure | T115: 26 | U115: 0.72 | V115: 18.81 | W115: 1;2;3;4;7;11;14;17;18;19;26;27;28;29;30;31;32;34;36;37;38;41;47;48;52;53 | X115: Integration of Knowledge and Ideas | Y115: 10 | Z115: 0.63 | AA115: 6.33 | AB115: 15;25;35;44;49;51;54;55;56;57 | AG115: 15;25;35;44;49;51;54;55;56;57
A116: 03 Reading Mid-Year 2014 - Grade 3 ELA | B116: 2501 | C116: 2501 2501 - Holmes Elementary | D116: 141 | E116: 52 | F116: 51.92 | G116: 27 | H116: 111 | I116: 0 | J116: 30 | K116: 0.79 | L116: 0 | M116: 0.21 | N116: Key Ideas and Details | O116: 16 | P116: 0.57 | Q116: 9.03 | R116: 5;6;8;9;10;12;13;16;23;24;39;42;43;45;46;50 | S116: Craft and Structure | T116: 26 | U116: 0.52 | V116: 13.6 | W116: 1;2;3;4;7;11;14;17;18;19;26;27;28;29;30;31;32;34;36;37;38;41;47;48;52;53 | X116: Integration of Knowledge and Ideas | Y116: 10 | Z116: 0.44 | AA116: 4.37 | AB116: 15;25;35;44;49;51;54;55;56;57 | AG116: 15;25;35;44;49;51;54;55;56;57
A117: 03 Reading Mid-Year 2014 - Grade 3 ELA | B117: 2511 | C117: 2511 2511 - Zora Neale Hurston Elementary | D117: 112 | E117: 52 | F117: 65.95 | G117: 34.29 | H117: 49 | I117: 0 | J117: 63 | K117: 0.44 | L117: 0 | M117: 0.56 | N117: Key Ideas and Details | O117: 16 | P117: 0.71 | Q117: 11.38 | R117: 5;6;8;9;10;12;13;16;23;24;39;42;43;45;46;50 | S117: Craft and Structure | T117: 26 | U117: 0.67 | V117: 17.53 | W117: 1;2;3;4;7;11;14;17;18;19;26;27;28;29;30;31;32;34;36;37;38;41;47;48;52;53 | X117: Integration of Knowledge and Ideas | Y117: 10 | Z117: 0.54 | AA117: 5.38 | AB117: 15;25;35;44;49;51;54;55;56;57 | AG117: 15;25;35;44;49;51;54;55;56;57
A118: 03 Reading Mid-Year 2014 - Grade 3 ELA | B118: 2521 | C118: 2521 2521 - Oliver Hoover Elementary | D118: 123 | E118: 52 | F118: 67.48 | G118: 35.09 | H118: 48 | I118: 0 | J118: 75 | K118: 0.39 | L118: 0 | M118: 0.61 | N118: Key Ideas and Details | O118: 16 | P118: 0.7 | Q118: 11.2 | R118: 5;6;8;9;10;12;13;16;23;24;39;42;43;45;46;50 | S118: Craft and Structure | T118: 26 | U118: 0.69 | V118: 17.85 | W118: 1;2;3;4;7;11;14;17;18;19;26;27;28;29;30;31;32;34;36;37;38;41;47;48;52;53 | X118: Integration of Knowledge and Ideas | Y118: 10 | Z118: 0.6 | AA118: 6.04 | AB118: 15;25;35;44;49;51;54;55;56;57 | AG118: 15;25;35;44;49;51;54;55;56;57
A119: 03 Reading Mid-Year 2014 - Grade 3 ELA | B119: 2541 | C119: 2541 2541 - Howard Drive Elementary | D119: 105 | E119: 52 | F119: 66.59 | G119: 34.63 | H119: 46 | I119: 0 | J119: 59 | K119: 0.44 | L119: 0 | M119: 0.56 | N119: Key Ideas and Details | O119: 16 | P119: 0.68 | Q119: 10.89 | R119: 5;6;8;9;10;12;13;16;23;24;39;42;43;45;46;50 | S119: Craft and Structure | T119: 26 | U119: 0.69 | V119: 17.92 | W119: 1;2;3;4;7;11;14;17;18;19;26;27;28;29;30;31;32;34;36;37;38;41;47;48;52;53 | X119: Integration of Knowledge and Ideas | Y119: 10 | Z119: 0.58 | AA119: 5.82 | AB119: 15;25;35;44;49;51;54;55;56;57 | AG119: 15;25;35;44;49;51;54;55;56;57
A120: 03 Reading Mid-Year 2014 - Grade 3 ELA | B120: 2581 | C120: 2581 2581 - Madie Ives Elementary | D120: 142 | E120: 52 | F120: 63.26 | G120: 32.89 | H120: 73 | I120: 0 | J120: 69 | K120: 0.51 | L120: 0 | M120: 0.49 | N120: Key Ideas and Details | O120: 16 | P120: 0.67 | Q120: 10.74 | R120: 5;6;8;9;10;12;13;16;23;24;39;42;43;45;46;50 | S120: Craft and Structure | T120: 26 | U120: 0.64 | V120: 16.7 | W120: 1;2;3;4;7;11;14;17;18;19;26;27;28;29;30;31;32;34;36;37;38;41;47;48;52;53 | X120: Integration of Knowledge and Ideas | Y120: 10 | Z120: 0.55 | AA120: 5.45 | AB120: 15;25;35;44;49;51;54;55;56;57 | AG120: 15;25;35;44;49;51;54;55;56;57
A121: 03 Reading Mid-Year 2014 - Grade 3 ELA | B121: 2641 | C121: 2641 2641 - Kendale Elementary | D121: 81 | E121: 52 | F121: 66.62 | G121: 34.64 | H121: 36 | I121: 0 | J121: 45 | K121: 0.44 | L121: 0 | M121: 0.56 | N121: Key Ideas and Details | O121: 16 | P121: 0.7 | Q121: 11.1 | R121: 5;6;8;9;10;12;13;16;23;24;39;42;43;45;46;50 | S121: Craft and Structure | T121: 26 | U121: 0.69 | V121: 17.9 | W121: 1;2;3;4;7;11;14;17;18;19;26;27;28;29;30;31;32;34;36;37;38;41;47;48;52;53 | X121: Integration of Knowledge and Ideas | Y121: 10 | Z121: 0.56 | AA121: 5.64 | AB121: 15;25;35;44;49;51;54;55;56;57 | AG121: 15;25;35;44;49;51;54;55;56;57
A122: 03 Reading Mid-Year 2014 - Grade 3 ELA | B122: 2651 | C122: 2651 2651 - Kendale Lakes Elementary | D122: 112 | E122: 52 | F122: 68.1 | G122: 35.41 | H122: 36 | I122: 0 | J122: 76 | K122: 0.32 | L122: 0 | M122: 0.68 | N122: Key Ideas and Details | O122: 16 | P122: 0.7 | Q122: 11.21 | R122: 5;6;8;9;10;12;13;16;23;24;39;42;43;45;46;50 | S122: Craft and Structure | T122: 26 | U122: 0.71 | V122: 18.38 | W122: 1;2;3;4;7;11;14;17;18;19;26;27;28;29;30;31;32;34;36;37;38;41;47;48;52;53 | X122: Integration of Knowledge and Ideas | Y122: 10 | Z122: 0.58 | AA122: 5.82 | AB122: 15;25;35;44;49;51;54;55;56;57 | AG122: 15;25;35;44;49;51;54;55;56;57
A123: 03 Reading Mid-Year 2014 - Grade 3 ELA | B123: 2661 | C123: 2661 2661 - Kensington Park Elementary | D123: 186 | E123: 52 | F123: 52.01 | G123: 27.04 | H123: 140 | I123: 0 | J123: 46 | K123: 0.75 | L123: 0 | M123: 0.25 | N123: Key Ideas and Details | O123: 16 | P123: 0.56 | Q123: 8.97 | R123: 5;6;8;9;10;12;13;16;23;24;39;42;43;45;46;50 | S123: Craft and Structure | T123: 26 | U123: 0.53 | V123: 13.83 | W123: 1;2;3;4;7;11;14;17;18;19;26;27;28;29;30;31;32;34;36;37;38;41;47;48;52;53 | X123: Integration of Knowledge and Ideas | Y123: 10 | Z123: 0.42 | AA123: 4.24 | AB123: 15;25;35;44;49;51;54;55;56;57 | AG123: 15;25;35;44;49;51;54;55;56;57
A124: 03 Reading Mid-Year 2014 - Grade 3 ELA | B124: 2701 | C124: 2701 2701 - Kenwood K-8 Center | D124: 104 | E124: 52 | F124: 64.22 | G124: 33.39 | H124: 52 | I124: 0 | J124: 52 | K124: 0.5 | L124: 0 | M124: 0.5 | N124: Key Ideas and Details | O124: 16 | P124: 0.67 | Q124: 10.77 | R124: 5;6;8;9;10;12;13;16;23;24;39;42;43;45;46;50 | S124: Craft and Structure | T124: 26 | U124: 0.66 | V124: 17.2 | W124: 1;2;3;4;7;11;14;17;18;19;26;27;28;29;30;31;32;34;36;37;38;41;47;48;52;53 | X124: Integration of Knowledge and Ideas | Y124: 10 | Z124: 0.54 | AA124: 5.42 | AB124: 15;25;35;44;49;51;54;55;56;57 | AG124: 15;25;35;44;49;51;54;55;56;57
A125: 03 Reading Mid-Year 2014 - Grade 3 ELA | B125: 2741 | C125: 2741 2741 - Key Biscayne K-8 Center | D125: 185 | E125: 52 | F125: 66.27 | G125: 34.46 | H125: 80 | I125: 0 | J125: 105 | K125: 0.43 | L125: 0 | M125: 0.57 | N125: Key Ideas and Details | O125: 16 | P125: 0.68 | Q125: 10.92 | R125: 5;6;8;9;10;12;13;16;23;24;39;42;43;45;46;50 | S125: Craft and Structure | T125: 26 | U125: 0.68 | V125: 17.71 | W125: 1;2;3;4;7;11;14;17;18;19;26;27;28;29;30;31;32;34;36;37;38;41;47;48;52;53 | X125: Integration of Knowledge and Ideas | Y125: 10 | Z125: 0.58 | AA125: 5.83 | AB125: 15;25;35;44;49;51;54;55;56;57 | AG125: 15;25;35;44;49;51;54;55;56;57
A126: 03 Reading Mid-Year 2014 - Grade 3 ELA | B126: 2781 | C126: 2781 2781 - Kinloch Park Elementary | D126: 131 | E126: 52 | F126: 58.43 | G126: 30.38 | H126: 72 | I126: 0 | J126: 59 | K126: 0.55 | L126: 0 | M126: 0.45 | N126: Key Ideas and Details | O126: 16 | P126: 0.62 | Q126: 9.86 | R126: 5;6;8;9;10;12;13;16;23;24;39;42;43;45;46;50 | S126: Craft and Structure | T126: 26 | U126: 0.59 | V126: 15.36 | W126: 1;2;3;4;7;11;14;17;18;19;26;27;28;29;30;31;32;34;36;37;38;41;47;48;52;53 | X126: Integration of Knowledge and Ideas | Y126: 10 | Z126: 0.52 | AA126: 5.16 | AB126: 15;25;35;44;49;51;54;55;56;57 | AG126: 15;25;35;44;49;51;54;55;56;57
A127: 03 Reading Mid-Year 2014 - Grade 3 ELA | B127: 2801 | C127: 2801 2801 - Lake Stevens Elementary | D127: 48 | E127: 52 | F127: 57.57 | G127: 29.94 | H127: 34 | I127: 0 | J127: 14 | K127: 0.71 | L127: 0 | M127: 0.29 | N127: Key Ideas and Details | O127: 16 | P127: 0.61 | Q127: 9.81 | R127: 5;6;8;9;10;12;13;16;23;24;39;42;43;45;46;50 | S127: Craft and Structure | T127: 26 | U127: 0.6 | V127: 15.48 | W127: 1;2;3;4;7;11;14;17;18;19;26;27;28;29;30;31;32;34;36;37;38;41;47;48;52;53 | X127: Integration of Knowledge and Ideas | Y127: 10 | Z127: 0.46 | AA127: 4.65 | AB127: 15;25;35;44;49;51;54;55;56;57 | AG127: 15;25;35;44;49;51;54;55;56;57
A128: 03 Reading Mid-Year 2014 - Grade 3 ELA | B128: 2821 | C128: 2821 2821 - Lakeview Elementary | D128: 75 | E128: 52 | F128: 55.82 | G128: 29.03 | H128: 53 | I128: 0 | J128: 22 | K128: 0.71 | L128: 0 | M128: 0.29 | N128: Key Ideas and Details | O128: 16 | P128: 0.61 | Q128: 9.73 | R128: 5;6;8;9;10;12;13;16;23;24;39;42;43;45;46;50 | S128: Craft and Structure | T128: 26 | U128: 0.57 | V128: 14.91 | W128: 1;2;3;4;7;11;14;17;18;19;26;27;28;29;30;31;32;34;36;37;38;41;47;48;52;53 | X128: Integration of Knowledge and Ideas | Y128: 10 | Z128: 0.44 | AA128: 4.39 | AB128: 15;25;35;44;49;51;54;55;56;57 | AG128: 15;25;35;44;49;51;54;55;56;57
A129: 03 Reading Mid-Year 2014 - Grade 3 ELA | B129: 2881 | C129: 2881 2881 - Leewood K-8 Center | D129: 84 | E129: 52 | F129: 73.6 | G129: 38.27 | H129: 21 | I129: 0 | J129: 63 | K129: 0.25 | L129: 0 | M129: 0.75 | N129: Key Ideas and Details | O129: 16 | P129: 0.75 | Q129: 11.96 | R129: 5;6;8;9;10;12;13;16;23;24;39;42;43;45;46;50 | S129: Craft and Structure | T129: 26 | U129: 0.76 | V129: 19.81 | W129: 1;2;3;4;7;11;14;17;18;19;26;27;28;29;30;31;32;34;36;37;38;41;47;48;52;53 | X129: Integration of Knowledge and Ideas | Y129: 10 | Z129: 0.65 | AA129: 6.5 | AB129: 15;25;35;44;49;51;54;55;56;57 | AG129: 15;25;35;44;49;51;54;55;56;57
A130: 03 Reading Mid-Year 2014 - Grade 3 ELA | B130: 2891 | C130: 2891 2891 - William Lehman Elementary | D130: 111 | E130: 52 | F130: 63.58 | G130: 33.06 | H130: 51 | I130: 0 | J130: 60 | K130: 0.46 | L130: 0 | M130: 0.54 | N130: Key Ideas and Details | O130: 16 | P130: 0.68 | Q130: 10.85 | R130: 5;6;8;9;10;12;13;16;23;24;39;42;43;45;46;50 | S130: Craft and Structure | T130: 26 | U130: 0.65 | V130: 16.99 | W130: 1;2;3;4;7;11;14;17;18;19;26;27;28;29;30;31;32;34;36;37;38;41;47;48;52;53 | X130: Integration of Knowledge and Ideas | Y130: 10 | Z130: 0.52 | AA130: 5.23 | AB130: 15;25;35;44;49;51;54;55;56;57 | AG130: 15;25;35;44;49;51;54;55;56;57
A131: 03 Reading Mid-Year 2014 - Grade 3 ELA | B131: 2901 | C131: 2901 2901 - Leisure City K-8 Center | D131: 107 | E131: 52 | F131: 50.4 | G131: 26.21 | H131: 87 | I131: 0 | J131: 20 | K131: 0.81 | L131: 0 | M131: 0.19 | N131: Key Ideas and Details | O131: 16 | P131: 0.55 | Q131: 8.79 | R131: 5;6;8;9;10;12;13;16;23;24;39;42;43;45;46;50 | S131: Craft and Structure | T131: 26 | U131: 0.52 | V131: 13.54 | W131: 1;2;3;4;7;11;14;17;18;19;26;27;28;29;30;31;32;34;36;37;38;41;47;48;52;53 | X131: Integration of Knowledge and Ideas | Y131: 10 | Z131: 0.39 | AA131: 3.87 | AB131: 15;25;35;44;49;51;54;55;56;57 | AG131: 15;25;35;44;49;51;54;55;56;57
A132: 03 Reading Mid-Year 2014 - Grade 3 ELA | B132: 2911 | C132: 2911 2911 - Linda Lentin K-8 Center | D132: 92 | E132: 52 | F132: 54.29 | G132: 28.23 | H132: 64 | I132: 0 | J132: 28 | K132: 0.7 | L132: 0 | M132: 0.3 | N132: Key Ideas and Details | O132: 16 | P132: 0.56 | Q132: 9.01 | R132: 5;6;8;9;10;12;13;16;23;24;39;42;43;45;46;50 | S132: Craft and Structure | T132: 26 | U132: 0.57 | V132: 14.72 | W132: 1;2;3;4;7;11;14;17;18;19;26;27;28;29;30;31;32;34;36;37;38;41;47;48;52;53 | X132: Integration of Knowledge and Ideas | Y132: 10 | Z132: 0.45 | AA132: 4.5 | AB132: 15;25;35;44;49;51;54;55;56;57 | AG132: 15;25;35;44;49;51;54;55;56;57
A133: 03 Reading Mid-Year 2014 - Grade 3 ELA | B133: 2941 | C133: 2941 2941 - Laura C. Saunders Elementary | D133: 123 | E133: 52 | F133: 49.25 | G133: 25.61 | H133: 96 | I133: 0 | J133: 27 | K133: 0.78 | L133: 0 | M133: 0.22 | N133: Key Ideas and Details | O133: 16 | P133: 0.54 | Q133: 8.59 | R133: 5;6;8;9;10;12;13;16;23;24;39;42;43;45;46;50 | S133: Craft and Structure | T133: 26 | U133: 0.49 | V133: 12.79 | W133: 1;2;3;4;7;11;14;17;18;19;26;27;28;29;30;31;32;34;36;37;38;41;47;48;52;53 | X133: Integration of Knowledge and Ideas | Y133: 10 | Z133: 0.42 | AA133: 4.24 | AB133: 15;25;35;44;49;51;54;55;56;57 | AG133: 15;25;35;44;49;51;54;55;56;57
A134: 03 Reading Mid-Year 2014 - Grade 3 ELA | B134: 2981 | C134: 2981 2981 - Liberty City Elementary | D134: 57 | E134: 52 | F134: 50.1 | G134: 26.05 | H134: 49 | I134: 0 | J134: 8 | K134: 0.86 | L134: 0 | M134: 0.14 | N134: Key Ideas and Details | O134: 16 | P134: 0.53 | Q134: 8.51 | R134: 5;6;8;9;10;12;13;16;23;24;39;42;43;45;46;50 | S134: Craft and Structure | T134: 26 | U134: 0.52 | V134: 13.44 | W134: 1;2;3;4;7;11;14;17;18;19;26;27;28;29;30;31;32;34;36;37;38;41;47;48;52;53 | X134: Integration of Knowledge and Ideas | Y134: 10 | Z134: 0.41 | AA134: 4.11 | AB134: 15;25;35;44;49;51;54;55;56;57 | AG134: 15;25;35;44;49;51;54;55;56;57
A135: 03 Reading Mid-Year 2014 - Grade 3 ELA | B135: 3021 | C135: 3021 3021 - Jesse J Mccrary Jr Elementary | D135: 94 | E135: 52 | F135: 54.62 | G135: 28.4 | H135: 69 | I135: 0 | J135: 25 | K135: 0.73 | L135: 0 | M135: 0.27 | N135: Key Ideas and Details | O135: 16 | P135: 0.59 | Q135: 9.46 | R135: 5;6;8;9;10;12;13;16;23;24;39;42;43;45;46;50 | S135: Craft and Structure | T135: 26 | U135: 0.55 | V135: 14.29 | W135: 1;2;3;4;7;11;14;17;18;19;26;27;28;29;30;31;32;34;36;37;38;41;47;48;52;53 | X135: Integration of Knowledge and Ideas | Y135: 10 | Z135: 0.47 | AA135: 4.66 | AB135: 15;25;35;44;49;51;54;55;56;57 | AG135: 15;25;35;44;49;51;54;55;56;57
A136: 03 Reading Mid-Year 2014 - Grade 3 ELA | B136: 3025 | C136: 3025 3025 - Advantage Academy Santa Fe | D136: 77 | E136: 52 | F136: 71.15 | G136: 37 | H136: 22 | I136: 0 | J136: 55 | K136: 0.29 | L136: 0 | M136: 0.71 | N136: Key Ideas and Details | O136: 16 | P136: 0.74 | Q136: 11.82 | R136: 5;6;8;9;10;12;13;16;23;24;39;42;43;45;46;50 | S136: Craft and Structure | T136: 26 | U136: 0.73 | V136: 19.05 | W136: 1;2;3;4;7;11;14;17;18;19;26;27;28;29;30;31;32;34;36;37;38;41;47;48;52;53 | X136: Integration of Knowledge and Ideas | Y136: 10 | Z136: 0.61 | AA136: 6.13 | AB136: 15;25;35;44;49;51;54;55;56;57 | AG136: 15;25;35;44;49;51;54;55;56;57
A137: 03 Reading Mid-Year 2014 - Grade 3 ELA | B137: 3030 | C137: 3030 3030 - Doral Academy | D137: 198 | E137: 52 | F137: 75.2 | G137: 39.11 | H137: 51 | I137: 0 | J137: 147 | K137: 0.26 | L137: 0 | M137: 0.74 | N137: Key Ideas and Details | O137: 16 | P137: 0.77 | Q137: 12.34 | R137: 5;6;8;9;10;12;13;16;23;24;39;42;43;45;46;50 | S137: Craft and Structure | T137: 26 | U137: 0.78 | V137: 20.31 | W137: 1;2;3;4;7;11;14;17;18;19;26;27;28;29;30;31;32;34;36;37;38;41;47;48;52;53 | X137: Integration of Knowledge and Ideas | Y137: 10 | Z137: 0.65 | AA137: 6.45 | AB137: 15;25;35;44;49;51;54;55;56;57 | AG137: 15;25;35;44;49;51;54;55;56;57
A138: 03 Reading Mid-Year 2014 - Grade 3 ELA | B138: 3033 | C138: 3033 3033 - Somerset Oaks Academy | D138: 53 | E138: 52 | F138: 51.67 | G138: 26.87 | H138: 40 | I138: 0 | J138: 13 | K138: 0.75 | L138: 0 | M138: 0.25 | N138: Key Ideas and Details | O138: 16 | P138: 0.56 | Q138: 8.94 | R138: 5;6;8;9;10;12;13;16;23;24;39;42;43;45;46;50 | S138: Craft and Structure | T138: 26 | U138: 0.53 | V138: 13.87 | W138: 1;2;3;4;7;11;14;17;18;19;26;27;28;29;30;31;32;34;36;37;38;41;47;48;52;53 | X138: Integration of Knowledge and Ideas | Y138: 10 | Z138: 0.41 | AA138: 4.06 | AB138: 15;25;35;44;49;51;54;55;56;57 | AG138: 15;25;35;44;49;51;54;55;56;57
A139: 03 Reading Mid-Year 2014 - Grade 3 ELA | B139: 3034 | C139: 3034 3034 - Bridgeprep Acad Village Green | D139: 41 | E139: 52 | F139: 60.27 | G139: 31.34 | H139: 25 | I139: 0 | J139: 16 | K139: 0.61 | L139: 0 | M139: 0.39 | N139: Key Ideas and Details | O139: 16 | P139: 0.63 | Q139: 10.05 | R139: 5;6;8;9;10;12;13;16;23;24;39;42;43;45;46;50 | S139: Craft and Structure | T139: 26 | U139: 0.63 | V139: 16.51 | W139: 1;2;3;4;7;11;14;17;18;19;26;27;28;29;30;31;32;34;36;37;38;41;47;48;52;53 | X139: Integration of Knowledge and Ideas | Y139: 10 | Z139: 0.48 | AA139: 4.78 | AB139: 15;25;35;44;49;51;54;55;56;57 | AG139: 15;25;35;44;49;51;54;55;56;57
A140: 03 Reading Mid-Year 2014 - Grade 3 ELA | B140: 3035 | C140: 3035 3035 - Ramz Academy Elem Miami Campus | D140: 40 | E140: 52 | F140: 53.85 | G140: 28 | H140: 28 | I140: 0 | J140: 12 | K140: 0.7 | L140: 0 | M140: 0.3 | N140: Key Ideas and Details | O140: 16 | P140: 0.58 | Q140: 9.23 | R140: 5;6;8;9;10;12;13;16;23;24;39;42;43;45;46;50 | S140: Craft and Structure | T140: 26 | U140: 0.56 | V140: 14.45 | W140: 1;2;3;4;7;11;14;17;18;19;26;27;28;29;30;31;32;34;36;37;38;41;47;48;52;53 | X140: Integration of Knowledge and Ideas | Y140: 10 | Z140: 0.43 | AA140: 4.33 | AB140: 15;25;35;44;49;51;54;55;56;57 | AG140: 15;25;35;44;49;51;54;55;56;57
A141: 03 Reading Mid-Year 2014 - Grade 3 ELA | B141: 3041 | C141: 3041 3041 - Lorah Park Elementary | D141: 71 | E141: 52 | F141: 53.82 | G141: 27.99 | H141: 53 | I141: 0 | J141: 18 | K141: 0.75 | L141: 0 | M141: 0.25 | N141: Key Ideas and Details | O141: 16 | P141: 0.58 | Q141: 9.27 | R141: 5;6;8;9;10;12;13;16;23;24;39;42;43;45;46;50 | S141: Craft and Structure | T141: 26 | U141: 0.54 | V141: 14.14 | W141: 1;2;3;4;7;11;14;17;18;19;26;27;28;29;30;31;32;34;36;37;38;41;47;48;52;53 | X141: Integration of Knowledge and Ideas | Y141: 10 | Z141: 0.46 | AA141: 4.58 | AB141: 15;25;35;44;49;51;54;55;56;57 | AG141: 15;25;35;44;49;51;54;55;56;57
A142: 03 Reading Mid-Year 2014 - Grade 3 ELA | B142: 3051 | C142: 3051 3051 - Toussaint L''ouverture Elem | D142: 86 | E142: 52 | F142: 53.38 | G142: 27.76 | H142: 70 | I142: 0 | J142: 16 | K142: 0.81 | L142: 0 | M142: 0.19 | N142: Key Ideas and Details | O142: 16 | P142: 0.59 | Q142: 9.4 | R142: 5;6;8;9;10;12;13;16;23;24;39;42;43;45;46;50 | S142: Craft and Structure | T142: 26 | U142: 0.54 | V142: 14.12 | W142: 1;2;3;4;7;11;14;17;18;19;26;27;28;29;30;31;32;34;36;37;38;41;47;48;52;53 | X142: Integration of Knowledge and Ideas | Y142: 10 | Z142: 0.42 | AA142: 4.24 | AB142: 15;25;35;44;49;51;54;55;56;57 | AG142: 15;25;35;44;49;51;54;55;56;57
A143: 03 Reading Mid-Year 2014 - Grade 3 ELA | B143: 3061 | C143: 3061 3061 - Ludlam Elementary | D143: 62 | E143: 52 | F143: 62.75 | G143: 32.63 | H143: 35 | I143: 0 | J143: 27 | K143: 0.56 | L143: 0 | M143: 0.44 | N143: Key Ideas and Details | O143: 16 | P143: 0.67 | Q143: 10.63 | R143: 5;6;8;9;10;12;13;16;23;24;39;42;43;45;46;50 | S143: Craft and Structure | T143: 26 | U143: 0.64 | V143: 16.68 | W143: 1;2;3;4;7;11;14;17;18;19;26;27;28;29;30;31;32;34;36;37;38;41;47;48;52;53 | X143: Integration of Knowledge and Ideas | Y143: 10 | Z143: 0.53 | AA143: 5.32 | AB143: 15;25;35;44;49;51;54;55;56;57 | AG143: 15;25;35;44;49;51;54;55;56;57
A144: 03 Reading Mid-Year 2014 - Grade 3 ELA | B144: 3100 | C144: 3100 3100 - Mater Academy East Charter | D144: 95 | E144: 52 | F144: 73 | G144: 37.96 | H144: 24 | I144: 0 | J144: 71 | K144: 0.25 | L144: 0 | M144: 0.75 | N144: Key Ideas and Details | O144: 16 | P144: 0.76 | Q144: 12.17 | R144: 5;6;8;9;10;12;13;16;23;24;39;42;43;45;46;50 | S144: Craft and Structure | T144: 26 | U144: 0.73 | V144: 19.07 | W144: 1;2;3;4;7;11;14;17;18;19;26;27;28;29;30;31;32;34;36;37;38;41;47;48;52;53 | X144: Integration of Knowledge and Ideas | Y144: 10 | Z144: 0.67 | AA144: 6.72 | AB144: 15;25;35;44;49;51;54;55;56;57 | AG144: 15;25;35;44;49;51;54;55;56;57
A145: 03 Reading Mid-Year 2014 - Grade 3 ELA | B145: 3101 | C145: 3101 3101 - Frank C. Martin K-8 Center | D145: 137 | E145: 52 | F145: 73.54 | G145: 38.24 | H145: 38 | I145: 0 | J145: 99 | K145: 0.28 | L145: 0 | M145: 0.72 | N145: Key Ideas and Details | O145: 16 | P145: 0.77 | Q145: 12.26 | R145: 5;6;8;9;10;12;13;16;23;24;39;42;43;45;46;50 | S145: Craft and Structure | T145: 26 | U145: 0.76 | V145: 19.64 | W145: 1;2;3;4;7;11;14;17;18;19;26;27;28;29;30;31;32;34;36;37;38;41;47;48;52;53 | X145: Integration of Knowledge and Ideas | Y145: 10 | Z145: 0.64 | AA145: 6.35 | AB145: 15;25;35;44;49;51;54;55;56;57 | AG145: 15;25;35;44;49;51;54;55;56;57
A146: 03 Reading Mid-Year 2014 - Grade 3 ELA | B146: 3111 | C146: 3111 3111 - Wesley Matthews Elementary | D146: 80 | E146: 52 | F146: 69.83 | G146: 36.31 | H146: 29 | I146: 0 | J146: 51 | K146: 0.36 | L146: 0 | M146: 0.64 | N146: Key Ideas and Details | O146: 16 | P146: 0.73 | Q146: 11.63 | R146: 5;6;8;9;10;12;13;16;23;24;39;42;43;45;46;50 | S146: Craft and Structure | T146: 26 | U146: 0.71 | V146: 18.49 | W146: 1;2;3;4;7;11;14;17;18;19;26;27;28;29;30;31;32;34;36;37;38;41;47;48;52;53 | X146: Integration of Knowledge and Ideas | Y146: 10 | Z146: 0.62 | AA146: 6.2 | AB146: 15;25;35;44;49;51;54;55;56;57 | AG146: 15;25;35;44;49;51;54;55;56;57
A147: 03 Reading Mid-Year 2014 - Grade 3 ELA | B147: 3141 | C147: 3141 3141 - Meadowlane Elementary | D147: 160 | E147: 52 | F147: 65.1 | G147: 33.85 | H147: 74 | I147: 0 | J147: 86 | K147: 0.46 | L147: 0 | M147: 0.54 | N147: Key Ideas and Details | O147: 16 | P147: 0.69 | Q147: 11.02 | R147: 5;6;8;9;10;12;13;16;23;24;39;42;43;45;46;50 | S147: Craft and Structure | T147: 26 | U147: 0.66 | V147: 17.24 | W147: 1;2;3;4;7;11;14;17;18;19;26;27;28;29;30;31;32;34;36;37;38;41;47;48;52;53 | X147: Integration of Knowledge and Ideas | Y147: 10 | Z147: 0.56 | AA147: 5.59 | AB147: 15;25;35;44;49;51;54;55;56;57 | AG147: 15;25;35;44;49;51;54;55;56;57
A148: 03 Reading Mid-Year 2014 - Grade 3 ELA | B148: 3181 | C148: 3181 3181 - Melrose Elementary | D148: 80 | E148: 52 | F148: 49.04 | G148: 25.5 | H148: 62 | I148: 0 | J148: 18 | K148: 0.78 | L148: 0 | M148: 0.23 | N148: Key Ideas and Details | O148: 16 | P148: 0.54 | Q148: 8.68 | R148: 5;6;8;9;10;12;13;16;23;24;39;42;43;45;46;50 | S148: Craft and Structure | T148: 26 | U148: 0.48 | V148: 12.61 | W148: 1;2;3;4;7;11;14;17;18;19;26;27;28;29;30;31;32;34;36;37;38;41;47;48;52;53 | X148: Integration of Knowledge and Ideas | Y148: 10 | Z148: 0.42 | AA148: 4.21 | AB148: 15;25;35;44;49;51;54;55;56;57 | AG148: 15;25;35;44;49;51;54;55;56;57
A149: 03 Reading Mid-Year 2014 - Grade 3 ELA | B149: 3191 | C149: 3191 3191 - Ada Merritt K-8 Center | D149: 45 | E149: 52 | F149: 74.49 | G149: 38.73 | H149: 9 | I149: 0 | J149: 36 | K149: 0.2 | L149: 0 | M149: 0.8 | N149: Key Ideas and Details | O149: 16 | P149: 0.78 | Q149: 12.51 | R149: 5;6;8;9;10;12;13;16;23;24;39;42;43;45;46;50 | S149: Craft and Structure | T149: 26 | U149: 0.77 | V149: 19.93 | W149: 1;2;3;4;7;11;14;17;18;19;26;27;28;29;30;31;32;34;36;37;38;41;47;48;52;53 | X149: Integration of Knowledge and Ideas | Y149: 10 | Z149: 0.63 | AA149: 6.29 | AB149: 15;25;35;44;49;51;54;55;56;57 | AG149: 15;25;35;44;49;51;54;55;56;57
A150: 03 Reading Mid-Year 2014 - Grade 3 ELA | B150: 3241 | C150: 3241 3241 - Miami Gardens Elementary | D150: 44 | E150: 52 | F150: 55.55 | G150: 28.89 | H150: 32 | I150: 0 | J150: 12 | K150: 0.73 | L150: 0 | M150: 0.27 | N150: Key Ideas and Details | O150: 16 | P150: 0.59 | Q150: 9.34 | R150: 5;6;8;9;10;12;13;16;23;24;39;42;43;45;46;50 | S150: Craft and Structure | T150: 26 | U150: 0.57 | V150: 14.91 | W150: 1;2;3;4;7;11;14;17;18;19;26;27;28;29;30;31;32;34;36;37;38;41;47;48;52;53 | X150: Integration of Knowledge and Ideas | Y150: 10 | Z150: 0.46 | AA150: 4.64 | AB150: 15;25;35;44;49;51;54;55;56;57 | AG150: 15;25;35;44;49;51;54;55;56;57
A151: 03 Reading Mid-Year 2014 - Grade 3 ELA | B151: 3261 | C151: 3261 3261 - Miami Heights Elementary | D151: 179 | E151: 52 | F151: 58.43 | G151: 30.39 | H151: 115 | I151: 0 | J151: 64 | K151: 0.64 | L151: 0 | M151: 0.36 | N151: Key Ideas and Details | O151: 16 | P151: 0.63 | Q151: 9.98 | R151: 5;6;8;9;10;12;13;16;23;24;39;42;43;45;46;50 | S151: Craft and Structure | T151: 26 | U151: 0.6 | V151: 15.57 | W151: 1;2;3;4;7;11;14;17;18;19;26;27;28;29;30;31;32;34;36;37;38;41;47;48;52;53 | X151: Integration of Knowledge and Ideas | Y151: 10 | Z151: 0.48 | AA151: 4.83 | AB151: 15;25;35;44;49;51;54;55;56;57 | AG151: 15;25;35;44;49;51;54;55;56;57
A152: 03 Reading Mid-Year 2014 - Grade 3 ELA | B152: 3281 | C152: 3281 3281 - Miami Lakes K-8 Center | D152: 157 | E152: 52 | F152: 60.74 | G152: 31.59 | H152: 85 | I152: 0 | J152: 72 | K152: 0.54 | L152: 0 | M152: 0.46 | N152: Key Ideas and Details | O152: 16 | P152: 0.64 | Q152: 10.17 | R152: 5;6;8;9;10;12;13;16;23;24;39;42;43;45;46;50 | S152: Craft and Structure | T152: 26 | U152: 0.63 | V152: 16.5 | W152: 1;2;3;4;7;11;14;17;18;19;26;27;28;29;30;31;32;34;36;37;38;41;47;48;52;53 | X152: Integration of Knowledge and Ideas | Y152: 10 | Z152: 0.49 | AA152: 4.92 | AB152: 15;25;35;44;49;51;54;55;56;57 | AG152: 15;25;35;44;49;51;54;55;56;57
A153: 03 Reading Mid-Year 2014 - Grade 3 ELA | B153: 3301 | C153: 3301 3301 - Miami Park Elementary | D153: 54 | E153: 52 | F153: 51.32 | G153: 26.69 | H153: 42 | I153: 0 | J153: 12 | K153: 0.78 | L153: 0 | M153: 0.22 | N153: Key Ideas and Details | O153: 16 | P153: 0.55 | Q153: 8.8 | R153: 5;6;8;9;10;12;13;16;23;24;39;42;43;45;46;50 | S153: Craft and Structure | T153: 26 | U153: 0.52 | V153: 13.46 | W153: 1;2;3;4;7;11;14;17;18;19;26;27;28;29;30;31;32;34;36;37;38;41;47;48;52;53 | X153: Integration of Knowledge and Ideas | Y153: 10 | Z153: 0.44 | AA153: 4.43 | AB153: 15;25;35;44;49;51;54;55;56;57 | AG153: 15;25;35;44;49;51;54;55;56;57
A154: 03 Reading Mid-Year 2014 - Grade 3 ELA | B154: 3341 | C154: 3341 3341 - Miami Shores Elementary | D154: 146 | E154: 52 | F154: 63.65 | G154: 33.1 | H154: 75 | I154: 0 | J154: 71 | K154: 0.51 | L154: 0 | M154: 0.49 | N154: Key Ideas and Details | O154: 16 | P154: 0.66 | Q154: 10.53 | R154: 5;6;8;9;10;12;13;16;23;24;39;42;43;45;46;50 | S154: Craft and Structure | T154: 26 | U154: 0.66 | V154: 17.24 | W154: 1;2;3;4;7;11;14;17;18;19;26;27;28;29;30;31;32;34;36;37;38;41;47;48;52;53 | X154: Integration of Knowledge and Ideas | Y154: 10 | Z154: 0.53 | AA154: 5.32 | AB154: 15;25;35;44;49;51;54;55;56;57 | AG154: 15;25;35;44;49;51;54;55;56;57
A155: 03 Reading Mid-Year 2014 - Grade 3 ELA | B155: 3381 | C155: 3381 3381 - Miami Springs Elementary | D155: 73 | E155: 52 | F155: 65.62 | G155: 34.12 | H155: 35 | I155: 0 | J155: 38 | K155: 0.48 | L155: 0 | M155: 0.52 | N155: Key Ideas and Details | O155: 16 | P155: 0.71 | Q155: 11.37 | R155: 5;6;8;9;10;12;13;16;23;24;39;42;43;45;46;50 | S155: Craft and Structure | T155: 26 | U155: 0.66 | V155: 17.08 | W155: 1;2;3;4;7;11;14;17;18;19;26;27;28;29;30;31;32;34;36;37;38;41;47;48;52;53 | X155: Integration of Knowledge and Ideas | Y155: 10 | Z155: 0.57 | AA155: 5.67 | AB155: 15;25;35;44;49;51;54;55;56;57 | AG155: 15;25;35;44;49;51;54;55;56;57
A156: 03 Reading Mid-Year 2014 - Grade 3 ELA | B156: 3421 | C156: 3421 3421 - M.a. Milam K-8 Center | D156: 76 | E156: 52 | F156: 59.89 | G156: 31.14 | H156: 43 | I156: 0 | J156: 33 | K156: 0.57 | L156: 0 | M156: 0.43 | N156: Key Ideas and Details | O156: 16 | P156: 0.62 | Q156: 9.91 | R156: 5;6;8;9;10;12;13;16;23;24;39;42;43;45;46;50 | S156: Craft and Structure | T156: 26 | U156: 0.62 | V156: 16.13 | W156: 1;2;3;4;7;11;14;17;18;19;26;27;28;29;30;31;32;34;36;37;38;41;47;48;52;53 | X156: Integration of Knowledge and Ideas | Y156: 10 | Z156: 0.51 | AA156: 5.11 | AB156: 15;25;35;44;49;51;54;55;56;57 | AG156: 15;25;35;44;49;51;54;55;56;57
A157: 03 Reading Mid-Year 2014 - Grade 3 ELA | B157: 3431 | C157: 3431 3431 - Phyllis Ruth Miller Elementary | D157: 95 | E157: 52 | F157: 63.16 | G157: 32.84 | H157: 53 | I157: 0 | J157: 42 | K157: 0.56 | L157: 0 | M157: 0.44 | N157: Key Ideas and Details | O157: 16 | P157: 0.67 | Q157: 10.64 | R157: 5;6;8;9;10;12;13;16;23;24;39;42;43;45;46;50 | S157: Craft and Structure | T157: 26 | U157: 0.65 | V157: 16.77 | W157: 1;2;3;4;7;11;14;17;18;19;26;27;28;29;30;31;32;34;36;37;38;41;47;48;52;53 | X157: Integration of Knowledge and Ideas | Y157: 10 | Z157: 0.54 | AA157: 5.43 | AB157: 15;25;35;44;49;51;54;55;56;57 | AG157: 15;25;35;44;49;51;54;55;56;57
A158: 03 Reading Mid-Year 2014 - Grade 3 ELA | B158: 3501 | C158: 3501 3501 - Morningside K-8 Academy | D158: 71 | E158: 52 | F158: 55.85 | G158: 29.04 | H158: 50 | I158: 0 | J158: 21 | K158: 0.7 | L158: 0 | M158: 0.3 | N158: Key Ideas and Details | O158: 16 | P158: 0.58 | Q158: 9.27 | R158: 5;6;8;9;10;12;13;16;23;24;39;42;43;45;46;50 | S158: Craft and Structure | T158: 26 | U158: 0.57 | V158: 14.96 | W158: 1;2;3;4;7;11;14;17;18;19;26;27;28;29;30;31;32;34;36;37;38;41;47;48;52;53 | X158: Integration of Knowledge and Ideas | Y158: 10 | Z158: 0.48 | AA158: 4.82 | AB158: 15;25;35;44;49;51;54;55;56;57 | AG158: 15;25;35;44;49;51;54;55;56;57
A159: 03 Reading Mid-Year 2014 - Grade 3 ELA | B159: 3541 | C159: 3541 3541 - Robert Russa Moton Elementary | D159: 65 | E159: 52 | F159: 59.29 | G159: 30.83 | H159: 44 | I159: 0 | J159: 21 | K159: 0.68 | L159: 0 | M159: 0.32 | N159: Key Ideas and Details | O159: 16 | P159: 0.66 | Q159: 10.51 | R159: 5;6;8;9;10;12;13;16;23;24;39;42;43;45;46;50 | S159: Craft and Structure | T159: 26 | U159: 0.59 | V159: 15.45 | W159: 1;2;3;4;7;11;14;17;18;19;26;27;28;29;30;31;32;34;36;37;38;41;47;48;52;53 | X159: Integration of Knowledge and Ideas | Y159: 10 | Z159: 0.49 | AA159: 4.88 | AB159: 15;25;35;44;49;51;54;55;56;57 | AG159: 15;25;35;44;49;51;54;55;56;57
A160: 03 Reading Mid-Year 2014 - Grade 3 ELA | B160: 3581 | C160: 3581 3581 - Myrtle Grove K-8 Center | D160: 69 | E160: 52 | F160: 57.83 | G160: 30.07 | H160: 43 | I160: 0 | J160: 26 | K160: 0.62 | L160: 0 | M160: 0.38 | N160: Key Ideas and Details | O160: 16 | P160: 0.61 | Q160: 9.77 | R160: 5;6;8;9;10;12;13;16;23;24;39;42;43;45;46;50 | S160: Craft and Structure | T160: 26 | U160: 0.61 | V160: 15.9 | W160: 1;2;3;4;7;11;14;17;18;19;26;27;28;29;30;31;32;34;36;37;38;41;47;48;52;53 | X160: Integration of Knowledge and Ideas | Y160: 10 | Z160: 0.44 | AA160: 4.41 | AB160: 15;25;35;44;49;51;54;55;56;57 | AG160: 15;25;35;44;49;51;54;55;56;57
A161: 03 Reading Mid-Year 2014 - Grade 3 ELA | B161: 3610 | C161: 3610 3610 - Keys Gate Charter School | D161: 1 | E161: 52 | F161: 76.92 | G161: 40 | H161: 0 | I161: 0 | J161: 1 | K161: 0 | L161: 0 | M161: 1 | N161: Key Ideas and Details | O161: 16 | P161: 0.94 | Q161: 15 | R161: 5;6;8;9;10;12;13;16;23;24;39;42;43;45;46;50 | S161: Craft and Structure | T161: 26 | U161: 0.73 | V161: 19 | W161: 1;2;3;4;7;11;14;17;18;19;26;27;28;29;30;31;32;34;36;37;38;41;47;48;52;53 | X161: Integration of Knowledge and Ideas | Y161: 10 | Z161: 0.6 | AA161: 6 | AB161: 15;25;35;44;49;51;54;55;56;57 | AG161: 15;25;35;44;49;51;54;55;56;57
A162: 03 Reading Mid-Year 2014 - Grade 3 ELA | B162: 3621 | C162: 3621 3621 - Coconut Palm K-8 Academy | D162: 168 | E162: 52 | F162: 59.23 | G162: 30.8 | H162: 103 | I162: 0 | J162: 65 | K162: 0.61 | L162: 0 | M162: 0.39 | N162: Key Ideas and Details | O162: 16 | P162: 0.64 | Q162: 10.24 | R162: 5;6;8;9;10;12;13;16;23;24;39;42;43;45;46;50 | S162: Craft and Structure | T162: 26 | U162: 0.61 | V162: 15.77 | W162: 1;2;3;4;7;11;14;17;18;19;26;27;28;29;30;31;32;34;36;37;38;41;47;48;52;53 | X162: Integration of Knowledge and Ideas | Y162: 10 | Z162: 0.48 | AA162: 4.78 | AB162: 15;25;35;44;49;51;54;55;56;57 | AG162: 15;25;35;44;49;51;54;55;56;57
A163: 03 Reading Mid-Year 2014 - Grade 3 ELA | B163: 3661 | C163: 3661 3661 - Natural Bridge Elementary | D163: 98 | E163: 52 | F163: 58.2 | G163: 30.27 | H163: 65 | I163: 0 | J163: 33 | K163: 0.66 | L163: 0 | M163: 0.34 | N163: Key Ideas and Details | O163: 16 | P163: 0.63 | Q163: 10.05 | R163: 5;6;8;9;10;12;13;16;23;24;39;42;43;45;46;50 | S163: Craft and Structure | T163: 26 | U163: 0.59 | V163: 15.3 | W163: 1;2;3;4;7;11;14;17;18;19;26;27;28;29;30;31;32;34;36;37;38;41;47;48;52;53 | X163: Integration of Knowledge and Ideas | Y163: 10 | Z163: 0.49 | AA163: 4.92 | AB163: 15;25;35;44;49;51;54;55;56;57 | AG163: 15;25;35;44;49;51;54;55;56;57
A164: 03 Reading Mid-Year 2014 - Grade 3 ELA | B164: 3701 | C164: 3701 3701 - Norland Elementary | D164: 101 | E164: 52 | F164: 60.93 | G164: 31.68 | H164: 65 | I164: 0 | J164: 36 | K164: 0.64 | L164: 0 | M164: 0.36 | N164: Key Ideas and Details | O164: 16 | P164: 0.66 | Q164: 10.6 | R164: 5;6;8;9;10;12;13;16;23;24;39;42;43;45;46;50 | S164: Craft and Structure | T164: 26 | U164: 0.61 | V164: 15.83 | W164: 1;2;3;4;7;11;14;17;18;19;26;27;28;29;30;31;32;34;36;37;38;41;47;48;52;53 | X164: Integration of Knowledge and Ideas | Y164: 10 | Z164: 0.52 | AA164: 5.25 | AB164: 15;25;35;44;49;51;54;55;56;57 | AG164: 15;25;35;44;49;51;54;55;56;57
A165: 03 Reading Mid-Year 2014 - Grade 3 ELA | B165: 3741 | C165: 3741 3741 - North Beach Elementary | D165: 166 | E165: 52 | F165: 72.38 | G165: 37.64 | H165: 44 | I165: 0 | J165: 122 | K165: 0.27 | L165: 0 | M165: 0.73 | N165: Key Ideas and Details | O165: 16 | P165: 0.75 | Q165: 11.9 | R165: 5;6;8;9;10;12;13;16;23;24;39;42;43;45;46;50 | S165: Craft and Structure | T165: 26 | U165: 0.75 | V165: 19.4 | W165: 1;2;3;4;7;11;14;17;18;19;26;27;28;29;30;31;32;34;36;37;38;41;47;48;52;53 | X165: Integration of Knowledge and Ideas | Y165: 10 | Z165: 0.63 | AA165: 6.34 | AB165: 15;25;35;44;49;51;54;55;56;57 | AG165: 15;25;35;44;49;51;54;55;56;57
A166: 03 Reading Mid-Year 2014 - Grade 3 ELA | B166: 3781 | C166: 3781 3781 - Barbara Hawkins Elementary | D166: 55 | E166: 52 | F166: 56.64 | G166: 29.45 | H166: 35 | I166: 0 | J166: 20 | K166: 0.64 | L166: 0 | M166: 0.36 | N166: Key Ideas and Details | O166: 16 | P166: 0.62 | Q166: 9.91 | R166: 5;6;8;9;10;12;13;16;23;24;39;42;43;45;46;50 | S166: Craft and Structure | T166: 26 | U166: 0.58 | V166: 15.16 | W166: 1;2;3;4;7;11;14;17;18;19;26;27;28;29;30;31;32;34;36;37;38;41;47;48;52;53 | X166: Integration of Knowledge and Ideas | Y166: 10 | Z166: 0.44 | AA166: 4.38 | AB166: 15;25;35;44;49;51;54;55;56;57 | AG166: 15;25;35;44;49;51;54;55;56;57
A167: 03 Reading Mid-Year 2014 - Grade 3 ELA | B167: 3821 | C167: 3821 3821 - North County K-8 Center | D167: 54 | E167: 52 | F167: 51 | G167: 26.52 | H167: 41 | I167: 0 | J167: 13 | K167: 0.76 | L167: 0 | M167: 0.24 | N167: Key Ideas and Details | O167: 16 | P167: 0.57 | Q167: 9.07 | R167: 5;6;8;9;10;12;13;16;23;24;39;42;43;45;46;50 | S167: Craft and Structure | T167: 26 | U167: 0.51 | V167: 13.3 | W167: 1;2;3;4;7;11;14;17;18;19;26;27;28;29;30;31;32;34;36;37;38;41;47;48;52;53 | X167: Integration of Knowledge and Ideas | Y167: 10 | Z167: 0.41 | AA167: 4.15 | AB167: 15;25;35;44;49;51;54;55;56;57 | AG167: 15;25;35;44;49;51;54;55;56;57
A168: 03 Reading Mid-Year 2014 - Grade 3 ELA | B168: 3861 | C168: 3861 3861 - North Glade Elementary | D168: 47 | E168: 52 | F168: 61.25 | G168: 31.85 | H168: 30 | I168: 0 | J168: 17 | K168: 0.64 | L168: 0 | M168: 0.36 | N168: Key Ideas and Details | O168: 16 | P168: 0.67 | Q168: 10.79 | R168: 5;6;8;9;10;12;13;16;23;24;39;42;43;45;46;50 | S168: Craft and Structure | T168: 26 | U168: 0.63 | V168: 16.3 | W168: 1;2;3;4;7;11;14;17;18;19;26;27;28;29;30;31;32;34;36;37;38;41;47;48;52;53 | X168: Integration of Knowledge and Ideas | Y168: 10 | Z168: 0.48 | AA168: 4.77 | AB168: 15;25;35;44;49;51;54;55;56;57 | AG168: 15;25;35;44;49;51;54;55;56;57
A169: 03 Reading Mid-Year 2014 - Grade 3 ELA | B169: 3901 | C169: 3901 3901 - North Hialeah Elementary | D169: 111 | E169: 52 | F169: 52.49 | G169: 27.3 | H169: 75 | I169: 0 | J169: 36 | K169: 0.68 | L169: 0 | M169: 0.32 | N169: Key Ideas and Details | O169: 16 | P169: 0.55 | Q169: 8.86 | R169: 5;6;8;9;10;12;13;16;23;24;39;42;43;45;46;50 | S169: Craft and Structure | T169: 26 | U169: 0.53 | V169: 13.73 | W169: 1;2;3;4;7;11;14;17;18;19;26;27;28;29;30;31;32;34;36;37;38;41;47;48;52;53 | X169: Integration of Knowledge and Ideas | Y169: 10 | Z169: 0.47 | AA169: 4.71 | AB169: 15;25;35;44;49;51;54;55;56;57 | AG169: 15;25;35;44;49;51;54;55;56;57
A170: 03 Reading Mid-Year 2014 - Grade 3 ELA | B170: 3941 | C170: 3941 3941 - North Miami Elementary | D170: 91 | E170: 52 | F170: 55.35 | G170: 28.78 | H170: 67 | I170: 0 | J170: 24 | K170: 0.74 | L170: 0 | M170: 0.26 | N170: Key Ideas and Details | O170: 16 | P170: 0.6 | Q170: 9.53 | R170: 5;6;8;9;10;12;13;16;23;24;39;42;43;45;46;50 | S170: Craft and Structure | T170: 26 | U170: 0.57 | V170: 14.7 | W170: 1;2;3;4;7;11;14;17;18;19;26;27;28;29;30;31;32;34;36;37;38;41;47;48;52;53 | X170: Integration of Knowledge and Ideas | Y170: 10 | Z170: 0.45 | AA170: 4.55 | AB170: 15;25;35;44;49;51;54;55;56;57 | AG170: 15;25;35;44;49;51;54;55;56;57
A171: 03 Reading Mid-Year 2014 - Grade 3 ELA | B171: 3981 | C171: 3981 3981 - North Twin Lakes Elementary | D171: 93 | E171: 52 | F171: 64.02 | G171: 33.29 | H171: 49 | I171: 0 | J171: 44 | K171: 0.53 | L171: 0 | M171: 0.47 | N171: Key Ideas and Details | O171: 16 | P171: 0.69 | Q171: 10.95 | R171: 5;6;8;9;10;12;13;16;23;24;39;42;43;45;46;50 | S171: Craft and Structure | T171: 26 | U171: 0.65 | V171: 16.82 | W171: 1;2;3;4;7;11;14;17;18;19;26;27;28;29;30;31;32;34;36;37;38;41;47;48;52;53 | X171: Integration of Knowledge and Ideas | Y171: 10 | Z171: 0.55 | AA171: 5.53 | AB171: 15;25;35;44;49;51;54;55;56;57 | AG171: 15;25;35;44;49;51;54;55;56;57
A172: 03 Reading Mid-Year 2014 - Grade 3 ELA | B172: 4000 | C172: 4000 4000 - Miami Children''s Museum | D172: 50 | E172: 52 | F172: 71.35 | G172: 37.1 | H172: 21 | I172: 0 | J172: 29 | K172: 0.42 | L172: 0 | M172: 0.58 | N172: Key Ideas and Details | O172: 16 | P172: 0.73 | Q172: 11.66 | R172: 5;6;8;9;10;12;13;16;23;24;39;42;43;45;46;50 | S172: Craft and Structure | T172: 26 | U172: 0.74 | V172: 19.32 | W172: 1;2;3;4;7;11;14;17;18;19;26;27;28;29;30;31;32;34;36;37;38;41;47;48;52;53 | X172: Integration of Knowledge and Ideas | Y172: 10 | Z172: 0.61 | AA172: 6.12 | AB172: 15;25;35;44;49;51;54;55;56;57 | AG172: 15;25;35;44;49;51;54;55;56;57
A173: 03 Reading Mid-Year 2014 - Grade 3 ELA | B173: 4001 | C173: 4001 4001 - Norwood Elementary | D173: 91 | E173: 52 | F173: 58.69 | G173: 30.52 | H173: 58 | I173: 0 | J173: 33 | K173: 0.64 | L173: 0 | M173: 0.36 | N173: Key Ideas and Details | O173: 16 | P173: 0.63 | Q173: 10.02 | R173: 5;6;8;9;10;12;13;16;23;24;39;42;43;45;46;50 | S173: Craft and Structure | T173: 26 | U173: 0.59 | V173: 15.35 | W173: 1;2;3;4;7;11;14;17;18;19;26;27;28;29;30;31;32;34;36;37;38;41;47;48;52;53 | X173: Integration of Knowledge and Ideas | Y173: 10 | Z173: 0.51 | AA173: 5.14 | AB173: 15;25;35;44;49;51;54;55;56;57 | AG173: 15;25;35;44;49;51;54;55;56;57
A174: 03 Reading Mid-Year 2014 - Grade 3 ELA | B174: 4012 | C174: 4012 4012 - Somerset Acad At Silver Palms | D174: 88 | E174: 52 | F174: 73.65 | G174: 38.3 | H174: 28 | I174: 0 | J174: 60 | K174: 0.32 | L174: 0 | M174: 0.68 | N174: Key Ideas and Details | O174: 16 | P174: 0.75 | Q174: 11.95 | R174: 5;6;8;9;10;12;13;16;23;24;39;42;43;45;46;50 | S174: Craft and Structure | T174: 26 | U174: 0.76 | V174: 19.84 | W174: 1;2;3;4;7;11;14;17;18;19;26;27;28;29;30;31;32;34;36;37;38;41;47;48;52;53 | X174: Integration of Knowledge and Ideas | Y174: 10 | Z174: 0.65 | AA174: 6.5 | AB174: 15;25;35;44;49;51;54;55;56;57 | AG174: 15;25;35;44;49;51;54;55;56;57
A175: 03 Reading Mid-Year 2014 - Grade 3 ELA | B175: 4021 | C175: 4021 4021 - Oak Grove Elementary | D175: 98 | E175: 52 | F175: 52.02 | G175: 27.05 | H175: 77 | I175: 0 | J175: 21 | K175: 0.79 | L175: 0 | M175: 0.21 | N175: Key Ideas and Details | O175: 16 | P175: 0.57 | Q175: 9.1 | R175: 5;6;8;9;10;12;13;16;23;24;39;42;43;45;46;50 | S175: Craft and Structure | T175: 26 | U175: 0.53 | V175: 13.72 | W175: 1;2;3;4;7;11;14;17;18;19;26;27;28;29;30;31;32;34;36;37;38;41;47;48;52;53 | X175: Integration of Knowledge and Ideas | Y175: 10 | Z175: 0.42 | AA175: 4.22 | AB175: 15;25;35;44;49;51;54;55;56;57 | AG175: 15;25;35;44;49;51;54;55;56;57
A176: 03 Reading Mid-Year 2014 - Grade 3 ELA | B176: 4031 | C176: 4031 4031 - Gateway Environmental K-8 | D176: 245 | E176: 52 | F176: 56.15 | G176: 29.2 | H176: 171 | I176: 0 | J176: 74 | K176: 0.7 | L176: 0 | M176: 0.3 | N176: Key Ideas and Details | O176: 16 | P176: 0.58 | Q176: 9.27 | R176: 5;6;8;9;10;12;13;16;23;24;39;42;43;45;46;50 | S176: Craft and Structure | T176: 26 | U176: 0.58 | V176: 15.12 | W176: 1;2;3;4;7;11;14;17;18;19;26;27;28;29;30;31;32;34;36;37;38;41;47;48;52;53 | X176: Integration of Knowledge and Ideas | Y176: 10 | Z176: 0.48 | AA176: 4.81 | AB176: 15;25;35;44;49;51;54;55;56;57 | AG176: 15;25;35;44;49;51;54;55;56;57
A177: 03 Reading Mid-Year 2014 - Grade 3 ELA | B177: 4061 | C177: 4061 4061 - Ojus Elementary | D177: 163 | E177: 52 | F177: 66.39 | G177: 34.52 | H177: 77 | I177: 0 | J177: 86 | K177: 0.47 | L177: 0 | M177: 0.53 | N177: Key Ideas and Details | O177: 16 | P177: 0.72 | Q177: 11.5 | R177: 5;6;8;9;10;12;13;16;23;24;39;42;43;45;46;50 | S177: Craft and Structure | T177: 26 | U177: 0.67 | V177: 17.36 | W177: 1;2;3;4;7;11;14;17;18;19;26;27;28;29;30;31;32;34;36;37;38;41;47;48;52;53 | X177: Integration of Knowledge and Ideas | Y177: 10 | Z177: 0.57 | AA177: 5.67 | AB177: 15;25;35;44;49;51;54;55;56;57 | AG177: 15;25;35;44;49;51;54;55;56;57
A178: 03 Reading Mid-Year 2014 - Grade 3 ELA | B178: 4071 | C178: 4071 4071 - Agenoria S. Paschal/olinda El | D178: 65 | E178: 52 | F178: 56.36 | G178: 29.31 | H178: 45 | I178: 0 | J178: 20 | K178: 0.69 | L178: 0 | M178: 0.31 | N178: Key Ideas and Details | O178: 16 | P178: 0.59 | Q178: 9.38 | R178: 5;6;8;9;10;12;13;16;23;24;39;42;43;45;46;50 | S178: Craft and Structure | T178: 26 | U178: 0.6 | V178: 15.72 | W178: 1;2;3;4;7;11;14;17;18;19;26;27;28;29;30;31;32;34;36;37;38;41;47;48;52;53 | X178: Integration of Knowledge and Ideas | Y178: 10 | Z178: 0.42 | AA178: 4.2 | AB178: 15;25;35;44;49;51;54;55;56;57 | AG178: 15;25;35;44;49;51;54;55;56;57
A179: 03 Reading Mid-Year 2014 - Grade 3 ELA | B179: 4081 | C179: 4081 4081 - Primary Learning Center | D179: 54 | E179: 52 | F179: 77.64 | G179: 40.37 | H179: 11 | I179: 0 | J179: 43 | K179: 0.2 | L179: 0 | M179: 0.8 | N179: Key Ideas and Details | O179: 16 | P179: 0.8 | Q179: 12.83 | R179: 5;6;8;9;10;12;13;16;23;24;39;42;43;45;46;50 | S179: Craft and Structure | T179: 26 | U179: 0.8 | V179: 20.74 | W179: 1;2;3;4;7;11;14;17;18;19;26;27;28;29;30;31;32;34;36;37;38;41;47;48;52;53 | X179: Integration of Knowledge and Ideas | Y179: 10 | Z179: 0.68 | AA179: 6.8 | AB179: 15;25;35;44;49;51;54;55;56;57 | AG179: 15;25;35;44;49;51;54;55;56;57
A180: 03 Reading Mid-Year 2014 - Grade 3 ELA | B180: 4091 | C180: 4091 4091 - Olympia Heights Elementary | D180: 83 | E180: 52 | F180: 60.56 | G180: 31.49 | H180: 50 | I180: 0 | J180: 33 | K180: 0.6 | L180: 0 | M180: 0.4 | N180: Key Ideas and Details | O180: 16 | P180: 0.65 | Q180: 10.33 | R180: 5;6;8;9;10;12;13;16;23;24;39;42;43;45;46;50 | S180: Craft and Structure | T180: 26 | U180: 0.61 | V180: 15.77 | W180: 1;2;3;4;7;11;14;17;18;19;26;27;28;29;30;31;32;34;36;37;38;41;47;48;52;53 | X180: Integration of Knowledge and Ideas | Y180: 10 | Z180: 0.54 | AA180: 5.4 | AB180: 15;25;35;44;49;51;54;55;56;57 | AG180: 15;25;35;44;49;51;54;55;56;57
A181: 03 Reading Mid-Year 2014 - Grade 3 ELA | B181: 4121 | C181: 4121 4121 - Dr. Robert B. Ingram El | D181: 72 | E181: 52 | F181: 52.64 | G181: 27.38 | H181: 57 | I181: 0 | J181: 15 | K181: 0.79 | L181: 0 | M181: 0.21 | N181: Key Ideas and Details | O181: 16 | P181: 0.6 | Q181: 9.53 | R181: 5;6;8;9;10;12;13;16;23;24;39;42;43;45;46;50 | S181: Craft and Structure | T181: 26 | U181: 0.53 | V181: 13.74 | W181: 1;2;3;4;7;11;14;17;18;19;26;27;28;29;30;31;32;34;36;37;38;41;47;48;52;53 | X181: Integration of Knowledge and Ideas | Y181: 10 | Z181: 0.41 | AA181: 4.11 | AB181: 15;25;35;44;49;51;54;55;56;57 | AG181: 15;25;35;44;49;51;54;55;56;57
A182: 03 Reading Mid-Year 2014 - Grade 3 ELA | B182: 4171 | C182: 4171 4171 - Orchard Villa Elementary | D182: 57 | E182: 52 | F182: 60.36 | G182: 31.39 | H182: 34 | I182: 0 | J182: 23 | K182: 0.6 | L182: 0 | M182: 0.4 | N182: Key Ideas and Details | O182: 16 | P182: 0.63 | Q182: 10.05 | R182: 5;6;8;9;10;12;13;16;23;24;39;42;43;45;46;50 | S182: Craft and Structure | T182: 26 | U182: 0.63 | V182: 16.35 | W182: 1;2;3;4;7;11;14;17;18;19;26;27;28;29;30;31;32;34;36;37;38;41;47;48;52;53 | X182: Integration of Knowledge and Ideas | Y182: 10 | Z182: 0.5 | AA182: 4.98 | AB182: 15;25;35;44;49;51;54;55;56;57 | AG182: 15;25;35;44;49;51;54;55;56;57
A183: 03 Reading Mid-Year 2014 - Grade 3 ELA | B183: 4221 | C183: 4221 4221 - Palmetto Elementary | D183: 117 | E183: 52 | F183: 69.05 | G183: 35.91 | H183: 41 | I183: 0 | J183: 76 | K183: 0.35 | L183: 0 | M183: 0.65 | N183: Key Ideas and Details | O183: 16 | P183: 0.71 | Q183: 11.36 | R183: 5;6;8;9;10;12;13;16;23;24;39;42;43;45;46;50 | S183: Craft and Structure | T183: 26 | U183: 0.71 | V183: 18.49 | W183: 1;2;3;4;7;11;14;17;18;19;26;27;28;29;30;31;32;34;36;37;38;41;47;48;52;53 | X183: Integration of Knowledge and Ideas | Y183: 10 | Z183: 0.61 | AA183: 6.06 | AB183: 15;25;35;44;49;51;54;55;56;57 | AG183: 15;25;35;44;49;51;54;55;56;57
A184: 03 Reading Mid-Year 2014 - Grade 3 ELA | B184: 4241 | C184: 4241 4241 - Palm Lakes Elementary | D184: 157 | E184: 52 | F184: 55.83 | G184: 29.03 | H184: 103 | I184: 0 | J184: 54 | K184: 0.66 | L184: 0 | M184: 0.34 | N184: Key Ideas and Details | O184: 16 | P184: 0.6 | Q184: 9.55 | R184: 5;6;8;9;10;12;13;16;23;24;39;42;43;45;46;50 | S184: Craft and Structure | T184: 26 | U184: 0.57 | V184: 14.7 | W184: 1;2;3;4;7;11;14;17;18;19;26;27;28;29;30;31;32;34;36;37;38;41;47;48;52;53 | X184: Integration of Knowledge and Ideas | Y184: 10 | Z184: 0.48 | AA184: 4.78 | AB184: 15;25;35;44;49;51;54;55;56;57 | AG184: 15;25;35;44;49;51;54;55;56;57
A185: 03 Reading Mid-Year 2014 - Grade 3 ELA | B185: 4261 | C185: 4261 4261 - Palm Springs Elementary | D185: 129 | E185: 52 | F185: 54.99 | G185: 28.6 | H185: 93 | I185: 0 | J185: 36 | K185: 0.72 | L185: 0 | M185: 0.28 | N185: Key Ideas and Details | O185: 16 | P185: 0.6 | Q185: 9.55 | R185: 5;6;8;9;10;12;13;16;23;24;39;42;43;45;46;50 | S185: Craft and Structure | T185: 26 | U185: 0.56 | V185: 14.52 | W185: 1;2;3;4;7;11;14;17;18;19;26;27;28;29;30;31;32;34;36;37;38;41;47;48;52;53 | X185: Integration of Knowledge and Ideas | Y185: 10 | Z185: 0.45 | AA185: 4.53 | AB185: 15;25;35;44;49;51;54;55;56;57 | AG185: 15;25;35;44;49;51;54;55;56;57
A186: 03 Reading Mid-Year 2014 - Grade 3 ELA | B186: 4281 | C186: 4281 4281 - Palm Springs North Elementary | D186: 149 | E186: 52 | F186: 66.7 | G186: 34.68 | H186: 63 | I186: 0 | J186: 86 | K186: 0.42 | L186: 0 | M186: 0.58 | N186: Key Ideas and Details | O186: 16 | P186: 0.7 | Q186: 11.15 | R186: 5;6;8;9;10;12;13;16;23;24;39;42;43;45;46;50 | S186: Craft and Structure | T186: 26 | U186: 0.68 | V186: 17.79 | W186: 1;2;3;4;7;11;14;17;18;19;26;27;28;29;30;31;32;34;36;37;38;41;47;48;52;53 | X186: Integration of Knowledge and Ideas | Y186: 10 | Z186: 0.57 | AA186: 5.74 | AB186: 15;25;35;44;49;51;54;55;56;57 | AG186: 15;25;35;44;49;51;54;55;56;57
A187: 03 Reading Mid-Year 2014 - Grade 3 ELA | B187: 4301 | C187: 4301 4301 - Parkview Elementary | D187: 53 | E187: 52 | F187: 56.6 | G187: 29.43 | H187: 38 | I187: 0 | J187: 15 | K187: 0.72 | L187: 0 | M187: 0.28 | N187: Key Ideas and Details | O187: 16 | P187: 0.56 | Q187: 9 | R187: 5;6;8;9;10;12;13;16;23;24;39;42;43;45;46;50 | S187: Craft and Structure | T187: 26 | U187: 0.6 | V187: 15.7 | W187: 1;2;3;4;7;11;14;17;18;19;26;27;28;29;30;31;32;34;36;37;38;41;47;48;52;53 | X187: Integration of Knowledge and Ideas | Y187: 10 | Z187: 0.47 | AA187: 4.74 | AB187: 15;25;35;44;49;51;54;55;56;57 | AG187: 15;25;35;44;49;51;54;55;56;57
A188: 03 Reading Mid-Year 2014 - Grade 3 ELA | B188: 4341 | C188: 4341 4341 - Parkway Elementary | D188: 61 | E188: 52 | F188: 58.95 | G188: 30.66 | H188: 40 | I188: 0 | J188: 21 | K188: 0.66 | L188: 0 | M188: 0.34 | N188: Key Ideas and Details | O188: 16 | P188: 0.65 | Q188: 10.3 | R188: 5;6;8;9;10;12;13;16;23;24;39;42;43;45;46;50 | S188: Craft and Structure | T188: 26 | U188: 0.6 | V188: 15.48 | W188: 1;2;3;4;7;11;14;17;18;19;26;27;28;29;30;31;32;34;36;37;38;41;47;48;52;53 | X188: Integration of Knowledge and Ideas | Y188: 10 | Z188: 0.49 | AA188: 4.89 | AB188: 15;25;35;44;49;51;54;55;56;57 | AG188: 15;25;35;44;49;51;54;55;56;57
A189: 03 Reading Mid-Year 2014 - Grade 3 ELA | B189: 4381 | C189: 4381 4381 - Dr Henry E Perrine Academy | D189: 153 | E189: 52 | F189: 67.17 | G189: 34.93 | H189: 67 | I189: 0 | J189: 86 | K189: 0.44 | L189: 0 | M189: 0.56 | N189: Key Ideas and Details | O189: 16 | P189: 0.69 | Q189: 10.97 | R189: 5;6;8;9;10;12;13;16;23;24;39;42;43;45;46;50 | S189: Craft and Structure | T189: 26 | U189: 0.71 | V189: 18.35 | W189: 1;2;3;4;7;11;14;17;18;19;26;27;28;29;30;31;32;34;36;37;38;41;47;48;52;53 | X189: Integration of Knowledge and Ideas | Y189: 10 | Z189: 0.56 | AA189: 5.6 | AB189: 15;25;35;44;49;51;54;55;56;57 | AG189: 15;25;35;44;49;51;54;55;56;57
A190: 03 Reading Mid-Year 2014 - Grade 3 ELA | B190: 4391 | C190: 4391 4391 - Irving and Beatrice Peskoe K-8 | D190: 100 | E190: 52 | F190: 54.9 | G190: 28.55 | H190: 67 | I190: 0 | J190: 33 | K190: 0.67 | L190: 0 | M190: 0.33 | N190: Key Ideas and Details | O190: 16 | P190: 0.58 | Q190: 9.34 | R190: 5;6;8;9;10;12;13;16;23;24;39;42;43;45;46;50 | S190: Craft and Structure | T190: 26 | U190: 0.56 | V190: 14.65 | W190: 1;2;3;4;7;11;14;17;18;19;26;27;28;29;30;31;32;34;36;37;38;41;47;48;52;53 | X190: Integration of Knowledge and Ideas | Y190: 10 | Z190: 0.46 | AA190: 4.56 | AB190: 15;25;35;44;49;51;54;55;56;57 | AG190: 15;25;35;44;49;51;54;55;56;57
A191: 03 Reading Mid-Year 2014 - Grade 3 ELA | B191: 4401 | C191: 4401 4401 - Kelsey L. Pharr Elementary | D191: 51 | E191: 52 | F191: 53.58 | G191: 27.86 | H191: 37 | I191: 0 | J191: 14 | K191: 0.73 | L191: 0 | M191: 0.27 | N191: Key Ideas and Details | O191: 16 | P191: 0.56 | Q191: 8.98 | R191: 5;6;8;9;10;12;13;16;23;24;39;42;43;45;46;50 | S191: Craft and Structure | T191: 26 | U191: 0.54 | V191: 14.16 | W191: 1;2;3;4;7;11;14;17;18;19;26;27;28;29;30;31;32;34;36;37;38;41;47;48;52;53 | X191: Integration of Knowledge and Ideas | Y191: 10 | Z191: 0.47 | AA191: 4.73 | AB191: 15;25;35;44;49;51;54;55;56;57 | AG191: 15;25;35;44;49;51;54;55;56;57
A192: 03 Reading Mid-Year 2014 - Grade 3 ELA | B192: 4421 | C192: 4421 4421 - Pinecrest Elementary | D192: 168 | E192: 52 | F192: 72.99 | G192: 37.95 | H192: 50 | I192: 0 | J192: 118 | K192: 0.3 | L192: 0 | M192: 0.7 | N192: Key Ideas and Details | O192: 16 | P192: 0.74 | Q192: 11.8 | R192: 5;6;8;9;10;12;13;16;23;24;39;42;43;45;46;50 | S192: Craft and Structure | T192: 26 | U192: 0.76 | V192: 19.65 | W192: 1;2;3;4;7;11;14;17;18;19;26;27;28;29;30;31;32;34;36;37;38;41;47;48;52;53 | X192: Integration of Knowledge and Ideas | Y192: 10 | Z192: 0.65 | AA192: 6.5 | AB192: 15;25;35;44;49;51;54;55;56;57 | AG192: 15;25;35;44;49;51;54;55;56;57
A193: 03 Reading Mid-Year 2014 - Grade 3 ELA | B193: 4441 | C193: 4441 4441 - Pine Lake Elementary | D193: 48 | E193: 52 | F193: 59.38 | G193: 30.88 | H193: 31 | I193: 0 | J193: 17 | K193: 0.65 | L193: 0 | M193: 0.35 | N193: Key Ideas and Details | O193: 16 | P193: 0.64 | Q193: 10.17 | R193: 5;6;8;9;10;12;13;16;23;24;39;42;43;45;46;50 | S193: Craft and Structure | T193: 26 | U193: 0.61 | V193: 15.85 | W193: 1;2;3;4;7;11;14;17;18;19;26;27;28;29;30;31;32;34;36;37;38;41;47;48;52;53 | X193: Integration of Knowledge and Ideas | Y193: 10 | Z193: 0.49 | AA193: 4.85 | AB193: 15;25;35;44;49;51;54;55;56;57 | AG193: 15;25;35;44;49;51;54;55;56;57
A194: 03 Reading Mid-Year 2014 - Grade 3 ELA | B194: 4461 | C194: 4461 4461 - Pine Villa Elementary | D194: 43 | E194: 52 | F194: 55.64 | G194: 28.93 | H194: 32 | I194: 0 | J194: 11 | K194: 0.74 | L194: 0 | M194: 0.26 | N194: Key Ideas and Details | O194: 16 | P194: 0.61 | Q194: 9.72 | R194: 5;6;8;9;10;12;13;16;23;24;39;42;43;45;46;50 | S194: Craft and Structure | T194: 26 | U194: 0.56 | V194: 14.51 | W194: 1;2;3;4;7;11;14;17;18;19;26;27;28;29;30;31;32;34;36;37;38;41;47;48;52;53 | X194: Integration of Knowledge and Ideas | Y194: 10 | Z194: 0.47 | AA194: 4.7 | AB194: 15;25;35;44;49;51;54;55;56;57 | AG194: 15;25;35;44;49;51;54;55;56;57
A195: 03 Reading Mid-Year 2014 - Grade 3 ELA | B195: 4491 | C195: 4491 4491 - Henry E.s. Reeves Elementary | D195: 164 | E195: 52 | F195: 54.03 | G195: 28.1 | H195: 124 | I195: 0 | J195: 40 | K195: 0.76 | L195: 0 | M195: 0.24 | N195: Key Ideas and Details | O195: 16 | P195: 0.59 | Q195: 9.34 | R195: 5;6;8;9;10;12;13;16;23;24;39;42;43;45;46;50 | S195: Craft and Structure | T195: 26 | U195: 0.54 | V195: 14.16 | W195: 1;2;3;4;7;11;14;17;18;19;26;27;28;29;30;31;32;34;36;37;38;41;47;48;52;53 | X195: Integration of Knowledge and Ideas | Y195: 10 | Z195: 0.46 | AA195: 4.59 | AB195: 15;25;35;44;49;51;54;55;56;57 | AG195: 15;25;35;44;49;51;54;55;56;57
A196: 03 Reading Mid-Year 2014 - Grade 3 ELA | B196: 4501 | C196: 4501 4501 - Poinciana Park Elementary | D196: 58 | E196: 52 | F196: 51.26 | G196: 26.66 | H196: 47 | I196: 0 | J196: 11 | K196: 0.81 | L196: 0 | M196: 0.19 | N196: Key Ideas and Details | O196: 16 | P196: 0.55 | Q196: 8.86 | R196: 5;6;8;9;10;12;13;16;23;24;39;42;43;45;46;50 | S196: Craft and Structure | T196: 26 | U196: 0.54 | V196: 13.93 | W196: 1;2;3;4;7;11;14;17;18;19;26;27;28;29;30;31;32;34;36;37;38;41;47;48;52;53 | X196: Integration of Knowledge and Ideas | Y196: 10 | Z196: 0.39 | AA196: 3.86 | AB196: 15;25;35;44;49;51;54;55;56;57 | AG196: 15;25;35;44;49;51;54;55;56;57
A197: 03 Reading Mid-Year 2014 - Grade 3 ELA | B197: 4511 | C197: 4511 4511 - Dr Gilbert L. Porter Elem | D197: 120 | E197: 52 | F197: 62.77 | G197: 32.64 | H197: 61 | I197: 0 | J197: 59 | K197: 0.51 | L197: 0 | M197: 0.49 | N197: Key Ideas and Details | O197: 16 | P197: 0.67 | Q197: 10.66 | R197: 5;6;8;9;10;12;13;16;23;24;39;42;43;45;46;50 | S197: Craft and Structure | T197: 26 | U197: 0.64 | V197: 16.68 | W197: 1;2;3;4;7;11;14;17;18;19;26;27;28;29;30;31;32;34;36;37;38;41;47;48;52;53 | X197: Integration of Knowledge and Ideas | Y197: 10 | Z197: 0.53 | AA197: 5.31 | AB197: 15;25;35;44;49;51;54;55;56;57 | AG197: 15;25;35;44;49;51;54;55;56;57
A198: 03 Reading Mid-Year 2014 - Grade 3 ELA | B198: 4541 | C198: 4541 4541 - Rainbow Park Elementary | D198: 72 | E198: 52 | F198: 55.07 | G198: 28.64 | H198: 52 | I198: 0 | J198: 20 | K198: 0.72 | L198: 0 | M198: 0.28 | N198: Key Ideas and Details | O198: 16 | P198: 0.58 | Q198: 9.19 | R198: 5;6;8;9;10;12;13;16;23;24;39;42;43;45;46;50 | S198: Craft and Structure | T198: 26 | U198: 0.56 | V198: 14.5 | W198: 1;2;3;4;7;11;14;17;18;19;26;27;28;29;30;31;32;34;36;37;38;41;47;48;52;53 | X198: Integration of Knowledge and Ideas | Y198: 10 | Z198: 0.49 | AA198: 4.94 | AB198: 15;25;35;44;49;51;54;55;56;57 | AG198: 15;25;35;44;49;51;54;55;56;57
A199: 03 Reading Mid-Year 2014 - Grade 3 ELA | B199: 4581 | C199: 4581 4581 - Redland Elementary | D199: 159 | E199: 52 | F199: 55.53 | G199: 28.87 | H199: 110 | I199: 0 | J199: 49 | K199: 0.69 | L199: 0 | M199: 0.31 | N199: Key Ideas and Details | O199: 16 | P199: 0.6 | Q199: 9.56 | R199: 5;6;8;9;10;12;13;16;23;24;39;42;43;45;46;50 | S199: Craft and Structure | T199: 26 | U199: 0.56 | V199: 14.64 | W199: 1;2;3;4;7;11;14;17;18;19;26;27;28;29;30;31;32;34;36;37;38;41;47;48;52;53 | X199: Integration of Knowledge and Ideas | Y199: 10 | Z199: 0.47 | AA199: 4.68 | AB199: 15;25;35;44;49;51;54;55;56;57 | AG199: 15;25;35;44;49;51;54;55;56;57
A200: 03 Reading Mid-Year 2014 - Grade 3 ELA | B200: 4611 | C200: 4611 4611 - Redondo Elementary | D200: 152 | E200: 52 | F200: 57.73 | G200: 30.02 | H200: 102 | I200: 0 | J200: 50 | K200: 0.67 | L200: 0 | M200: 0.33 | N200: Key Ideas and Details | O200: 16 | P200: 0.62 | Q200: 9.95 | R200: 5;6;8;9;10;12;13;16;23;24;39;42;43;45;46;50 | S200: Craft and Structure | T200: 26 | U200: 0.58 | V200: 14.97 | W200: 1;2;3;4;7;11;14;17;18;19;26;27;28;29;30;31;32;34;36;37;38;41;47;48;52;53 | X200: Integration of Knowledge and Ideas | Y200: 10 | Z200: 0.51 | AA200: 5.11 | AB200: 15;25;35;44;49;51;54;55;56;57 | AG200: 15;25;35;44;49;51;54;55;56;57
... 72 more rows

Sheet R-G04 (hidden)
B1: =COLUMN()-1 -> 1 | C1: =COLUMN()-1 -> 2 | D1: 3 | E1: 4 | F1: 5 | G1: 6 | H1: 7 | I1: 8 | J1: 9 | K1: 10 | L1: 11 | M1: 12 | N1: 13 | O1: 14 | P1: 15 | Q1: 16 | R1: 17 | S1: 18 | T1: 19 | U1: 20 | V1: 21 | W1: 22 | X1: 23 | Y1: 24 | Z1: 25 | AA1: 26 | AB1: 27 | AC1: 28 | AD1: 29 | AE1: 30 | AF1: 31 | AG1: 32 | AH1: 33
A2: Assessment | B2: WLOC | C2: School Name | D2: Number Tested | E2: Max Score | F2: Avg % Correct | G2: Avg Raw Score | H2: # Insufficient | I2: # Limited | J2: # Satisfactory | K2: % Insufficient | L2: % Limited | M2: % Satisfactory | N2: Domain1 | O2: Domain1 Max Score | P2: Avg Domain1 %Correct | Q2: Avg Domain1 Raw | R2: Domain1 Item List | S2: Domain2 | T2: Domain2 Max Score | U2: Avg Domain2 %Correct | V2: Avg Domain2 Raw | W2: Domain2 Item List | X2: Domain3 | Y2: Domain3 Max Score | Z2: Avg Domain3 %Correct | AA2: Avg Domain3 Raw | AB2: Domain3 Item List | AC2: Domain4 | AD2: Domain4 Max Score | AE2: Avg Domain4 %Correct | AF2: Avg Domain4 Raw | AG2: Domain4 Item List | AH2: Domain5 | AI2: Domain5 Max Score | AJ2: Avg Domain5 %Correct | AK2: Avg Domain5 Raw | AL2: Domain5 Item List
A3: 04 Reading Mid-Year 2014 - Grade 4 ELA | B3: 41 | C3: 0041 0041 - Air Base Elementary | D3: 116 | E3: 56 | F3: 67.3 | G3: 37.69 | H3: 62 | I3: 0 | J3: 54 | K3: 0.53 | L3: 0 | M3: 0.47 | N3: Key Ideas and Details | O3: 18 | P3: 0.7 | Q3: 12.52 | R3: 1;4;5;6;8;9;10;11;13;18;19;20;27;29;30;46;47;48 | S3: Craft and Structure | T3: 24 | U3: 0.65 | V3: 15.62 | W3: 2;3;7;12;14;15;17;23;25;26;31;32;33;34;35;36;43;44;45;49;50;53;54;57 | X3: Integration of Knowledge and Ideas | Y3: 14 | Z3: 0.68 | AA3: 9.55 | AB3: 16;21;22;24;28;37;38;39;40;41;42;51;52;56 | AG3: 16;21;22;24;28;37;38;39;40;41;42;51;52;56
A4: 04 Reading Mid-Year 2014 - Grade 4 ELA | B4: 70 | C4: 0070 0070 - Coral Reef Montessori Acad Ch | D4: 46 | E4: 56 | F4: 65.88 | G4: 36.89 | H4: 24 | I4: 0 | J4: 22 | K4: 0.52 | L4: 0 | M4: 0.48 | N4: Key Ideas and Details | O4: 18 | P4: 0.69 | Q4: 12.48 | R4: 1;4;5;6;8;9;10;11;13;18;19;20;27;29;30;46;47;48 | S4: Craft and Structure | T4: 24 | U4: 0.63 | V4: 15.11 | W4: 2;3;7;12;14;15;17;23;25;26;31;32;33;34;35;36;43;44;45;49;50;53;54;57 | X4: Integration of Knowledge and Ideas | Y4: 14 | Z4: 0.66 | AA4: 9.3 | AB4: 16;21;22;24;28;37;38;39;40;41;42;51;52;56 | AG4: 16;21;22;24;28;37;38;39;40;41;42;51;52;56
A5: 04 Reading Mid-Year 2014 - Grade 4 ELA | B5: 71 | C5: 0071 0071 - Eugenia B. Thomas K-8 Center | D5: 173 | E5: 56 | F5: 59.93 | G5: 33.56 | H5: 113 | I5: 0 | J5: 60 | K5: 0.65 | L5: 0 | M5: 0.35 | N5: Key Ideas and Details | O5: 18 | P5: 0.63 | Q5: 11.27 | R5: 1;4;5;6;8;9;10;11;13;18;19;20;27;29;30;46;47;48 | S5: Craft and Structure | T5: 24 | U5: 0.58 | V5: 13.81 | W5: 2;3;7;12;14;15;17;23;25;26;31;32;33;34;35;36;43;44;45;49;50;53;54;57 | X5: Integration of Knowledge and Ideas | Y5: 14 | Z5: 0.61 | AA5: 8.49 | AB5: 16;21;22;24;28;37;38;39;40;41;42;51;52;56 | AG5: 16;21;22;24;28;37;38;39;40;41;42;51;52;56
A6: 04 Reading Mid-Year 2014 - Grade 4 ELA | B6: 72 | C6: 0072 0072 - Summerville Charter School | D6: 85 | E6: 56 | F6: 56.3 | G6: 31.53 | H6: 67 | I6: 0 | J6: 18 | K6: 0.79 | L6: 0 | M6: 0.21 | N6: Key Ideas and Details | O6: 18 | P6: 0.57 | Q6: 10.34 | R6: 1;4;5;6;8;9;10;11;13;18;19;20;27;29;30;46;47;48 | S6: Craft and Structure | T6: 24 | U6: 0.54 | V6: 12.99 | W6: 2;3;7;12;14;15;17;23;25;26;31;32;33;34;35;36;43;44;45;49;50;53;54;57 | X6: Integration of Knowledge and Ideas | Y6: 14 | Z6: 0.59 | AA6: 8.2 | AB6: 16;21;22;24;28;37;38;39;40;41;42;51;52;56 | AG6: 16;21;22;24;28;37;38;39;40;41;42;51;52;56
A7: 04 Reading Mid-Year 2014 - Grade 4 ELA | B7: 73 | C7: 0073 0073 - Mandarin Lakes K-8 Center | D7: 106 | E7: 56 | F7: 45.15 | G7: 25.28 | H7: 101 | I7: 0 | J7: 5 | K7: 0.95 | L7: 0 | M7: 0.05 | N7: Key Ideas and Details | O7: 18 | P7: 0.47 | Q7: 8.49 | R7: 1;4;5;6;8;9;10;11;13;18;19;20;27;29;30;46;47;48 | S7: Craft and Structure | T7: 24 | U7: 0.44 | V7: 10.44 | W7: 2;3;7;12;14;15;17;23;25;26;31;32;33;34;35;36;43;44;45;49;50;53;54;57 | X7: Integration of Knowledge and Ideas | Y7: 14 | Z7: 0.45 | AA7: 6.35 | AB7: 16;21;22;24;28;37;38;39;40;41;42;51;52;56 | AG7: 16;21;22;24;28;37;38;39;40;41;42;51;52;56
A8: 04 Reading Mid-Year 2014 - Grade 4 ELA | B8: 81 | C8: 0081 0081 - Lenora B. Smith Elementary | D8: 48 | E8: 56 | F8: 51.3 | G8: 28.73 | H8: 42 | I8: 0 | J8: 6 | K8: 0.88 | L8: 0 | M8: 0.13 | N8: Key Ideas and Details | O8: 18 | P8: 0.5 | Q8: 9.06 | R8: 1;4;5;6;8;9;10;11;13;18;19;20;27;29;30;46;47;48 | S8: Craft and Structure | T8: 24 | U8: 0.5 | V8: 12.06 | W8: 2;3;7;12;14;15;17;23;25;26;31;32;33;34;35;36;43;44;45;49;50;53;54;57 | X8: Integration of Knowledge and Ideas | Y8: 14 | Z8: 0.54 | AA8: 7.6 | AB8: 16;21;22;24;28;37;38;39;40;41;42;51;52;56 | AG8: 16;21;22;24;28;37;38;39;40;41;42;51;52;56
A9: 04 Reading Mid-Year 2014 - Grade 4 ELA | B9: 91 | C9: 0091 0091 - Bob Graham Education Ctr | D9: 192 | E9: 56 | F9: 59.05 | G9: 33.07 | H9: 134 | I9: 0 | J9: 58 | K9: 0.7 | L9: 0 | M9: 0.3 | N9: Key Ideas and Details | O9: 18 | P9: 0.6 | Q9: 10.86 | R9: 1;4;5;6;8;9;10;11;13;18;19;20;27;29;30;46;47;48 | S9: Craft and Structure | T9: 24 | U9: 0.57 | V9: 13.72 | W9: 2;3;7;12;14;15;17;23;25;26;31;32;33;34;35;36;43;44;45;49;50;53;54;57 | X9: Integration of Knowledge and Ideas | Y9: 14 | Z9: 0.61 | AA9: 8.48 | AB9: 16;21;22;24;28;37;38;39;40;41;42;51;52;56 | AG9: 16;21;22;24;28;37;38;39;40;41;42;51;52;56
A10: 04 Reading Mid-Year 2014 - Grade 4 ELA | B10: 92 | C10: 0092 0092 - Norman S. Edelcup/sunny Isles | D10: 234 | E10: 56 | F10: 61.02 | G10: 34.17 | H10: 163 | I10: 0 | J10: 71 | K10: 0.7 | L10: 0 | M10: 0.3 | N10: Key Ideas and Details | O10: 18 | P10: 0.64 | Q10: 11.49 | R10: 1;4;5;6;8;9;10;11;13;18;19;20;27;29;30;46;47;48 | S10: Craft and Structure | T10: 24 | U10: 0.58 | V10: 13.93 | W10: 2;3;7;12;14;15;17;23;25;26;31;32;33;34;35;36;43;44;45;49;50;53;54;57 | X10: Integration of Knowledge and Ideas | Y10: 14 | Z10: 0.63 | AA10: 8.76 | AB10: 16;21;22;24;28;37;38;39;40;41;42;51;52;56 | AG10: 16;21;22;24;28;37;38;39;40;41;42;51;52;56
A11: 04 Reading Mid-Year 2014 - Grade 4 ELA | B11: 100 | C11: 0100 0100 - Mater Academy | D11: 147 | E11: 56 | F11: 63.25 | G11: 35.42 | H11: 96 | I11: 0 | J11: 51 | K11: 0.65 | L11: 0 | M11: 0.35 | N11: Key Ideas and Details | O11: 18 | P11: 0.64 | Q11: 11.54 | R11: 1;4;5;6;8;9;10;11;13;18;19;20;27;29;30;46;47;48 | S11: Craft and Structure | T11: 24 | U11: 0.62 | V11: 14.95 | W11: 2;3;7;12;14;15;17;23;25;26;31;32;33;34;35;36;43;44;45;49;50;53;54;57 | X11: Integration of Knowledge and Ideas | Y11: 14 | Z11: 0.64 | AA11: 8.94 | AB11: 16;21;22;24;28;37;38;39;40;41;42;51;52;56 | AG11: 16;21;22;24;28;37;38;39;40;41;42;51;52;56
